{"text_format":"3","workbook":"xlsx","n_sheets":27,"sheets":["Bill 1-P&G","Bill 2-Alterations","Bill 3-Earthworks","Bill 4-Concrete","Bill 5-Masonry","Bill 6-Waterproofing","Bill 7-Roof","Bill 8-Capentry","Bill 9-Ceilings","Bill 10-Iron Mongery","Bill 11-Metal","Bill 12-Structural","Bill 13-Plastering","Bill 14- Tile","Bill 15-Plumbing","Bill 16-Painting","Bill 17-Site Works","Bill 18- Road","Bill 19- Fence ","Bill 20- Water ","Bill 21- Sewer ","Bill 22- Stormwater","Bill 23- Furniture ","Bill 24- Electrical","Bill 25- Mechanical","Bill 26- Provisional","BOQ - Summary"],"not_rendered":{"external_links":1,"defined_names":185},"read":"whole","date_system":"1900"}

{"sheet":"Bill 1-P&G","index":0,"n_rows":3012,"n_cols":24,"rows_kept":3012,"merged":[[0,0,0,1],[0,2,1,17],[0,18,0,19],[1,0,1,1],[1,18,1,19],[2,1,4,11],[2,16,4,17],[3,12,3,13],[3,14,3,15],[3,18,3,19],[21,12,21,13],[21,14,21,15],[21,16,21,17],[21,18,21,19],[24,12,24,13],[24,14,24,15],[24,16,24,17],[24,18,24,19],[29,12,29,13],[29,14,29,15],[29,16,29,17],[29,18,29,19],[31,23,31,24],[32,23,32,24],[33,12,33,13],[33,14,33,15],[33,16,33,17],[33,18,33,19],[34,23,34,24],[35,23,35,24],[36,23,36,24],[37,23,37,24],[38,12,38,13],[38,14,38,15],[38,16,38,17],[38,18,38,19],[38,23,38,24],[39,23,39,24],[40,12,40,13],[40,14,40,15],[40,16,40,17],[40,18,40,19],[40,23,40,24],[41,23,41,24],[42,12,42,13],[42,14,42,15],[42,16,42,17],[42,18,42,19],[42,23,42,24],[44,23,44,24],[45,23,45,24],[46,23,46,24],[47,23,47,24],[48,23,48,24],[49,23,49,24],[50,23,50,24],[51,23,51,24],[52,23,52,24],[53,23,53,24],[54,23,54,24],[55,23,55,24],[56,23,56,24],[57,23,57,24],[58,23,58,24],[59,23,59,24],[61,23,61,24],[62,23,62,24],[63,23,63,24],[64,23,64,24],[67,12,67,13],[67,14,67,15],[67,16,67,17],[67,18,67,19],[72,12,72,13],[73,0,75,0],[73,23,73,24],[74,18,74,19],[74,23,74,24],[75,23,75,24],[76,0,76,1],[76,2,77,17],[76,18,76,19],[76,23,76,24],[77,0,77,1],[77,18,77,19],[77,23,77,24],[78,2,80,11],[78,16,80,17],[78,23,78,24],[79,12,79,13],[79,14,79,15],[79,18,79,19],[79,23,79,24],[80,23,80,24],[95,23,95,24],[96,23,96,24],[97,23,97,24],[98,23,98,24],[99,23,99,24],[100,23,100,24],[101,23,101,24],[102,23,102,24],[103,23,103,24],[104,23,104,24],[105,23,105,24],[106,23,106,24],[107,23,107,24],[108,23,108,24],[109,12,109,13],[109,14,109,15],[109,23,109,24],[110,23,110,24],[111,12,111,13],[111,14,111,15],[111,23,111,24],[112,23,112,24],[113,12,113,13],[113,14,113,15],[113,23,113,24],[115,23,115,24],[116,23,116,24],[117,23,117,24],[118,12,118,13],[118,23,118,24],[119,23,119,24],[121,23,121,24],[122,23,122,24],[123,23,123,24],[124,23,124,24],[125,23,125,24],[126,23,126,24],[127,23,127,24],[128,23,128,24],[129,23,129,24],[130,12,130,13],[130,23,130,24],[131,23,131,24],[132,23,132,24],[133,23,133,24],[136,12,136,13],[140,23,140,24],[141,23,141,24],[142,12,142,13],[148,0,150,0],[148,23,148,24],[149,18,149,19],[151,0,151,1],[151,2,152,17],[151,18,151,19],[152,0,152,1],[152,18,152,19],[153,2,155,11],[153,16,155,17],[154,12,154,13],[154,14,154,15],[154,18,154,19],[156,12,156,13],[156,14,156,15],[156,16,156,17],[156,18,156,19],[168,12,168,13],[180,12,180,13],[190,12,190,13],[198,12,198,13],[204,12,204,13],[213,12,213,13],[213,14,213,15],[215,12,215,13],[215,14,215,15],[217,12,217,13],[217,14,217,15],[219,12,219,13],[219,14,219,15],[224,0,226,0],[225,18,225,19],[227,0,227,1],[227,2,228,17],[227,18,227,19],[228,0,228,1],[228,18,228,19],[229,2,231,11],[229,16,231,17],[230,12,230,13],[230,14,230,15],[230,18,230,19],[232,23,232,24],[233,12,233,13],[233,14,233,15],[233,23,233,24],[234,23,234,24],[235,12,235,13],[235,14,235,15],[235,23,235,24],[236,23,236,24],[237,23,237,24],[238,12,238,13],[238,14,238,15],[240,12,240,13],[240,14,240,15],[243,12,243,13],[243,14,243,15],[247,12,247,13],[247,14,247,15],[250,12,250,13],[250,14,250,15],[250,16,250,17],[250,18,250,19],[251,23,251,24],[252,23,252,24],[258,12,258,13],[258,14,258,15],[258,16,258,17],[258,18,258,19],[259,14,259,15],[259,16,259,17],[259,18,259,19],[300,0,302,0],[301,18,301,19],[303,0,303,1],[303,2,304,17],[303,18,303,19],[304,0,304,1],[304,18,304,19],[305,2,307,11],[305,16,307,17],[306,12,306,13],[306,14,306,15],[306,18,306,19],[370,12,370,13],[375,0,377,0],[376,18,376,19],[378,0,378,1],[378,2,379,17],[378,18,378,19],[379,0,379,1],[379,18,379,19],[380,2,382,11],[380,16,382,17],[381,12,381,13],[381,14,381,15],[381,18,381,19],[450,0,452,0],[451,18,451,19],[453,0,453,1],[453,2,454,17],[453,18,453,19],[454,0,454,1],[454,18,454,19],[455,1,457,11],[455,16,457,17],[456,12,456,13],[456,14,456,15],[456,18,456,19],[524,0,526,0],[525,18,525,19],[527,0,527,1],[527,2,528,17],[527,18,527,19],[528,0,528,1],[528,18,528,19],[529,2,531,11],[529,16,531,17],[530,12,530,13],[530,14,530,15],[530,18,530,19],[578,12,578,13],[596,12,596,13],[600,0,602,0],[601,18,601,19],[603,0,603,1],[603,2,604,17],[603,18,603,19],[604,0,604,1],[604,18,604,19],[605,2,607,11],[605,16,607,17],[606,12,606,13],[606,14,606,15],[606,18,606,19],[612,12,612,13],[618,12,618,13],[630,12,630,13],[642,12,642,13],[648,12,648,13],[654,12,654,13],[662,12,662,13],[668,12,668,13],[674,12,674,13],[679,0,681,0],[680,18,680,19],[682,0,682,1],[682,2,683,17],[682,18,682,19],[683,0,683,1],[683,18,683,19],[684,2,686,11],[684,16,686,17],[685,12,685,13],[685,14,685,15],[685,18,685,19],[705,12,705,13],[711,12,711,13],[712,12,712,13],[753,12,753,13],[756,0,758,0],[757,18,757,19],[759,0,759,1],[759,2,760,17],[759,18,759,19],[760,0,760,1],[760,18,760,19],[761,2,763,11],[761,16,763,17],[762,12,762,13],[762,14,762,15],[762,18,762,19],[769,12,769,13],[778,12,778,13],[778,16,778,17],[795,12,795,13],[810,12,810,13],[833,0,835,0],[834,18,834,19],[836,0,836,1],[836,2,837,17],[836,18,836,19],[837,0,837,1],[837,18,837,19],[838,2,840,11],[838,16,840,17],[839,12,839,13],[839,14,839,15],[839,18,839,19],[846,12,846,13],[854,12,854,13],[894,12,894,13],[902,12,902,13],[905,12,905,13],[909,0,911,0],[910,18,910,19],[912,0,912,1],[912,2,913,17],[912,18,912,19],[913,0,913,1],[913,18,913,19],[914,2,916,11],[914,16,916,17],[915,12,915,13],[915,14,915,15],[915,18,915,19],[927,12,927,13],[933,12,933,13],[937,12,937,13],[941,12,941,13],[945,12,945,13],[949,12,949,13],[956,12,956,13],[962,12,962,13],[966,12,966,13],[970,12,970,13],[974,12,974,13],[978,12,978,13],[982,12,982,13],[985,12,985,13],[986,0,988,0],[987,18,987,19],[989,0,989,1],[989,2,990,17],[989,18,989,19],[990,0,990,1],[990,18,990,19],[991,2,993,11],[991,16,993,17],[992,12,992,13],[992,14,992,15],[992,18,992,19],[997,12,997,13],[1001,12,1001,13],[1005,12,1005,13],[1009,12,1009,13],[1013,12,1013,13],[1019,12,1019,13],[1023,12,1023,13],[1028,12,1028,13],[1032,12,1032,13],[1036,12,1036,13],[1040,12,1040,13],[1042,1,1043,11],[1047,12,1047,13],[1051,12,1051,13],[1055,12,1055,13],[1059,12,1059,13],[1061,0,1063,0],[1062,18,1062,19],[1064,0,1064,1],[1064,2,1065,17],[1064,18,1064,19],[1065,0,1065,1],[1065,18,1065,19],[1066,2,1068,11],[1066,16,1068,17],[1067,12,1067,13],[1067,14,1067,15],[1067,18,1067,19],[1074,12,1074,13],[1078,12,1078,13],[1082,12,1082,13],[1086,12,1086,13],[1090,12,1090,13],[1094,12,1094,13],[1100,12,1100,13],[1104,12,1104,13],[1108,12,1108,13],[1112,12,1112,13],[1116,12,1116,13],[1122,12,1122,13],[1133,0,1135,0],[1134,18,1134,19],[1136,0,1136,1],[1136,2,1137,17],[1136,18,1136,19],[1137,0,1137,1],[1137,18,1137,19],[1138,2,1140,11],[1138,16,1140,17],[1139,12,1139,13],[1139,14,1139,15],[1139,18,1139,19],[1146,12,1146,13],[1150,12,1150,13],[1154,12,1154,13],[1160,12,1160,13],[1164,12,1164,13],[1172,12,1172,13],[1176,12,1176,13],[1182,12,1182,13],[1187,12,1187,13],[1191,12,1191,13],[1195,12,1195,13],[1199,12,1199,13],[1203,12,1203,13],[1205,12,1205,13],[1208,0,1210,0],[1209,18,1209,19],[1211,0,1211,1],[1211,2,1212,17],[1211,18,1211,19],[1212,0,1212,1],[1212,18,1212,19],[1213,2,1215,11],[1213,16,1215,17],[1214,12,1214,13],[1214,14,1214,15],[1214,18,1214,19],[1219,12,1219,13],[1223,12,1223,13],[1227,12,1227,13],[1231,12,1231,13],[1235,12,1235,13],[1239,12,1239,13],[1245,12,1245,13],[1262,12,1262,13],[1266,12,1266,13],[1275,12,1275,13],[1279,12,1279,13],[1284,0,1286,0],[1285,18,1285,19],[1287,0,1287,1],[1287,2,1288,17],[1287,18,1287,19],[1288,0,1288,1],[1288,18,1288,19],[1289,2,1291,11],[1289,16,1291,17],[1290,12,1290,13],[1290,14,1290,15],[1290,18,1290,19],[1359,0,1361,0],[1360,18,1360,19],[1362,0,1362,1],[1362,2,1363,17],[1362,18,1362,19],[1363,0,1363,1],[1363,18,1363,19],[1364,2,1366,11],[1364,16,1366,17],[1365,12,1365,13],[1365,14,1365,15],[1365,18,1365,19],[1434,0,1436,0],[1435,18,1435,19],[1437,0,1437,1],[1437,2,1438,17],[1437,18,1437,19],[1438,0,1438,1],[1438,18,1438,19],[1439,2,1441,11],[1439,16,1441,17],[1440,12,1440,13],[1440,14,1440,15],[1440,18,1440,19],[1509,0,1511,0],[1510,18,1510,19],[1512,0,1512,1],[1512,2,1513,17],[1512,18,1512,19],[1513,0,1513,1],[1513,18,1513,19],[1514,2,1516,11],[1514,16,1516,17],[1515,12,1515,13],[1515,14,1515,15],[1515,18,1515,19],[1533,12,1533,13],[1544,12,1544,13],[1557,12,1557,13],[1572,12,1572,13],[1580,12,1580,13],[1584,0,1586,0],[1585,18,1585,19],[1587,0,1587,1],[1587,2,1588,17],[1587,18,1587,19],[1588,0,1588,1],[1588,18,1588,19],[1589,2,1591,11],[1589,16,1591,17],[1590,12,1590,13],[1590,14,1590,15],[1590,18,1590,19],[1601,12,1601,13],[1611,12,1611,13],[1624,12,1624,13],[1637,12,1637,13],[1659,0,1661,0],[1660,18,1660,19],[1662,0,1662,1],[1662,2,1663,17],[1662,18,1662,19],[1663,0,1663,1],[1663,18,1663,19],[1664,2,1666,11],[1664,16,1666,17],[1665,12,1665,13],[1665,14,1665,15],[1665,18,1665,19],[1677,12,1677,13],[1685,12,1685,13],[1697,12,1697,13],[1706,12,1706,13],[1715,12,1715,13],[1725,12,1725,13],[1734,0,1736,0],[1735,18,1735,19],[1737,0,1737,1],[1737,2,1738,17],[1737,18,1737,19],[1738,0,1738,1],[1738,18,1738,19],[1739,2,1741,11],[1739,12,1741,13],[1740,18,1740,19],[1770,12,1770,13],[1778,12,1778,13],[1784,12,1784,13],[1790,12,1790,13],[1796,12,1796,13],[1802,12,1802,13],[1809,0,1811,0],[1810,18,1810,19],[1812,0,1812,1],[1812,2,1813,17],[1812,18,1812,19],[1813,0,1813,1],[1813,18,1813,19],[1814,2,1816,11],[1814,12,1816,13],[1815,18,1815,19],[1822,12,1822,13],[1828,12,1828,13],[1834,12,1834,13],[1840,12,1840,13],[1846,12,1846,13],[1852,12,1852,13],[1858,12,1858,13],[1864,12,1864,13],[1870,12,1870,13],[1876,12,1876,13],[1884,0,1886,0],[1885,18,1885,19],[1887,0,1887,1],[1887,2,1888,17],[1887,18,1887,19],[1888,0,1888,1],[1888,18,1888,19],[1889,2,1891,11],[1889,12,1891,13],[1890,18,1890,19],[1899,12,1899,13],[1905,12,1905,13],[1911,12,1911,13],[1919,12,1919,13],[1926,12,1926,13],[1933,12,1933,13],[1941,12,1941,13],[1947,12,1947,13],[1953,12,1953,13],[1959,0,1961,0],[1960,18,1960,19],[1962,0,1962,1],[1962,2,1963,17],[1962,18,1962,19],[1963,0,1963,1],[1963,18,1963,19],[1964,2,1966,11],[1964,12,1966,13],[1965,18,1965,19],[1971,12,1971,13],[1975,12,1975,13],[1983,12,1983,13],[1989,12,1989,13],[1995,12,1995,13],[2003,12,2003,13],[2009,12,2009,13],[2015,12,2015,13],[2021,12,2021,13],[2030,12,2030,13],[2034,0,2036,0],[2035,18,2035,19],[2037,0,2037,1],[2037,2,2038,17],[2037,18,2037,19],[2038,0,2038,1],[2038,18,2038,19],[2039,2,2041,11],[2039,12,2041,13],[2040,18,2040,19],[2047,12,2047,13],[2053,12,2053,13],[2059,12,2059,13],[2065,12,2065,13],[2072,12,2072,13],[2076,12,2076,13],[2080,12,2080,13],[2084,12,2084,13],[2088,12,2088,13],[2096,12,2096,13],[2102,12,2102,13],[2109,0,2111,0],[2110,18,2110,19],[2112,0,2112,1],[2112,2,2113,17],[2112,18,2112,19],[2113,0,2113,1],[2113,18,2113,19],[2114,2,2116,11],[2114,12,2116,13],[2115,18,2115,19],[2122,12,2122,13],[2128,12,2128,13],[2134,12,2134,13],[2140,12,2140,13],[2146,12,2146,13],[2152,12,2152,13],[2158,12,2158,13],[2162,12,2162,13],[2168,12,2168,13],[2174,12,2174,13],[2184,0,2186,0],[2185,18,2185,19],[2187,0,2187,1],[2187,2,2188,17],[2187,18,2187,19],[2188,0,2188,1],[2188,18,2188,19],[2189,2,2191,11],[2189,12,2191,13],[2190,18,2190,19],[2207,12,2207,13],[2233,12,2233,13],[2253,12,2253,13],[2259,0,2261,0],[2260,18,2260,19],[2262,0,2262,1],[2262,2,2263,17],[2262,18,2262,19],[2263,0,2263,1],[2263,18,2263,19],[2264,2,2266,11],[2264,12,2266,13],[2265,18,2265,19],[2281,12,2281,13],[2290,12,2290,13],[2301,12,2301,13],[2313,12,2313,13],[2334,0,2336,0],[2335,18,2335,19],[2337,0,2337,1],[2337,2,2338,17],[2337,18,2337,19],[2338,0,2338,1],[2338,18,2338,19],[2339,2,2341,11],[2339,12,2341,13],[2340,18,2340,19],[2351,12,2351,13],[2376,12,2376,13],[2385,12,2385,13],[2409,0,2411,0],[2410,18,2410,19],[2412,0,2412,1],[2412,2,2413,17],[2412,18,2412,19],[2413,0,2413,1],[2413,18,2413,19],[2414,2,2416,11],[2414,12,2416,13],[2415,18,2415,19],[2470,12,2470,13],[2484,0,2486,0],[2485,18,2485,19],[2487,0,2487,1],[2487,2,2488,17],[2487,18,2487,19],[2488,0,2488,1],[2488,18,2488,19],[2489,2,2491,11],[2489,12,2491,13],[2490,18,2490,19],[2504,12,2504,13],[2542,12,2542,13],[2560,0,2562,0],[2561,18,2561,19],[2563,0,2563,1],[2563,2,2564,17],[2563,18,2563,19],[2564,0,2564,1],[2564,18,2564,19],[2565,2,2567,11],[2565,12,2567,13],[2566,18,2566,19],[2598,12,2598,13],[2620,12,2620,13],[2633,12,2633,13],[2635,0,2637,0],[2636,18,2636,19],[2638,0,2638,1],[2638,2,2639,17],[2638,18,2638,19],[2639,0,2639,1],[2639,18,2639,19],[2640,2,2642,11],[2640,12,2642,13],[2641,18,2641,19],[2664,12,2664,13],[2710,0,2712,0],[2711,18,2711,19],[2713,0,2713,1],[2713,2,2714,17],[2713,18,2713,19],[2714,0,2714,1],[2714,18,2714,19],[2715,2,2717,11],[2715,12,2717,13],[2716,18,2716,19],[2735,12,2735,13],[2742,14,2742,15],[2742,16,2742,17],[2743,12,2743,13],[2743,16,2743,17],[2744,16,2744,17],[2745,12,2745,13],[2745,16,2745,17],[2746,14,2746,15],[2746,16,2746,17],[2747,12,2747,13],[2747,16,2747,17],[2748,14,2748,15],[2748,16,2748,17],[2750,14,2750,15],[2750,16,2750,17],[2751,12,2751,13],[2751,16,2751,17],[2754,12,2754,13],[2754,14,2754,15],[2754,16,2754,17],[2756,12,2756,13],[2756,16,2756,17],[2758,12,2758,13],[2758,14,2758,15],[2758,16,2758,17],[2760,12,2760,13],[2760,14,2760,15],[2760,16,2760,17],[2762,12,2762,13],[2762,16,2762,17],[2766,16,2766,17],[2768,14,2768,15],[2768,16,2768,17],[2772,12,2772,13],[2772,16,2772,17],[2773,14,2773,15],[2773,16,2773,17],[2774,12,2774,13],[2774,16,2774,17],[2775,14,2775,15],[2775,16,2775,17],[2776,12,2776,13],[2776,16,2776,17],[2778,12,2778,13],[2778,16,2778,17],[2785,0,2787,0],[2786,18,2786,19],[2788,0,2788,1],[2788,2,2789,17],[2788,18,2788,19],[2789,0,2789,1],[2789,18,2789,19],[2790,2,2792,11],[2790,12,2792,13],[2791,18,2791,19],[2796,12,2796,13],[2796,16,2796,17],[2797,14,2797,15],[2797,16,2797,17],[2798,12,2798,13],[2798,16,2798,17],[2799,14,2799,15],[2799,16,2799,17],[2800,12,2800,13],[2800,16,2800,17],[2802,12,2802,13],[2802,16,2802,17],[2803,14,2803,15],[2803,16,2803,17],[2805,12,2805,13],[2805,16,2805,17],[2806,14,2806,15],[2806,16,2806,17],[2807,12,2807,13],[2807,14,2807,15],[2807,16,2807,17],[2810,12,2810,13],[2810,16,2810,17],[2814,12,2814,13],[2814,16,2814,17],[2860,0,2862,0],[2861,18,2861,19],[2863,0,2863,1],[2863,2,2864,17],[2863,18,2863,19],[2864,0,2864,1],[2864,18,2864,19],[2865,2,2867,11],[2865,12,2867,13],[2866,18,2866,19],[2873,12,2873,13],[2875,12,2875,13],[2877,12,2877,13],[2879,12,2879,13],[2881,12,2881,13],[2883,12,2883,13],[2885,12,2885,13],[2887,12,2887,13],[2889,12,2889,13],[2891,12,2891,13],[2893,12,2893,13],[2895,12,2895,13],[2897,12,2897,13],[2899,12,2899,13],[2901,12,2901,13],[2903,12,2903,13],[2905,12,2905,13],[2907,12,2907,13],[2909,12,2909,13],[2911,12,2911,13],[2913,12,2913,13],[2915,12,2915,13],[2917,12,2917,13],[2919,12,2919,13],[2921,12,2921,13],[2923,12,2923,13],[2925,12,2925,13],[2927,12,2927,13],[2929,12,2929,13],[2935,0,2937,0],[2936,18,2936,19],[2938,0,2938,1],[2938,2,2939,17],[2938,18,2938,19],[2939,0,2939,1],[2939,18,2939,19],[2940,2,2942,11],[2940,12,2942,13],[2941,18,2941,19],[2948,12,2948,13],[2950,12,2950,13],[2952,12,2952,13],[2954,12,2954,13],[2956,12,2956,13],[2958,12,2958,13],[2960,12,2960,13],[2962,12,2962,13],[2964,12,2964,13],[2966,12,2966,13],[3010,0,3012,0],[3011,18,3011,19]]}
["CONTRACT NUMBER: ",null,"CONSTRUCTION OF A NEW LAPA AND THE REFURBISHMENT OF GATE HOUSE AND ABLUTIONS, EXTERNAL AREAS AND THE INSPECTION AND WORKS TO EXISTING AND NEW SERVICES AT THE MOKOPANE BIODIVERSITY CONSERVATION CENTRE ",{"$nulls":15},"Bill"]
["G540/2024",{"$nulls":17},1]
["Item","DESCRIPTION",{"$nulls":14},"RATE"]
["No.",{"$nulls":11},"UNIT",null,"QUANTITY",{"$nulls":3},"AMOUNT"]
[]
[]
[null,"BILL NO. 1"]
[]
[null,"PRELIMINARIES AND GENERAL"]
[]
[null,"MEANING OF TERMS \"TENDER / TENDERER\""]
[]
[null,"Any reference to the words \"Tender\" or \"Tenderer\" herein and/or "]
[null,"in any other documentation shall be construed to have the same"]
[null,"meaning as the words \"Bid\" or \"Bidder\""]
[]
[null,"PRELIMINARIES"]
[]
[null,"The JBCC Preliminaries, May 2018 edition for use with the JBCC"]
[null,"Principal Building Agreement Edition 6.2 is taken to be incorporated"]
[null,"herein. The tenderer is deemed to have referred to these"]
[null,"documents for the full intent and meaning of each clause. These"]
[null,"clauses are referred to by number and heading only. Where"]
[null,"standard clauses or options are not applicable to the contract such"]
[null,"modifications or corrections as are necessary are given under each"]
[null,"relevant clause. Where an item is not relevant to this specific"]
[null,"contract such item is marked \"N/A\" signifying \"Not Applicable\""]
[]
[null,"PRICING OF PRELIMINARIES"]
[]
[null,"Should Option A, as set out in clause B10.3.1 hereinafter be used"]
[null,"for the adjustment of preliminaries then each item priced is to be"]
[null,"allocated to one or more of the three categories Fixed, Value"]
[null,"Related or Time Related the spaces provided under each item"]
[]
[null,"Items not priced in these Preliminaries shall be deemed to be"]
[null,"included elsewhere in these Bills of Quantities"]
[]
[null,"SECTION A: JBCC PRINCIPAL BUILDING AGREEMENT"]
[]
[null,"DEFINITIONS AND INTERPRETATION"]
[]
[1,"A1.0","DEFINITIONS AND INTERPRETATION"]
[]
[null,"Clause 1.0"]
[]
[null,"Clause 1.1 ",null,"Definition of \"Commencement Date\" is added:"]
[]
[null,"\"COMMENCEMENT DATE\" means the date that the agreement, "]
[null,"made in terms of the Form of Offer and Acceptance, comes into effect"]
[]
[null,"Clause 1.1 Definition of \"Construction Guarantee\" is amended by"]
[null,"replacing it with the following:"]
[]
[null,"\"CONSTRUCTION GUARANTEE\" means a guarantee at call "]
[null,"obtained by the contractor from an institution approved by the "]
[null,"employer in terms of the employer's construction guarantee form as"]
[null,"selected in the schedule"]
[]
[null,"Clause 1.1 Definition of \"Construction Period\" is amended by"]
[null,"replacing it with the following:"]
[]
[null,"\"CONSTRUCTION PERIOD\" means the period commencing on the"]
[null,"commencement date and ending on the date of practical completion"]
[]
[null,"Clause 1.1 Definition of \"Corrupt Practice\" is added:\n"]
[]
[null,"\"CORRUPT PRACTICE\" means the offering, giving, receiving or"]
[null,"soliciting of anything of value to influence the action of a public"]
[null,"official in the procurement process or in contract execution"]
[]
[]
[]
["BILL No. 1"]
[null,"Bill No. 1 PRELIMINARIES AND GENERAL carried to collection"]
[]
["CONTRACT NUMBER: ",null,{"$f":"C1","v":"CONSTRUCTION OF A NEW LAPA AND THE REFURBISHMENT OF GATE HOUSE AND ABLUTIONS, EXTERNAL AREAS AND THE INSPECTION AND WORKS TO EXISTING AND NEW SERVICES AT THE MOKOPANE BIODIVERSITY CONSERVATION CENTRE "},{"$nulls":15},"Bill"]
[{"$f":"A2","v":"G540/2024"},{"$nulls":17},1]
["ITEM","PAYMENT","DESCRIPTION",{"$nulls":13},"RATE"]
["NO","REFERS",{"$nulls":10},"UNIT",null,"QUANTITY",{"$nulls":3},"AMOUNT"]
[null,"TO"]
[]
[null,"Clause 1.1 Definition of \"Fraudulent Practice\" is added:"]
[]
[null,"\"FRAUDULENT PRACTICE\" means a misrepresentation of facts in"]
[null,"order to influence a procurement process or the execution of a"]
[null,"contract to the detriment of any tenderer and includes collusive"]
[null,"practice among tenderers (prior to or after the tender submission)"]
[null,"designed to establish tender prices at artificial non- competitive"]
[null,"levels and to deprive the tenderer of the benefits of free and open"]
[null,"competition"]
[]
[null,"Clause 1.1 ",null,"Definition of \"Interest\" is amended by replacing it with "]
[]
[null,"\"INTEREST\" means the interest rates applicable on this contract,"]
[null,"whether specifically indicated in the relevant clauses or not, will be"]
[null,"the rate as determined by the Minister of Finance, from time to"]
[null,"time, in terms of section 80(1)(b) of the Public Finance Management"]
[null,"Act, 1999 (Act No. 1 of 1999)"]
[]
[null,"Clause 1.1",null,"Definition of \"Principal Agent\" is amended by"]
[{"$nulls":3},"replacing it with the following:"]
[]
[null,"\"PRINCIPAL AGENT\" means the person or entity appointed by the"]
[null,"employer and named in the schedule. In the event of a principal"]
[null,"agent not being appointed, then all the duties and obligations of a"]
[null,"principal agent as detailed in the agreement shall be fulfilled by"]
[null,"a representative of the employer as named in the schedule"]
[]
[null,"Clause 1.1 ",null,"Definition of \"Security\" is amended by replacing it with"]
[{"$nulls":3},"the following: "]
[]
[null,"\"SECURITY\" means the form of security provided by the employer"]
[null,"or contractor, as stated in the schedule, from which the contractor"]
[null,"or employer may recover expense or loss"]
[]
[null,"No clause"]
[]
[null,"Fixed:________Value related:_________Time related:_________\t",{"$nulls":10},"Item"]
[]
[2,"A2.0  ",null,"LAW, REGULATIONS AND NOTICES"]
[]
[null,"Clause 2.0"]
[]
[null,"Note: A separate clause has been included in Section C : Specific "]
[null,"Preliminaries of the bills of quantities / lump sum document for the"]
[null,"contractor to have the opportunity to price for all the requirements of"]
[null,"the Occupational Health and Safety Act, Construction Regulations"]
[null,"and Health and Safety Specification"]
[]
[null,"Fixed:________Value related:_________Time related:_________\t",{"$nulls":10},"Item"]
[]
[3,"A3.0  ",null,"OFFER AND ACCEPTANCE"]
[]
[null,"Clause 3.0"]
[]
[null,"Fixed:________Value related:_________Time related:_________\t",{"$nulls":10},"Item"]
[]
[4,"A4.0  ",null,"CESSION AND ASSIGNMENT"]
[]
[null,"Clause 4.0"]
[]
[null,"Fixed:________Value related:_________Time related:_________\t",{"$nulls":10},"Item"]
[]
[]
[]
[]
[]
["BILL No. 1"]
[null,"Bill No. 1 PRELIMINARIES AND GENERAL carried to collection"]
[]
["CONTRACT NUMBER: ",null,{"$f":"C77","v":"CONSTRUCTION OF A NEW LAPA AND THE REFURBISHMENT OF GATE HOUSE AND ABLUTIONS, EXTERNAL AREAS AND THE INSPECTION AND WORKS TO EXISTING AND NEW SERVICES AT THE MOKOPANE BIODIVERSITY CONSERVATION CENTRE "},{"$nulls":15},"Bill"]
[{"$f":"A78","v":"G540/2024"},{"$nulls":17},1]
["ITEM","PAYMENT","DESCRIPTION",{"$nulls":13},"RATE"]
["NO","REFERS",{"$nulls":10},"UNIT",null,"QUANTITY",{"$nulls":3},"AMOUNT"]
[null,"TO"]
[]
[5,"A5.0  ",null,"DOCUMENTS"]
[]
[null,"Clause 5.0"]
[]
[null,"Clause 5.7 is amended by the addition of the following:"]
[]
[null,"The contractor shall supply and keep a copy of the JBCC Series 2000"]
[null,"Principal Building Agreement and Preliminaries applicable to this"]
[null,"contract on the site, to which the employer, principal agent and agents"]
[null,"shall have access at all times"]
[]
[null,"Fixed:________Value related:_________Time related:_________\t",{"$nulls":10},"Item"]
[]
[6,"A6.0  ",null,"EMPLOYER'S AGENTS"]
[]
[null,"Clause 6.0"]
[]
[null,"Clause 6.1 is amended by the addition of the following:\n"]
[]
[null,"This clause is amended to include clauses 26.7 in terms of which the"]
[null,"employer has retained its authority and has not given a mandate to the"]
[null,"principal agent and in terms of which the employer sign all documents"]
[]
[null,"Fixed:________Value related:_________Time related:_________\t",{"$nulls":10},"Item"]
[]
[7,"A7.0  ",null,"DESIGN RESPONSIBILITY"]
[]
[null,"Clause 7.0"]
[]
[null,"Clause 7.3 is amended by replacing it with the following: "]
[]
[null,"No clause"]
[]
[null,"Fixed:________Value related:_________Time related:_________\t",{"$nulls":10},"Item"]
[]
[null,"INSURANCES AND SECURITIES"]
[]
[8,"A8.0  ",null,"WORKS RISK"]
[]
[null,"Clause 8.0"]
[]
[null,"Fixed:________Value related:_________Time related:_________\t",{"$nulls":10},"Item"]
[]
[9,"A9.0  ",null,"INDEMNITIES"]
[]
[null,"Clause 9.0"]
[]
[null,"Fixed:________Value related:_________Time related:_________\t",{"$nulls":10},"Item"]
[]
[10,"A10.0  ",null,"INSURANCES"]
[]
[null,"Clause 10.0"]
[]
[null,"Clause 10.0 ",null,"is amended by the addition of the following clauses:"]
[]
[null,"10.11",null,"Damage to the Works"]
[]
[null,"(a)",null,"Without in any way limiting the contractor's obligations"]
[{"$nulls":3},"in terms of the contract, the contractor shall bear the"]
[{"$nulls":3},"full risk of damage to and/or destruction of the works"]
[{"$nulls":3},"by whatever cause during construction of the"]
[{"$nulls":3},"works and hereby indemnifies and holds harmless the"]
[{"$nulls":3},"employer against any such damage. Thecontractor"]
[{"$nulls":3},"shall take such precautions and security measures and"]
[{"$nulls":3},"other steps for the protection and security of the works"]
[{"$nulls":3},"as the contractor may deem necessary"]
[]
["BILL No. 1"]
[null,"Bill No. 1 PRELIMINARIES AND GENERAL carried to collection"]
[]
["CONTRACT NUMBER: ",null,{"$f":"C152","v":"CONSTRUCTION OF A NEW LAPA AND THE REFURBISHMENT OF GATE HOUSE AND ABLUTIONS, EXTERNAL AREAS AND THE INSPECTION AND WORKS TO EXISTING AND NEW SERVICES AT THE MOKOPANE BIODIVERSITY CONSERVATION CENTRE "},{"$nulls":15},"Bill"]
[{"$f":"A153","v":"G540/2024"},{"$nulls":17},1]
["ITEM","PAYMENT","DESCRIPTION",{"$nulls":13},"RATE"]
["NO","REFERS",{"$nulls":10},"UNIT",null,"QUANTITY",{"$nulls":3},"AMOUNT"]
[null,"TO"]
[]
[null,"(b)",null,"The contractor shall at all times proceed immediately"]
[{"$nulls":3},"to remove or dispose of any debris arising from damage"]
[{"$nulls":3},"to or destruction of the works and to rebuild, restore,"]
[{"$nulls":3},"replace and/or repair the works"]
[]
[null,"(c)",null,"The employer shall carry the risk of damage to or"]
[{"$nulls":3},"destruction of the works and materials paid for by the"]
[{"$nulls":3},"employer that is the result of the excepted risks as set"]
[{"$nulls":3},"out in 10.12"]
[]
[null,"(d)",null,"Where the employer bears the risk in terms of this"]
[{"$nulls":3},"contract, the contractor shall, if requested to do so,"]
[{"$nulls":3},"reinstate any damage or destroyed portions of the "]
[{"$nulls":3},"works and the costs of such reinstatement shall be"]
[{"$nulls":3},"measured and valued in terms of 27.0 hereof"]
[]
[null,"10.12",null,"Injury to Persons or loss of or damage to"]
[{"$nulls":3},"Properties"]
[]
[null,"(a)",null,"The contractor shall be liable for and hereby"]
[{"$nulls":3},"indemnifies the employer against any liability, loss,"]
[{"$nulls":3},"claim or proceeding whether arising in common law or"]
[{"$nulls":3},"by statute, consequent upon personal injuries to or the"]
[{"$nulls":3},"death of any person whomsoever arising out of or in"]
[{"$nulls":3},"the course of or caused by the execution of the works"]
[{"$nulls":3},"unless due to any act or negligence of any person for"]
[{"$nulls":3},"whose actions the employer is legally liable"]
[]
[null,"(b)",null,"The contractor shall be liable for and hereby"]
[{"$nulls":3},"indemnifies the employer against any liability, loss,"]
[{"$nulls":3},"claim or proceeding consequent upon loss of or"]
[{"$nulls":3},"damage to any moveable or immovable or personal"]
[{"$nulls":3},"property or property contiguous to the site, whether"]
[{"$nulls":3},"belonging to or under the control of the employer or"]
[{"$nulls":3},"any other body or person, arising out of or in the"]
[{"$nulls":3},"course of or by reason of the execution of the works"]
[{"$nulls":3},"unless due to any act or negligence of any person for"]
[{"$nulls":3},"whose actions the employer is legally liable"]
[]
[null,"(c)",null,"The contractor shall, upon receiving a contract"]
[{"$nulls":3},"instruction from the principal agent, cause the same"]
[{"$nulls":3},"to be made good in a perfect and workmanlike manner"]
[{"$nulls":3},"at his own cost and in default thereof the employer shall"]
[{"$nulls":3},"be entitled to cause it to be made good and to recover "]
[{"$nulls":3},"he cost thereof from the contractor or to deduct the"]
[{"$nulls":3},"same from amounts due to the contractor",{"$nulls":19},{"v":17068750,"d":"R17,068,750.00"}]
[]
[null,"(d)",null,"The contractor shall be responsible for the protection"]
[{"$nulls":3},"and safety of such portions of the premises placed"]
[{"$nulls":3},"under his control by the employer for the purpose of",{"$nulls":19},{"$f":"25%*X279","v":{"v":4267187.5,"d":"R4,267,187.50"}}]
[{"$nulls":3},"executing the works until the issue of the certificate of"]
[{"$nulls":3},"practical completion"]
[]
[null,"(e)",null,"Where the execution of the works involves the risk of "]
[{"$nulls":3},"removal of or interference with support to adjoining"]
[{"$nulls":3},"properties including land or structures or any structures"]
[{"$nulls":3},"to be altered or added to, the contractor shall obtain"]
[{"$nulls":3},"adequate insurance and will remain adequately insured"]
[{"$nulls":3},"or insured to the specific limit stated in the contract"]
[{"$nulls":3},"against the death of or injury to persons or damage to"]
[{"$nulls":3},"such property consequent on such removal or"]
[{"$nulls":3},"interference with the support until such portion of the"]
[{"$nulls":3},"works has been completed"]
[]
[]
[]
[]
["BILL No. 1"]
[null,"Bill No. 1 PRELIMINARIES AND GENERAL carried to collection"]
[]
["CONTRACT NUMBER: ",null,{"$f":"C228","v":"CONSTRUCTION OF A NEW LAPA AND THE REFURBISHMENT OF GATE HOUSE AND ABLUTIONS, EXTERNAL AREAS AND THE INSPECTION AND WORKS TO EXISTING AND NEW SERVICES AT THE MOKOPANE BIODIVERSITY CONSERVATION CENTRE "},{"$nulls":15},"Bill"]
[{"$f":"A229","v":"G540/2024"},{"$nulls":17},1]
["ITEM","PAYMENT","DESCRIPTION",{"$nulls":13},"RATE"]
["NO","REFERS",{"$nulls":10},"UNIT",null,"QUANTITY",{"$nulls":3},"AMOUNT"]
[null,"TO"]
[]
[null,"(f)",null,"The contractor shall at all times proceed immediately"]
[{"$nulls":3},"at his own cost to remove or dispose of any debris and"]
[{"$nulls":3},"to rebuild, restore, replace and/or repair such property"]
[{"$nulls":3},"and to execute the works"]
[]
[null,"10.13",null,"High risk insurance"]
[]
[null,null,"In the event of the project being executed in a geological"]
[null,null,"area classified as a \"High Risk Area\", that is an area which"]
[null,null,"is subject tohighly unstable subsurface conditions that"]
[null,null,"might result in catastrophic ground movement evident by"]
[null,null,"sinkhole or doline formation the following will apply:"]
[]
[null,"10.13.1",null,"Damage to the works"]
[]
[null,null,"The contractor shall, from the commencement date of the"]
[null,null,"works until the date of the certificate of practical "]
[null,null,"completion bear the full risk of and hereby indemnifies and "]
[null,null,"holds harmless the employer against any damage to and/or"]
[null,null,"destruction of the works consequent upon a catastrophic"]
[null,null,"ground movement as mentioned above. The contractor"]
[null,null,"shall take such precautions and security measures and"]
[null,null,"other steps for the protection of the works as he may deem"]
[null,null,"necessary"]
[]
[null,null,"When so instructed to do so by the principal agent, the"]
[null,null,"contractor shall proceed immediately to remove and/or"]
[null,null,"dispose of any debris arising from damage to or destruction"]
[null,null,"of the works and to rebuild, restore, replace and/or repair"]
[null,null,"the works, at the contractor's own costs"]
[]
[null,"10.13.2",null,"Injury to persons or loss of or damage to property"]
[]
[null,null,"The contractor shall be liable for and hereby indemnifies"]
[null,null,"and holds harmless the employer against any liability, loss,"]
[null,null,"claim or proceeding arising at any time during the period of"]
[null,null,"the contract whether arising in common law or by statute,"]
[null,null,"consequent upon personal injuries to or the death of any"]
[null,null,"person whomsoever resulting from, arising out of, or"]
[null,null,"caused by a catastrophic ground movement as mentioned"]
[null,null,"above"]
[]
[null,null,"The contractor shall be liable for and hereby indemnifies"]
[null,null,"the employer against any and all liability, loss, claim or"]
[null,null,"proceeding consequent upon loss of or damage to any"]
[null,null,"moveable or immovable or personal property or property"]
[null,null,"contiguous to the site, whether belonging to or under the"]
[null,null,"control of the employer or any other body or person"]
[null,null,"whomsoever arising out of or caused by a catastrophic"]
[null,null,"ground movement, as mentioned above, which occurred"]
[null,null,"during the period of the contract"]
[]
[null,"10.13.3","It is the responsibility of the contractor to ensure that he"]
[null,null,"has adequate insurance to cover his risk and liability as"]
[null,null,"mentioned in 10.7.1 and 10.7.2. Without limiting the"]
[null,null,"contractor's obligations in terms of the contract, the"]
[null,null,"contractor shall, within twenty-one (21) calendar days of the"]
[null,null,"commencement date but before commencement of the"]
[null,null,"works, submit to the employer proof of such insurance"]
[null,null,"policy, if requested to do so"]
[]
[null,"Fixed:________Value related:_________Time related:_________\t",{"$nulls":10},"Item"]
[]
[]
[]
[]
["BILL No. 1"]
[null,"Bill No. 1 PRELIMINARIES AND GENERAL carried to collection"]
[]
["CONTRACT NUMBER: ",null,{"$f":"C304","v":"CONSTRUCTION OF A NEW LAPA AND THE REFURBISHMENT OF GATE HOUSE AND ABLUTIONS, EXTERNAL AREAS AND THE INSPECTION AND WORKS TO EXISTING AND NEW SERVICES AT THE MOKOPANE BIODIVERSITY CONSERVATION CENTRE "},{"$nulls":15},"Bill"]
[{"$f":"A305","v":"G540/2024"},{"$nulls":17},1]
["ITEM","PAYMENT","DESCRIPTION"]
["NO","REFERS",{"$nulls":16},"AMOUNT"]
[null,"TO"]
[]
[11,"A11.0  ",null,"SECURITIES"]
[]
[null,"Clause 11.0"]
[]
[null,"Clauses 11.1 - 11.10 are amended by replacing them with the"]
[null,"following"]
[]
[null,"11.1","In respect of contracts with a contract sum up to R1 million,"]
[null,null,"the security to be provided by the contractor to the"]
[null,null,"employer will be a payment reduction of five per cent (5%) "]
[null,null,"of the value certified in the payment certificate"]
[null,null,"(excluding VAT)"]
[]
[null,"11.1.1","The payment reduction of the value certified in a payment"]
[null,null,"certificate shall be mutatis mutandi in terms"]
[]
[null,"11.1.2","The employer shall be entitled to recover expense and loss"]
[null,null,"from the payment reduction in terms of 27.0 provided that"]
[null,null,"the employer complies with the provisions of 27.4 in which"]
[null,null,"event the employer's entitlement shall take precedence"]
[null,null,"over his obligations to refund the payment reduction"]
[null,null,"security or portions thereof to the contractor"]
[]
[null,"11.2","In respect of contracts with a contract sum above"]
[null,null,"R1 million, the contractor shall have the right to select the"]
[null,null,"security to be provided in terms of 11.3, 11.4, 11.5, 14.6,"]
[null,null,"or 11.7 as stated in the schedule. Such security shall be"]
[null,null,"provided to the employer within twenty-one (21) calendar"]
[null,null,"days from commencement date. Should the contractor"]
[null,null,"fail to select the security to be provided or should the"]
[null,null,"contractor fail toprovide the employer with the selected"]
[null,null,"security within twenty-one (21) calendar days from"]
[null,null,"commencement date, the security in terms of 11.7"]
[null,null,"shall be deemed to have been selected"]
[]
[null,"11.3","Where security as a cash deposit of ten per cent (10%) of"]
[null,null,"the contract sum (excluding VAT) has been selected:"]
[]
[null,"11.3.1","The contractor shall furnish the employer with a cash"]
[null,null,"deposit equal in value to ten per cent (10%) of the contract"]
[null,null,"sum (excluding VAT) within twenty- one (21) calendar"]
[null,null,"days from commencement date"]
[]
[null,"11.3.2","Within twenty-one (21) calendar days of the date of"]
[null,null,"practical completion of the works the employer shall"]
[null,null,"reduce the cash deposit to an amount equal to three"]
[null,null,"percent (3%) of the contract value (excluding VAT), and"]
[null,null,"refund the balance to the contractor"]
[]
[null,"11.3.3","Within twenty-one (21) calendar days of the date of final"]
[null,null,"completion of the works the employer shall reduce the"]
[null,null,"cash deposit to an amount equal to one per cent (1%) of"]
[null,null,"the contract value (excluding VAT) and refund the"]
[null,null,"balance to the contractor"]
[]
[null,"11.3.4","On the date of payment of the amount in the final payment"]
[null,null,"certificate, the employer shall refund the remainder of"]
[null,null,"the cash deposit to the contractor"]
[]
[null,"11.3.5","The employer shall be entitled to recover expense and loss"]
[null,null,"from the cash deposit in terms of 33.0 provided that the"]
[null,null,"employer complies with the provisions of 33.4 in which"]
[null,null,"event the employer's entitlement shall take precedence"]
[null,null,"over his obligations to refund the cash deposit security or"]
[null,null,"portions thereof to the contractor"]
[]
["BILL No. 1"]
[null,"Bill No. 1 PRELIMINARIES AND GENERAL carried to collection"]
[]
["CONTRACT NUMBER: ",null,{"$f":"C379","v":"CONSTRUCTION OF A NEW LAPA AND THE REFURBISHMENT OF GATE HOUSE AND ABLUTIONS, EXTERNAL AREAS AND THE INSPECTION AND WORKS TO EXISTING AND NEW SERVICES AT THE MOKOPANE BIODIVERSITY CONSERVATION CENTRE "},{"$nulls":15},"Bill"]
[{"$f":"A380","v":"G540/2024"},{"$nulls":17},1]
["Item","DESCRIPTION",{"$nulls":14},"RATE"]
["No.",{"$nulls":11},"UNIT",null,"QUANTITY",{"$nulls":3},"AMOUNT"]
[]
[]
[null,"11.3.6","The parties expressly agree that neither the employer nor"]
[null,null,"the contractor shall be entitled to cede the rights to the"]
[null,null,"deposit to any third party"]
[]
[null,"11.4","Where security as a variable construction guarantee of"]
[null,null,"ten percent (10%) of the contract sum (excluding VAT) has"]
[null,null,"been selected:"]
[]
[null,"11.4.1","The contractor shall furnish the employer with an"]
[null,null,"acceptable variable construction guarantee equal in"]
[null,null,"value to ten per cent (10%) of the contract sum"]
[null,null,"(excluding VAT) within twenty-one (21) calendar days from"]
[null,null,"commencement date"]
[]
[null,"Clause 11.4.1 is deemed to be amended by the addition of the"]
[null,"following sentence;"]
[]
[null,"No interest will be paid on such amounts withheld"]
[]
[null,"11.4.2","The variable construction guarantee shall reduce and"]
[null,null,"expire in terms of the Variable Construction Guarantee"]
[null,null,"form included in the invitation to tender"]
[]
[null,"11.4.3","The employer shall return the variable construction"]
[null,null,"guarantee to the contractor within fourteen (14) calendar"]
[null,null,"days of it expiring"]
[]
[null,"11.4.4","Where the employer has a right of recovery against the"]
[null,null,"contractor in terms of 33.0, the employer shall issue a"]
[null,null,"written demand in terms of the variable construction"]
[null,null,"guarantee"]
[]
[null,"11.5","Where security as a fixed construction guarantee of five"]
[null,null,"percent (5%) of the contract sum (excluding VAT) and a"]
[null,null,"five per cent (5%) payment reduction of the value certified"]
[null,null,"in the payment certificate (excluding VAT) has been"]
[null,null,"selected:"]
[]
[null,"11.5.1","The contractor shall furnish a fixed construction"]
[null,null,"guarantee to the employer equal in value to five per cent"]
[null,null,"(5%) of the contract sum (excluding VAT)"]
[]
[null,"11.5.2","The fixed construction guarantee shall come into force on"]
[null,null,"the date of issue and shall expire on the date of the last"]
[null,null,"certificate of practical completion"]
[]
[null,"11.5.3","The employer shall return the fixed construction"]
[null,null,"guarantee to the contractor within fourteen (14)"]
[null,null,"calendar days of it expiring"]
[]
[null,"11.5.4","The payment reduction of the value certified in a payment"]
[null,null,"certificate shall be in terms of clause 25."]
[]
[null,"11.5.5","Where the employer has a right of recovery against the"]
[null,null,"contractor in terms of 27.0, the employer shall be entitled"]
[null,null,"to issue a written demand in terms of the fixed "]
[null,null,"construction guarantee or may recover from the"]
[null,null,"payment reduction or may do both"]
[]
[null,"11.6","Where security as a cash deposit of five per cent (5%) of"]
[null,null,"the contract sum (excluding VAT) and a payment"]
[null,null,"reduction of five per cent (5%) of the value certified in the"]
[null,null,"payment certificate (excluding VAT) has been selected:"]
[]
[]
["BILL No. 1"]
[null,"Bill No. 1 PRELIMINARIES AND GENERAL carried to collection"]
[]
["CONTRACT NUMBER: ",null,{"$f":"C454","v":"CONSTRUCTION OF A NEW LAPA AND THE REFURBISHMENT OF GATE HOUSE AND ABLUTIONS, EXTERNAL AREAS AND THE INSPECTION AND WORKS TO EXISTING AND NEW SERVICES AT THE MOKOPANE BIODIVERSITY CONSERVATION CENTRE "},{"$nulls":15},"Bill"]
[{"$f":"A455","v":"G540/2024"},{"$nulls":17},1]
["ITEM","PAYMENT","DESCRIPTION",{"$nulls":13},"RATE"]
["NO","REFERS",{"$nulls":10},"UNIT",null,"QUANTITY",{"$nulls":3},"AMOUNT"]
[null,"TO"]
[]
[null,"11.6.1","The contractor shall furnish the employer with a cash"]
[null,null,"deposit equal in value to five per cent (5%) of the contract"]
[null,null,"sum (excluding VAT) within twenty- one (21) calendar days"]
[null,null,"from commencement date"]
[]
[null,"11.6.2","Within twenty-one (21) calendar days of the date of"]
[null,null,"practical completion of the works the employer shall"]
[null,null,"refund the cash deposit in total to the contractor"]
[]
[null,"11.6.3","The payment reduction of the value certified in a payment"]
[null,null,"certificate shall be mutatis mutandi in terms of 25"]
[]
[null,"11.6.4","Where the employer has a right of recovery against the"]
[null,null,"contractor in terms of 27.0, the employer may issue a"]
[null,null,"written notice in terms of 27.4 or may recover from the"]
[null,null,"payment reduction or may do both"]
[]
[null,"11.7","Where security as a payment reduction of ten percent"]
[null,null,"(10%) of the value certified in the payment certificate"]
[null,null,"(excluding VAT) has been selected:"]
[]
[null,"11.7.1","The payment reduction of the value certified in a payment"]
[null,null,"certificate shall be mutatis mutandi in terms of 25"]
[]
[null,"11.7.2","The employer shall be entitled to recover expense and"]
[null,null,"loss from the payment reduction in terms of 27.0 provided"]
[null,null,"that the employer complies with the provisions of 27.4 in"]
[null,null,"which event the employer's entitlement shall take"]
[]
[null,null,"precedence over his obligations to refund the payment"]
[null,null,"reduction or portions thereof to the contractor"]
[]
[null,"11.8","Payments made by the guarantor to the employer in terms"]
[null,null,"of the fixed or variable construction guarantee shall not"]
[null,null,"prejudice the rights of the employer or contractor in terms"]
[null,null,"of this agreement"]
[]
[null,"11.9","11.9\tShould the contractor fail to furnish the security in terms"]
[null,null,"of 11.2, the employer, in his sole discretion and without"]
[null,null,"notification to the contractor, is entitled to change the"]
[null,null,"contractor's selected form of security to that of a ten per cent"]
[null,null,"(10%) payment reduction of the value certified in the"]
[null,null,"payment certificate (excluding VAT), whereafter 11.7 shall be"]
[null,null,"applicable"]
[]
[null,"Fixed:________Value related:_________Time related:_________\t",{"$nulls":10},"Item"]
[]
[null,"EXECUTION"]
[]
[12,"A12.0  ",null,"OBLIGATIONS OF THE PARTIES"]
[]
[null,"Clause 12.0"]
[]
[null,"Clause 12.1.1 is amended by replacing it with: "]
[]
[null,"No clause"]
[]
[null,"Clause 12.2.4 is amended by the addition of the following clause:"]
[]
[null,"12.2.4","An acceptable health and safety plan, required in terms of"]
[null,null,"the Occupational Health and Safety Act, 1993"]
[null,null,"(Act 85 of 1993), within twenty-one (10) calendar days of"]
[null,null,"commencement date"]
[]
[null,"Clause 12.2.7 is amended by replacing it with the following clause:"]
[]
[]
["BILL No. 1"]
[null,"Bill No. 1 PRELIMINARIES AND GENERAL carried to collection"]
[]
["CONTRACT NUMBER: ",null,{"$f":"C528","v":"CONSTRUCTION OF A NEW LAPA AND THE REFURBISHMENT OF GATE HOUSE AND ABLUTIONS, EXTERNAL AREAS AND THE INSPECTION AND WORKS TO EXISTING AND NEW SERVICES AT THE MOKOPANE BIODIVERSITY CONSERVATION CENTRE "},{"$nulls":15},"Bill"]
[{"$f":"A529","v":"G540/2024"},{"$nulls":17},1]
["ITEM","PAYMENT","DESCRIPTION",{"$nulls":13},"RATE"]
["NO","REFERS",{"$nulls":10},"UNIT",null,"QUANTITY",{"$nulls":3},"AMOUNT"]
[null,"TO"]
[]
[null,"Give the contractor possession of the site within ten (10) working days"]
[null,"of the contractor complying with the terms of 12.2.4"]
[]
[null,"Fixed:________Value related:_________Time related:_________\t",{"$nulls":10},"Item"]
[]
[13,"A13.0  ",null,"SETTING OUT OF THE WORKS"]
[]
[null,"Clause 13.0"]
[]
[null,"Fixed:________Value related:_________Time related:_________\t",{"$nulls":10},"Item"]
[]
[14,"A14.0  ",null,"NOMINATED SUBCONTRACTORS"]
[]
[null,"Clause 14.0"]
[]
[null,"Clause 14.1.5 is amended by replacing it with the following: "]
[]
[null,"Note: See item B9.1 hereinafter for adjustment of attendance on"]
[null,"nominated subcontractors executing work allowed for under"]
[null,"provisional sums"]
[]
[null,"Fixed:________Value related:_________Time related:_________\t",{"$nulls":10},"Item"]
[]
[15,"A15.0  ",null,"SELECTED SUBCONTRACTORS"]
[]
[null,"Clause 15.0"]
[]
[null,"Clause 15.1.2 to 15.5 and 15.2 to 15.5 is amended by replacing it"]
[null,"with:"]
[]
[null,"The Contractor and principal agent shall appoint a selected"]
[null,"subcontractor in accordance with the CIDB practice #7"]
[]
[null,"Fixed:________Value related:_________Time related:_________\t",{"$nulls":10},"Item"]
[]
[16,"A16.0  ",null,"DIRECT CONTRACTORS"]
[]
[null,"Clause 16.0"]
[]
[null,"Fixed:________Value related:_________Time related:_________\t",{"$nulls":10},"Item"]
[]
[17,"A17.0  ",null,"CONTRACT INSTRUCTIONS"]
[]
[null,"Clause 17.0"]
[]
[null,"Fixed:________Value related:_________Time related:_________\t",{"$nulls":10},"Item"]
[]
[null,"COMPLETION"]
[]
[18,"A18.0  ",null,"INTERIM COMPLETION"]
[]
[null,"Clause 18.0"]
[]
[null,"Fixed:________Value related:_________Time related:_________\t",{"$nulls":10},"Item"]
[]
[19,"A19.0  ",null,"PRACTICAL COMPLETION"]
[]
[null,"Clause 19.0"]
[]
[null,"Fixed:________Value related:_________Time related:_________\t",{"$nulls":10},"Item"]
[]
[20,"A20.0  ",null,"COMPLETION IN SECTIONS"]
[]
[null,"Clause 20.0"]
[]
[null,"Fixed:________Value related:_________Time related:_________\t",{"$nulls":10},"Item"]
[]
[]
[]
[]
["BILL No. 1"]
[null,"Bill No. 1 PRELIMINARIES AND GENERAL carried to collection"]
[]
["CONTRACT NUMBER: ",null,{"$f":"C604","v":"CONSTRUCTION OF A NEW LAPA AND THE REFURBISHMENT OF GATE HOUSE AND ABLUTIONS, EXTERNAL AREAS AND THE INSPECTION AND WORKS TO EXISTING AND NEW SERVICES AT THE MOKOPANE BIODIVERSITY CONSERVATION CENTRE "},{"$nulls":15},"Bill"]
[{"$f":"A605","v":"G540/2024"},{"$nulls":17},1]
["ITEM","PAYMENT","DESCRIPTION"]
["NO","REFERS",{"$nulls":16},"AMOUNT"]
[null,"TO"]
[]
[21,"A21.0  ",null,"DEFECTS LIABILITY PERIOD AND FINAL "]
[{"$nulls":3},"COMPLETION"]
[]
[null,"Clause 21.0"]
[]
[null,"Add the following to the end of sub-clause 21.1.2:"]
[]
[null,"“All civil, electrical, electronic, HVAC, fire detection, gas suppression"]
[null,"and other specialist installations are subject to a three hundred and"]
[null,"sixty-five (365) calendar days defects liability and maintenance period."]
[]
[null,"The contractor shall attend to defects during the works completion and"]
[null,"defects liability periods on a progressive basis, to the satisfaction of"]
[null,"the principal agent and will not be permitted to wait until the end of the"]
[null,"defects liability period or until the amount of defects accumulate in"]
[null,"order to attend to a comprehensive list of defects.”"]
[]
[null,"Fixed:________Value related:_________Time related:_________\t",{"$nulls":10},"Item"]
[]
[22,"A22.0  ",null,"LATENT DEFECTS LIABILITY PERIOD"]
[]
[null,"Clause 22.0"]
[]
[null,"Fixed:________Value related:_________Time related:_________\t",{"$nulls":10},"Item"]
[]
[23,"A23.0  ",null,"REVISION OF DATE FOR PRACTICAL COMPLETION"]
[]
[null,"Clause 23.0"]
[]
[null,"(i)","The addition of the following clauses:-"]
[]
[null,null,"Sub-clause 23.9"]
[null,null,"“Revision to the date for practical completion shall only be"]
[null,null,"considered when work on the critical path of the agreed"]
[null,null,"programme for the works is delayed.”"]
[]
[null,"(ii)","Sub-clause 23.10 – Acceleration "]
[null,null,"Sub-clause 23.10.1"]
[null,null,"“Irrespective of whether or not the principal agent rules that"]
[null,null,"the contractor is entitled to an extension of time or a revision"]
[null,null,"of the date for practical completion, the principal agent shall"]
[null,null,"nevertheless, at any time, be entitled to instruct the contractor"]
[null,null,"in writing to accelerate the progress of the remaining works"]
[null,null,"to ensure that the works are completed by the original date"]
[null,null,"for practical completion or revised date as the case may be.”"]
[]
[null,null,"Sub-clause 23.10.2"]
[null,null,"“Upon receipt of such instruction, the contractor shall take all"]
[null,null,"necessary steps to ensure that the works are completed"]
[null,null,"timeously including the provision by him of additional"]
[null,null,"resources, plant, manpower, etc and the working overtime or"]
[null,null,"additional overtime beyond that contemplated at the time of "]
[null,null,"tender (at all times adhering to the regulations and"]
[null,null,"requirements of all authorities) and by all other adequate and"]
[null,null,"proper means and methods. The contractor shall prove that"]
[null,null,"such steps are being taken if called upon to do so.”"]
[]
[null,null,"Sub-clause 23.10.3"]
[null,null,"“The contractor’s entitlement to compensation arising out of"]
[null,null,"or in respect of any revision to the date for practical"]
[null,null,"completion that may have been granted by the principal"]
[null,null,"agent or alternatively where the principal agent has"]
[null,null,"instructed the contractor to accelerate, shall be adjudicated"]
[null,null,"strictly in terms of clause 32.”"]
[]
[null,"Fixed:________Value related:_________Time related:_________\t",{"$nulls":10},"Item"]
[]
[]
["BILL No. 1"]
[null,"Bill No. 1 PRELIMINARIES AND GENERAL carried to collection"]
[]
["CONTRACT NUMBER: ",null,{"$f":"C683","v":"CONSTRUCTION OF A NEW LAPA AND THE REFURBISHMENT OF GATE HOUSE AND ABLUTIONS, EXTERNAL AREAS AND THE INSPECTION AND WORKS TO EXISTING AND NEW SERVICES AT THE MOKOPANE BIODIVERSITY CONSERVATION CENTRE "},{"$nulls":15},"Bill"]
[{"$f":"A684","v":"G540/2024"},{"$nulls":17},1]
["ITEM","PAYMENT","DESCRIPTION"]
["NO","REFERS",{"$nulls":16},"AMOUNT"]
[null,"TO"]
[]
[24,"A24.0  ",null,"PENALTY FOR LATE AND NON-COMPLETION"]
[]
[null,"Clause 24.0"]
[]
[null,"Fixed:________Value related:_________Time related:_________\t",{"$nulls":10},"Item"]
[]
[null,"Failure to achieve practical completion"]
[]
[null,"Provision for termination of contractor due to delay or failure to achieve"]
[null,"Practical Completion, including recovery costs, re-tendering, delay-related"]
[null,"costs, administrative overheads, additional site supervision,  and provision"]
[null,"for unfruitful and wasteful expenditure."]
[]
[null,"Delays in achieving Practical Completion",{"$nulls":10},"Days",{"$nulls":3},{"v":-5000,"d":"-R5,000.00"}]
[]
[null,"PAYMENT"]
[]
[25,"A25.0",null,"PAYMENT"]
[]
[null,"Clause 25.0"]
[]
[null,"Notwithstanding this or any other clause, materials and goods stored"]
[null,"off site shall not be included in the amount authorized for payment."]
[]
[null,"The first sentence of sub-clause 25.10 is deemed to be deleted and"]
[null,"replaced with the following:"]
[]
[null,"The employer shall pay the contractor the amount certified within"]
[null,"thirty (30) calendar days of the date."]
[]
[null,"Fixed:_________Value related:_________Time related:__________",{"$nulls":10},"Item"]
[]
[26,"A26.0",null,"ADJUSTMENT TO THE CONTRACT VALUE"]
[]
[null,"Clause 26.0"]
[]
[null,"Adjustment to the contract value (Clause 26.0) Where prices are"]
[null,"submitted by the contractor or nominated/selected subcontractors"]
[null,"during the progress of the works in respect of contract instructions or"]
[null,"in regard to a claim under the terms of the contract and"]
[null,"notwithstanding the fact that such prices may be used in an interim"]
[null,"payment certificate, there is to be no presumption of acceptance."]
[null,"Should the principal agent wish to accept any such prices prior to the"]
[null,"issue of the final certificate, it will be in writing"]
[]
[null,"Fixed:_________Value related:_________Time related:__________",{"$nulls":10},"Item"]
[]
[27,"A27.0",null,"ADJUSTMENT TO THE CONTRACT VALUE"]
[]
[null,"Clause 27.0"]
[]
[null,"Clause 27.2 is amended by adding the following sub-clauses:"]
[]
[null,"27.2.11","The contractor's failure or neglect to commence with"]
[null,null,"the works on the dates prescribed in the contract."]
[]
[null,"27.2.12","The contractor's failure or neglect to proceed with the works"]
[null,null,"in terms of the contract."]
[]
[null,"27.2.13","The contractor's failure or neglect for any reason to complete"]
[null,null,"the works in accordance with the contract."]
[]
[null,"27.2.14","The contractor's refusal or neglect to comply strictly with any"]
[null,null,"of the conditions of contract or any contract instructions"]
[null,null,"and/or orders in writing given in terms of the contract."]
[]
[]
[]
["BILL No. 1"]
[null,"Bill No. 1 PRELIMINARIES AND GENERAL carried to collection"]
[]
["CONTRACT NUMBER: ",null,{"$f":"C760","v":"CONSTRUCTION OF A NEW LAPA AND THE REFURBISHMENT OF GATE HOUSE AND ABLUTIONS, EXTERNAL AREAS AND THE INSPECTION AND WORKS TO EXISTING AND NEW SERVICES AT THE MOKOPANE BIODIVERSITY CONSERVATION CENTRE "},{"$nulls":15},"Bill"]
[{"$f":"A761","v":"G540/2024"},{"$nulls":17},1]
["ITEM","PAYMENT","DESCRIPTION"]
["NO","REFERS",{"$nulls":16},"AMOUNT"]
[null,"TO"]
[]
[null,"27.2.15","The contractor's estate being sequestrated or surrendered"]
[null,null," in terms of the Insolvency laws in force within the Republic of "]
[null,null,"South Africa.\""]
[]
[null,"Fixed:_________Value related:_________Time related:__________",{"$nulls":10},"Item"]
[]
[null,"SUSPENSION AND TERMINATION"]
[]
[28,"A28.0 ",null,"SUSPENSION BY CONTRACTOR"]
[]
[null,"Clause 28.0"]
[]
[null,"Fixed:_________Value related:_________Time related:__________",{"$nulls":10},"Item"]
[]
[29,"A29.0 TERMINATION"]
[]
[null,"Clause 29.0"]
[]
[null,"Add the following sub-clauses 29.1.4 to 29.1.6 under 29.1 to read as"]
[null,"follows:"]
[]
[null,"29.1.4","The contractor’s refusal or neglect to comply strictly with"]
[null,null,"any of the conditions of contract."]
[]
[null,"29.1.5","The contractor’s estate being sequestrated, liquidated or"]
[null,null,"surrendered in terms of the insolvency laws in force with"]
[null,null,"the Republic of South Africa."]
[]
[null,"29.1.6","The contractor, in the judgment of the employer, has"]
[null,null,"engaged in corrupt or fraudulent practices in competing for"]
[null,null,"or in executing the contract."]
[]
[]
[null,null,"Replace clause 29.3 with the following:"]
[null,null,"the employer may give notice of cancellation should the"]
[null,null,"contractor remain in default for ten (10) working days after"]
[null,null,"the date of of issue of such a notice of default"]
[]
[null,null,"Clause 29.25.4"]
[]
[null,null,"Replace “Sixty (60)” with “one hundred and twenty (120)”."]
[]
[null,null,"Add the following sub-clauses 29.29 under 29 to read as"]
[null,null,"follows: Notwithstanding any clause to the contrary, on"]
[null,null,"cancellation of this agreement either by the employer or the"]
[null,null,"contractor, or for any reason whatsoever, the contractor"]
[null,null,"shall on written instruction, discontinue with the works on a"]
[null,null,"stated date and withdraw himself from the site. The"]
[null,null,"contractor shall not be entitled to refuse to withdraw from"]
[null,null,"the works on the grounds of any lien or right of retention or"]
[null,null,"on the grounds of any other right whatsoever."]
[]
[null,"Fixed:_________Value related:_________Time related:__________",{"$nulls":10},"Item"]
[]
[null,"DISPUTE RESOLUTION"]
[]
[30,"A30.0 ",null,"DISPUTE RESOLUTION"]
[]
[null,"Clause 30.0"]
[]
[null,"Fixed:_________Value related:_________Time related:__________",{"$nulls":10},"Item"]
[]
[]
[]
[]
[]
[]
["BILL No. 1"]
[null,"Bill No. 1 PRELIMINARIES AND GENERAL carried to collection"]
[]
["CONTRACT NUMBER: ",null,{"$f":"C837","v":"CONSTRUCTION OF A NEW LAPA AND THE REFURBISHMENT OF GATE HOUSE AND ABLUTIONS, EXTERNAL AREAS AND THE INSPECTION AND WORKS TO EXISTING AND NEW SERVICES AT THE MOKOPANE BIODIVERSITY CONSERVATION CENTRE "},{"$nulls":15},"Bill"]
[{"$f":"A838","v":"G540/2024"},{"$nulls":17},1]
["ITEM","PAYMENT","DESCRIPTION"]
["NO","REFERS",{"$nulls":16},"AMOUNT"]
[null,"TO"]
[]
[null,"SECTION B: JBCC PRELIMINARIES"]
[]
[null,"B1.0              DISPUTE RESOLUTION"]
[]
[31,"B1.1",null,"Definitions and interpretation"]
[]
[null,"See also clause A1.0 of Section A for additional and/or amended"]
[null,"definitions which shall apply equally to this Section"]
[]
[null,"Fixed:_________Value related:_________Time related:__________",{"$nulls":10},"Item"]
[]
[null,"B2.0              DOCUMENTS"]
[]
[32,"B2.1",null,"Checking of documents"]
[]
[null,"Fixed:_________Value related:_________Time related:__________",{"$nulls":10},"Item"]
[]
[33,"B2.2",null,"Provisional bills of quantities"]
[]
[null,"Fixed:_________Value related:_________Time related:__________",{"$nulls":10},"Item"]
[]
[34,"B2.3",null,"Availability of construction documentation"]
[]
[null,"Fixed:_________Value related:_________Time related:__________",{"$nulls":10},"Item"]
[]
[35,"B2.4",null,"Interests of agents"]
[]
[null,"Fixed:_________Value related:_________Time related:__________",{"$nulls":10},"Item"]
[]
[36,"B2.5",null,"Priced documents"]
[]
[null,"Fixed:_________Value related:_________Time related:__________",{"$nulls":10},"Item"]
[]
[37,"B2.6",null,"Tender submission"]
[]
[null,"Clause 2.6 is amended by replacing \"JBCC Form of Tender\" with"]
[null,"\"Form of Offer and Acceptance\""]
[]
[null,"Fixed:_________Value related:_________Time related:__________",{"$nulls":10},"Item"]
[]
[null,"B3.0              THE SITE"]
[]
[38,"B3.1",null,"Defined works area"]
[]
[null,"Fixed:_________Value related:_________Time related:__________",{"$nulls":10},"Item"]
[]
[39,"B3.2",null,"Geotechnical investigation"]
[]
[null,"Fixed:_________Value related:_________Time related:__________",{"$nulls":10},"Item"]
[]
[40,"B3.3",null,"Inspection of the site"]
[]
[null,"Fixed:_________Value related:_________Time related:__________",{"$nulls":10},"Item"]
[]
[41,"B3.4",null,"Existing premises occupied"]
[]
[null,"Fixed:_________Value related:_________Time related:__________",{"$nulls":10},"Item"]
[]
[42,"B3.5",null,"Previous work - dimensional accuracy"]
[]
[null,"Fixed:_________Value related:_________Time related:__________",{"$nulls":10},"Item"]
[]
[43,"B3.6",null,"Previous work - defects"]
[]
[null,"Fixed:_________Value related:_________Time related:__________",{"$nulls":10},"Item"]
[]
[]
[]
["BILL No. 1"]
[null,"Bill No. 1 PRELIMINARIES AND GENERAL carried to collection"]
[]
["CONTRACT NUMBER: ",null,{"$f":"C913","v":"CONSTRUCTION OF A NEW LAPA AND THE REFURBISHMENT OF GATE HOUSE AND ABLUTIONS, EXTERNAL AREAS AND THE INSPECTION AND WORKS TO EXISTING AND NEW SERVICES AT THE MOKOPANE BIODIVERSITY CONSERVATION CENTRE "},{"$nulls":15},"Bill"]
[{"$f":"A914","v":"G540/2024"},{"$nulls":17},1]
["ITEM","PAYMENT","DESCRIPTION"]
["NO","REFERS",{"$nulls":16},"AMOUNT"]
[null,"TO"]
[]
[44,"B3.7",null,"Services - known"]
[]
[null,"Fixed:_________Value related:_________Time related:__________",{"$nulls":10},"Item"]
[]
[45,"B3.8",null,"Services - unknown"]
[]
[null,"Fixed:_________Value related:_________Time related:__________",{"$nulls":10},"Item"]
[]
[46,"B3.9",null,"Protection of trees"]
[]
[null,"Fixed:_________Value related:_________Time related:__________",{"$nulls":10},"Item"]
[]
[47,"B3.10",null,"Articles of value"]
[]
[null,"Fixed:_________Value related:_________Time related:__________",{"$nulls":10},"Item"]
[]
[48,"B3.11",null,"Inspection of adjoining properties"]
[]
[null,"Fixed:_________Value related:_________Time related:__________",{"$nulls":10},"Item"]
[]
[null,"B4.0              MANAGEMENT OF CONTRACT"]
[]
[49,"B4.1",null,"Management of the works"]
[]
[null,"Fixed:_________Value related:_________Time related:__________",{"$nulls":10},"Item"]
[]
[49,"B4.1",null,"Management of the works"]
[]
[null,"Fixed:_________Value related:_________Time related:__________",{"$nulls":10},"Item"]
[]
[]
[50,"B4.2",null,"Programme for the works"]
[]
[null,"Fixed:_________Value related:_________Time related:__________",{"$nulls":10},"Item"]
[]
[51,"B4.3",null,"Progress meetings"]
[]
[null,"Fixed:_________Value related:_________Time related:__________",{"$nulls":10},"Item"]
[]
[52,"B4.4",null,"Technical meetings"]
[]
[null,"Fixed:_________Value related:_________Time related:__________",{"$nulls":10},"Item"]
[]
[53,"B4.5",null,"Labour and plant records"]
[]
[null,"Fixed:_________Value related:_________Time related:__________",{"$nulls":10},"Item"]
[]
[null,"B5.0              SAMPLES, SHOP DRAWINGS AND MANUFACTURERS’ INSTRUCTIONS"]
[]
[]
[54,"B5.1",null,"Samples of materials"]
[]
[null,"Fixed:_________Value related:_________Time related:__________",{"$nulls":10},"Item"]
[]
[55,"B5.2",null,"Workmanship samples"]
[]
[null,"Fixed:_________Value related:_________Time related:__________",{"$nulls":10},"Item"]
[]
[56,"B5.3",null,"Shop drawings"]
[]
[null,"Fixed:_________Value related:_________Time related:__________",{"$nulls":10},"Item"]
[]
[57,"B5.4",null,"Compliance with manufacturers' instructions"]
[]
[null,"Fixed:_________Value related:_________Time related:__________",{"$nulls":10},"Item"]
[]
["BILL No. 1"]
[null,"Bill No. 1 PRELIMINARIES AND GENERAL carried to collection"]
[]
["CONTRACT NUMBER: ",null,{"$f":"C990","v":"CONSTRUCTION OF A NEW LAPA AND THE REFURBISHMENT OF GATE HOUSE AND ABLUTIONS, EXTERNAL AREAS AND THE INSPECTION AND WORKS TO EXISTING AND NEW SERVICES AT THE MOKOPANE BIODIVERSITY CONSERVATION CENTRE "},{"$nulls":15},"Bill"]
[{"$f":"A991","v":"G540/2024"},{"$nulls":17},1]
["ITEM","PAYMENT","DESCRIPTION"]
["NO","REFERS",{"$nulls":16},"AMOUNT"]
[null,"TO"]
[]
[null,"B6.0              TEMPORARY WORKS AND PLANT"]
[]
[58,"B6.1",null,"Deposits and fees"]
[]
[null,"Fixed:_________Value related:_________Time related:__________",{"$nulls":10},"Item"]
[]
[59,"B6.2",null,"Enclosure of the works"]
[]
[null,"Fixed:_________Value related:_________Time related:__________",{"$nulls":10},"Item"]
[]
[60,"B6.3",null,"Advertising"]
[]
[null,"Fixed:_________Value related:_________Time related:__________",{"$nulls":10},"Item"]
[]
[61,"B6.4",null,"Plant, equipment, sheds and offices"]
[]
[null,"Fixed:_________Value related:_________Time related:__________",{"$nulls":10},"Item"]
[]
[62,"B6.5",null,"Main notice board"]
[]
[null,"Fixed:_________Value related:_________Time related:__________",{"$nulls":10},"Item"]
[]
[63,"B6.6",null,"Subcontractors' notice board"]
[]
[null,"Fixed:_________Value related:_________Time related:__________",{"$nulls":10},"Item"]
[]
[null,"B7.0              TEMPORARY SERVICES"]
[]
[64,"B7.1",null,"Location"]
[]
[null,"Fixed:_________Value related:_________Time related:__________",{"$nulls":10},"Item"]
[]
[65,"B7.2",null,"Water"]
[]
[null,"Fixed:_________Value related:_________Time related:__________",{"$nulls":10},"Item"]
[]
[66,"B7.3",null,"Electricity"]
[]
[null,"Fixed:_________Value related:_________Time related:__________",{"$nulls":10},"Item"]
[]
[67,"B7.4",null,"Telecommunication facilities"]
[]
[null,"Fixed:_________Value related:_________Time related:__________",{"$nulls":10},"Item"]
[]
[68,"B7.5",null,"Ablution facilities"]
[]
[null,"Fixed:_________Value related:_________Time related:__________",{"$nulls":10},"Item"]
[]
[null,"B8.0              PRIME COST AMOUNTS"]
[]
[69,"B8.1",null,"Responsibility for prime cost amounts"]
[]
[null,"Fixed:_________Value related:_________Time related:__________",{"$nulls":10},"Item"]
{"$rows_empty":10}
["BILL No. 1"]
[null,"Bill No. 1 PRELIMINARIES AND GENERAL carried to collection"]
[]
["CONTRACT NUMBER: ",null,{"$f":"C1065","v":"CONSTRUCTION OF A NEW LAPA AND THE REFURBISHMENT OF GATE HOUSE AND ABLUTIONS, EXTERNAL AREAS AND THE INSPECTION AND WORKS TO EXISTING AND NEW SERVICES AT THE MOKOPANE BIODIVERSITY CONSERVATION CENTRE "},{"$nulls":15},"Bill"]
[{"$f":"A1066","v":"G540/2024"},{"$nulls":17},1]
["ITEM","PAYMENT"]
["NO","REFERS",{"$nulls":16},"AMOUNT"]
[null,"TO"]
[]
[null,"B9.0              ATTENDANCE ON N/S SUBCONTRACTORS"]
[]
[70,"B9.1",null,"General attendance"]
[]
[null,"Fixed:_________Value related:_________Time related:__________",{"$nulls":10},"Item"]
[]
[71,"B9.2",null,"Special attendance"]
[]
[null,"Fixed:_________Value related:_________Time related:__________",{"$nulls":10},"Item"]
[]
[72,"B9.3",null,"Commissioning - fuel, water and electricity"]
[]
[null,"Fixed:_________Value related:_________Time related:__________",{"$nulls":10},"Item"]
[]
[null,"B10.0              FINANCIAL ASPECTS"]
[]
[73,"B10.1",null,"Statutory taxes, duties and levies"]
[]
[null,"Fixed:_________Value related:_________Time related:__________",{"$nulls":10},"Item"]
[]
[74,"B10.2",null,"Payment for preliminaries"]
[]
[null,"Fixed:_________Value related:_________Time related:__________",{"$nulls":10},"Item"]
[]
[75,"B10.3",null,"Adjustment of preliminaries"]
[]
[null,"Clauses B10.3.1 and B10.3.2 are amended by replacing \"within"]
[null,"fifteen (15) working days of taking possession of the site\" with \"when"]
[null,"submitting his priced bills of quantities / lump sum document\""]
[]
[null,"Fixed:_________Value related:_________Time related:__________",{"$nulls":10},"Item"]
[]
[76,"B10.4",null,"Payment certificate cash flow"]
[]
[null,"Fixed:_________Value related:_________Time related:__________",{"$nulls":10},"Item"]
[]
[null,"B11.0              GENERAL"]
[]
[77,"B11.1",null,"Protection of the works"]
[]
[null,"Fixed:_________Value related:_________Time related:__________",{"$nulls":10},"Item"]
[]
[78,"B11.2",null,"Protection / isolation of existing / sectionally"]
[{"$nulls":3},"occupied works"]
[]
[null,"Fixed:_________Value related:_________Time related:__________",{"$nulls":10},"Item"]
[]
[79,"B11.3",null,"Security of the works"]
[]
[null,"Fixed:_________Value related:_________Time related:__________",{"$nulls":10},"Item"]
[]
[80,"B11.4",null,"Notice before covering work"]
[]
[null,"Fixed:_________Value related:_________Time related:__________",{"$nulls":10},"Item"]
[]
[81,"B11.5",null,"Disturbance"]
[]
[null,"Fixed:_________Value related:_________Time related:__________",{"$nulls":10},"Item"]
[]
[82,"B11.6",null,"Environmental disturbance"]
[]
[null,"Fixed:_________Value related:_________Time related:__________",{"$nulls":10},"Item"]
[]
[]
[]
[]
["BILL No. 1"]
[null,"Bill No. 1 PRELIMINARIES AND GENERAL carried to collection"]
[]
["CONTRACT NUMBER: ",null,{"$f":"C1137","v":"CONSTRUCTION OF A NEW LAPA AND THE REFURBISHMENT OF GATE HOUSE AND ABLUTIONS, EXTERNAL AREAS AND THE INSPECTION AND WORKS TO EXISTING AND NEW SERVICES AT THE MOKOPANE BIODIVERSITY CONSERVATION CENTRE "},{"$nulls":15},"Bill"]
[{"$f":"A1138","v":"G540/2024"},{"$nulls":17},1]
["ITEM","PAYMENT","DESCRIPTION"]
["NO","REFERS",{"$nulls":16},"AMOUNT"]
[null,"TO"]
[]
[83,"B11.7",null,"Works cleaning and clearing"]
[]
[null,"Fixed:_________Value related:_________Time related:__________",{"$nulls":10},"Item"]
[]
[84,"B11.8",null,"Vermin"]
[]
[null,"Fixed:_________Value related:_________Time related:__________",{"$nulls":10},"Item"]
[]
[85,"B11.9",null,"Overhand work"]
[]
[null,"Fixed:_________Value related:_________Time related:__________",{"$nulls":10},"Item"]
[]
[86,"B11.10",null,"Instruction manuals and guarantees"]
[]
[null,"Fixed:_________Value related:_________Time related:__________",{"$nulls":10},"Item"]
[]
[87,"B11.11",null,"As built information"]
[]
[null,"Fixed:_________Value related:_________Time related:__________",{"$nulls":10},"Item"]
[]
[88,"B11.12",null,"Tenant installations"]
[]
[null,"Fixed:_________Value related:_________Time related:__________",{"$nulls":10},"Item"]
[]
[null,"B12.0              SCHEDULE OF VARIABLES"]
[]
[89,"B12.1",null,"Schedule of variables"]
[]
[null,"Fixed:_________Value related:_________Time related:__________",{"$nulls":10},"Item"]
[]
[null,"This schedule contains all variables referred to in this document and"]
[null,"is divided into pre-tender and post-tender categories. The"]
[null,"pre-tender category must be completed in full and included in the"]
[null,"tender documents. Both the pre-tender and post-tender categories"]
[null,"form part of these Preliminaries"]
[]
[null,"Spaces requiring information must be filled in, shown as"]
[null,"\"not applicable\" or deleted and not left blank. Where choices are"]
[null,"offered, the non-applicable items are to be deleted. Where"]
[null,"insufficient space is provided the information should be annexed"]
[null,"hereto and cross-referenced to the applicable clause of the"]
[null,"schedule. Key cross reference clauses are italicised in [ ] brackets"]
{"$rows_empty":25}
["BILL No. 1"]
[null,"Bill No. 1 PRELIMINARIES AND GENERAL carried to collection"]
[]
["CONTRACT NUMBER: ",null,{"$f":"C1212","v":"CONSTRUCTION OF A NEW LAPA AND THE REFURBISHMENT OF GATE HOUSE AND ABLUTIONS, EXTERNAL AREAS AND THE INSPECTION AND WORKS TO EXISTING AND NEW SERVICES AT THE MOKOPANE BIODIVERSITY CONSERVATION CENTRE "},{"$nulls":15},"Bill"]
[{"$f":"A1213","v":"G540/2024"},{"$nulls":17},1]
["ITEM","PAYMENT","DESCRIPTION"]
["NO","REFERS",{"$nulls":16},"AMOUNT"]
[null,"TO"]
[]
[null,"12.1","PRE-TENDER INFORMATION"]
[]
[null,"12.1.1","Provisional bills of quantities"]
[null,"[2.2]","The quantities are provisional "]
[null,null,"YES/NO"]
[]
[null,"12.1.2","Availability of construction documentation"]
[null,"[2.3]","Construction documentation is complete "]
[null,null,"YES/NO"]
[]
[null,"12.1.3","Interests of agents"]
[null,"[2.4]","Details:"]
[]
[null,"12.1.4","Defined works area"]
[null,"[3.1]","Details:"]
[]
[null,"12.1.5","Geotechnical investigation"]
[null,"[3.2]","Details:"]
[]
[null,"12.1.6","Existing premises occupied"]
[null,"[3.4]","Details:"]
[]
[null,"12.1.7","Previous work - dimensional accuracy"]
[null,"[3.5]","Details:"]
[]
[null,"12.1.8","Previous work - defects"]
[null,"[3.6]","Details:"]
[]
[null,"12.1.9","Services - known"]
[null,"[3.7]","Details:"]
[]
[null,"12.1.10","Protection of trees"]
[null,"[3.9]","Details:"]
[]
[null,"12.1.11","Inspection of adjoining properties"]
[null,"[3.11]","Details:"]
[]
[null,"12.1.12","Enclosure of the works"]
[null,"[6.2]","Details:"]
[]
[null,"12.1.13","Offices"]
[null,"[6.4.3]","Specific requirements:"]
[null,null,"The contractor shall provide, maintain and remove on"]
[null,null,"completion of the works an office for the exclusive use of"]
[null,null,"the principal agent, minimum size 4 x 3 x 3m high internally,"]
[null,null,"suitably insulated and ventilated, provided with electric"]
[null,null,"lighting and fitted with boarded floor, desk, chair, drawing"]
[null,null,"stool, drawing board and lock-up drawers for drawings. The"]
[null,null,"office shall be kept clean and fit for use at all times"]
{"$rows_empty":17}
["BILL No. 1"]
[null,"Bill No. 1 PRELIMINARIES AND GENERAL carried to collection"]
[]
["CONTRACT NUMBER: ",null,{"$f":"C1288","v":"CONSTRUCTION OF A NEW LAPA AND THE REFURBISHMENT OF GATE HOUSE AND ABLUTIONS, EXTERNAL AREAS AND THE INSPECTION AND WORKS TO EXISTING AND NEW SERVICES AT THE MOKOPANE BIODIVERSITY CONSERVATION CENTRE "},{"$nulls":15},"Bill"]
[{"$f":"A1289","v":"G540/2024"},{"$nulls":17},1]
["ITEM","PAYMENT","DESCRIPTION"]
["NO","REFERS",{"$nulls":16},"AMOUNT"]
[null,"TO"]
[]
[null,"12.1.14","Main notice board"]
[null,"[6.5]","Specific requirements:"]
[null,null,"The contractor shall provide, erect where directed, maintain"]
[null,null,"and remove on completion of the works a notice board size"]
[null,null,"3 x 3m as per Drawing, constructed of suitable boarding"]
[null,null,"with flat smooth surface and with edging bead 19mm thick"]
[null,null,"round outer edges and projecting 12mm from face of"]
[null,null,"boarding and rounded on front edge. The board shall be"]
[null,null,"securely fixed to hoarding, where hoarding is provided, or"]
[null,null,"fixed to and including a suitable supporting structure of"]
[null,null,"timber or tubular posts and braces. The board is to be"]
[null,null,"painted ivory white and the bead and 12mm wide dividing"]
[null,null,"lines dark green. All wording shall be inscribed in dark"]
[null,null,"green as per the coat of arms for SA. All wording shall be"]
[null,null,"inscribed in dark green painted sans serif lettering"]
[]
[null,"12.1.15","Subcontractors' notice board"]
[null,"[7.2]","A notice board is required "]
[null,null,"YES/NO"]
[null,null,"Specific requirements:"]
[]
[null,"12.1.16","Water"]
[null,"[7,3]","Option A (by contractor)"]
[null,null,"YES/NO"]
[]
[null,null,"Option B (by employer - free of charge)"]
[null,null,"YES/NO"]
[]
[null,null,"Option C (by employer - metered)"]
[null,null,"YES/NO"]
[]
[null,"12.1.17","Electricity"]
[null,"[6.6]","Option A (by contractor)"]
[null,null,"YES/NO"]
[]
[null,null,"Option B (by employer - free of charge)"]
[null,null,"YES/NO"]
[]
[null,null,"Option C (by employer - metered)"]
[null,null,"YES/NO"]
[]
[null,"12.1.18","Telecommunications"]
[null,"[7.4]","Option A (by contractor)"]
[null,null,"YES/NO"]
[]
[null,null,"Option B (by employer - free of charge)"]
[null,null,"YES/NO"]
[]
[null,null,"Option C (by employer - metered)"]
[null,null,"YES/NO"]
[]
[null,"12.1.19","Ablution facilities"]
[null,"[7.5]","Option A (by contractor)"]
[null,null,"YES/NO"]
[]
[null,null,"Option B (by employer)"]
[null,null,"YES/NO"]
[]
[null,"12.1.20","Protection of existing/sectionally occupied works"]
[null,"[11.2]","Option A (by contractor)"]
[null,null,"YES/NO"]
[]
[]
[]
[]
[]
["BILL No. 1"]
[null,"Bill No. 1 PRELIMINARIES AND GENERAL carried to collection"]
[]
["CONTRACT NUMBER: ",null,{"$f":"C1363","v":"CONSTRUCTION OF A NEW LAPA AND THE REFURBISHMENT OF GATE HOUSE AND ABLUTIONS, EXTERNAL AREAS AND THE INSPECTION AND WORKS TO EXISTING AND NEW SERVICES AT THE MOKOPANE BIODIVERSITY CONSERVATION CENTRE "},{"$nulls":15},"Bill"]
[{"$f":"A1364","v":"G540/2024"},{"$nulls":17},1]
["ITEM","PAYMENT","DESCRIPTION"]
["NO","REFERS",{"$nulls":16},"AMOUNT"]
[null,"TO"]
[]
[null,"12.1.19","Ablution facilities"]
[null,"[7.5]","Option A (by contractor)"]
[null,null,"YES/NO"]
[]
[null,null,"Option B (by employer)"]
[null,null,"YES/NO"]
[]
[null,"12.1.20","Protection of existing/sectionally occupied works"]
[null,"[11.2]","Option A (by contractor)"]
[]
[null,"12.1.21","Special attendance"]
[null,"[9.2]","Subcontractor (1) details:"]
[]
[null,null,"Subcontractor (2) details:"]
[]
[null,null,"Subcontractor (3) details:"]
[]
[null,null,"Subcontractor (4) details:"]
[]
[null,"12.1.22","Special attendance"]
[null,"[11.1]","Specific requirements:"]
[]
[null,"12.1.23","Disturbance"]
[null,"[11.1]","Specific requirements:"]
[null,null,"The contractor shall keep the site, structures, etc"]
[null,null,"well-watered during operations to prevent dust and shall"]
[null,null,"provide and erect and remove on completion of the works"]
[null,null,"all necessary temporary dust screens all to the satisfaction"]
[null,null,"of the principal agent"]
[]
[null,"12.1.24","Environmental disturbance"]
[null,"[11.6]","Specific requirements:"]
[]
[null,"12.2","POST-TENDER INFORMATION"]
[]
[null,"12.1.19","Payment of preliminaries"]
[null,"[7.5]","Option A (prorated)"]
[null,null,"YES/NO"]
[]
[null,null,"Option B (calculated)"]
[null,null,"YES/NO"]
[]
[null,"12.2.2","Adjustment of preliminaries"]
[null,"[10.3]","Option A (prorated)"]
[null,null,"YES/NO"]
[]
[null,null,"Option B (calculated)"]
[null,null,"YES/NO"]
[]
[null,"12.2.3","Additional agreed preliminaries items"]
[null,null,"Details:"]
[]
[null,"SECTION C: SPECIFIC PRELIMINARIES"]
[]
[null,"Section C contains specific preliminary items which apply to this"]
[null,"contract except where N/A (Not Applicable) appears against an item"]
[]
[90,"C1.0 ","CONTRACT DRAWINGS"]
[]
[null,"* Select relevant paragraph and delete whichever is not applicable"]
[null,"depending on whether the contract is based on a bills of quantities "]
[null,"or lump sum document"]
[]
[]
[]
[]
["BILL No. 1"]
[null,"Bill No. 1 PRELIMINARIES AND GENERAL carried to collection"]
[]
["CONTRACT NUMBER: ",null,{"$f":"C1438","v":"CONSTRUCTION OF A NEW LAPA AND THE REFURBISHMENT OF GATE HOUSE AND ABLUTIONS, EXTERNAL AREAS AND THE INSPECTION AND WORKS TO EXISTING AND NEW SERVICES AT THE MOKOPANE BIODIVERSITY CONSERVATION CENTRE "},{"$nulls":15},"Bill"]
[{"$f":"A1439","v":"G540/2024"},{"$nulls":17},1]
["ITEM","PAYMENT","DESCRIPTION"]
["NO","REFERS",{"$nulls":16},"AMOUNT"]
[null,"TO"]
[]
[null,"*The drawings issued with the tender documents do not comprise the"]
[null,"complete set but serve as a guide only for tendering purposes and for"]
[null,"indicating the scope of the work to enable the tenderer to acquaint"]
[null,"himself with the nature and extent of the works and the manner in"]
[null,"which they are to be executed"]
[]
[null,"*A full set of drawings is issued with the tender documents indicating"]
[null,"the full scope of the work to enable the tenderer to acquaint himself"]
[null,"with the nature and extent of the works and the manner in which they"]
[null,"are to be executed"]
[]
[null,"Should any part of the drawings not be clearly understood by the"]
[null,"tenderer he shall, before submitting his tender, obtain clarification in"]
[null,"writing from the principal agent"]
[]
[null,"Fixed:_________Value related:_________Time related:__________",{"$nulls":10},"Item"]
[]
[91,"C2.0 ","GENERAL PREAMBLES"]
[]
[null,"The document \"Specification of Materials and Methods to be used"]
[null,"(PW371)\" is obtainable on the Department's website"]
[null,"(http://www.publicworks.gov.za/ under \"Consultants Guidelines\"), and"]
[null,"shall be read in conjunction with the bills of quantities / lump sum"]
[null,"document and be referred to for the full descriptions of work to be"]
[null,"done and materials to be used"]
[]
[null,"Fixed:_________Value related:_________Time related:__________",{"$nulls":10},"Item"]
[]
[92,"C3.0 ","TRADE NAMES"]
[]
[null,"Wherever a trade name for any product has been described in the"]
[null,"bills of quantities / lump sum document, the tenderer's attention is"]
[null,"drawn to the fact that any other product of equal quality may be used"]
[null,"subject to the written approval of the principal agent being obtained"]
[null,"prior to the closing date for submission of tenders"]
[]
[null,"If prior written approval for an alternative product is not obtained, the"]
[null,"product described shall be deemed to have been tendered for"]
[]
[null,"Fixed:_________Value related:_________Time related:__________",{"$nulls":10},"Item"]
[]
[93,"C4.0 ","IMPORTED MATERIALS AND EQUIPMENT"]
[]
[null,"Where imported items are listed in the tender documents, the"]
[null,"tenderer shall provide all the information called for, failing which the"]
[null,"price of any such item, materials or equipment shall be excluded from"]
[null,"currency fluctuations. (refer to Schedule of Imported Materials and"]
[null,"Equipment DPW-23(EC) to be completed by tenderer)"]
[]
[null,"Notwithstanding any provisions elsewhere regarding the adjustment of"]
[null,"contract prices, the price of any item, material or equipment listed in"]
[null,"terms of this clause shall be excluded from the Contract Price"]
[null,"Adjustment Provisions (if applicable)"]
[]
[null,"Fixed:_________Value related:_________Time related:__________",{"$nulls":10},"Item"]
[]
[94,"C5.0 ","IMPORTED MATERIALS AND EQUIPMENT"]
[]
[null,"The site is situated in a security area and the tenderer must arrange"]
[null,"with the unit commander or other responsible officer to obtain"]
[null,"permission to enter the site for tendering purposes"]
[]
[null,"Fixed:_________Value related:_________Time related:__________",{"$nulls":10},"Item"]
[]
[]
[]
["BILL No. 1"]
[null,"Bill No. 1 PRELIMINARIES AND GENERAL carried to collection"]
[]
["CONTRACT NUMBER: ",null,{"$f":"C1513","v":"CONSTRUCTION OF A NEW LAPA AND THE REFURBISHMENT OF GATE HOUSE AND ABLUTIONS, EXTERNAL AREAS AND THE INSPECTION AND WORKS TO EXISTING AND NEW SERVICES AT THE MOKOPANE BIODIVERSITY CONSERVATION CENTRE "},{"$nulls":15},"Bill"]
[{"$f":"A1514","v":"G540/2024"},{"$nulls":17},1]
["ITEM","PAYMENT","DESCRIPTION"]
["NO","REFERS",{"$nulls":16},"AMOUNT"]
[null,"TO"]
[]
[95,"C6.0 ","COMMENCEMENT OF WORKS IN SECURITY AREAS"]
[]
[null,"As the works falls within a security area the contractor must give the"]
[null,"unit commander or other responsible officer notice before"]
[null,"commencement of the works. Should the contractor fail to make such"]
[null,"arrangements, admission to the site may be refused and any"]
[null,"additional costs will be for the contractor's account"]
[]
[null,"Fixed:_________Value related:_________Time related:__________",{"$nulls":10},"Item"]
[]
[96,"C7.0 ","ENTRANCE PERMITS TO SECURITY AREAS"]
[]
[null,"As the works falls within a security area the contractor shall obtain"]
[null,"entrance permits for his personnel and workmen entering the area and"]
[null,"shall comply with all regulations and instructions which may be issued"]
[null,"from time to time regarding the protection of persons and property"]
[null,"under the control of the Defence Force, Police or chief security officer"]
[]
[null,"Fixed:_________Value related:_________Time related:__________",{"$nulls":10},"Item"]
[]
[97,"C8.0 ","SECURITY CHECK OF PERSONNEL"]
[]
[null,"The principal agent may require the contractor to have his personnel"]
[null,"and workmen, or a certain number of them, security classified"]
[]
[null,"In the event of the principal agent requesting the removal of a person "]
[null,"or persons from the works for security reasons, the contractor shall"]
[null,"do so forthwith and shall thereafter ensure that such person or"]
[null,"persons are denied access to the works and the site and/or to any"]
[null,"document or information relating to the works"]
[]
[null,"Fixed:_________Value related:_________Time related:__________",{"$nulls":10},"Item"]
[]
[98,"C9.0 ","PROHIBITION ON TAKING OF PHOTOGRAPHS"]
[]
[null,"In terms of article 119 of the Defence Act, 44 of 1957, it is prohibited"]
[null,"to sketch or to take photographs of any military site or installation or"]
[null,"any building or civil works thereon or to be in possession of a camera"]
[null,"or other apparatus used for taking of photographs except when"]
[null,"authorized thereto by or on behalf of the Minister"]
[]
[null,"The same prohibition is also applicable to all correctional institutions"]
[null,"in terms of article 44.1(e) of the Correctional Services Act 8 of 1959"]
[]
[null,"Fixed:_________Value related:_________Time related:__________",{"$nulls":10},"Item"]
[]
[99,"C10.0 ","HIV/AIDS AWARENESS"]
[]
[null,"It is required of the contractor to thoroughly study the HIV/AIDS"]
[null,"Specification (PW 1544) of the Department that must be read"]
[null,"together with and is deemed to be incorporated under this Section"]
[null,"of the bills of quantities / lump sum document. Provision for"]
[null,"pricing of HIV/AIDS awareness is made under items C10.1 to C10.5"]
[null,"hereafter and it is explicitly pointed out that all requirements of the"]
[null,"aforementioned specification are deemed to be priced hereunder,"]
[null,"as the said items represent the only method of measurement and no"]
[null,"additional items or extras to the contract in this regard shall be"]
[null,"entertained"]
{"$rows_empty":8}
["BILL No. 1"]
[null,"Bill No. 1 PRELIMINARIES AND GENERAL carried to collection"]
[]
["CONTRACT NUMBER: ",null,{"$f":"C1588","v":"CONSTRUCTION OF A NEW LAPA AND THE REFURBISHMENT OF GATE HOUSE AND ABLUTIONS, EXTERNAL AREAS AND THE INSPECTION AND WORKS TO EXISTING AND NEW SERVICES AT THE MOKOPANE BIODIVERSITY CONSERVATION CENTRE "},{"$nulls":15},"Bill"]
[{"$f":"A1589","v":"G540/2024"},{"$nulls":17},1]
["ITEM","PAYMENT","DESCRIPTION"]
["NO","REFERS",{"$nulls":16},"AMOUNT"]
[null,"TO"]
[]
[null,"The contractor must take note that compliance with the HIV/AIDS"]
[null,"Specification is compulsory. In the event of partial or total"]
[null,"non-compliance, the principal agent, notwithstanding the provisions"]
[null,"of clause A 31.0 of Section A or any other clause to the contrary,"]
[null,"reserves the right to delay issuing any progress payment certificate"]
[null,"until the contractor provides satisfactory proof of compliance. The"]
[null,"contractor shall not be entitled to any compensation of whatsoever"]
[null,"nature, including interest, due to such delay of payment"]
[]
[null,"Fixed:_________Value related:_________Time related:__________",{"$nulls":10},"Item"]
[]
[100,"C10.1","AWARENESS CHAMPION"]
[]
[null,"Selection, appointment, briefing and making available of an"]
[null,"Awareness Champion including provision of all relevant services, all in"]
[null,"accordance with the HIV/AIDS Specification"]
[]
[null,"Fixed:_________Value related:_________Time related:__________",{"$nulls":10},"Item"]
[]
[101,"C10.2","AWARENESS WORKSHOPS"]
[]
[null,"Selection and appointment of a competent Service Provider approved"]
[null,"by the principal agent, provision of a Service Provider Workshop"]
[null,"Plan and a suitable venue, conducting of awareness workshops by"]
[null,"means of traditional and/or modern multi-media techniques, including"]
[null,"follow-up courses, making available all tuition material and performing"]
[null,"assessment procedures, all in accordance with the HIV/AIDS"]
[null,"Specification"]
[]
[null,"Fixed:_________Value related:_________Time related:__________",{"$nulls":10},"Item"]
[]
[102,"C10.3","POSTERS, BOOKLETS, VIDEOS, ETC."]
[]
[null,"Provision, displaying, maintaining and replacing, when necessary, of"]
[null,"four plastic laminated posters, booklets and educational videos, etc."]
[null,"for the duration of the construction period, all in accordance with the"]
[null,"HIV/AIDS Specification"]
[]
[null,"Fixed:_________Value related:_________Time related:__________",{"$nulls":10},"Item"]
[]
[103,"C10.4","ACCESS TO CONDOMS"]
[]
[null,"Provision and maintenance of condom dispensers fixed in position,"]
[null,"including male and female condoms, replenishing male and female"]
[null,"condoms daily as required for the duration of the construction"]
[null,"period,  all in accordance with the HIV/AIDS\nSpecification"]
[]
[null,"Fixed:_________Value related:_________Time related:__________",{"$nulls":10},"Item"]
[]
[104,"C10.5","MONITORING"]
[]
[null,"Monitoring HIV/AIDS awareness of workers, providing the principal "]
[null,"agent with access to information including making available all"]
[null,"reports, thoroughly completed and reflecting the correct information, "]
[null,"for the duration of the construction period and close out, all in"]
[null,"accordance with the HIV/AIDS Specification"]
[]
[null,"Fixed:_________Value related:_________Time related:__________",{"$nulls":10},"Item"]
{"$rows_empty":8}
["BILL No. 1"]
[null,"Bill No. 1 PRELIMINARIES AND GENERAL carried to collection"]
[]
["CONTRACT NUMBER: ",null,{"$f":"C1663","v":"CONSTRUCTION OF A NEW LAPA AND THE REFURBISHMENT OF GATE HOUSE AND ABLUTIONS, EXTERNAL AREAS AND THE INSPECTION AND WORKS TO EXISTING AND NEW SERVICES AT THE MOKOPANE BIODIVERSITY CONSERVATION CENTRE "},{"$nulls":15},"Bill"]
[{"$f":"A1664","v":"G540/2024"},{"$nulls":17},1]
["ITEM","PAYMENT","DESCRIPTION",{"$nulls":9},"Page No."]
["NO","REFERS",{"$nulls":16},"AMOUNT"]
[null,"TO"]
[]
[105,"C11.0","OCCUPATIONAL HEALTH AND SAFETY ACT"]
[]
[null,"The contractor shall comply with all the requirements set out in the"]
[null,"Construction Regulations, 2003 issued under the Occupational Health"]
[null,"and Safety Act, 1993 (Act No 85 of 1993)"]
[]
[null,"It is required of the contractor to thoroughly study the Health and"]
[null,"Safety Specification that must be read together with and is deemed"]
[null,"to be incorporated under this Section of the bills of quantities / lump"]
[null,"sum document"]
[]
[null,"The contractor must take note that compliance with the Occupational"]
[null,"Health and Safety Act, Construction Regulations and Health and"]
[null,"Safety Specification is compulsory. In the event of partial or total"]
[null,"non-compliance, the principal agent, notwithstanding the provisions"]
[null,"of clause A31.0 of Section A or any other clause to the contrary,"]
[null,"reserves the right to delay issuing any progress payment certificate"]
[null,"until the contractor provides satisfactory proof of compliance. The"]
[null,"contractor shall not be entitled to any compensation of whatsoever"]
[null,"nature, including interest, due to such delay of payment"]
[]
[null,"Provision for pricing of the Occupational Health and Safety Act,"]
[null,"Construction Regulations and Health and Safety Specification is"]
[null,"made under this clause, and it is explicitly pointed out that all"]
[null,"requirements of the aforementioned are deemed to be priced"]
[null,"hereunder and no additional claims in this regard shall be entertained"]
[]
[null,"Fixed:_________Value related:_________Time related:__________",{"$nulls":10},"Item"]
[]
[null,"PPE"]
[]
[106,"C11.1","HI-VISIBILTY CONTI-SUIT"]
[]
[null,"Annual/ As required or needing replacing"]
[]
[null,"Fixed:_________Value related:_________Time related:__________",{"$nulls":10},"Item"]
[]
[107,"C11.2","HI-VISIBILTY T-SHIRTS"]
[]
[null,"Annual/ As required or needing replacing"]
[]
[null,"Fixed:_________Value related:_________Time related:__________",{"$nulls":10},"Item"]
[]
[108,"C11.3","STEEL TOE-CAPPED SAFETY BOOTS"]
[]
[null,"Annual/ As required or needing replacing"]
[]
[null,"Fixed:_________Value related:_________Time related:__________",{"$nulls":10},"Item"]
[]
[109,"C11.4","HI-VISIBILITY SAFETY VEST"]
[]
[null,"Annual/ As required or needing replacing"]
[]
[null,"Fixed:_________Value related:_________Time related:__________",{"$nulls":10},"Item"]
[]
[110,"C11.5","SABS APPROVED HARD HAT"]
[]
[null,"Annual/ As required or needing replacing"]
[]
[null,"Fixed:_________Value related:_________Time related:__________",{"$nulls":10},"Item"]
[]
[]
[]
[]
[]
[]
["BILL No. 1"]
[null,"Bill No. 1 PRELIMINARIES AND GENERAL carried to collection"]
[]
["CONTRACT NUMBER: ",null,{"$f":"C1738","v":"CONSTRUCTION OF A NEW LAPA AND THE REFURBISHMENT OF GATE HOUSE AND ABLUTIONS, EXTERNAL AREAS AND THE INSPECTION AND WORKS TO EXISTING AND NEW SERVICES AT THE MOKOPANE BIODIVERSITY CONSERVATION CENTRE "},{"$nulls":15},"Bill"]
[{"$f":"A1739","v":"G540/2024"},{"$nulls":17},1]
["ITEM","PAYMENT","DESCRIPTION",{"$nulls":9},"Page No."]
["NO","REFERS",{"$nulls":16},"AMOUNT"]
[null,"TO"]
[]
[111,"C11.6","HI-VISIBILITY RAIN SUITS"]
[]
[null,"Annual/ As required or needing replacing"]
[]
[null,"Fixed:_________Value related:_________Time related:__________",{"$nulls":10},"Item"]
[]
[112,"C11.7","STEEL TOE CAPPED GUMBOOTS"]
[]
[null,"Annual/ As required or needing replacing"]
[]
[null,"Fixed:_________Value related:_________Time related:__________",{"$nulls":10},"Item"]
[]
[113,"C11.8","DUST MASKS (STIPULATE FFP)"]
[]
[null,"Annual/ As required or needing replacing"]
[]
[null,"Fixed:_________Value related:_________Time related:__________",{"$nulls":10},"Item"]
[]
[114,"C11.9","SAFETY GLASSES"]
[]
[null,"Annual/ As required or needing replacing"]
[]
[null,"Fixed:_________Value related:_________Time related:__________",{"$nulls":10},"Item"]
[]
[115,"C11.10","GLOVES (STIPULATE TYPE):"]
[]
[null,"Annual/ As required or needing replacing"]
[]
[null,"Fixed:_________Value related:_________Time related:__________",{"$nulls":10},"Item"]
[]
[116,"C11.11","SAFETY HARNESSES"]
[]
[null,"Annual/ As required or needing replacing"]
[]
[null,"Fixed:_________Value related:_________Time related:__________",{"$nulls":10},"Item"]
[]
[117,"C11.13","ISSUE OF DISPOSABLE GLOVES"]
[]
[null,"Annual/ As required or needing replacing"]
[]
[null,"Fixed:_________Value related:_________Time related:__________",{"$nulls":10},"Item"]
[]
[118,"C11.14","ISSUE OF FACE SHIELDS"]
[]
[null,"Annual/ As required or needing replacing"]
[]
[null,"Fixed:_________Value related:_________Time related:__________",{"$nulls":10},"Item"]
[]
[119,"C11.15","OTHER"]
[]
[null,"Annual/ As required or needing replacing"]
[]
[null,"Fixed:_________Value related:_________Time related:__________",{"$nulls":10},"Item"]
{"$rows_empty":13}
["BILL No. 1"]
[null,"Bill No. 1 PRELIMINARIES AND GENERAL carried to collection"]
[]
["CONTRACT NUMBER: ",null,{"$f":"C1813","v":"CONSTRUCTION OF A NEW LAPA AND THE REFURBISHMENT OF GATE HOUSE AND ABLUTIONS, EXTERNAL AREAS AND THE INSPECTION AND WORKS TO EXISTING AND NEW SERVICES AT THE MOKOPANE BIODIVERSITY CONSERVATION CENTRE "},{"$nulls":15},"Bill"]
[{"$f":"A1814","v":"G540/2024"},{"$nulls":17},1]
["ITEM","PAYMENT","DESCRIPTION",{"$nulls":9},"Page No."]
["NO","REFERS",{"$nulls":16},"AMOUNT"]
[null,"TO"]
[]
[null,"TRAINING"]
[]
[120,"C11.16","SAFETY REPRESENTATIVE TRAINING"]
[]
[null,"Annual/ As required or needing replacing"]
[]
[null,"Fixed:_________Value related:_________Time related:__________",{"$nulls":10},"Item"]
[]
[121,"C11.17","FIRST AIDER TRAINING"]
[]
[null,"Annual/ As required or needing replacing"]
[]
[null,"Fixed:_________Value related:_________Time related:__________",{"$nulls":10},"Item"]
[]
[122,"C11.18","FIRE FIGHTING TRAINING"]
[]
[null,"Annual/ As required or needing replacing"]
[]
[null,"Fixed:_________Value related:_________Time related:__________",{"$nulls":10},"Item"]
[]
[null,"WORKING AT HEIGHTS"]
[]
[123,"C11.19","BASIC FALL ARREST (US229998)"]
[]
[null,"Once off or every 3 years"]
[]
[null,"Fixed:_________Value related:_________Time related:__________",{"$nulls":10},"Item"]
[]
[124,"C11.20","BASIC FALL ARREST AND RESCUE"]
[null,null,"(US229995 AND US229998)"]
[]
[null,"Once off or every 3 years"]
[]
[null,"Fixed:_________Value related:_________Time related:__________",{"$nulls":10},"Item"]
[]
[125,"C11.21","FALL PROTECTION PLANNER"]
[null,null,"(US229998 AND 229994)"]
[]
[null,"Once off or every 3 years"]
[]
[null,"Fixed:_________Value related:_________Time related:__________",{"$nulls":10},"Item"]
[]
[null,"SCAFFOLDING (AS PER SANS10085)"]
[]
[126,"C11.22","SCAFFOLDING SUPERVISOR"]
[]
[null,"Once off"]
[]
[null,"Fixed:_________Value related:_________Time related:__________",{"$nulls":10},"Item"]
[]
[127,"C11.23","SCAFFOLDING INSPECTOR"]
[]
[null,"Once off"]
[]
[null,"Fixed:_________Value related:_________Time related:__________",{"$nulls":10},"Item"]
[]
[128,"C11.24","SCAFFOLDING ERECTOR"]
[]
[null,"Once off"]
[]
[null,"Fixed:_________Value related:_________Time related:__________",{"$nulls":10},"Item"]
[]
[]
[]
[]
[]
["BILL No. 1"]
[null,"Bill No. 1 PRELIMINARIES AND GENERAL carried to collection"]
[]
["CONTRACT NUMBER: ",null,{"$f":"C1888","v":"CONSTRUCTION OF A NEW LAPA AND THE REFURBISHMENT OF GATE HOUSE AND ABLUTIONS, EXTERNAL AREAS AND THE INSPECTION AND WORKS TO EXISTING AND NEW SERVICES AT THE MOKOPANE BIODIVERSITY CONSERVATION CENTRE "},{"$nulls":15},"Bill"]
[{"$f":"A1889","v":"G540/2024"},{"$nulls":17},1]
["ITEM","PAYMENT","DESCRIPTION",{"$nulls":9},"Page No."]
["NO","REFERS",{"$nulls":16},"AMOUNT"]
[null,"TO"]
[]
[129,"C11.25","INDUCTION TRAINING INCLUDING COVID"]
[null,null,"AWARENESS"]
[]
[null,"Fixed:_________Value related:_________Time related:__________",{"$nulls":10},"Item"]
[]
[130,"C11.26","OTHER"]
[]
[null,"Fixed:_________Value related:_________Time related:__________",{"$nulls":10},"Item"]
[]
[null,"HEALTH AND SAFETY SALARIES"]
[]
[131,"C11.27","CHC MANAGER"]
[]
[null,"Monthly Salary"]
[]
[null,"Fixed:_________Value related:_________Time related:__________",{"$nulls":10},"Item"]
[]
[132,"C11.28","CHC OFFICER"]
[]
[null,"Monthly Salary"]
[]
[null,"Fixed:_________Value related:_________Time related:__________",{"$nulls":10},"Item"]
[]
[134,"C11.30","OTHER"]
[]
[null,"Monthly Salary"]
[]
[null,"Fixed:_________Value related:_________Time related:__________",{"$nulls":10},"Item"]
[]
[null,"SPECIFIC HEALTH AND SAFETY ITEMS"]
[]
[135,"C11.31","MEDICALS INCLUDING COVID SCREENING"]
[]
[null,"Pre-placement, Annual and Exist"]
[]
[null,"Fixed:_________Value related:_________Time related:__________",{"$nulls":10},"Item"]
[]
[136,"C11.32","SPILL KIT"]
[]
[null,"Once off"]
[]
[null,"Fixed:_________Value related:_________Time related:__________",{"$nulls":10},"Item"]
[]
[137,"C11.33","ACCOMMODATION OF TRAFFIC"]
[]
[null,"Accommodation of Traffic as per Client tender BOQ"]
[]
[null,"Fixed:_________Value related:_________Time related:__________",{"$nulls":10},"Item"]
[]
[138,"C11.34","INDUCTIONS"]
[]
[null,"Annual"]
[]
[null,"Fixed:_________Value related:_________Time related:__________",{"$nulls":10},"Item"]
{"$rows_empty":12}
["BILL No. 1"]
[null,"Bill No. 1 PRELIMINARIES AND GENERAL carried to collection"]
[]
["CONTRACT NUMBER: ",null,{"$f":"C1963","v":"CONSTRUCTION OF A NEW LAPA AND THE REFURBISHMENT OF GATE HOUSE AND ABLUTIONS, EXTERNAL AREAS AND THE INSPECTION AND WORKS TO EXISTING AND NEW SERVICES AT THE MOKOPANE BIODIVERSITY CONSERVATION CENTRE "},{"$nulls":15},"Bill"]
[{"$f":"A1964","v":"G540/2024"},{"$nulls":17},1]
["ITEM","PAYMENT","DESCRIPTION",{"$nulls":9},"Page No."]
["NO","REFERS",{"$nulls":16},"AMOUNT"]
[null,"TO"]
[]
[139,"C11.35","FIRST AID KITS"]
[]
[null,"Once off"]
[]
[null,"Fixed:_________Value related:_________Time related:__________",{"$nulls":10},"Item"]
[]
[140,"C11.36","FIRE EXTINGUISHERS"]
[]
[null,"Once off"]
[]
[null,"Fixed:_________Value related:_________Time related:__________",{"$nulls":10},"Item"]
[]
[141,"C11.37","ABLUTIONS"]
[]
[null,"Once off"]
[]
[null,"Fixed:_________Value related:_________Time related:__________",{"$nulls":10},"Item"]
[]
[142,"C11.38","BARRIER NETTING"]
[]
[null,"Once off"]
[]
[null,"Fixed:_________Value related:_________Time related:__________",{"$nulls":10},"Item"]
[]
[143,"C11.39","FALL PROTECTION PLAN"]
[]
[null,"Fall Protection Plan drafted by a Fall Protection Planner US22994"]
[null,"and 229998 (once off and ongoing implementation)"]
[]
[null,"Fixed:_________Value related:_________Time related:__________",{"$nulls":10},"Item"]
[]
[144,"C11.40","NON-TOUCH THERMOMETER"]
[]
[null,"Fixed:_________Value related:_________Time related:__________",{"$nulls":10},"Item"]
[]
[145,"C11.41","HAND SANITIZER"]
[]
[null,"Fixed:_________Value related:_________Time related:__________",{"$nulls":10},"Item"]
[]
[146,"C11.42","BIOHAZARD BINS AND DISPOSAL"]
[]
[null,"Fixed:_________Value related:_________Time related:__________",{"$nulls":10},"Item"]
[]
[147,"C11.43","OTHER"]
[]
[null,"Fixed:_________Value related:_________Time related:__________",{"$nulls":10},"Item"]
[]
[null,"SAFETY SIGNAGE"]
[]
[148,"C11.44","CONSTRUCTION BOARDS"]
[]
[null,"Once off"]
[]
[null,"Fixed:_________Value related:_________Time related:__________",{"$nulls":10},"Item"]
[]
[149,"C11.45","FIRE EXTINGUISHER"]
[]
[null,"Once off"]
[]
[null,"Fixed:_________Value related:_________Time related:__________",{"$nulls":10},"Item"]
[]
[]
[]
[]
[]
[]
["BILL No. 1"]
[null,"Bill No. 1 PRELIMINARIES AND GENERAL carried to collection"]
[]
["CONTRACT NUMBER: ",null,{"$f":"C2038","v":"CONSTRUCTION OF A NEW LAPA AND THE REFURBISHMENT OF GATE HOUSE AND ABLUTIONS, EXTERNAL AREAS AND THE INSPECTION AND WORKS TO EXISTING AND NEW SERVICES AT THE MOKOPANE BIODIVERSITY CONSERVATION CENTRE "},{"$nulls":15},"Bill"]
[{"$f":"A2039","v":"G540/2024"},{"$nulls":17},1]
["ITEM","PAYMENT","DESCRIPTION",{"$nulls":9},"Page No."]
["NO","REFERS",{"$nulls":16},"AMOUNT"]
[null,"TO"]
[]
[150,"C11.46","DIRECTIONAL SIGNAGE"]
[]
[null,"Once off"]
[]
[null,"Fixed:_________Value related:_________Time related:__________",{"$nulls":10},"Item"]
[]
[151,"C11.47","EMERGENCY ASSEMBLY POINT"]
[]
[null,"Once off"]
[]
[null,"Fixed:_________Value related:_________Time related:__________",{"$nulls":10},"Item"]
[]
[152,"C11.48","NO SMOKING SIGNAGE"]
[]
[null,"Once off"]
[]
[null,"Fixed:_________Value related:_________Time related:__________",{"$nulls":10},"Item"]
[]
[153,"C11.49","LADIES AND MEN'STOILETS SIGNAGE"]
[]
[null,"Once off"]
[]
[null,"Fixed:_________Value related:_________Time related:__________",{"$nulls":10},"Item"]
[]
[154,"C11.50","NO NAKED FLAMES' SIGNAGE"]
[]
[null,"Once off"]
[]
[null,"Fixed:_________Value related:_________Time related:__________",{"$nulls":10},"Item"]
[]
[155,"C11.51","OTHER (OTHER SIGNAGE)"]
[]
[null,"Once off"]
[]
[null,"Fixed:_________Value related:_________Time related:__________",{"$nulls":10},"Item"]
[]
[null,"SAFETY DOCUMENTATION"]
[]
[156,"C11.52","HEALTH AND SAFETY PLAN"]
[]
[null,"Fixed:_________Value related:_________Time related:__________",{"$nulls":10},"Item"]
[]
[157,"C11.53","HEALTH AND SAFETY FILE"]
[]
[null,"Fixed:_________Value related:_________Time related:__________",{"$nulls":10},"Item"]
[]
[158,"C11.56","OTHER"]
[]
[null,"Once off"]
[]
[null,"Fixed:_________Value related:_________Time related:__________",{"$nulls":10},"Item"]
{"$rows_empty":15}
["BILL No. 1"]
[null,"Bill No. 1 PRELIMINARIES AND GENERAL carried to collection"]
[]
["CONTRACT NUMBER: ",null,{"$f":"C2113","v":"CONSTRUCTION OF A NEW LAPA AND THE REFURBISHMENT OF GATE HOUSE AND ABLUTIONS, EXTERNAL AREAS AND THE INSPECTION AND WORKS TO EXISTING AND NEW SERVICES AT THE MOKOPANE BIODIVERSITY CONSERVATION CENTRE "},{"$nulls":15},"Bill"]
[{"$f":"A2114","v":"G540/2024"},{"$nulls":17},1]
["ITEM","PAYMENT","DESCRIPTION",{"$nulls":9},"Page No."]
["NO","REFERS",{"$nulls":16},"AMOUNT"]
[null,"TO"]
[]
[null,"C12 EPWP CONDITIONS AND SPECIFICATIONS"]
[]
[null,"EMPLOYMENT TARGETS"]
[]
[null,"Employment Targets"]
[]
[null,"The contractor needs to provide a realistic estimate on the number of"]
[null,"jobs that the project has the potential to create throughout the project"]
[null,"duration as the project will be implemented using labour intensive"]
[null,"construction methods on elements where it is economical and feasible"]
[null,"for this construction method."]
[]
[null,"No of jobs to be created  = [Contractor to fill in an estimated number]"]
[]
[159,"Fixed:_________Value related:_________Time related:__________",{"$nulls":10},"Item"]
[]
[null,"Employment requirements"]
[]
[null,"Tenderers are advised that this contract will be subject to the"]
[null,"Expanded Public Works Program (EPWP) aimed at alleviating and"]
[null,"reducing unemployment."]
[]
[null,"Tenderers must allow for any costs for the employment of unskilled"]
[null,"labour as per the requirements of the EPWP program;"]
[]
[null,"1.","55% of unskilled labour to be women"]
[]
[null,"2.","55% of unskilled labour to be youth aged between 18 and"]
[null,null,"35 years"]
[]
[null,"3.","2% of unskilled labour to be people living with disability"]
[]
[null,"4.","100% Unskilled labour utilised must reside within the"]
[null,null,"boundries of the Municipality Ward where this contract is"]
[null,null,"executed, with preference to the local community closest or"]
[null,null,"at the walking distance to the contract site. Wherever"]
[null,null,"possible local skilled tradesmen are to be employed on this"]
[null,null,"contract with the view to maximize utilization of local"]
[null,null,"resources."]
[]
[160,"Fixed:_________Value related:_________Time related:__________",{"$nulls":10},"Item"]
[]
[null,"Labour rate and payment intervals"]
[]
[null,"commensurate to the daily task. When determining the rate,"]
[null,"consideration should be given to that EPWP beneficiaries are mostly"]
[null,"bread winners in their families, as the program intends alleviating"]
[null,"poverty. There should also be consideration that the labour rate"]
[null,"promotes creation of expanded number of jobs created and person"]
[null,"days of work."]
[]
[null,"Contractors should make endeavours to ensure that labourers"]
[null," particularly unskilled are remunerated on fortnight basis and prior"]
[null,"notification be made should there be a shortfall on their wages."]
[]
[null,"The labour rate for local unskilled shall also be determined in"]
[null,"consideration of the location of the project, i.e. for projects"]
[null,"implemented in urbanized municipalities will not be the same as that"]
[null,"for rural municipalities."]
[]
[161,"Fixed:_________Value related:_________Time related:__________",{"$nulls":10},"Item"]
[]
[]
[]
[]
[]
["BILL No. 1"]
[null,"Bill No. 1 PRELIMINARIES AND GENERAL carried to collection"]
[]
["CONTRACT NUMBER: ",null,{"$f":"C2188","v":"CONSTRUCTION OF A NEW LAPA AND THE REFURBISHMENT OF GATE HOUSE AND ABLUTIONS, EXTERNAL AREAS AND THE INSPECTION AND WORKS TO EXISTING AND NEW SERVICES AT THE MOKOPANE BIODIVERSITY CONSERVATION CENTRE "},{"$nulls":15},"Bill"]
[{"$f":"A2189","v":"G540/2024"},{"$nulls":17},1]
["ITEM","PAYMENT","DESCRIPTION",{"$nulls":9},"Page No."]
["NO","REFERS",{"$nulls":16},"AMOUNT"]
[null,"TO"]
[]
[null,"LABOUR INTENSIVE CONSTRUCTION "]
[]
[null,"Labour Intensive Construction (LIC) method"]
[]
[null,"On site there must a person(s) having competency in managing and"]
[null,"implementing LIC methods."]
[]
[null,"*Foreman @ NQF Level 4 the Unit Standard on Implementing LIC"]
[null,"methods on site."]
[]
[null,"*Site Agent/ Managers @ NQF level 5 the Unit Standard on Manage"]
[null,"Labour- Intensive Skills Programme both must be CETA accredited"]
[]
[162,"Fixed:_________Value related:_________Time related:__________",{"$nulls":10},"Item"]
[]
[null,"Labour Intensive Construction Method"]
[]
[null,"Reference to be made to Guidelines for the implementation of"]
[null,"Labour-Intensive Infrastructure projects under EPWP. \"Scope of Work"]
[null,"in Respect of Work Relating to the Expanded Public Works"]
[null,"Programme (EPWP)\""]
[]
[163,"Fixed:_________Value related:_________Time related:__________",{"$nulls":10},"Item"]
[]
[null,"RECORD KEEPING"]
[]
[null,"Every employer must keep in the project site office the following"]
[null,"minutes of site progress minutes; contractors’ monthly site progress"]
[null,"reports; accurately recorded attendance register; proof of payment as"]
[null,"means to verify authenticity of data in the EPWP Beneficiary form"]
[null,"submitted with payment certificates. Copies of submitted EPWP"]
[null,"beneficiary data forms should also be kept in the site office."]
[]
[164,"Fixed:_________Value related:_________Time related:__________",{"$nulls":10},"Item"]
[]
[null,"The employer must keep this record for a period of at least three (3)"]
[null,"years after the completion of the project in his/her office as the project"]
[null,"site office would have been relocated."]
[]
[null,"This should be safely kept for job creation data verifications and"]
[null,"periodical audits on projects conducted by National and Provincial"]
[null,"Department of Public Works after one (1) or two (2) quarters of"]
[null,"submitting captured EPWP Data to the National EPWP coordinating"]
[null,"Department."]
[]
[165,"Fixed:_________Value related:_________Time related:__________",{"$nulls":10},"Item"]
[]
[null,"EPWP REPORTING as per EPWP DATA FORM"]
[]
[null,"At the end of each month as part of site progress report and to be"]
[null,"attached to every contractor’s progress payment certificate; the "]
[null,"contractor shall provide the principal agent & Public Works with a"]
[null,"written records, as per EPWP data form; which will be reflecting,"]
[null,"beneficiaries full name & surname; ID No and job description of"]
[null,"labour employed by main contractor and sub-contractors on site. At"]
[null,"the end of each month the contractor must submit the following"]
[null,"documents to be attached to the Progress payment certificate:"]
[null,"1.","EPWP monthly data collection form"]
[null,"2.","Worker monthly payment upload"]
[null,"3.","Worker monthly proof of payment i.e"]
[null,"3.1","Acknowledgement of receipt of payment or"]
[null,"3.2","Pay slips"]
[]
[]
[]
[]
["BILL No. 1"]
[null,"Bill No. 1 PRELIMINARIES AND GENERAL carried to collection"]
[]
["CONTRACT NUMBER: ",null,{"$f":"C2263","v":"CONSTRUCTION OF A NEW LAPA AND THE REFURBISHMENT OF GATE HOUSE AND ABLUTIONS, EXTERNAL AREAS AND THE INSPECTION AND WORKS TO EXISTING AND NEW SERVICES AT THE MOKOPANE BIODIVERSITY CONSERVATION CENTRE "},{"$nulls":15},"Bill"]
[{"$f":"A2264","v":"G540/2024"},{"$nulls":17},1]
["ITEM","PAYMENT","DESCRIPTION",{"$nulls":9},"Page No."]
["NO","REFERS",{"$nulls":16},"AMOUNT"]
[null,"TO"]
[]
[null,"3.3","Bank statement highlighted the workers paid"]
[null,"4.","Worker monthly training form"]
[null,"5.","Monthly attendance register"]
[null,"6.","Certified copies of ID’s (once off)"]
[null,"7.","ID size photos (once off)"]
[null,"8.","Proof of UIF"]
[null,"9.","Proof of COIDA"]
[]
[166,"Fixed:_________Value related:_________Time related:__________",{"$nulls":10},"Item"]
[]
[null,"EPWP PROMOTION"]
[]
[null,"EPWP signage board"]
[]
[null,"EPWP Program at the project level shall always be promoted through"]
[null,"having the projects signage board that embrace EPWP logo at the"]
[null,"bottom, correct measurement for this signage board will be provided"]
[null,"by the project leader during the site handing over meeting. The"]
[null,"standard \"HELVETIVA MEDUIM \" letters are to be used. Professional"]
[null,"title to be 10 mm above line. Line thickness to be 8 mm thick. Space"]
[null,"between bottom of the line and bottom of the lettering below the line"]
[null,"must be 100 mm. Letter sizes are as follows: Helvetica medium"]
[null,"100 mm black upper case to be for project name and owner."]
[null,"Helvetica medium 75mm black upper case only to be used for"]
[null,"professional titles. Project name and owner shall be black lettering on"]
[null,"white background. Board sizes are as follows: Board to be minimum"]
[null,"2000mm from ground level and to be constructed from reinforced"]
[null,"formed chromadek panels minimum 0,6mm thick chromadek. The"]
[null,"contractor is responsible for ensuring that the project board remains"]
[null,"neatly and safely erected for the full duration including maintenance"]
[null,"period, after which the project board and post are to be dismantled"]
[null,"and handed to the client in good order."]
[]
[167,"Fixed:_________Value related:_________Time related:__________",{"$nulls":10},"Item"]
[]
[null,"Branding of labour apparel"]
[]
[null,"Contractor & Sub-contractors’ labourers shall be provided with EPWP"]
[null,"branded Personal Protective Equipment (PPE), reflector vest with"]
[null,"EPWP wording at the back is an ideal and cost-effective means of"]
[null,"promoting program on site."]
[]
[168,"Fixed:_________Value related:_________Time related:__________",{"$nulls":10},"Item"]
[]
[null,"COMMUNITY LIAISON OFFICER (CLO)"]
[]
[null,"UTILISATION OF A COMMUNITY LIAISON OFFICER"]
[]
[null,"The Contractor shall allow for and pay any and all costs necessary for"]
[null,"the engagement of the services of a Community Liaison Officer (CLO)"]
[null,"for the full duration of this contract"]
[]
[null,"In the interest of providing a sound service to both the community and"]
[null,"the Contractor, a CLO may only manage one project at a given time."]
[]
[null,"A CLO will be identified by the local structures of the ward areas and"]
[null,"appointed following fair and transparent interviewing process, to be"]
[null,"conducted in the presence of local structures and the contractor"]
[null,"representative, in order to assist the Contractor in the procurement of"]
[null,"any local labour, etc. required for this project. The Contractor is to"]
[null,"liaise with the CLO and afford him any assistance needed in ensuring"]
[null,"sound working relations with the local community."]
[]
[]
[]
[]
["BILL No. 1"]
[null,"Bill No. 1 PRELIMINARIES AND GENERAL carried to collection"]
[]
["CONTRACT NUMBER: ",null,{"$f":"C2338","v":"CONSTRUCTION OF A NEW LAPA AND THE REFURBISHMENT OF GATE HOUSE AND ABLUTIONS, EXTERNAL AREAS AND THE INSPECTION AND WORKS TO EXISTING AND NEW SERVICES AT THE MOKOPANE BIODIVERSITY CONSERVATION CENTRE "},{"$nulls":15},"Bill"]
[{"$f":"A2339","v":"G540/2024"},{"$nulls":17},1]
["ITEM","PAYMENT","DESCRIPTION",{"$nulls":9},"Page No."]
["NO","REFERS",{"$nulls":16},"AMOUNT"]
[null,"TO"]
[]
[null,"Key Responsibilities of the CLO are envisaged to include and"]
[null,"not necessary be limited to:"]
[{"$nulls":5},"RFP 17- 2024/25"]
[null,"1.","Assisting local leadership in conducting skills and resources"]
[null,null,"audit which facilitates sourcing labour from within the ward or"]
[null,null,"targeted areas for employment, as required by contractor."]
[]
[null,"2.","Assisting in sourcing labour-only domestic sub-contractors"]
[null,null,"and the procurement of materials from local resources, as"]
[null,null,"required by the contractor."]
[]
[null,"3.","Assisting the contractor by identifying areas of potential"]
[null,null,"conflict and or threats to the project or to stakeholders in the"]
[null,null,"project and recommend appropriate action to the contractor."]
[]
[null,"4.","Assisting contractor and stakeholders in the project in the"]
[null,null,"resolution of any conflict which may arise."]
[]
[null,"5.","Establishing and ensuring that sufficient and open"]
[null,null,"communication channels between the contractor and the"]
[null,null,"work force are maintained."]
[]
[null,"6.","Establish and ensuring that efficient and open"]
[null,null,"communication channels between the contractor and the"]
[null,null,"community are maintained"]
[]
[null,"7.","Identifying and reporting to the Contractor regarding issues"]
[null,null,"where communication between stakeholder is necessary,"]
[null,null,"recommend courses of action and facilitate such"]
[null,null,"communications"]
[]
[null,"8.","Assisting the Contractor and the work force in the"]
[null,null,"establishment of grievance procedures and necessary"]
[null,null,"recommendations to the Contractor regarding the"]
[null,null,"grievances and solution thereto."]
[]
[null,"9.","Attending to site meetings and project implementation"]
[null,null,"meetings as required by the Contractor and prepare"]
[null,null,"periodic reports as may be required by the Contractor from"]
[null,null,"time to time."]
[]
[null,"10.","Attending to such other duties which are consistent with the"]
[null,null,"functions of a CLO, as may be required by the Contractor"]
[null,null,"from time to time."]
[]
[null,"Tenderers are to price twice the rate of unskilled local labour rate"]
[null,"against this item for any and all costs arising out of compliance with"]
[null,"the foregoing and in the event of a Tenderer failing to price against"]
[null,"this item or making inadequate financial provision against this item"]
[null,"for compliance as aforesaid, then no claim for costs or additional cost"]
[null,"incurred will be entertained by the Head: Health"]
[]
[169,"Fixed:_________Value related:_________Time related:__________",{"$nulls":10},"Item"]
[]
[null,"SKILLS DEVELOPMENT ON SITE"]
[]
[null,"Contractor in conforming to the object of EPWP that its beneficiaries"]
[null,"need to be capacitated with skills that will render them employable in"]
[null,"the future. It is then the responsibility of the Contractor that mandatory"]
[null,"life skills are provided to 100% of workforce on site and on the job"]
[null,"training to labourers from whom the potential for further development"]
[null,"has been identified. The latter is not mandatory to all as it covers"]
[null,"technical skills."]
[]
[]
[]
["BILL No. 1"]
[null,"Bill No. 1 PRELIMINARIES AND GENERAL carried to collection"]
[]
["CONTRACT NUMBER: ",null,{"$f":"C2413","v":"CONSTRUCTION OF A NEW LAPA AND THE REFURBISHMENT OF GATE HOUSE AND ABLUTIONS, EXTERNAL AREAS AND THE INSPECTION AND WORKS TO EXISTING AND NEW SERVICES AT THE MOKOPANE BIODIVERSITY CONSERVATION CENTRE "},{"$nulls":15},"Bill"]
[{"$f":"A2414","v":"G540/2024"},{"$nulls":17},1]
["ITEM","PAYMENT","DESCRIPTION",{"$nulls":9},"Page No."]
["NO","REFERS",{"$nulls":16},"AMOUNT"]
[null,"TO"]
[]
[null,"Contractor should also make provision for the possibility that there"]
[null,"might be local youth that will need to be placed on the project with an"]
[null,"intention to be provided support towards improving their level of"]
[null,"competency and productivity."]
[]
[null,"Contractor shall also provide all necessary on-the-job training to"]
[null,"targeted labour to enable such labour to master and advance on"]
[null,"techniques required to undertake the work in accordance with"]
[null,"requirements of the contract in a manner that does not compromise"]
[null,"workers health and safety."]
[]
[170,"Fixed:_________Value related:_________Time related:__________",{"$nulls":10},"Item"]
[]
[null,"LABOUR ONLY Sub Contracting for local emerging enterprises"]
[]
[null,"Tenderer’s are advised that this contract is subject to the Expanded"]
[null,"Public Works Programme (EPWP) and the following criteria will apply:"]
[]
[null,"African Equity Ownership"]
[]
[null,"a)","The Tenderer is to allow for 5% of the total value of works to"]
[null,null,"be undertaken by a Priority Population Group (PPG). This"]
[null,null,"percentage excludes the costs of employing local unskilled"]
[null,null,"labour. The allocation of this percentage from the Project,"]
[null,null,"the screening of people, the selection of skills, will be for the"]
[null,null,"Contractor to adjudicate."]
[]
[null,"b)","The Priority Population Group consists of women, youth and"]
[null,null,"disabled people."]
[]
[null,"c)","The Contractor is to give first option for prospective PPGs"]
[null,null,"from the surrounding areas of the Project. Should there be"]
[null,null,"insufficient suitable people fitting the criteria of PPG’s, the"]
[null,null,"Contractor may hire people from further afield. This is to be"]
[null,null,"done only after consultation with the Department of Works"]
[null,null,"EPWP Co-Ordinator and the Community Liaison Officer"]
[null,null,"(CLO)."]
[]
[null,"d)","A Mentor is to be employed by the Contractor, in"]
[null,null,"consultation with the Department of Works for the purposes"]
[null,null,"of quality control and liaison between the Contractor and the"]
[null,null,"selected PPGs on site. The mentor will be responsible for"]
[null,null,"ensuring an acceptable level of quality workmanship and"]
[null,null,"that such work carried out by the PPG's is executed within"]
[null,null,"the time frames stipulated."]
[]
[null,"In so far as possible, the Contractor is encouraged to expand the"]
[null,"PPGs skills, knowledge and performance levels."]
[]
[171,"Fixed:_________Value related:_________Time related:__________",{"$nulls":10},"Item"]
[]
[null,"TENDERER’S TO NOTE CONDITIONS"]
[]
[null,"a)","The contract to be entered into between the Contractor and"]
[null,null,"the PPG’s will be a LABOUR ONLY sub-contract."]
[]
[null,"b)","The Contractor will be responsible for ensuring that all"]
[null,null,"materials for use by the PPG’s in the works are to be on site"]
[null,null,"timeously. The Contractor shall liaise with The Mentor and"]
[null,null,"PPG to determine the nature and extent of materials"]
[null,null,"required and the lead time necessary."]
[]
[]
[]
[]
[]
[]
["BILL No. 1"]
[null,"Bill No. 1 PRELIMINARIES AND GENERAL carried to collection"]
[]
["CONTRACT NUMBER: ",null,{"$f":"C2488","v":"CONSTRUCTION OF A NEW LAPA AND THE REFURBISHMENT OF GATE HOUSE AND ABLUTIONS, EXTERNAL AREAS AND THE INSPECTION AND WORKS TO EXISTING AND NEW SERVICES AT THE MOKOPANE BIODIVERSITY CONSERVATION CENTRE "},{"$nulls":15},"Bill"]
[{"$f":"A2489","v":"G540/2024"},{"$nulls":17},1]
["ITEM","PAYMENT","DESCRIPTION",{"$nulls":9},"Page No."]
["NO","REFERS",{"$nulls":16},"AMOUNT"]
[null,"TO"]
[]
[null,"c)","The Contractor shall be responsible for the overall"]
[null,null,"programming of the Works, and he is to allow for monitoring"]
[null,null,"the PPG’s programme and progress."]
[]
[null,"d)","In conjunction with the Mentor, he is to allow for the"]
[null,null,"supervision and mentoring (where necessary) of the PPG to"]
[null,null,"ensure quality and adherence to standard building practice"]
[]
[null,"e)","The Contractor is to allow for extra storage facilities on site"]
[null,null,"for the PPG’s tools and equipment."]
[]
[null,"f)","Basic tools shall be provided by the PPG’s and where these"]
[null,null,"are not available; the Contractor will supply him with the"]
[null,null,"necessary tools and equipment and deduct the costs thereof"]
[null,null,"from the interim claims made by the PPG."]
[]
[null,"g)","Work requiring specialized tools will be provided free of"]
[null,null,"charge by the Contractor with the provision that these be"]
[null,null,"returned upon completion of the Work."]
[]
[null,"CO-ORDINATION"]
[]
[null,"The Contractor is to co-ordinate the work of all the PPG’s,"]
[null,"Sub-Contractors and Nominated Sub- Contractors appointed direct"]
[null,"by the Employer in such a manner and at all times as will suit the"]
[null,"building programme and he is to allow adequate access, for the"]
[null,"PPGs, where required, to carry out their work in an efficient manner as"]
[null,"no claims for extras in this connection will be entertained."]
[]
[172,"Fixed:_________Value related:_________Time related:__________",{"$nulls":10},"Item"]
[]
[null,"ATTENDANCE"]
[]
[null,"The Contractor may allow for attendance upon the PPG’s concerned"]
[null,"to execute the work. The Contractor is to allow the PPG’s the use of"]
[null,"any scaffolding belonging to him while it remains so erected on the"]
[null,"site."]
[]
[null,"Where scaffolding is necessary for the use by any PPG and the"]
[null,"Contractor has not erected any for his own use or has removed same"]
[null,"after his own use, the Contractor shall supply sufficient scaffolding to"]
[null,"the PPG to be erected and dismantled by the PPG and returned to"]
[null,"the Contractor."]
[]
[null,"This attendance upon PPG’s to execute the work is to include for the"]
[null,"scaffolding provisions as aforesaid and, in addition, is to include for"]
[null,"co-operating to the fullest extent with all the parties, attending on"]
[null,"off-loading materials, providing suitable storage for tools and"]
[null,"materials used by the PPG’s, use of general facilities such as latrines,"]
[null,"etc., supply and cost of power, lighting, water and the like."]
[]
[173,"Fixed:_________Value related:_________Time related:__________",{"$nulls":10},"Item"]
[]
[null,"EPWP CONTRACT FOR LABOUR"]
[]
[null,"It is compulsory that shortly after the contractor and or sub-contractor"]
[null,"has appointed local labour, the employment contract should be signed"]
[null,"by both parties, prior to commencement with works on site. The"]
[null,"employment contract forms part of the Ministerial Determination or"]
[null,"from the regional EPWP officials. Each contract will lapse at the end"]
[null,"of each financial year therefore requiring the Contractor to do a"]
[null,"renewal of each contract should the need of employment still exist for"]
[null,"that particular labourer."]
[]
[174,"Fixed:_________Value related:_________Time related:__________",{"$nulls":10},"Item"]
[]
["BILL No. 1"]
[null,"Bill No. 1 PRELIMINARIES AND GENERAL carried to collection"]
[]
["CONTRACT NUMBER: ",null,{"$f":"C2564","v":"CONSTRUCTION OF A NEW LAPA AND THE REFURBISHMENT OF GATE HOUSE AND ABLUTIONS, EXTERNAL AREAS AND THE INSPECTION AND WORKS TO EXISTING AND NEW SERVICES AT THE MOKOPANE BIODIVERSITY CONSERVATION CENTRE "},{"$nulls":15},"Bill"]
[{"$f":"A2565","v":"G540/2024"},{"$nulls":17},1]
["ITEM","PAYMENT","DESCRIPTION",{"$nulls":9},"Page No."]
["NO","REFERS",{"$nulls":16},"AMOUNT"]
[null,"TO"]
[]
[null,"EPWP SCOPE of WORK"]
[]
[null,"Note:"]
[]
[null,"Contractors are to price any item on the Bill of Quantities having"]
[null,"below, bearing in mind that they are regarded as main sources of job"]
[null,"creation, whether subcontracted or undertaken by the main contractor."]
[]
[null,"Elements on the scope of work where application of Labour-Intensive"]
[null,"Construction methods are regarded feasible are as follows."]
[]
[null,"i)","Excavating trenches for foundations and any other civil works"]
[null,null,"with the depth not more than 1.5 m"]
[]
[null,"ii)","All masonry works which include concrete mixing on site;"]
[null,null,"brickwork; plastering; screed works; jointing; etc."]
[]
[null,"iii)","Painting, Plumbing, Ironmongery; roof cladding; glazing;"]
[null,null,"tilling; carpentry; flooring; waterproofing; etc."]
[]
[175,"Fixed:_________Value related:_________Time related:__________",{"$nulls":10},"Item"]
[]
[null,"Note:"]
[]
[null,"It is a general requirement of this contract that persons normally"]
[null,"resident in the ward of the works (local labour) be given preference for"]
[null,"employment on the contract. Provided, however, that should adequate"]
[null,"and appropriate labour is not available within the ward, others may be "]
[null,"employed subject to satisfactory proof being provided that every"]
[null,"reasonable endeavour has been made to employ local labour"]
[null,"(Local Sub-contractor(s); Skilled; Semi-Skilled and Unskilled). The"]
[null,"contractor shall in consultation with the local community leaders with"]
[null,"the purpose of negotiating with them regarding the utilization of local"]
[null,"resources in the construction process. In this regard, the contractor"]
[null,"shall furthermore give preference, wherever possible to the"]
[null,"employment of single heads of households, women and youth"]
[null,"as well as families declared as most indigent by War on Poverty/"]
[null,"Sukuma Sakhe program profiling process. The contractor should aim,"]
[null,"in general, to maximise the involvement of the local community,"]
[null,"however workers from other communities should not exceed 20% of"]
[null,"all persons working on the project, where local employees possess"]
[null,"skills at level of competency that meet contractors requirements.The"]
[null,"Contractor and subcontractors will employ and utilise local labour"]
[null,"within a 10 km radius from the sites of construction. Local specialised"]
[null,"and general labour will be used for skilled and unskilled work, placing"]
[null,"responsibility on the Contractors to provide the required on-site"]
[null,"training to achieve a competent work force."]
[]
[null,"Payment for the labour-intensive component of the works"]
[]
[null,"Payment for works identified in the Scope of Work as being"]
[null,"labour-intensive shall only be made in accordance with the provisions"]
[null,"of the Contract if the works are constructed strictly in accordance with"]
[null,"the provisions of the Scope of Work. Any non-payment for such works"]
[null,"shall not relieve the Contractor in any way from his obligations either"]
[null,"in contract or in delict."]
[]
[null,"Linkage of payment for labour-intensive component of works to"]
[null,"submission of project data"]
{"$rows_empty":7}
["BILL No. 1"]
[null,"Bill No. 1 PRELIMINARIES AND GENERAL carried to collection"]
[]
["CONTRACT NUMBER: ",null,{"$f":"C2639","v":"CONSTRUCTION OF A NEW LAPA AND THE REFURBISHMENT OF GATE HOUSE AND ABLUTIONS, EXTERNAL AREAS AND THE INSPECTION AND WORKS TO EXISTING AND NEW SERVICES AT THE MOKOPANE BIODIVERSITY CONSERVATION CENTRE "},{"$nulls":15},"Bill"]
[{"$f":"A2640","v":"G540/2024"},{"$nulls":17},1]
["ITEM","PAYMENT","DESCRIPTION",{"$nulls":9},"Page No."]
["NO","REFERS",{"$nulls":16},"AMOUNT"]
[null,"TO"]
[]
[null,"The Contractor’s payment invoices shall be accompanied by labour"]
[null,"information for the corresponding period in a format specified by the"]
[null,"employer. If the contractor chooses to delay submitting payment"]
[null,"invoices, labour returns shall still be submitted as per frequency and"]
[null,"timeframe stipulated by the Employer. The contractor’s invoices shall"]
[null,"not be paid until all pending labour information has been submitted."]
[]
[null,"Applicable labour laws"]
[]
[null,"The current Ministerial Determination (also downloadable at"]
[null,"www.epwp.gov.za) Expanded Public Works Programmes, issued in"]
[null,"terms of the Basic Conditions of Employment Act of 1997 by the"]
[null,"Minister of Labour in Government Notice, shall apply to works"]
[null,"described in the scope of work as being labour-intensive and which"]
[null,"are undertaken by unskilled or semi-skilled workers."]
[]
[176,"Fixed:_________Value related:_________Time related:__________",{"$nulls":10},"Item"]
[]
[177,"PENALTIES FOR SERIOUS VIOLATION"]
[]
[null,"Protection of site and environmental responsibilities"]
[]
[null,"(a)","Penalty for unnecessary removal or damage to trees:"]
[]
[null,null,"(i)","2,600 mm girth or less",{"$nulls":8},"No.",{"$nulls":3},{"v":-5000,"d":"-R5,000.00"}]
[]
[null,null,"(ii)","Greater than 2,600 mm, but less than 6,180 mm girth",{"$nulls":8},"No.",{"$nulls":3},{"v":-10000,"d":"-R10,000.00"}]
[]
[null,null,"(iii)","Greater than 6,180 mm girth",{"$nulls":8},"No.",{"$nulls":3},{"v":-3000,"d":"-R3,000.00"}]
[]
[null,"(b)","Penalty for serious violations:"]
[]
[null,null,"(i)","Hazardous chemical/oil spill and/or dumping ",{"$nulls":8},"No.",{"$nulls":3},{"v":-10000,"d":"-R10,000.00"}]
[{"$nulls":3},"non-approved sites"]
[]
[null,null,"(ii)","General damage to sensitive environments",{"$nulls":8},"No.",{"$nulls":3},{"v":-5000,"d":"-R5,000.00"}]
[]
[null,null,"(iii)","Damage to cultural and historical sites",{"$nulls":8},"No.",{"$nulls":3},{"v":-5000,"d":"-R5,000.00"}]
[]
[null,null,"(iv)","Pollution of water sources",{"$nulls":8},"No.",{"$nulls":3},{"v":-10000,"d":"-R10,000.00"}]
[]
[null,null,"(v)","Unauthorized blasting activities",{"$nulls":8},"No.",{"$nulls":3},{"v":-5000,"d":"-R5,000.00"}]
[]
[null,null,"(vi)","Uncontrolled/unmanaged erosion (depending on ",{"$nulls":8},"No.",{"$nulls":3},{"v":-1000,"d":"-R1,000.00"}]
[{"$nulls":3},"environmental impacts, plus rehabilitation at "]
[{"$nulls":3},"Contractor's cost)"]
[]
[null,null,"(viii)","Damage to sensitive vegetation within \"no-go\" areas ",{"$nulls":12},{"v":-5000,"d":"-R5,000.00"}]
[{"$nulls":3},"(depending on vegetation damaged, plus rehabilitation"]
[{"$nulls":3}," thereof at Contractor's cost)"]
{"$rows_empty":16}
["BILL No. 1"]
[null,"Bill No. 1 PRELIMINARIES AND GENERAL carried to collection"]
[]
["CONTRACT NUMBER: ",null,{"$f":"C2714","v":"CONSTRUCTION OF A NEW LAPA AND THE REFURBISHMENT OF GATE HOUSE AND ABLUTIONS, EXTERNAL AREAS AND THE INSPECTION AND WORKS TO EXISTING AND NEW SERVICES AT THE MOKOPANE BIODIVERSITY CONSERVATION CENTRE "},{"$nulls":15},"Bill"]
[{"$f":"A2715","v":"G540/2024"},{"$nulls":17},1]
["ITEM","PAYMENT","DESCRIPTION",{"$nulls":9},"Page No."]
["NO","REFERS",{"$nulls":16},"AMOUNT"]
[null,"TO"]
[]
[null,"(c)","Penalty for less serious violations:"]
[]
[null,null,"(i)","Littering on site",{"$nulls":8},"No.",{"$nulls":3},{"v":-1000,"d":"-R1,000.00"}]
[]
[null,null,"(ii)","Lighting of illegal fires on site",{"$nulls":8},"No.",{"$nulls":3},{"v":-1000,"d":"-R1,000.00"}]
[]
[null,null,"(iii)","Persistent or un-repaired fuel and oil leaks",{"$nulls":8},"No.",{"$nulls":3},{"v":-500,"d":"-R500.00"}]
[]
[null,null,"(iv)","Any person related to the Contractor’s operations found ",{"$nulls":8},"No.",{"$nulls":3},{"v":-3000,"d":"-R3,000.00"}]
[{"$nulls":3},"within the designated “no-go” areas"]
[]
[null,null,"(v)"," Excess dust or excess noise emanating from site",{"$nulls":8},"No.",{"$nulls":3},{"v":-1000,"d":"-R1,000.00"}]
[]
[null,null,"(vi)","Dumping of milled material in side drains or on ",{"$nulls":8},"No.",{"$nulls":3},{"v":-1000,"d":"-R1,000.00"}]
[{"$nulls":3},"grassed areas"]
[]
[null,null,"(vii)","Possession or use of intoxicating substances on site",{"$nulls":8},"No.",{"$nulls":3},{"v":-500,"d":"-R500.00"}]
{"$rows_empty":49}
["BILL No. 1"]
[null,"Bill No. 1 PRELIMINARIES AND GENERAL carried to collection"]
[]
["CONTRACT NUMBER: ",null,{"$f":"C2714","v":"CONSTRUCTION OF A NEW LAPA AND THE REFURBISHMENT OF GATE HOUSE AND ABLUTIONS, EXTERNAL AREAS AND THE INSPECTION AND WORKS TO EXISTING AND NEW SERVICES AT THE MOKOPANE BIODIVERSITY CONSERVATION CENTRE "},{"$nulls":15},"Bill"]
[{"$f":"A2715","v":"G540/2024"},{"$nulls":17},1]
["ITEM","PAYMENT","DESCRIPTION",{"$nulls":9},"Page No."]
["NO","REFERS",{"$nulls":16},"AMOUNT"]
[null,"TO"]
[]
[null,{"$f":"B9","v":"PRELIMINARIES AND GENERAL"}]
[]
[null,"COLLECTION"]
[]
[null,"Total Brought Forward from Page No.",{"$nulls":10},92]
[]
[{"$nulls":12},{"$f":"M2874+1","v":93}]
[]
[{"$nulls":12},{"$f":"M2876+1","v":94}]
[]
[{"$nulls":12},{"$f":"M2878+1","v":95}]
[]
[{"$nulls":12},{"$f":"M2880+1","v":96}]
[]
[{"$nulls":12},{"$f":"M2882+1","v":97}]
[]
[{"$nulls":12},{"$f":"M2884+1","v":98}]
[]
[{"$nulls":12},{"$f":"M2886+1","v":99}]
[]
[{"$nulls":12},{"$f":"M2888+1","v":100}]
[]
[{"$nulls":12},{"$f":"M2890+1","v":101}]
[]
[{"$nulls":12},{"$f":"M2892+1","v":102}]
[]
[{"$nulls":12},{"$f":"M2894+1","v":103}]
[]
[{"$nulls":12},{"$f":"M2896+1","v":104}]
[]
[{"$nulls":12},{"$f":"M2898+1","v":105}]
[]
[{"$nulls":12},{"$f":"M2900+1","v":106}]
[]
[{"$nulls":12},{"$f":"M2902+1","v":107}]
[]
[{"$nulls":12},{"$f":"M2904+1","v":108}]
[]
[{"$nulls":12},{"$f":"M2906+1","v":109}]
[]
[{"$nulls":12},{"$f":"M2908+1","v":110}]
[]
[{"$nulls":12},{"$f":"M2910+1","v":111}]
[]
[{"$nulls":12},{"$f":"M2912+1","v":112}]
[]
[{"$nulls":12},{"$f":"M2914+1","v":113}]
[]
[{"$nulls":12},{"$f":"M2916+1","v":114}]
[]
[{"$nulls":12},{"$f":"M2918+1","v":115}]
[]
[{"$nulls":12},{"$f":"M2920+1","v":116}]
[]
[{"$nulls":12},{"$f":"M2922+1","v":117}]
[]
[{"$nulls":12},{"$f":"M2924+1","v":118}]
[]
[{"$nulls":12},{"$f":"M2926+1","v":119}]
[]
[{"$nulls":12},{"$f":"M2928+1","v":120}]
[]
[]
[]
[]
[]
["BILL No. 1"]
[null,"Bill No. 1 PRELIMINARIES AND GENERAL Carried Forward"]
[]
["CONTRACT NUMBER: ",null,{"$f":"C2864","v":"CONSTRUCTION OF A NEW LAPA AND THE REFURBISHMENT OF GATE HOUSE AND ABLUTIONS, EXTERNAL AREAS AND THE INSPECTION AND WORKS TO EXISTING AND NEW SERVICES AT THE MOKOPANE BIODIVERSITY CONSERVATION CENTRE "},{"$nulls":15},"Bill"]
[{"$f":"A2865","v":"G540/2024"},{"$nulls":17},1]
["ITEM","PAYMENT","DESCRIPTION",{"$nulls":9},"Page No."]
["NO","REFERS",{"$nulls":16},"AMOUNT"]
[null,"TO"]
[]
[null,{"$f":"B2870","v":"PRELIMINARIES AND GENERAL"}]
[]
[null,{"$f":"B2872","v":"COLLECTION"}]
[]
[null,{"$f":"B2874","v":"Total Brought Forward from Page No."},{"$nulls":10},{"$f":"M2930","v":120}]
[]
[{"$nulls":12},{"$f":"M2949+1","v":121}]
[]
[{"$nulls":12},{"$f":"M2951+1","v":122}]
[]
[{"$nulls":12},{"$f":"M2953+1","v":123}]
[]
[{"$nulls":12},{"$f":"M2955+1","v":124}]
[]
[{"$nulls":12},{"$f":"M2957+1","v":125}]
[]
[{"$nulls":12},{"$f":"M2959+1","v":126}]
[]
[{"$nulls":12},{"$f":"M2961+1","v":127}]
[]
[{"$nulls":12},{"$f":"M2963+1","v":128}]
[]
[{"$nulls":12},{"$f":"M2965+1","v":129}]
{"$rows_empty":37}
[{"$nulls":8},"`"]
[]
[]
[]
[]
[]
["BILL No. 1"]
[null,"Bill No. 1 PRELIMINARIES AND GENERAL carried to Summary"]

{"sheet":"Bill 2-Alterations","index":1,"n_rows":391,"n_cols":19,"rows_kept":391,"merged":[[0,0,0,1],[0,2,1,17],[0,18,0,19],[1,0,1,1],[1,18,1,19],[2,1,4,11],[2,16,4,17],[3,12,3,13],[3,14,3,15],[3,18,3,19],[47,23,47,24],[49,23,49,24],[50,23,50,24],[54,23,54,24],[55,23,55,24],[57,23,57,24],[58,23,58,24],[64,23,64,24],[65,23,65,24],[67,23,67,24],[68,23,68,24],[72,23,72,24],[73,0,75,0],[73,23,73,24],[74,18,74,19],[74,23,74,24],[75,23,75,24],[76,0,76,1],[76,2,77,17],[76,18,76,19],[76,23,76,24],[77,0,77,1],[77,18,77,19],[77,23,77,24],[78,2,80,11],[78,16,80,17],[78,23,78,24],[79,12,79,13],[79,14,79,15],[79,18,79,19],[79,23,79,24],[80,23,80,24],[111,23,111,24],[112,23,112,24],[113,23,113,24],[114,23,114,24],[116,23,116,24],[117,23,117,24],[118,23,118,24],[119,23,119,24],[122,23,122,24],[123,23,123,24],[124,23,124,24],[128,12,128,13],[128,23,128,24],[129,23,129,24],[134,23,134,24],[135,23,135,24],[136,23,136,24],[138,23,138,24],[139,12,139,13],[139,14,139,15],[139,16,139,17],[139,18,139,19],[139,23,139,24],[142,12,142,13],[142,14,142,15],[142,16,142,17],[142,18,142,19],[150,12,150,13],[150,14,150,15],[150,16,150,17],[150,18,150,19],[155,0,157,0],[155,23,155,24],[156,18,156,19],[156,23,156,24],[157,23,157,24],[158,0,158,1],[158,2,159,17],[158,18,158,19],[159,0,159,1],[159,18,159,19],[160,2,162,11],[160,16,162,17],[161,12,161,13],[161,14,161,15],[161,18,161,19],[172,12,172,13],[172,14,172,15],[172,16,172,17],[172,18,172,19],[178,12,178,13],[178,14,178,15],[178,16,178,17],[178,18,178,19],[187,12,187,13],[187,14,187,15],[187,16,187,17],[187,18,187,19],[190,12,190,13],[190,14,190,15],[190,16,190,17],[190,18,190,19],[195,12,195,13],[195,14,195,15],[195,16,195,17],[195,18,195,19],[201,12,201,13],[201,14,201,15],[201,16,201,17],[201,18,201,19],[202,12,202,13],[202,14,202,15],[202,16,202,17],[202,18,202,19],[204,12,204,13],[204,14,204,15],[204,16,204,17],[204,18,204,19],[210,12,210,13],[210,14,210,15],[210,16,210,17],[210,18,210,19],[219,12,219,13],[219,14,219,15],[219,16,219,17],[219,18,219,19],[221,12,221,13],[221,14,221,15],[221,16,221,17],[221,18,221,19],[222,1,222,11],[225,12,225,13],[225,14,225,15],[225,16,225,17],[225,18,225,19],[227,12,227,13],[227,14,227,15],[227,16,227,17],[227,18,227,19],[232,0,234,0],[233,18,233,19],[235,0,235,1],[235,2,236,17],[235,18,235,19],[236,0,236,1],[236,18,236,19],[237,2,239,11],[237,16,239,17],[238,12,238,13],[238,14,238,15],[238,18,238,19],[240,12,240,13],[240,14,240,15],[240,18,240,19],[241,12,241,13],[243,12,243,13],[243,14,243,15],[243,16,243,17],[243,18,243,19],[244,12,244,13],[248,12,248,13],[248,14,248,15],[248,16,248,17],[248,18,248,19],[250,14,250,15],[250,16,250,17],[250,18,250,19],[251,1,251,11],[251,12,251,13],[251,14,251,15],[251,16,251,17],[251,18,251,19],[252,14,252,15],[252,16,252,17],[252,18,252,19],[258,12,258,13],[258,14,258,15],[258,16,258,17],[258,18,258,19],[262,12,262,13],[262,14,262,15],[262,16,262,17],[262,18,262,19],[263,14,263,15],[263,16,263,17],[266,12,266,13],[266,14,266,15],[266,16,266,17],[266,18,266,19],[267,14,267,15],[267,16,267,17],[310,0,312,0],[311,18,311,19],[313,0,313,1],[313,2,314,17],[313,18,313,19],[314,0,314,1],[314,18,314,19],[315,2,317,11],[315,16,317,17],[316,12,316,13],[316,14,316,15],[316,18,316,19],[319,18,319,19],[320,18,320,19],[322,18,322,19],[323,12,323,13],[323,18,323,19],[325,12,325,13],[325,18,325,19],[327,12,327,13],[327,18,327,19],[329,12,329,13],[329,18,329,19],[389,0,391,0],[390,18,390,19]]}
["CONTRACT NUMBER: ",null,{"$f":"'Bill 1-P&G'!C1","v":"CONSTRUCTION OF A NEW LAPA AND THE REFURBISHMENT OF GATE HOUSE AND ABLUTIONS, EXTERNAL AREAS AND THE INSPECTION AND WORKS TO EXISTING AND NEW SERVICES AT THE MOKOPANE BIODIVERSITY CONSERVATION CENTRE "},{"$nulls":15},"Bill"]
[{"$f":"'Bill 1-P&G'!A2","v":"G540/2024"},{"$nulls":17},2]
["Item","DESCRIPTION",{"$nulls":14},"RATE"]
["No.",{"$nulls":11},"UNIT",null,"QUANTITY",{"$nulls":3},"AMOUNT"]
[]
[]
[null,"BILL NO. 2"]
[]
[null,"ALTERATION & REMOVAL WORKS"]
[]
[null,"SUPPLEMENTARY PREAMBLES"]
[]
[null,"REMOVAL OF EXISTING WORK"]
[]
[null,"SPECIAL PREAMBLES"]
[]
[null,"REMOVE"]
[]
[null,"The term \"remove\" shall mean breaking out as required to remove"]
[null,"the item described, disposal of all rubble and old materials, and"]
[null,"making good all work disturbed to match existing.  "]
[]
[null,"Remove walls or partitions shall mean breaking down complete "]
[null,"to structure of  walls, etc. and trimming up edges and disposal "]
[null,"of rubble and all old materials from site (old materials as "]
[null,"elsewhere described).  "]
[]
[null,"Prices  shall include for protecting adjacent surfaces against "]
[null,"damage and .repairing such damage should it occur."]
[]
[null,"OLD MATERIAL BECOMES THE PROPERTY OF THE"]
[null,"CONTRACTOR"]
[]
[null,"Old material from the alterations except where described for re-use "]
[null,"or handing over, will become the property of the Contractor for "]
[null,"which Credit must be allowed."]
[]
[null,"OLD MATERIAL MUST BE CARTED AWAY"]
[]
[null,"Old material from the alterations except where described for re-use "]
[null,"or handing over, as well as all debris must regularly be carted away "]
[null,"from site and not be accumulated on site."]
[]
[null,"OLD MATERIAL MAY NOT BE RE-USED"]
[]
[null,"No old material may be re-used for new work except where it is "]
[null,"specifically described as set aside for re-use."]
[]
[null,"DISPOSAL OF DEBRIS, ETC"]
[]
[null,"The Contractor shall be responsible for the removal from the site of "]
[null,"all materials, debris and rubbish resulting from the ."]
[null,"alterations/demolitions"]
[]
[null,"GENERAL"]
[]
[null,"Damage To Persons And Property"]
[]
[null,"All demolitions, pulling down, alterations etc., are to be carried out "]
[null,"carefully and in the safest possible manner.  The Contractor is to ."]
[null,"ascertain that all alterations are structurally practicable and safe"]
[null," and he will be held solely responsible for any damage to property "]
[null,"or work adjoining the pulling down and must make good at his own"]
[null,"expense"]
[]
[null,"Programming Of The Works"]
[]
[null,"The programming of demolitions and alterations will have to be "]
[null,"co-ordinated with the Principal Agent."]
[]
[]
[]
[]
["BILL No. 2"]
[null,"Bill No. 2 ALTERATION & REMOVAL WORKS carried to collection"]
[]
["CONTRACT NUMBER: ",null,{"$f":"C1","v":"CONSTRUCTION OF A NEW LAPA AND THE REFURBISHMENT OF GATE HOUSE AND ABLUTIONS, EXTERNAL AREAS AND THE INSPECTION AND WORKS TO EXISTING AND NEW SERVICES AT THE MOKOPANE BIODIVERSITY CONSERVATION CENTRE "},{"$nulls":15},"Bill"]
[{"$f":"A2","v":"G540/2024"},{"$nulls":17},{"$f":"S2","v":2}]
["ITEM","PAYMENT","DESCRIPTION",{"$nulls":13},"RATE"]
["NO","REFERS",{"$nulls":10},"UNIT",null,"QUANTITY",{"$nulls":3},"AMOUNT"]
[null,"TO"]
[]
[null,"Care Of Utility Services"]
[]
[null,"Special care is to be exercised not to interfere with any drains, "]
[null,"electrical supply, data, or telephone cables and fittings to same.  "]
[null,"Notice is to be given to the Principal Agent when any d"]
[null,"isconnections, removal of wires etc. are necessary and the "]
[null,"Contractor is to afford every facility to the workmen carrying out this "]
[null,"work.  Permission must be obtained from the Principal Agent "]
[null,"before any services are cut off at any time."]
[]
[null,"Temporary Shoring Etc."]
[]
[null,"Prices are to include for providing, fixing and maintaining in position"]
[null,"generally as required all temporary shoring, needling, strutting etc.,"]
[null,"necessary for the proper execution of the alterations in this "]
[null,"Contract and for removing same."]
[]
[null,"Supervision"]
[]
[null,"The demolition work is to be executed in a workmanlike, practical ."]
[null,"and safe manner under the continual supervision of a competent "]
[null,"foremen."]
[]
[null,"Protection of existing structures/features etc."]
[]
[null,"The contractor's rates is to allow for provision for protecting all "]
[null,"existing structures, walls, trees etc. within the vicinity of works "]
[null,"during construction."]
[]
[null,"Reinstatement of existing areas"]
[]
[null,"The contractor to note as per architects specifications that areas "]
[null,"worked on and around are to be reinstated to its original condition "]
[null,"and state where specified."]
[]
[null,"Treatment of cut surfaces"]
[]
[null,"The contractor's rates is to allow for treating all cut surfaces of "]
[null,"timber/wooden components with approved enseal."]
[]
[null,"REMOVAL OF EXISTING WORK"]
[]
[null,"Prices for removal must include for cutting and breaking down into "]
[null,"manageable sizes bearing in mind the restrictions which apply to "]
[null,"means of disposal."]
[]
[null,"Contractors, where possible, must provide a credit to the "]
[null,"Employer for all items that may have any salvage value."]
[]
[null,"Tenderers are advised to study the Model Preambles for"]
[null,"Trades before pricing this bill."]
[]
[null,"TEMPORARY BARRIERS, SCREENS, ETC"]
[]
[null,"Temporary barriers, screens, hoarding, etc. including "]
[null,"removal and making good upon completion"]
[]
[1,"Fencing 1.8m high to Principal Agents Approval including netting ",{"$nulls":10},"m",null,200]
[null,"fixed to fence, corners, stays etc."]
[]
[2,"Extra over fencing for single pedestrian gate 900mm x 1800mm",{"$nulls":10},"No",null,1]
[null," high including frame, hinges, lockset and handles to temporary"]
[null," fencing"]
[]
[null,"CONCRETE"]
[]
[null,"Breaking through existing in-situ slab for new apron"]
[]
[3,"Break out and remove reinforced concrete",{"$nulls":10},"m³",null,85]
[]
[]
[]
[]
["BILL No. 2"]
[null,{"$f":"B75","v":"Bill No. 2 ALTERATION & REMOVAL WORKS carried to collection"}]
[]
["CONTRACT NUMBER: ",null,{"$f":"C77","v":"CONSTRUCTION OF A NEW LAPA AND THE REFURBISHMENT OF GATE HOUSE AND ABLUTIONS, EXTERNAL AREAS AND THE INSPECTION AND WORKS TO EXISTING AND NEW SERVICES AT THE MOKOPANE BIODIVERSITY CONSERVATION CENTRE "},{"$nulls":15},"Bill"]
[{"$f":"A78","v":"G540/2024"},{"$nulls":17},{"$f":"S78","v":2}]
["ITEM","PAYMENT","DESCRIPTION",{"$nulls":13},"RATE"]
["NO","REFERS",{"$nulls":10},"UNIT",null,"QUANTITY",{"$nulls":3},"AMOUNT"]
[null,"TO"]
[]
[null,"CLEANING EXISTING WALLS"]
[]
[null,"Cleaning down existing face brick and stone surfaces "]
[null,"Thoroughly clean down existing surfaces by means of high "]
[null,"pressure water jet (minimum 250 bar) and chemicals, remove "]
[null,"all flaking substances, fungal marks, grease and all other "]
[null,"contaminants, etc, as described in the specification"]
[]
[4,"Vertical and horizontal face brickwork and stone cladding",{"$nulls":10},"m²",null,414]
[]
[null,"ROOF COVERING/STRUCTURE"]
[]
[null,"Examing of existing roof and making good"]
[]
[5,"Examining roofs check for roof leaks, check and fix loose timber ",{"$nulls":10},"m²",null,177]
[null,"trusses, supports, rafters including ridge cappings and securing"]
[null,"loose nails, replacing missing or defective screws and/or nails with "]
[null,"120mm galvanised steel drive screws, making good holes with "]
[null,"approved sealant or waterproofing as specified by the architect to "]
[null,"render watertight and leave in good order"]
[]
[null,"Carefully taking down and removing roofs"]
[]
[6,"Roofs including thatch and purlin laths while securing existing",{"$nulls":10},"m²",null,177]
[null,"trusses in place"]
[]
[7,"Treat existing trusses measured net with two coats Powafix or ",{"$nulls":10},"m²",null,177]
[null,"similar and approved creosote protective coating"]
[]
[null,"Carefully taking down and removing fascias, bargeboards, etc."]
[]
[8,"Fascias and bargeboards.",{"$nulls":10},"m",null,89]
[]
[null,"CEILINGS, PARTITIONS & ACCESS FLOORING"]
[]
[null,"Carefully take down/out and remove ceilings  including"]
[null,"brandering, hangers, etc."]
[]
[9,"Ceilings",{"$nulls":10},"m²",null,169]
[]
[10,"Cornice",{"$nulls":10},"m",null,89]
[]
[null,"METALWORK"]
[]
[null,"Carefully taking down and removing"]
[]
[11,"Metal fencing including posts etc.",{"$nulls":10},"m²",null,130]
[]
[null,"PLUMBING & DRAINAGE"]
[]
[null,"Carefully taking out and remove sanitary fittings, taps, waste"]
[null,"fittings, etc including making safe, disconnecting piping, "]
[null,"cutting back, sealing exposed water supply pipes and waste "]
[null,"pipes etc. and removing "]
[]
[12,"Gutters and down pipes",{"$nulls":10},"m",null,115]
[]
[null,"PAVING AND KERBING"]
[]
[null,"Taking out and remove external paving"]
[]
[13,"Paving bricks/blocks, including sand bedding",{"$nulls":10},"m²",null,338]
[]
[14,"Concrete kerbing including haunching and bedding",{"$nulls":10},"m",null,450]
[]
[]
[]
[]
["BILL No. 2"]
[null,{"$f":"B157","v":"Bill No. 2 ALTERATION & REMOVAL WORKS carried to collection"}]
[]
["CONTRACT NUMBER: ",null,{"$f":"C159","v":"CONSTRUCTION OF A NEW LAPA AND THE REFURBISHMENT OF GATE HOUSE AND ABLUTIONS, EXTERNAL AREAS AND THE INSPECTION AND WORKS TO EXISTING AND NEW SERVICES AT THE MOKOPANE BIODIVERSITY CONSERVATION CENTRE "},{"$nulls":15},"Bill"]
[{"$f":"A160","v":"G540/2024"},{"$nulls":17},{"$f":"S160","v":2}]
["ITEM","PAYMENT","DESCRIPTION",{"$nulls":13},"RATE"]
["NO","REFERS",{"$nulls":10},"UNIT",null,"QUANTITY",{"$nulls":3},"AMOUNT"]
[null,"TO"]
[]
[null,"BUILDING UP OPENINGS"]
[]
[null,"Sundries",{"$nulls":10},"m",null,4]
[]
[15,"Cutting/grinding through existing walls where cracks have occurred "]
[null,"in preparation for new sealant (sealant measured elsewhere)"]
[]
[16,"Cutting and toothing new brickwork to existing",{"$nulls":10},"m²",null,1]
[]
[null,"BUDGETARY ALLOWANCES"]
[]
[null,"The following Budgetary Allowances are for work to be"]
[null,"executed by the Sub-Contractor or specialist suppliers and"]
[null,"priced at Bill rates or rates to be agreed and to be used as"]
[null,"directed by the Principal Agent and to be deducted in whole"]
[null,"or in part if not required"]
[]
[17,"Provide the sum of R50 000.00 (Fifty Thousand) for breaking ",{"$nulls":10},"Item",{"$nulls":5},{"v":50000,"d":"R50,000.00"}]
[null,"down/demolishing and removing existing structures from parking "]
[null,"lot as directed by architect"]
[]
[18,"Provide the sum of R50 000.00 (Fifty Thousand) for additional ",{"$nulls":10},"Item",{"$nulls":5},{"v":50000,"d":"R50,000.00"}]
[null,"general work sill to be designed and will/may be carried out by"]
[null,"the contractor"]
{"$rows_empty":45}
[{"$f":"A233","v":"BILL No. 2"}]
[null,{"$f":"B234","v":"Bill No. 2 ALTERATION & REMOVAL WORKS carried to collection"}]
[]
["CONTRACT NUMBER: ",null,{"$f":"C1","v":"CONSTRUCTION OF A NEW LAPA AND THE REFURBISHMENT OF GATE HOUSE AND ABLUTIONS, EXTERNAL AREAS AND THE INSPECTION AND WORKS TO EXISTING AND NEW SERVICES AT THE MOKOPANE BIODIVERSITY CONSERVATION CENTRE "},{"$nulls":15},"Bill"]
[{"$f":"A237","v":"G540/2024"},{"$nulls":17},{"$f":"S2","v":2}]
["ITEM","PAYMENT","DESCRIPTION",{"$nulls":13},"RATE"]
["NO","REFERS",{"$nulls":10},"UNIT",null,"QUANTITY",{"$nulls":3},"AMOUNT"]
[null,"TO"]
[]
[null,{"$f":"B9","v":"ALTERATION & REMOVAL WORKS"}]
[]
[null,"COLLECTION"]
[]
[null,"Total Brought Forward from Page No.",{"$nulls":10},132]
[]
[{"$nulls":12},{"$f":"M324+1","v":133}]
[]
[{"$nulls":12},{"$f":"M326+1","v":134}]
[]
[{"$nulls":12},{"$f":"M328+1","v":135}]
{"$rows_empty":59}
[{"$f":"A74","v":"BILL No. 2"}]
[null,{"$f":"B312","v":"Bill No. 2 ALTERATION & REMOVAL WORKS carried to collection"}]

{"sheet":"Bill 3-Earthworks","index":2,"n_rows":229,"n_cols":19,"rows_kept":229,"merged":[[0,0,0,1],[0,2,1,17],[0,18,0,19],[1,0,1,1],[1,18,1,19],[2,1,4,11],[2,16,4,17],[3,12,3,13],[3,14,3,15],[3,18,3,19],[37,23,37,24],[46,23,46,24],[47,23,47,24],[52,1,52,11],[52,23,52,24],[53,23,53,24],[55,12,55,13],[55,14,55,15],[55,16,55,17],[55,18,55,19],[56,12,56,13],[56,14,56,15],[56,16,56,17],[56,18,56,19],[58,12,58,13],[58,14,58,15],[58,16,58,17],[58,18,58,19],[60,12,60,13],[60,14,60,15],[60,16,60,17],[60,18,60,19],[62,12,62,13],[62,14,62,15],[62,16,62,17],[62,18,62,19],[64,12,64,13],[64,14,64,15],[64,16,64,17],[64,18,64,19],[67,12,67,13],[67,14,67,15],[67,16,67,17],[67,18,67,19],[69,12,69,13],[69,14,69,15],[69,16,69,17],[69,18,69,19],[72,0,74,0],[72,23,72,24],[73,18,73,19],[73,23,73,24],[74,23,74,24],[75,0,75,1],[75,2,76,17],[75,18,75,19],[75,23,75,24],[76,0,76,1],[76,18,76,19],[76,23,76,24],[77,2,79,11],[77,16,79,17],[77,23,77,24],[78,12,78,13],[78,14,78,15],[78,18,78,19],[78,23,78,24],[79,23,79,24],[83,12,83,13],[83,14,83,15],[83,16,83,17],[83,18,83,19],[88,12,88,13],[88,14,88,15],[88,16,88,17],[88,18,88,19],[92,12,92,13],[92,14,92,15],[92,16,92,17],[92,18,92,19],[99,12,99,13],[99,14,99,15],[99,16,99,17],[99,18,99,19],[105,12,105,13],[105,14,105,15],[105,16,105,17],[105,18,105,19],[105,23,105,24],[106,23,106,24],[107,12,107,13],[107,14,107,15],[107,16,107,17],[107,18,107,19],[107,23,107,24],[108,23,108,24],[109,12,109,13],[109,14,109,15],[109,16,109,17],[109,18,109,19],[114,12,114,13],[114,14,114,15],[114,16,114,17],[114,18,114,19],[116,23,116,24],[119,23,119,24],[120,23,120,24],[121,12,121,13],[121,14,121,15],[121,16,121,17],[121,18,121,19],[121,23,121,24],[122,23,122,24],[136,12,136,13],[136,14,136,15],[136,16,136,17],[136,18,136,19],[140,12,140,13],[140,14,140,15],[140,16,140,17],[140,18,140,19],[148,0,150,0],[148,23,148,24],[149,18,149,19],[149,23,149,24],[151,0,151,1],[151,2,152,17],[151,18,151,19],[152,0,152,1],[152,18,152,19],[153,2,155,11],[153,16,155,17],[154,12,154,13],[154,14,154,15],[154,18,154,19],[157,18,157,19],[161,12,161,13],[161,18,161,19],[163,12,163,13],[163,18,163,19],[227,0,229,0],[228,18,228,19]]}
["CONTRACT NUMBER: ",null,{"$f":"'Bill 1-P&G'!C1","v":"CONSTRUCTION OF A NEW LAPA AND THE REFURBISHMENT OF GATE HOUSE AND ABLUTIONS, EXTERNAL AREAS AND THE INSPECTION AND WORKS TO EXISTING AND NEW SERVICES AT THE MOKOPANE BIODIVERSITY CONSERVATION CENTRE "},{"$nulls":15},"Bill"]
[{"$f":"'Bill 1-P&G'!A2","v":"G540/2024"},{"$nulls":17},3]
["Item","DESCRIPTION",{"$nulls":14},"RATE"]
["No.",{"$nulls":11},"UNIT",null,"QUANTITY",{"$nulls":3},"AMOUNT"]
[]
[]
[null,"BILL NO. 3"]
[]
[null,"EARTHWORKS"]
[]
[null,"SUPPLEMENTARY PREAMBLES"]
[]
[null,"Nature of material to be excavated"]
[]
[null,"A geotechnical investigation has been carried out on site  and "]
[null,"the  report is available from the Engineers. The site is located on "]
[null,"transported sandy and gravelly soils that are underlain by "]
[null,"quartzite  bedrock.  Descriptions of excavations shall be deemed "]
[null,"to include all ground conditions classifiable as \"earth\" described "]
[null,"in the above  report and where conditions of a more difficult "]
[null,"character are indicated these are separately measured."]
[]
[null,"Carting away of excavated material"]
[]
[null,"Descriptions of carting away of excavated material shall be "]
[null,"deemed to include loading excavated material onto trucks "]
[null,"directly from the excavations or, alternatively, from stock piles "]
[null,"situated on the  building site and disposing of same from site."]
[]
[null,"Subterranean water"]
[]
[null,"No information regarding subterranean water is available. The "]
[null,"tenderer must acquaint himself of the presence and depth of "]
[null,"subterranean water and allow therefor in his prices."]
[]
[null,"Filling and layer work materials"]
[]
[null,"References such as \"G1\", \"G2\", etc and \"C1\", \"C2\", etc in"]
[null,"descriptions of filling and layer work materials refer to"]
[null,"corresponding references in the document \"Guidelines for Road "]
[null,"Construction Materials.  TRH 14 : 1985\" compiled by the "]
[null,"Committee of State Road Authorities and the properties set out "]
[null,"therein for each kind shall be applicable to the respective "]
[null,"materials  described hereinafter"]
[]
[null,"Testing"]
[]
[null,"Descriptions & prices for earth filling, compaction, etc. are "]
[null,"deemed to include for all necessary density and other testing "]
[null,"required in  accordance with the SABS 1200 series and "]
[null,"Engineer's specifications"]
[]
[null,"EXCAVATION, FILLING, ETC. OTHER THAN BULK"]
[]
[null,"Excavation in earth not exceeding 2m deep"]
[]
[1,"Holes",{"$nulls":10},"m3",null,16]
[]
[2,"Trenches",{"$nulls":10},"m3",null,2]
[]
[3,"Trenches",{"$nulls":10},"m3",null,11]
[]
[4,"Reduced levels",{"$nulls":10},"m3",null,18]
[]
[null,"Extra over trench and hole excavations in earth for "]
[null,"excavation in"]
[]
[5,"Soft rock",{"$nulls":10},"m3",null,5]
[]
[6,"Hard rock",{"$nulls":10},"m3",null,10]
[]
[]
["BILL No. 3"]
[null,"Bill No. 3 EARTHWORKS carried to collection"]
[]
["CONTRACT NUMBER: ",null,{"$f":"C1","v":"CONSTRUCTION OF A NEW LAPA AND THE REFURBISHMENT OF GATE HOUSE AND ABLUTIONS, EXTERNAL AREAS AND THE INSPECTION AND WORKS TO EXISTING AND NEW SERVICES AT THE MOKOPANE BIODIVERSITY CONSERVATION CENTRE "},{"$nulls":15},"Bill"]
[{"$f":"A2","v":"G540/2024"},{"$nulls":17},{"$f":"S2","v":3}]
["ITEM","PAYMENT","DESCRIPTION",{"$nulls":13},"RATE"]
["NO","REFERS",{"$nulls":10},"UNIT",null,"QUANTITY",{"$nulls":3},"AMOUNT"]
[null,"TO"]
[]
[null,"Extra over all excavations for carting away"]
[]
[7,"Surplus material from excavations and/or stock piles on site to a ",{"$nulls":10},"m3",null,150]
[null,"dumping site to be located by the contractor"]
[]
[null,"Risk of collapse of excavations"]
[]
[8,"Sides of trench and hole excavations not exceeding 1,5m deep",{"$nulls":10},"m2",null,10]
[]
[null,"Keeping excavations free of water"]
[]
[9,"Keeping excavations free of all water other than subterranean ",{"$nulls":10},"Item",null,1]
[null,"water"]
[]
[null,"Selected earth filling obtained from the excavations "]
[null,"and/or  prescribed stock piles on site (compacted to"]
[null,"98%  MDD"]
[]
[10,"Backfilling to trenches, holes, etc.",{"$nulls":10},"m3",null,50]
[]
[null,"Earth filling supplied by the contractor of G5 quality"]
[null,"material in layers of 150mm thick compacted to "]
[null,"95% MDD "]
[]
[11,"Under floors, pavings, etc.",{"$nulls":10},"m3",null,23]
[]
[null,"Compaction of Surfaces"]
[]
[12,"Compaction of ground surface under floors etc. including",{"$nulls":10},"m2",null,337]
[null,"scarifying  for a depth of 150mm, breaking down oversize "]
[null,"material, adding suitable material where necessary and "]
[null,"compacting to 93%  MDD"]
[]
[13,"Compaction of ground surface in trenches, holes etc. including ",{"$nulls":10},"m2",null,53]
[null,"scarifying for a depth of 150mm, breaking down oversize "]
[null,"material, adding suitable material where necessary and "]
[null,"compacting to  93% MDD"]
[]
[null,"Prescribed density tests on filling"]
[]
[14,"Modified MDD test",{"$nulls":10},"No",null,3]
[]
[null,"SOIL POISONING"]
[]
[null,"Weedkiller (active ingredients metalaclor 102,8 g/l, "]
[null,"terbitilasien 248,6 g/l and atrasien 248,6 g/l) mixed in the "]
[null,"proportion of 100 ml weedkiller to 100 l water and applied "]
[null,"at a rate of 10 l/m×½"]
[]
[null,"Soil insecticide in accordance with SANS 5859"]
[]
[null,"Approved brand of anti-termite soil poison & weedkiller is "]
[null,"to be applied by a Registered Company and guaranteed "]
[null,"for  ten years"]
[]
[15,"Under floors, paving, etc. including forming and poisoning ",{"$nulls":10},"m2",null,180]
[null,"shallow  furrows against foundation walls etc., filling in furrows "]
[null,"and ramming"]
[]
[16,"To bottoms and sides of trenches, holes, raft foundations etc.",{"$nulls":10},"m2",null,377]
{"$rows_empty":7}
[{"$f":"A73","v":"BILL No. 3"}]
[null,"Bill No. 3 EARTHWORKS carried to Summary"]
[]
["CONTRACT NUMBER: ",null,{"$f":"C1","v":"CONSTRUCTION OF A NEW LAPA AND THE REFURBISHMENT OF GATE HOUSE AND ABLUTIONS, EXTERNAL AREAS AND THE INSPECTION AND WORKS TO EXISTING AND NEW SERVICES AT THE MOKOPANE BIODIVERSITY CONSERVATION CENTRE "},{"$nulls":15},"Bill"]
[{"$f":"A2","v":"G540/2024"},{"$nulls":17},{"$f":"S2","v":3}]
["ITEM","PAYMENT","DESCRIPTION",{"$nulls":13},"RATE"]
["NO","REFERS",{"$nulls":10},"UNIT",null,"QUANTITY",{"$nulls":3},"AMOUNT"]
[null,"TO"]
[]
[null,{"$f":"B9","v":"EARTHWORKS"}]
[]
[null,"COLLECTION"]
[]
[null,"Total Brought Forward from Page No.",{"$nulls":10},137]
[]
[{"$nulls":12},{"$f":"M162+1","v":138}]
{"$rows_empty":63}
[{"$f":"A149","v":"BILL No. 3"}]
[null,"Bill No. 3 EARTHWORKS carried to Summary"]

{"sheet":"Bill 4-Concrete","index":3,"n_rows":306,"n_cols":19,"rows_kept":306,"merged":[[0,0,0,1],[0,2,1,17],[0,18,0,19],[1,0,1,1],[1,18,1,19],[2,1,4,11],[2,16,4,17],[3,12,3,13],[3,14,3,15],[3,18,3,19],[72,0,74,0],[72,23,72,24],[73,18,73,19],[73,23,73,24],[74,23,74,24],[75,0,75,1],[75,2,76,17],[75,18,75,19],[75,23,75,24],[76,0,76,1],[76,18,76,19],[76,23,76,24],[77,2,79,11],[77,16,79,17],[77,23,77,24],[78,12,78,13],[78,14,78,15],[78,18,78,19],[78,23,78,24],[79,23,79,24],[85,12,85,13],[85,14,85,15],[85,16,85,17],[85,18,85,19],[89,12,89,13],[89,14,89,15],[89,16,89,17],[89,18,89,19],[96,12,96,13],[96,14,96,15],[96,16,96,17],[96,18,96,19],[97,12,97,13],[98,12,98,13],[98,14,98,15],[98,16,98,17],[98,18,98,19],[99,12,99,13],[100,12,100,13],[100,14,100,15],[100,16,100,17],[100,18,100,19],[101,12,101,13],[102,12,102,13],[102,14,102,15],[102,16,102,17],[102,18,102,19],[103,12,103,13],[104,12,104,13],[104,14,104,15],[104,16,104,17],[104,18,104,19],[108,12,108,13],[108,14,108,15],[108,16,108,17],[108,18,108,19],[111,12,111,13],[111,14,111,15],[111,16,111,17],[111,18,111,19],[112,12,112,13],[113,12,113,13],[113,14,113,15],[113,16,113,17],[113,18,113,19],[114,12,114,13],[115,12,115,13],[117,12,117,13],[117,14,117,15],[117,16,117,17],[117,18,117,19],[119,23,119,24],[120,23,120,24],[121,12,121,13],[121,14,121,15],[121,16,121,17],[121,18,121,19],[121,23,121,24],[125,23,125,24],[126,23,126,24],[127,23,127,24],[128,12,128,13],[128,14,128,15],[128,16,128,17],[128,18,128,19],[128,23,128,24],[132,12,132,13],[132,14,132,15],[132,16,132,17],[132,18,132,19],[133,23,133,24],[134,23,134,24],[135,23,135,24],[139,12,139,13],[139,14,139,15],[139,16,139,17],[139,18,139,19],[139,23,139,24],[142,12,142,13],[142,14,142,15],[142,16,142,17],[142,18,142,19],[142,23,142,24],[143,23,143,24],[149,12,149,13],[149,14,149,15],[149,16,149,17],[149,18,149,19],[149,23,149,24],[151,0,153,0],[151,23,151,24],[152,18,152,19],[152,23,152,24],[153,23,153,24],[154,0,154,1],[154,2,155,17],[154,18,154,19],[155,0,155,1],[155,18,155,19],[156,2,158,11],[156,16,158,17],[157,12,157,13],[157,14,157,15],[157,18,157,19],[160,12,160,13],[160,14,160,15],[160,16,160,17],[160,18,160,19],[164,12,164,13],[164,14,164,15],[164,16,164,17],[164,18,164,19],[170,12,170,13],[170,14,170,15],[170,16,170,17],[170,18,170,19],[174,12,174,13],[174,14,174,15],[174,16,174,17],[174,18,174,19],[178,12,178,13],[178,14,178,15],[230,0,232,0],[231,18,231,19],[233,0,233,1],[233,2,234,17],[233,18,233,19],[234,0,234,1],[234,18,234,19],[235,2,237,11],[235,16,237,17],[236,12,236,13],[236,14,236,15],[236,18,236,19],[243,12,243,13],[243,18,243,19],[245,12,245,13],[245,18,245,19],[247,12,247,13],[247,18,247,19],[304,0,306,0],[305,18,305,19]]}
["CONTRACT NUMBER: ",null,{"$f":"'Bill 1-P&G'!C1","v":"CONSTRUCTION OF A NEW LAPA AND THE REFURBISHMENT OF GATE HOUSE AND ABLUTIONS, EXTERNAL AREAS AND THE INSPECTION AND WORKS TO EXISTING AND NEW SERVICES AT THE MOKOPANE BIODIVERSITY CONSERVATION CENTRE "},{"$nulls":15},"Bill"]
[{"$f":"'Bill 1-P&G'!A2","v":"G540/2024"},{"$nulls":17},4]
["Item","DESCRIPTION",{"$nulls":14},"RATE"]
["No.",{"$nulls":11},"UNIT",null,"QUANTITY",{"$nulls":3},"AMOUNT"]
[]
[]
[null,"BILL NO. 4"]
[]
[null,"CONCRETE, FORMWORK AND REINFORCEMENT"]
[]
[null,"SUPPLEMENTARY PREAMBLES"]
[]
[null,"General"]
[]
[null,"All concrete, formwork and reinforcement to be done according to"]
[null,"SABS 1200G."]
[]
[null,"Components cast against excavated surfaces have not been "]
[null,"measured or described separately and the Contractor is to ensure "]
[null,"adequate allowance for casting against excavated surfaces are "]
[null,"made within the relevant items."]
[]
[null,"Cost of Tests"]
[]
[null,"The costs of making, storing and testing of concrete test cubes"]
[null,"as required under clause 7 \"Tests\" of SABS 1200 G shall include "]
[null,"the cost of providing cube moulds necessary for the purpose, for "]
[null,"testing costs and for submitting reports on the tests to the "]
[null,"Representative/Agent.  The testing shall be undertaken by an"]
[null," independent firm or institution nominated by the contractor to the "]
[null,"approval of the Representative/Agent.  (Test cubes are measured "]
[null,"separately)"]
[]
[null,"Formwork"]
[]
[null,"All smooth formwork to be in accordance with SABS 1200G - "]
[null,"5.2.1b.  Tolerance to concrete surfaces to have a degree of "]
[null,"Accuracy II in accordance with SABS 1200 G - 6.1.1b."]
[]
[null,"Descriptions of formwork shall be deemed to include use and waste "]
[null,"only (except where described as \"left in\" or \"permanent\"), for fitting"]
[null," together in the required forms, wedging, plumbing and fixing to true "]
[null,"angles and surfaces as necessary to ensure easy release during "]
[null,"stripping and for re-conditioning as necessary before re-use."]
[]
[null,"The vertical strutting shall be carried down to such construction "]
[null,"as is sufficiently strong to afford the required support without "]
[null,"damage and shall remain in position until the newly constructed "]
[null,"work is able to support itself."]
[]
[null,"Formwork to soffits of solid slabs, etc. shall be deemed to be to"]
[null,"slabs not exceeding 250mm thick unless otherwise described."]
[]
[null,"Formwork to sides of bases, ground beams, etc will only be "]
[null,"measured where it is prescribed by the Representative/Agent, for "]
[null,"design reasons.  Formwork necessitated by irregularity or collapse "]
[null,"of excavated faces will not be measured and the cost thereof shall "]
[null,"be deemed to be included in the allowance for taking the risk of "]
[null,"collapse of the sides of the excavations, provision for which is "]
[null,"made in \"Earthworks\"."]
[]
[null,"A 13mm x 13mm chamfer shall be provided on all visible corners for "]
[null,"off-shutter concrete in collaboration with the Principal Agent. "]
[null,"Chamfers may only be formed with rigid type material."]
[]
[null,"Where required by the Principal Agent or his representative,"]
[null,"vibration of concrete shall be included in the rates."]
[]
[]
[]
[]
[]
["BILL No. 4"]
[null,"Bill No. 4 CONCRETE, FORMWORK AND REINFORCEMENT carried to collection"]
[]
["CONTRACT NUMBER: ",null,{"$f":"C1","v":"CONSTRUCTION OF A NEW LAPA AND THE REFURBISHMENT OF GATE HOUSE AND ABLUTIONS, EXTERNAL AREAS AND THE INSPECTION AND WORKS TO EXISTING AND NEW SERVICES AT THE MOKOPANE BIODIVERSITY CONSERVATION CENTRE "},{"$nulls":15},"Bill"]
[{"$f":"A2","v":"G540/2024"},{"$nulls":17},{"$f":"S2","v":4}]
["ITEM","PAYMENT","DESCRIPTION",{"$nulls":13},"RATE"]
["NO","REFERS",{"$nulls":10},"UNIT",null,"QUANTITY",{"$nulls":3},"AMOUNT"]
[null,"TO"]
[]
[null,"CONCRETE CAST AGAINST EXCAVATED SURFACES"]
[]
[null,"15MPa/20mm Concrete"]
[]
[1,"Surface blinding under footings and bases",{"$nulls":10},"m3",null,5]
[]
[null,"Concrete 30 MPa/19mm"]
[]
[2,"Aprons",{"$nulls":10},"m3",null,18]
[]
[null,"REINFORCED CONCRETE CAST AGAINST EXCAVATED"]
[null,"SURFACES"]
[]
[null,"Concrete 30 MPa/19mm"]
[]
[3,"Raft foundation on waterproofing",{"$nulls":10},"m3",null,40]
[]
[4,"Bases",{"$nulls":10},"m3",null,20]
[]
[5,"Strip footings",{"$nulls":10},"m3",null,2]
[]
[6,"Stub columns",{"$nulls":10},"m3",null,2]
[]
[7,"Ramps",{"$nulls":10},"m3",null,1]
[]
[null,"Concrete test cubes"]
[]
[8,"Making and testing , set of three 150 x 150 x 150mm concrete ",{"$nulls":10},"No",null,2]
[null,"strength test cubes"]
[]
[9,"Surface bed slabs",{"$nulls":10},"m2",null,342]
[]
[10,"Ramps",{"$nulls":10},"m2",null,5]
[]
[null,"Wire brushing of concrete aprons to expose aggregate"]
[]
[11,"Wiring brushing to aprons",{"$nulls":10},"m2",null,180]
[]
[null,"25MPa non shrink grout"]
[]
[12,"Bedding approximately 10mm thick under 400 x 270mm base plate",{"$nulls":10},"No",null,16]
[null,"including chamfered edges all round"]
[]
[null,"ROUGH FORMWORK (DEGREE OF ACCURACY II)"]
[]
[null,"Rough formwork to sides"]
[]
[13,"Edges, risers, ends, reveals,etc. not exceeding 300mm high or wide",{"$nulls":10},"m",null,217]
[]
[null,"Rough formwork to sides"]
[]
[14,"Sides of stub columns",{"$nulls":10},"m2",null,12]
[]
[null,"MOVEMENT JOINTS ETC."]
[]
[null,"10mm Expansion joints formed of bitumen impregnated "]
[null,"soft board"]
[]
[15,"Between vertical concrete and brick surfaces not exceeding 300 mm ",{"$nulls":10},"m",null,65]
[null,"high or wide"]
[]
[16,"Ditto but in walls vertically where cracks have occured",{"$nulls":10},"m",null,4]
[]
[null,"Isolation joint between concrete and brick surfaces with 10mm "]
[null,"lightweight, cross-linked, closed cell, expanded Polyethylene "]
[null,"joint former with hinged temporary blocking piece including "]
[null,"sealing with approved sealer"]
[]
[17,"Joints not exceeding 300mmm wide",{"$nulls":10},"m",null,16]
[]
[{"$f":"A73","v":"BILL No. 4"}]
[null,{"$f":"B74","v":"Bill No. 4 CONCRETE, FORMWORK AND REINFORCEMENT carried to collection"}]
[]
["CONTRACT NUMBER: ",null,{"$f":"C76","v":"CONSTRUCTION OF A NEW LAPA AND THE REFURBISHMENT OF GATE HOUSE AND ABLUTIONS, EXTERNAL AREAS AND THE INSPECTION AND WORKS TO EXISTING AND NEW SERVICES AT THE MOKOPANE BIODIVERSITY CONSERVATION CENTRE "},{"$nulls":15},"Bill"]
[{"$f":"A77","v":"G540/2024"},{"$nulls":17},{"$f":"S77","v":4}]
["ITEM","PAYMENT","DESCRIPTION",{"$nulls":13},"RATE"]
["NO","REFERS",{"$nulls":10},"UNIT",null,"QUANTITY",{"$nulls":3},"AMOUNT"]
[null,"TO"]
[]
[18,"Ditto but placed vertically and sealed both sides",{"$nulls":10},"m",null,180]
[]
[19,"Saw cut joints"]
[]
[20,"45mm Deep x 3mm wide saw cut joints in top of concrete",{"$nulls":10},"m",null,52]
[]
[null,"REINFORCEMENT"]
[]
[null,"Provision for high tensile steel reinforcement"]
[]
[22,"Varying diameters in bases and structural concrete work",{"$nulls":10},"t",null,4]
[]
[null,"Mesh reinforcement"]
[]
[23,"Mesh reinforcement 395 laid in slabs with 300mm wide side and ",{"$nulls":10},"m2",null,340]
[null,"end laps (measured net)"]
{"$rows_empty":54}
[{"$f":"A152","v":"BILL No. 4"}]
[null,"Bill No. 4 CONCRETE, FORMWORK AND REINFORCEMENT to Summary"]
[]
["CONTRACT NUMBER: ",null,{"$f":"C1","v":"CONSTRUCTION OF A NEW LAPA AND THE REFURBISHMENT OF GATE HOUSE AND ABLUTIONS, EXTERNAL AREAS AND THE INSPECTION AND WORKS TO EXISTING AND NEW SERVICES AT THE MOKOPANE BIODIVERSITY CONSERVATION CENTRE "},{"$nulls":15},"Bill"]
[{"$f":"A2","v":"G540/2024"},{"$nulls":17},{"$f":"S2","v":4}]
["ITEM","PAYMENT","DESCRIPTION",{"$nulls":13},"RATE"]
["NO","REFERS",{"$nulls":10},"UNIT",null,"QUANTITY",{"$nulls":3},"AMOUNT"]
[null,"TO"]
[]
[null,{"$f":"B9","v":"CONCRETE, FORMWORK AND REINFORCEMENT"}]
[]
[null,"COLLECTION"]
[]
[null,"Total Brought Forward from Page No.",{"$nulls":10},140]
[]
[{"$nulls":12},{"$f":"M244+1","v":141}]
[]
[{"$nulls":12},{"$f":"M246+1","v":142}]
{"$rows_empty":56}
[{"$f":"A231","v":"BILL No. 4"}]
[null,"Bill No. 4 CONCRETE, FORMWORK AND REINFORCEMENT carried to Summary"]

{"sheet":"Bill 5-Masonry","index":4,"n_rows":227,"n_cols":19,"rows_kept":227,"merged":[[0,0,0,1],[0,2,1,17],[0,18,0,19],[1,0,1,1],[1,18,1,19],[2,1,4,11],[2,16,4,17],[3,12,3,13],[3,14,3,15],[3,18,3,19],[74,0,76,0],[74,23,74,24],[75,18,75,19],[75,23,75,24],[76,23,76,24],[77,0,77,1],[77,2,78,17],[77,18,77,19],[77,23,77,24],[78,0,78,1],[78,18,78,19],[78,23,78,24],[79,2,81,11],[79,16,81,17],[79,23,79,24],[80,12,80,13],[80,14,80,15],[80,18,80,19],[80,23,80,24],[81,23,81,24],[90,12,90,13],[90,14,90,15],[90,16,90,17],[90,18,90,19],[97,12,97,13],[97,14,97,15],[97,16,97,17],[97,18,97,19],[100,12,100,13],[100,14,100,15],[100,16,100,17],[100,18,100,19],[104,12,104,13],[104,14,104,15],[104,16,104,17],[104,18,104,19],[105,23,105,24],[106,12,106,13],[106,14,106,15],[106,16,106,17],[106,18,106,19],[108,23,108,24],[109,12,109,13],[109,14,109,15],[109,16,109,17],[109,18,109,19],[109,23,109,24],[110,12,110,13],[110,14,110,15],[110,16,110,17],[110,18,110,19],[110,23,110,24],[111,12,111,13],[111,14,111,15],[111,16,111,17],[111,18,111,19],[113,23,113,24],[114,23,114,24],[115,23,115,24],[116,23,116,24],[117,12,117,13],[117,14,117,15],[117,16,117,17],[117,18,117,19],[117,23,117,24],[119,23,119,24],[125,12,125,13],[125,14,125,15],[125,16,125,17],[125,18,125,19],[125,23,125,24],[127,12,127,13],[127,14,127,15],[127,16,127,17],[127,18,127,19],[127,23,127,24],[131,12,131,13],[131,14,131,15],[131,16,131,17],[131,18,131,19],[134,23,134,24],[136,23,136,24],[137,23,137,24],[138,23,138,24],[139,23,139,24],[140,23,140,24],[145,12,145,13],[145,14,145,15],[145,16,145,17],[145,18,145,19],[152,0,154,0],[152,23,152,24],[153,18,153,19],[153,23,153,24],[154,23,154,24],[155,0,155,1],[155,2,156,17],[155,18,155,19],[156,0,156,1],[156,18,156,19],[157,2,159,11],[157,16,159,17],[158,12,158,13],[158,14,158,15],[158,18,158,19],[161,12,161,13],[161,18,161,19],[162,12,162,13],[162,18,162,19],[164,12,164,13],[164,18,164,19],[165,12,165,13],[165,18,165,19],[167,12,167,13],[167,18,167,19],[169,12,169,13],[169,18,169,19],[173,12,173,13],[173,18,173,19],[174,12,174,13],[174,18,174,19],[175,12,175,13],[175,18,175,19],[176,12,176,13],[176,14,176,15],[176,16,176,17],[176,18,176,19],[177,12,177,13],[177,18,177,19],[178,12,178,13],[178,18,178,19],[179,12,179,13],[179,18,179,19],[180,12,180,13],[180,14,180,15],[180,16,180,17],[180,18,180,19],[181,12,181,13],[181,18,181,19],[182,12,182,13],[182,18,182,19],[183,12,183,13],[183,18,183,19],[184,12,184,13],[184,18,184,19],[185,12,185,13],[185,18,185,19],[186,12,186,13],[186,18,186,19],[187,12,187,13],[187,18,187,19],[188,12,188,13],[188,18,188,19],[189,12,189,13],[189,18,189,19],[190,12,190,13],[190,18,190,19],[191,12,191,13],[191,18,191,19],[192,12,192,13],[192,18,192,19],[193,12,193,13],[193,18,193,19],[194,12,194,13],[194,18,194,19],[195,12,195,13],[195,18,195,19],[196,12,196,13],[196,18,196,19],[197,12,197,13],[197,18,197,19],[198,12,198,13],[198,18,198,19],[199,12,199,13],[199,18,199,19],[200,12,200,13],[200,18,200,19],[201,12,201,13],[201,18,201,19],[202,12,202,13],[202,18,202,19],[203,12,203,13],[203,18,203,19],[204,12,204,13],[204,18,204,19],[205,12,205,13],[205,18,205,19],[206,12,206,13],[206,18,206,19],[207,12,207,13],[207,18,207,19],[208,12,208,13],[208,18,208,19],[209,12,209,13],[209,18,209,19],[210,12,210,13],[210,18,210,19],[211,12,211,13],[211,18,211,19],[212,12,212,13],[212,18,212,19],[213,12,213,13],[213,18,213,19],[217,12,217,13],[217,18,217,19],[218,12,218,13],[218,18,218,19],[224,12,224,13],[224,18,224,19],[225,0,227,0],[226,18,226,19]]}
["CONTRACT NUMBER: ",null,{"$f":"'Bill 1-P&G'!C1","v":"CONSTRUCTION OF A NEW LAPA AND THE REFURBISHMENT OF GATE HOUSE AND ABLUTIONS, EXTERNAL AREAS AND THE INSPECTION AND WORKS TO EXISTING AND NEW SERVICES AT THE MOKOPANE BIODIVERSITY CONSERVATION CENTRE "},{"$nulls":15},"Bill"]
[{"$f":"'Bill 1-P&G'!A2","v":"G540/2024"},{"$nulls":17},5]
["Item","DESCRIPTION",{"$nulls":14},"RATE"]
["No.",{"$nulls":11},"UNIT",null,"QUANTITY",{"$nulls":3},"AMOUNT"]
[]
[]
[null,"BILL NO. 5"]
[]
[null,"MASONRY"]
[]
[null,"SUPPLEMENTARY PREAMBLES"]
[]
[null,"General"]
[]
[null,"All masonry units shall comply with SANS 227:2007 and "]
[null,"SANS 1 575:2007"]
[]
[null,"Brickwork shall be in accordance with SANS 0164."]
[]
[null,"Minimum crushing strength of all load bearing bricks shall be "]
[null,"14MPa. The nominal compressive strength for face bricks shall be "]
[null,"not less than 17MPa"]
[]
[null,"Class 1 Mortar mix"]
[]
[null,"Sizes in descriptions"]
[]
[null,"Where sizes in descriptions are given in brick units, \"one brick\" "]
[null,"shall represent the length and \"half brick\" the width of a brick."]
[]
[null,"Wall ties"]
[]
[null,"Descriptions of solid walls and cavity walls shall be deemed to "]
[null,"include metal wall ties complying with SABS 28 and of the butterfly "]
[null,"or of the modified PWD type, of the required length with each end "]
[null,"built at least 75mm deep into brickwork, spaced at not more than "]
[null,"1m centres alternatively to every third course of brickwork."]
[]
[null,"Descriptions of solid walls (except if built in English bond) and "]
[null,"cavity walls shall be deemed to include metal wall ties complying "]
[null,"with SABS 28 and of the butterfly or of the modified PWD type, of "]
[null,"the required length with each end built at least 75mm deep into "]
[null,"brickwork, spaced at not more than 1m centres alternatively to "]
[null,"every third course of brickwork."]
[]
[null,"Face bricks"]
[]
[null,"Bricks shall be ordered timeously to obtain uniformity in size"]
[null,"and colour."]
[]
[null,"Excessive suction in clay bricks should be controlled by wetting the"]
[null,"bricks before laying. Corners and other advanced work shall be "]
[null,"raked back and not raised above the general level of the remaining "]
[null,"masonry work by more than one metre at any one lift."]
[]
[null,"Face bricks to be kept free from mortar droppings as the work "]
[null,"continues."]
[]
[null,"Reinforcing and brickforce to face brick lintels to have steel hangers"]
[null,"to be built into brickwork above header course with R8 steel rod "]
[null,"reinforcing for three brick courses above the lintel. All joints in the "]
[null,"header course shall be solidly filled with mortar."]
[]
[null,"Pointing"]
[]
[null,"Descriptions of recessed pointing to fair face brickwork and face "]
[null,"brickwork shall be deemed to include square recessed, hollow"]
[null,"recessed, weathered pointing, etc."]
[]
[null,"Strutting/shoring of brickwork"]
[]
[null,"All cost for strutting/shoring of new brickwork while compacting "]
[null,"under the ground floor slab shall be for the account of the contractor."]
[]
["BILL No. 5"]
[null,"Bill No. 5 MASONRY carried to collection"]
[]
["CONTRACT NUMBER: ",null,{"$f":"C1","v":"CONSTRUCTION OF A NEW LAPA AND THE REFURBISHMENT OF GATE HOUSE AND ABLUTIONS, EXTERNAL AREAS AND THE INSPECTION AND WORKS TO EXISTING AND NEW SERVICES AT THE MOKOPANE BIODIVERSITY CONSERVATION CENTRE "},{"$nulls":15},"Bill"]
[{"$f":"A2","v":"G540/2024"},{"$nulls":17},{"$f":"S2","v":5}]
["ITEM","PAYMENT","DESCRIPTION",{"$nulls":13},"RATE"]
["NO","REFERS",{"$nulls":10},"UNIT",null,"QUANTITY",{"$nulls":3},"AMOUNT"]
[null,"TO"]
[]
[null,"FOUNDATIONS"]
[]
[null,"Contractor shall support all foundation brickwork while "]
[null,"compacting fill material under floors"]
[]
[null,"Brickwork of NFX bricks in class II mortar"]
[]
[1,"One brick wall in foundations including brick reinforcement every ",{"$nulls":10},"m2",null,24]
[null,"course"]
[]
[null,"SUPERSTRUCTURE"]
[]
[null,"Brickwork of NFP bricks in class II mortar"]
[]
[2,"One brick walls including brick reinforcement every fourth course",{"$nulls":10},"m2",null,208]
[null,"and hoop iron tie fixings to columns/brickwork as directed"]
[]
[3,"One and a half brick walls including brick reinforcement every",{"$nulls":10},"m2",null,16]
[null,"fourth course and hoop iron tie fixings to columns/brickwork as "]
[null,"directed"]
[]
[4,"One brick wall in beam filling",{"$nulls":10},"m",null,46]
[]
[5,"460 x 460mm Brick piers with a 110 x 110mm 30mpa reinforced ",{"$nulls":10},"No",null,14]
[null,"concrete cavity infill"]
[]
[6,"460 x 460mm Brick piers",{"$nulls":10},"No",null,3]
[]
[7,"Extra over one brick walls for sloping, cutting and shaping ",{"$nulls":10},"m2",null,9]
[null,"brickwork as per architects details and drawings to bottom"]
[null,"section of chimney structure"]
[]
[null,"Prestressed fabricated lintels"]
[]
[8,"100 x 70mm Lintels in lengths not exceeding 3m long",{"$nulls":10},"m",null,8]
[]
[null,"FACE BRICKWORK"]
[]
[null,"External facebrick (PC R6000/1000 delivered to site, excluding"]
[null,"(VAT) pointed with square recessed horizontal and vertical"]
[null,"joints"]
[]
[9,"Extra over for face brickwork",{"$nulls":10},"m2",null,145]
[]
[10,"Brick-on-edge header course lintel 106mm wide pointed on one",{"$nulls":10},"m",null,6]
[null,"face and on soffit to match face brick of external walls, all as per "]
[null,"Architects detail and specification"]
[]
[11,"Brick-on-edge header course sloping window sill, approximately ",{"$nulls":10},"m",null,6]
[null,"222mm wide pointed on one face and top, all as per Architects "]
[null,"detail and specification"]
[]
[null,"STONEWORK"]
[]
[null,"WALL CLADDING"]
[]
[null,"Natural stone wall cladding to match existing - Allow for pricing "]
[null,"of fixing on and labour only to cart and install - Material to be "]
[null,"sourced locally from site and supplied free of charge to"]
[null,"contractor. Refer to architects finishing schedules. Walls to"]
[null," match existing pattern and jointing detail"]
[]
[12,"Extra over brick wall for cladding",{"$nulls":10},"m2",null,105]
[]
[]
[]
[]
[]
[]
[{"$f":"A75","v":"BILL No. 5"}]
[null,"Bill No. 5 MASONRY carried to Collection"]
[]
["CONTRACT NUMBER: ",null,{"$f":"C78","v":"CONSTRUCTION OF A NEW LAPA AND THE REFURBISHMENT OF GATE HOUSE AND ABLUTIONS, EXTERNAL AREAS AND THE INSPECTION AND WORKS TO EXISTING AND NEW SERVICES AT THE MOKOPANE BIODIVERSITY CONSERVATION CENTRE "},{"$nulls":15},"Bill"]
[{"$f":"A79","v":"G540/2024"},{"$nulls":17},{"$f":"S2","v":5}]
["ITEM","PAYMENT","DESCRIPTION",{"$nulls":13},"RATE"]
["NO","REFERS",{"$nulls":10},"UNIT",null,"QUANTITY",{"$nulls":3},"AMOUNT"]
[null,"TO"]
[]
[null,{"$f":"B9","v":"MASONRY"}]
[]
[null,"COLLECTION"]
[]
[null,"Total Brought Forward from Page No.",{"$nulls":10},144]
[]
[{"$nulls":12},{"$f":"M166+1","v":145}]
{"$rows_empty":57}
[{"$f":"A153","v":"BILL No. 5"}]
[null,"Bill No. 5 MASONRY carried to Summary"]

{"sheet":"Bill 6-Waterproofing","index":5,"n_rows":80,"n_cols":19,"rows_kept":80,"merged":[[0,0,0,1],[0,2,1,17],[0,18,0,19],[1,0,1,1],[1,18,1,19],[2,1,4,11],[2,16,4,17],[3,12,3,13],[3,14,3,15],[3,18,3,19],[20,12,20,13],[20,14,20,15],[20,16,20,17],[20,18,20,19],[26,12,26,13],[26,14,26,15],[26,16,26,17],[26,18,26,19],[28,12,28,13],[28,14,28,15],[28,16,28,17],[28,18,28,19],[35,12,35,13],[35,14,35,15],[35,16,35,17],[35,18,35,19],[41,12,41,13],[41,14,41,15],[41,16,41,17],[41,18,41,19],[46,12,46,13],[46,14,46,15],[46,16,46,17],[46,18,46,19],[48,12,48,13],[48,14,48,15],[48,16,48,17],[48,18,48,19],[49,23,49,24],[50,12,50,13],[50,14,50,15],[50,16,50,17],[50,18,50,19],[52,12,52,13],[52,14,52,15],[52,16,52,17],[52,18,52,19],[54,12,54,13],[54,14,54,15],[54,16,54,17],[54,18,54,19],[65,12,65,13],[65,14,65,15],[65,16,65,17],[65,18,65,19],[78,0,80,0],[79,18,79,19]]}
["CONTRACT NUMBER: ",null,{"$f":"'Bill 1-P&G'!C1","v":"CONSTRUCTION OF A NEW LAPA AND THE REFURBISHMENT OF GATE HOUSE AND ABLUTIONS, EXTERNAL AREAS AND THE INSPECTION AND WORKS TO EXISTING AND NEW SERVICES AT THE MOKOPANE BIODIVERSITY CONSERVATION CENTRE "},{"$nulls":15},"Bill"]
[{"$f":"'Bill 1-P&G'!A2","v":"G540/2024"},{"$nulls":17},6]
["Item","DESCRIPTION",{"$nulls":14},"RATE"]
["No.",{"$nulls":11},"UNIT",null,"QUANTITY",{"$nulls":3},"AMOUNT"]
[]
[]
[null,{"$f":"A79","v":"BILL No. 6"}]
[]
[null,"WATERPROOFING"]
[]
[null,"DAMP-PROOFING OF WALLS AND FLOORS"]
[]
[null,"Horizontal & vertical damp-proof course to be of black "]
[null,"polyethylene sheeting complying with SANS specifications"]
[null,"952 type B having embossed surface 0.38mm thick "]
[null,"(250 microns) & manufactured in widths of less than"]
[null,"1000mm.  Lapped minimum 150mm at all joints, & ensure"]
[null,"similarly  lapped over green under-floor damp proof"]
[null,"membrane sufficiently"]
[]
[1,"In walls, cills etc (measured nett)",{"$nulls":10},"m2",null,17]
[]
[null,"One layer of 250 micron green Polyethylene sheeting to "]
[null,"comply with SANS 952 Type C with minimum 150mm lap to"]
[null,"DPM including sealing laps with approved tape"]
[]
[2,"250 micron under surface beds, ramps etc.",{"$nulls":10},"m2",null,307]
[]
[3,"Under apron slabs",{"$nulls":10},"m2",null,180]
[]
[null,"PROTECTIVE WATERPROOFING TO WALLS"]
[]
[null,"Prepare and apply two coats protective bitumen "]
[null,"waterproofing to brick walls"]
[]
[4,"Vertically to walls",{"$nulls":10},"m2",null,105]
[]
[null,"JOINT SEALANTS ETC"]
[]
[null,"Clear silicone sealing compound"]
[]
[5,"Point between steel windows and door frames and face of brickwork",{"$nulls":10},"m",null,27]
[]
[null,"Two part polysulphide sealing compound including backing"]
[null,"cord, bond breaker, primer, etc."]
[]
[6,"3mm Wide x 10mm deep in saw cut joint",{"$nulls":10},"m",null,52]
[]
[7,"12mm Wide x 50mm deep in walls where cracks have occured",{"$nulls":10},"m",null,4]
[]
[8,"20 x 20mm Deep in isolation joint",{"$nulls":10},"m",null,16]
[]
[9,"5mm Wide x 5mm Deep in joints between tiles and sanitary fittings",{"$nulls":10},"m",null,1]
[]
[10,"20mm Wide x 20mm deep in junctions between concrete soffits and ",{"$nulls":10},"m",null,65]
[null,"brickwalls"]
[]
[null,"BUDGETARY ALLOWANCES"]
[]
[null,"The following Budgetary Allowances are for work to be e"]
[null,"xecuted by the Sub-Contractor or specialist suppliers and "]
[null,"priced at Bill rates or rates to be agreed and to be used as "]
[null,"directed by the Principal Agent and to be deducted in whole "]
[null,"or in part if not required"]
[]
[11,"Provide the sum of R15 000.00 (Fifteen Thousand) for ",{"$nulls":10},"Item",{"$nulls":3},{"v":15000,"d":"R15,000.00"},null,{"$f":"Q66","v":{"v":15000,"d":"R15,000.00"}}]
[null,"waterproofing requirements to existing buildings where leaking "]
[null,"and water issues have arised"]
{"$rows_empty":10}
["BILL No. 6"]
[null,"Bill No. 6 WATERPROOFING carried to collection"]

{"sheet":"Bill 7-Roof","index":6,"n_rows":232,"n_cols":19,"rows_kept":232,"merged":[[0,0,0,1],[0,2,1,17],[0,18,0,19],[1,0,1,1],[1,18,1,19],[2,1,4,11],[2,16,4,17],[3,12,3,13],[3,14,3,15],[3,18,3,19],[30,12,30,13],[30,14,30,15],[30,16,30,17],[30,18,30,19],[42,12,42,13],[42,14,42,15],[42,16,42,17],[42,18,42,19],[45,12,45,13],[45,14,45,15],[45,16,45,17],[45,18,45,19],[47,12,47,13],[47,14,47,15],[47,16,47,17],[47,18,47,19],[50,12,50,13],[50,14,50,15],[50,16,50,17],[50,18,50,19],[67,12,67,13],[67,14,67,15],[67,16,67,17],[67,18,67,19],[70,12,70,13],[70,14,70,15],[70,16,70,17],[70,18,70,19],[73,0,75,0],[73,23,73,24],[74,18,74,19],[74,23,74,24],[75,23,75,24],[76,0,76,1],[76,2,77,17],[76,18,76,19],[76,23,76,24],[77,0,77,1],[77,18,77,19],[77,23,77,24],[78,2,80,11],[78,16,80,17],[78,23,78,24],[79,12,79,13],[79,14,79,15],[79,18,79,19],[79,23,79,24],[80,23,80,24],[82,12,82,13],[82,14,82,15],[82,16,82,17],[82,18,82,19],[84,12,84,13],[84,14,84,15],[84,16,84,17],[84,18,84,19],[88,12,88,13],[88,14,88,15],[88,16,88,17],[88,18,88,19],[90,12,90,13],[90,14,90,15],[90,16,90,17],[90,18,90,19],[114,23,114,24],[115,23,115,24],[116,23,116,24],[117,23,117,24],[119,23,119,24],[120,23,120,24],[121,23,121,24],[122,23,122,24],[123,23,123,24],[125,23,125,24],[131,23,131,24],[133,23,133,24],[139,23,139,24],[141,23,141,24],[142,23,142,24],[143,23,143,24],[148,23,148,24],[149,23,149,24],[152,0,154,0],[152,23,152,24],[153,18,153,19],[153,23,153,24],[154,23,154,24],[155,0,155,1],[155,2,156,17],[155,18,155,19],[156,0,156,1],[156,18,156,19],[157,2,159,11],[157,16,159,17],[158,12,158,13],[158,14,158,15],[158,18,158,19],[165,12,165,13],[165,18,165,19],[167,12,167,13],[167,18,167,19],[230,0,232,0],[231,18,231,19]]}
["CONTRACT NUMBER: ",null,{"$f":"'Bill 1-P&G'!C1","v":"CONSTRUCTION OF A NEW LAPA AND THE REFURBISHMENT OF GATE HOUSE AND ABLUTIONS, EXTERNAL AREAS AND THE INSPECTION AND WORKS TO EXISTING AND NEW SERVICES AT THE MOKOPANE BIODIVERSITY CONSERVATION CENTRE "},{"$nulls":15},"Bill"]
[{"$f":"'Bill 1-P&G'!A2","v":"G540/2024"},{"$nulls":17},7]
["Item","DESCRIPTION"]
["No.",{"$nulls":11},"UNIT",null,"QUANTITY"]
[]
[]
[null,"BILL NO. 7"]
[]
[null,"ROOF COVERINGS"]
[]
[null,"SUPPLEMENTARY PREAMBLES"]
[]
[null,"Harvey roof tiles"]
[]
[null,"Contractor to note that Harvey roof tiles to be installed by a certified"]
[null,"and accredited Harvey roof tile installer/contractor"]
[]
[null,"ROOF SHEETING"]
[]
[null,"Roofing sheeting shall be Kliplok 404  (or similar and"]
[null,"approved) concealed fix profile roll-formed in continuous "]
[null,"lengths from certified steel chromadek Z200 0.58mm "]
[null,"complying with ISQ 550 (3T) and fixed to steel / timber "]
[null,"purlins/girts using KL65 clips (aluminium KL65 clips to be "]
[null,"used in conjunction with aluminium sheeting) and class 3 "]
[null,"fasteners, in strict accordance with manufacturer\"€™s "]
[null,"specifications by an Approved Contractor. A written and "]
[null,"approved five year guarantee of water-tightness shall be"]
[null,"issued after approval of roofs by the manufacturer."]
[]
[1,"Roof covering with pitch not exceeding 25 degrees",{"$nulls":10},"m2",null,444]
[]
[null,"TILES"]
[]
[null,"Harvey Thatch Roof Tiles or Similar and approved with a "]
[null,"galvanised substrate coated with a natural stone finish on"]
[null," 38 x 38mm SA Pine batten trusses @ 360 C/C on timber roof"]
[null,"structure (roof structure and trusses elsewhere measured) "]
[null,"nailed on an underlay of 150 micron polyethylene sheeting "]
[null,"or equal and approved with 150mm sealed laps as per "]
[null,"manufacturers instructions"]
[]
[2,"Roof coverings with pitches exceeding 25 degrees but not exceeding ",{"$nulls":10},"m2",null,732]
[null,"50 degrees"]
[]
[3,"Circular cutting",{"$nulls":10},"m",null,10]
[]
[4,"Ridge tiles to match roofing tiles bedded and pointed in 1:3 cement ",{"$nulls":10},"m",null,46]
[null,"mortar tinted to match tile colour"]
[]
[5,"Hip tiles to match roofing tiles bedded and pointed in 1:3 cement ",{"$nulls":10},"m",null,41]
[null,"mortar tinted to match tile colour including 200mm wide strip of "]
[null,"375 micron embossed damp proof"]
[]
[null,"Flashings shall be to the manufacturer's standards or similar "]
[null,"approved Galvanized steel Z200 0.58mm with a patent finish"]
[null,"to one  side with a Pebble Grey backing coat and fixed to the "]
[null,"sheeting  with S10 brackets or, sliding brackets at apex"]
[null,"where roof sheets are 30m or longer, to obviate any direct"]
[null,"fixing perforations. Prior to flashings being fixed, all troughs"]
[null,"at the apex shall be stop-ended  to the full depth of the sheet"]
[null,"in  order to prevent any penetration of wind driven water. "]
[null,"The trough shall be lipped at the eaves end to  form a drip. "]
[null,"Transverse flashing flanges shall be form a drip. "]
[null,"Transverse  flashing flanges shall be notched to the sheet"]
[null,"profile where necessary"]
[]
[6,"Headwall/Counter Flash 375mm girth 3 times bent and notched on ",{"$nulls":10},"m",null,141]
[null,"site to suit roof profile (on sloping roof)"]
[]
[7,"Sidewall Flash 408mm girth 2 times bent (on sloping side)",{"$nulls":10},"m",null,4]
[]
[]
["BILL No. 7"]
[null,"Bill No. 7 ROOF COVERINGS carried to collection"]
[]
["CONTRACT NUMBER: ",null,{"$f":"C1","v":"CONSTRUCTION OF A NEW LAPA AND THE REFURBISHMENT OF GATE HOUSE AND ABLUTIONS, EXTERNAL AREAS AND THE INSPECTION AND WORKS TO EXISTING AND NEW SERVICES AT THE MOKOPANE BIODIVERSITY CONSERVATION CENTRE "},{"$nulls":15},"Bill"]
[{"$f":"A2","v":"G540/2024"},{"$nulls":17},{"$f":"S2","v":7}]
["ITEM","PAYMENT","DESCRIPTION",{"$nulls":13},"RATE"]
["NO","REFERS",{"$nulls":10},"UNIT",null,"QUANTITY",{"$nulls":3},"AMOUNT"]
[null,"TO"]
[]
[8,"Serrated top end closer 700mm girth",{"$nulls":10},"m",null,141]
[]
[null,"ROOF AND WALL INSULATION"]
[]
[null,"100mm Isover Saint-Gobain or similar and approved"]
[null,"factorylite non-combustible flexible glass wool insulation"]
[null," with metalized  foil backing on underside"]
[]
[9,"Insulation laid taut over rafters (at approximately 500mm centres) ",{"$nulls":10},"m2",null,1176]
[null,"and fixed concurrent with covering/tiling battens, purlins, etc, "]
[null,"including taped laps"]
{"$rows_empty":59}
[{"$f":"A74","v":"BILL No. 7"}]
[null,"Bill No. 7 Roof carried to Collection"]
[]
["CONTRACT NUMBER: ",null,{"$f":"C1","v":"CONSTRUCTION OF A NEW LAPA AND THE REFURBISHMENT OF GATE HOUSE AND ABLUTIONS, EXTERNAL AREAS AND THE INSPECTION AND WORKS TO EXISTING AND NEW SERVICES AT THE MOKOPANE BIODIVERSITY CONSERVATION CENTRE "},{"$nulls":15},"Bill"]
[{"$f":"A78","v":"G540/2024"},{"$nulls":17},{"$f":"S2","v":7}]
["ITEM","PAYMENT","DESCRIPTION",{"$nulls":13},"RATE"]
["NO","REFERS",{"$nulls":10},"UNIT",null,"QUANTITY",{"$nulls":3},"AMOUNT"]
[null,"TO"]
[]
[null,{"$f":"B9","v":"ROOF COVERINGS"}]
[]
[null,"COLLECTION"]
[]
[null,"Total Brought Forward from Page No.",{"$nulls":10},148]
[]
[{"$nulls":12},{"$f":"M166+1","v":149}]
{"$rows_empty":62}
[{"$f":"A153","v":"BILL No. 7"}]
[null,"Bill No. 7 ROOF COVERINGS carried to Summary"]

{"sheet":"Bill 8-Capentry","index":7,"n_rows":236,"n_cols":19,"rows_kept":236,"merged":[[0,0,0,1],[0,2,1,17],[0,18,0,19],[1,0,1,1],[1,18,1,19],[2,1,4,11],[2,16,4,17],[3,12,3,13],[3,14,3,15],[3,18,3,19],[54,12,54,13],[54,14,54,15],[54,16,54,17],[54,18,54,19],[64,12,64,13],[64,14,64,15],[64,16,64,17],[64,18,64,19],[70,12,70,13],[70,14,70,15],[70,16,70,17],[70,18,70,19],[73,12,73,13],[73,14,73,15],[73,16,73,17],[73,18,73,19],[77,0,79,0],[77,23,77,24],[78,18,78,19],[78,23,78,24],[79,23,79,24],[80,0,80,1],[80,2,81,17],[80,18,80,19],[80,23,80,24],[81,0,81,1],[81,18,81,19],[81,23,81,24],[82,2,84,11],[82,16,84,17],[82,23,82,24],[83,12,83,13],[83,14,83,15],[83,18,83,19],[83,23,83,24],[84,23,84,24],[90,12,90,13],[90,14,90,15],[90,16,90,17],[90,18,90,19],[98,12,98,13],[98,14,98,15],[98,16,98,17],[98,18,98,19],[113,12,113,13],[113,14,113,15],[113,16,113,17],[113,18,113,19],[116,23,116,24],[117,23,117,24],[118,23,118,24],[119,23,119,24],[121,23,121,24],[122,23,122,24],[123,23,123,24],[124,23,124,24],[125,23,125,24],[127,23,127,24],[133,23,133,24],[135,23,135,24],[141,23,141,24],[143,23,143,24],[149,23,149,24],[152,23,152,24],[156,0,158,0],[156,23,156,24],[157,18,157,19],[157,23,157,24],[158,23,158,24],[159,0,159,1],[159,2,160,17],[159,18,159,19],[160,0,160,1],[160,18,160,19],[161,2,163,11],[161,16,163,17],[162,12,162,13],[162,14,162,15],[162,18,162,19],[165,18,165,19],[166,18,166,19],[169,12,169,13],[169,18,169,19],[171,12,171,13],[171,18,171,19],[234,0,236,0],[235,18,235,19]]}
["CONTRACT NUMBER: ",null,{"$f":"'Bill 1-P&G'!C1","v":"CONSTRUCTION OF A NEW LAPA AND THE REFURBISHMENT OF GATE HOUSE AND ABLUTIONS, EXTERNAL AREAS AND THE INSPECTION AND WORKS TO EXISTING AND NEW SERVICES AT THE MOKOPANE BIODIVERSITY CONSERVATION CENTRE "},{"$nulls":15},"Bill"]
[{"$f":"'Bill 1-P&G'!A2","v":"G540/2024"},{"$nulls":17},8]
["Item","DESCRIPTION",{"$nulls":14},"RATE"]
["No.",{"$nulls":11},"UNIT",null,"QUANTITY",{"$nulls":3},"AMOUNT"]
[]
[]
[null,"BILL NO. 8"]
[]
[null,"CARPENTRY & JOINERY"]
[]
[null,"SUPPLEMENTARY PREAMBLES"]
[]
[null,"Particle board"]
[]
[null,"Particle board shall comply with the following specifications:"]
[]
[null,"a) SABS 1300 Particle board: exterior and flooring type "]
[]
[null,"b) SABS 1301 Particle board: interior type"]
[]
[null,"Joinery"]
[]
[null,"Descriptions of frames shall be deemed to include frames, "]
[null,"transomes, mullions, rails, etc."]
[]
[null,"Descriptions of hardwood joinery shall be deemed to include "]
[null,"pelleting of bolt holes."]
[]
[null,"Fixing"]
[]
[null,"Items described as \"nailed\" shall be deemed to be fixed with "]
[null,"hardened steel nails or shot pins to brickwork or concrete."]
[]
[null,"Cappings"]
[]
[null,"All timber beams, columns should include for metal capping's to"]
[null,"prevent any splitting of timber."]
[]
[null,"Treatment of cut surfaces"]
[]
[null,"The contractor's rates is to allow for treating all cut surfaces of "]
[null,"timber/wooden components with approved enseal."]
[]
[null,"TIMBER WORK, ETC."]
[]
[null,"Timber columns to be placed in bases, and concrete cast/poured "]
[null,"around it in bases as per engineers specifications "]
[null,"(Concrete bases measured elsewhere)"]
[]
[null,"SA Pine or similar and approved columns, beams and laths"]
[null,"bolted in place including bolts, plates, connectors, etc. Timber"]
[null,"columns to  be treated in three coats Plascon FDR Woodcare"]
[null,"preservative or similar and approved"]
[]
[1,"159mm Diameter columns",{"$nulls":10},"m",null,10]
[]
[null,"DOORS, ETC"]
[]
[null,"Contractor to allow for undercutting of internal doors when pricing"]
[]
[null,"TDM or similar and approved Semi solid door with hardwood "]
[null,"edges all round and masonite finish to both sides to "]
[null,"Architects specification"]
[]
[2,"Single door, size approximately 815 x 2032mm",{"$nulls":10},"No",null,2]
[]
[null,"EAVES , VERGES , ETC"]
[]
[null,"Fascia and barge boards"]
[]
[3,"10 x 225mm Fascias boards including galvanised steel H-profile ",{"$nulls":10},"m",null,141]
[null,"jointing strips"]
[]
[4,"10 x 225mm Barge boards including galvanised steel H-profile",{"$nulls":10},"m",null,19]
[null,"jointing strips"]
[]
[]
["BILL No. 8"]
[null,"Bill No. 8 CARPENTRY & JOINERY carried to collection"]
[]
["CONTRACT NUMBER: ",null,{"$f":"C1","v":"CONSTRUCTION OF A NEW LAPA AND THE REFURBISHMENT OF GATE HOUSE AND ABLUTIONS, EXTERNAL AREAS AND THE INSPECTION AND WORKS TO EXISTING AND NEW SERVICES AT THE MOKOPANE BIODIVERSITY CONSERVATION CENTRE "},{"$nulls":15},"Bill"]
[{"$f":"A2","v":"G540/2024"},{"$nulls":17},{"$f":"S2","v":8}]
["ITEM","PAYMENT","DESCRIPTION",{"$nulls":13},"RATE"]
["NO","REFERS",{"$nulls":10},"UNIT",null,"QUANTITY",{"$nulls":3},"AMOUNT"]
[null,"TO"]
[]
[null,"SKIRTINGS"]
[]
[null,"Hardwood"]
[]
[5,"100 x 16mm Skirting with 5mm rounded top corner screwed and ",{"$nulls":10},"m",null,32]
[null,"plugged"]
[]
[]
[null,"JOINERY"]
[]
[null,"COUNTER TOPS"]
[]
[6,"32mm Thick PG Bison Formica or similar and approved top with ",{"$nulls":10},"m",null,14]
[null,"200mm deep x 32mm thick Formica down stand at front and on "]
[null,"exposed side, with exposed side edges and a preformed bullnose "]
[null,"edge , approximately 600mm wide including silicon sealant, etc. "]
[null,"and polishing all exposed edges with 45 degree mitred joint with "]
[null,"2-3mm bevel on surface edge complete. Tops and down stands to "]
[null,"be fixed to 25 x 50mm mild steel 2.5mm thick hollow section "]
[null,"frame, finished in one coat red oxide factory supplied metal "]
[null,"primer paint with one coat Plascon or similar and approved merit "]
[null,"undercoat and two coats enamel paint (colour : black), at maximum "]
[null,"900mm centres with lugs and fixed to walls with chemical anchor "]
[null,"bolts at suitable centres using dabs of 100% clear silicone "]
[null,"adhesive, with all joints filled with matching polyester resin glue,"]
[null,"all in accordance with manufacturer's and architect's specifications"]
[]
[7,"Extra over item for cutting out openings in vanity tops not exceeding ",{"$nulls":10},"No",null,1]
[null,"50mm diameter"]
{"$rows_empty":41}
[{"$f":"A78","v":"BILL No. 8"}]
[null,"Bill No. 8 CARPENTRY & JOINERY carried to collection"]
[]
["CONTRACT NUMBER: ",null,{"$f":"C1","v":"CONSTRUCTION OF A NEW LAPA AND THE REFURBISHMENT OF GATE HOUSE AND ABLUTIONS, EXTERNAL AREAS AND THE INSPECTION AND WORKS TO EXISTING AND NEW SERVICES AT THE MOKOPANE BIODIVERSITY CONSERVATION CENTRE "},{"$nulls":15},"Bill"]
[{"$f":"A2","v":"G540/2024"},{"$nulls":17},{"$f":"S2","v":8}]
["ITEM","PAYMENT","DESCRIPTION",{"$nulls":13},"RATE"]
["NO","REFERS",{"$nulls":10},"UNIT",null,"QUANTITY",{"$nulls":3},"AMOUNT"]
[null,"TO"]
[]
[null,{"$f":"B9","v":"CARPENTRY & JOINERY"}]
[]
[null,"COLLECTION"]
[]
[null,"Total Brought Forward from Page No.",{"$nulls":10},151]
[]
[{"$nulls":12},{"$f":"M170+1","v":152}]
{"$rows_empty":62}
[{"$f":"A157","v":"BILL No. 8"}]
[null,"Bill No. 8 CARPENTRY & JOINERY carried to Collection"]

{"sheet":"Bill 9-Ceilings","index":8,"n_rows":76,"n_cols":19,"rows_kept":76,"merged":[[0,0,0,1],[0,2,1,17],[0,18,0,19],[1,0,1,1],[1,18,1,19],[2,1,4,11],[2,16,4,17],[3,12,3,13],[3,14,3,15],[3,18,3,19],[23,12,23,13],[23,14,23,15],[23,16,23,17],[23,18,23,19],[35,12,35,13],[35,14,35,15],[35,16,35,17],[35,18,35,19],[40,12,40,13],[40,14,40,15],[40,16,40,17],[40,18,40,19],[74,0,76,0],[74,23,74,24],[75,18,75,19],[75,23,75,24],[76,23,76,24]]}
["CONTRACT NUMBER: ",null,{"$f":"'Bill 1-P&G'!C1","v":"CONSTRUCTION OF A NEW LAPA AND THE REFURBISHMENT OF GATE HOUSE AND ABLUTIONS, EXTERNAL AREAS AND THE INSPECTION AND WORKS TO EXISTING AND NEW SERVICES AT THE MOKOPANE BIODIVERSITY CONSERVATION CENTRE "},{"$nulls":15},"Bill"]
[{"$f":"'Bill 1-P&G'!A2","v":"G540/2024"},{"$nulls":17},9]
["Item","DESCRIPTION",{"$nulls":14},"RATE"]
["No.",{"$nulls":11},"UNIT",null,"QUANTITY",{"$nulls":3},"AMOUNT"]
[]
[]
[null,"BILL NO. 9"]
[]
[null,"CEILINGS"]
[]
[null,"SUPPLEMENTARY PREAMBLES"]
[]
[null,"THATCHED CEILING"]
[]
[null,"\"Correx\" Cape Reed or similar and approved ceiling"]
[null,"boards 1220 x 2440 x 10mm in  size nailed directly on roof"]
[null,"timber members above using  binding strips (timber roof"]
[null,"measured separately), ensuring all  nails/screws are driven"]
[null,"all the way into binding strip as per  architects and"]
[null,"manufacturers specifications, treated in Micon  coating"]
[null,"Thatchsayf or similar and approved finish including"]
[null," all nails, strips connectors etc."]
[]
[1,"Thatched ceiling fixed to underside of roof structure",{"$nulls":10},"m2",null,381]
[]
[null,"SUSPENDED CEILINGS"]
[]
[null,"600 x 1200 x 9mm Thick Pelican or similar and approved "]
[null,"Econolite foil backed ceiling tiles with vinyl face finish laid"]
[null,"onto Pelican Econogrid pre-painted white exposed tee"]
[null,"grid  system including fire safety punch outs, with main"]
[null,"tees suspended  by means of 19 x 0.5mm GMS strap/2.5mm"]
[null,"wire hangers at  1200mm centres as per manufacturers"]
[null,"specifications"]
[]
[2,"Ceilings suspended not exceeding 1m below concrete soffits/roof",{"$nulls":10},"m2",null,43]
[null,"structure"]
[]
[null,"Edge trim to flush plastered ceilings"]
[]
[3,"Pelican system or similar and approved PS1 aluminium shadow line ",{"$nulls":10},"m",null,27]
[null,"ceiling trim fixed to walls"]
{"$rows_empty":32}
["BILL No. 9"]
[null,"Bill No. 9 CEILING carried to summary"]

{"sheet":"Bill 10-Iron Mongery","index":9,"n_rows":77,"n_cols":19,"rows_kept":77,"merged":[[0,0,0,1],[0,2,1,17],[0,18,0,19],[1,0,1,1],[1,18,1,19],[2,1,4,11],[2,16,4,17],[3,12,3,13],[3,14,3,15],[3,18,3,19],[43,12,43,13],[43,14,43,15],[43,16,43,17],[43,18,43,19],[46,12,46,13],[46,14,46,15],[46,16,46,17],[46,18,46,19],[49,12,49,13],[49,14,49,15],[49,16,49,17],[49,18,49,19],[53,12,53,13],[53,14,53,15],[53,16,53,17],[53,18,53,19],[58,12,58,13],[58,14,58,15],[58,16,58,17],[58,18,58,19],[60,12,60,13],[60,14,60,15],[60,16,60,17],[60,18,60,19],[68,12,68,13],[68,14,68,15],[68,16,68,17],[68,18,68,19],[68,23,68,24],[75,0,77,0],[75,23,75,24],[76,18,76,19],[76,23,76,24],[77,23,77,24]]}
["CONTRACT NUMBER: ",null,{"$f":"'Bill 1-P&G'!C1","v":"CONSTRUCTION OF A NEW LAPA AND THE REFURBISHMENT OF GATE HOUSE AND ABLUTIONS, EXTERNAL AREAS AND THE INSPECTION AND WORKS TO EXISTING AND NEW SERVICES AT THE MOKOPANE BIODIVERSITY CONSERVATION CENTRE "},{"$nulls":15},"Bill"]
[{"$f":"'Bill 1-P&G'!A2","v":"G540/2024"},{"$nulls":17},10]
["Item","DESCRIPTION",{"$nulls":14},"RATE"]
["No.",{"$nulls":11},"UNIT",null,"QUANTITY",{"$nulls":3},"AMOUNT"]
[]
[]
[null,"BILL NO. 10"]
[]
[null,"IRONMONGERY"]
[]
[null,"SUPPLEMENTARY PREAMBLES"]
[]
[null,"Finishes to ironmongery"]
[]
[null,"Where applicable finishes to ironmongery are indicated by suffixes"]
[null,"in accordance with the following list:"]
[null,"SS Stainless Steel"]
[null,"BS Satin bronze lacquered"]
[null,"CH Chromium plated"]
[null,"SC Satin chromium plated"]
[null,"SE Silver enamelled"]
[null,"GE Grey enamelled"]
[null,"AS Anodised silver"]
[null,"AB Anodised bronze"]
[null,"AG Anodised gold"]
[null,"ABL Anodised black "]
[null,"PB Polished brass "]
[null,"PL Polished and lacquered"]
[null,"PT Epoxy coated "]
[null,"SD Sanded"]
[]
[null,"Unless otherwise stated ironmongery is to be the manufacture's "]
[null,"standard corrosion resistant ironmongery for the particular product"]
[null,"ranges."]
[]
[null,"Installed to Architects specification"]
[]
[null,"Surface finishes should be restricted to polished chrome or satin "]
[null,"chrome on all approved ironmongery for external and internal doors \""]
[null,"unless otherwise stated."]
[]
[null,"LOCK SETS, HANDLES, CYLINDERS, FLUSH BOLTS ETC."]
[]
[1,"Union/Assa Abloy Sable lever door handles per pair (Code - AL65A63) ",{"$nulls":10},"No",null,2]
[null,"or similar and approved "]
[]
[2,"Union/Assa Abloy  morticed lock (Code - 23315) Euro cylinder sash lock ",{"$nulls":10},"No",null,2]
[null,"or similar and approved "]
[]
[3,"Union/Assa Abloy (Code - 23315) Euro cylinder sash  2 x 18 ",{"$nulls":10},"No",null,2]
[null,"Euro profile double cylinder complete  with three keys"]
[null,"or similar and approved "]
[]
[4,"152 x 76mm modular backplate suitable for Euro profile cylinder ",{"$nulls":10},"No",null,2]
[null,"Lock or similar and approved "]
[]
[null,"SUNDRIES"]
[]
[5,"Union/Assa Abloy Euro profile double cylinder complete ",{"$nulls":10},"No",null,2]
[null,"(Code - AL8730AS) floor mounted door stop to  each door leaf"]
[null,"or similar and approved"]
[]
[null,"BUDGETARY ALLOWANCES"]
[]
[null,"The following Budgetary Allowances are for work to be "]
[null,"executed by the Main Contractor or specialist suppliers and "]
[null,"priced at Bill rates or rates to be agreed."]
[]
[6,"Provide the sum of R30 000.00 (Thirty Thousand Rand) for the ",{"$nulls":10},"Item",{"$nulls":3},{"v":30000,"d":"R30,000.00"},null,{"$f":"Q69","v":{"v":30000,"d":"R30,000.00"}}]
[null,"supply, delivery and installation of general and fire signage"]
[]
[]
[]
[]
[]
["BILL No. 10"]
[null,"Bill No. 10 IRONMONGERY carried to summary"]

{"sheet":"Bill 11-Metal","index":10,"n_rows":79,"n_cols":19,"rows_kept":79,"merged":[[0,0,0,1],[0,2,1,17],[0,18,0,19],[1,0,1,1],[1,18,1,19],[2,1,4,11],[2,16,4,17],[3,12,3,13],[3,14,3,15],[3,18,3,19],[17,12,17,13],[17,14,17,15],[17,16,17,17],[17,18,17,19],[26,12,26,13],[26,14,26,15],[26,16,26,17],[26,18,26,19],[36,12,36,13],[36,14,36,15],[36,16,36,17],[36,18,36,19],[46,12,46,13],[46,14,46,15],[46,16,46,17],[46,18,46,19],[56,12,56,13],[56,14,56,15],[56,16,56,17],[56,18,56,19],[62,12,62,13],[62,14,62,15],[62,16,62,17],[62,18,62,19],[71,12,71,13],[71,14,71,15],[71,16,71,17],[71,18,71,19],[77,0,79,0],[78,18,78,19]]}
["CONTRACT NUMBER: ",null,{"$f":"'Bill 1-P&G'!C1","v":"CONSTRUCTION OF A NEW LAPA AND THE REFURBISHMENT OF GATE HOUSE AND ABLUTIONS, EXTERNAL AREAS AND THE INSPECTION AND WORKS TO EXISTING AND NEW SERVICES AT THE MOKOPANE BIODIVERSITY CONSERVATION CENTRE "},{"$nulls":15},"Bill"]
[{"$f":"'Bill 1-P&G'!A2","v":"G540/2024"},{"$nulls":17},11]
["Item","DESCRIPTION",{"$nulls":14},"RATE"]
["No.",{"$nulls":11},"UNIT",null,"QUANTITY",{"$nulls":3},"AMOUNT"]
[]
[]
[null,"BILL NO. 11"]
[]
[null,"METALWORK"]
[]
[null,"PRESSED STEEL DOOR FRAMES (SANS 1129)"]
[]
[null,"1,2mm Mild steel double rebated single door frame "]
[null,"suitable  for 110mm/220mm walls. Door frame to be "]
[null,"supplied complete  with 1 pair hinges, lugs, strike plate"]
[null,"and rubber buffers as  supplied by the manufacturer."]
[]
[1,"Door frame for door size 815 x 2032mm with two 100mm steel ",{"$nulls":10},"No",null,2]
[null,"butts  and slotted for lock strike"]
[]
[null,"MILD STEEL WINDOWS"]
[]
[null,"Standard profile steel windows with 4mm thick clear float "]
[null,"glass in black neoprene gaskets with matching aluminium "]
[null,"square beading plugged to brickwork, concrete, etc"]
[]
[2,"Window overall size 1511 x 654mm high",{"$nulls":10},"No",null,4]
[]
[null,"BURGLAR BARS"]
[]
[null,"Burglar bars to windows consisting of frame of40mm x 10mm "]
[null,"thick galvanised mild steel flat bar bolted to internal reveal of"]
[null,"brick wall, with bars of 12mm Diameter mild steel round bar "]
[null,"welded to flat bar frame at maximum 120mm centres All"]
[null," powder coated (colour to Architects specification)"]
[]
[3,"Burglar bars for window size 1511 x 654mm high",{"$nulls":10},"No",null,4]
[]
[null,"BLINDS"]
[]
[null,"Note: The pricing of all blinds to include all necessary support work"]
[]
[null,"Canvas Corporation or sirmilar and approved frameless"]
[null,"exterior quality UV resistant roller blinds fixed to purpose"]
[null,"made steel supports above including all connections etc."]
[]
[4,"Blinds for opening size approximately 3660 x 2645mm high",{"$nulls":10},"No",null,7]
[]
[null,"BRAAI STRUCTURE"]
[]
[null,"2 x Jet Master or equal and approved 1200 built in UNI mild "]
[null,"steel braai structure with flue and mild steel rotating cowl"]
[null," including nickel-plated grill, charcoal tray, light fittings and "]
[null,"slide-in and under reinforced door with handle and locking "]
[null,"eyes"]
[]
[5,"Braai unit",{"$nulls":10},"No",null,2]
[]
[null,"SUNDRIES"]
[]
[null,"Holding down bolts"]
[]
[6,"M16 HVU chemical anchor bolts 400mm long including nuts and ",{"$nulls":10},"No",null,64]
[null,"washers"]
[]
[null,"BUDGETARY ALLOWANCES"]
[]
[null,"The following Budgetary Allowances are for work to be"]
[null,"executed by the Main Contractor or specialist suppliers"]
[null,"and priced at Bill rates or rates to be agreed."]
[]
[7,"Provide the sum of R30 000.00 (Thirty Thousand) for chimney",{"$nulls":10},"Item",{"$nulls":3},{"v":30000,"d":"R30,000.00"},null,{"$f":"Q72","v":{"v":30000,"d":"R30,000.00"}}]
[null,"cowl  and general items still to be specified etc."]
[]
[]
[]
[]
["BILL No. 11"]
[null,"Bill No. 11 METALWORK carried to Summary"]

{"sheet":"Bill 12-Structural","index":11,"n_rows":313,"n_cols":19,"rows_kept":313,"merged":[[0,0,0,1],[0,2,1,17],[0,18,0,19],[1,0,1,1],[1,18,1,19],[2,1,4,11],[2,16,4,17],[3,12,3,13],[3,14,3,15],[3,18,3,19],[60,23,60,24],[77,0,79,0],[77,23,77,24],[78,18,78,19],[78,23,78,24],[79,23,79,24],[80,0,80,1],[80,2,81,17],[80,18,80,19],[80,23,80,24],[81,0,81,1],[81,18,81,19],[81,23,81,24],[82,2,84,11],[82,16,84,17],[82,23,82,24],[83,12,83,13],[83,14,83,15],[83,18,83,19],[83,23,83,24],[84,23,84,24],[101,23,101,24],[102,23,102,24],[104,23,104,24],[105,23,105,24],[106,23,106,24],[107,23,107,24],[118,23,118,24],[120,23,120,24],[132,23,132,24],[136,23,136,24],[158,0,160,0],[158,23,158,24],[159,18,159,19],[159,23,159,24],[160,23,160,24],[161,0,161,1],[161,2,162,17],[161,18,161,19],[162,0,162,1],[162,18,162,19],[163,2,165,11],[163,16,165,17],[164,12,164,13],[164,14,164,15],[164,18,164,19],[208,12,208,13],[208,14,208,15],[208,16,208,17],[208,18,208,19],[210,12,210,13],[210,14,210,15],[210,16,210,17],[210,18,210,19],[212,12,212,13],[212,14,212,15],[212,16,212,17],[212,18,212,19],[214,12,214,13],[214,14,214,15],[214,16,214,17],[214,18,214,19],[216,12,216,13],[216,14,216,15],[216,16,216,17],[216,18,216,19],[217,12,217,13],[217,14,217,15],[217,16,217,17],[217,18,217,19],[218,12,218,13],[218,14,218,15],[218,16,218,17],[218,18,218,19],[219,12,219,13],[219,14,219,15],[219,16,219,17],[219,18,219,19],[220,12,220,13],[220,14,220,15],[220,16,220,17],[220,18,220,19],[222,12,222,13],[222,14,222,15],[222,16,222,17],[222,18,222,19],[234,0,236,0],[235,18,235,19],[237,0,237,1],[237,2,238,17],[237,18,237,19],[238,0,238,1],[238,18,238,19],[239,2,241,11],[239,16,241,17],[240,12,240,13],[240,14,240,15],[240,18,240,19],[243,18,243,19],[244,18,244,19],[247,12,247,13],[247,18,247,19],[249,12,249,13],[249,18,249,19],[251,12,251,13],[251,18,251,19],[311,0,313,0],[312,18,312,19]]}
["CONTRACT NUMBER: ",null,{"$f":"'Bill 1-P&G'!C1","v":"CONSTRUCTION OF A NEW LAPA AND THE REFURBISHMENT OF GATE HOUSE AND ABLUTIONS, EXTERNAL AREAS AND THE INSPECTION AND WORKS TO EXISTING AND NEW SERVICES AT THE MOKOPANE BIODIVERSITY CONSERVATION CENTRE "},{"$nulls":15},"Bill"]
[{"$f":"'Bill 1-P&G'!A2","v":"G540/2024"},{"$nulls":17},12]
["Item","DESCRIPTION",{"$nulls":14},"RATE"]
["No.",{"$nulls":11},"UNIT",null,"QUANTITY",{"$nulls":3},"AMOUNT"]
[]
[]
[null,"BILL NO. 12"]
[]
[null,"STRUCTURAL WORK"]
[]
[null,"SUPPLEMENTARY PREAMBLES"]
[]
[null,"1.   Shop drawings"]
[]
[null,"The contractor will be required to prepare shop details for the work "]
[null,"which must be submitted to the Engineer for approval before "]
[null,"fabrication is started.  Approval of shop details by the Engineer "]
[null,"will include the following:"]
[]
[null,"a) Examination of member sizes for consistency with design "]
[null,"requirements,"]
[]
[null,"b) Examination of all connections designed and/or detailed by the "]
[null,"fabricator, for adequacy of load trasference,"]
[]
[null,"c) Approval of leading dimensions which are taken to include such "]
[null,"dimensions as may influence the design (eg, depth of trusses and "]
[null,"girders) or which may grossly affect site programme (eg, truss "]
[null,"spans and stanchion heights)."]
[]
[null,"Not withstanding any approval of these details, the contractor shall "]
[null,"remain responsible for ensuring that the dimensions, details and "]
[null,"workmanship result in the correct assembly of the work."]
[]
[null,"2.   Material and workmanship"]
[]
[null,"The steelwork is to be fabricated from mild steel to SANS 1431 "]
[null,"Grade 350W. The whole of the fabrication and workmanship "]
[null,"generally is to be in strict accordance with SANS 0162-1984 as "]
[null,"amended. The material shall be of best quality throughout, free from "]
[null,"loose rust or millscale, true to thickness and profile throughout and "]
[null,"of the section and mass specified subject to a 2% tolerance for "]
[null,"rolling margin.  Consideration will be given to any detail variation "]
[null,"which the contractor may wish to make with the view to the "]
[null,"simplification of either fabrication, delivery or erection. Substitutions "]
[null,"must be made at the contractor's own expense."]
[]
[null,"The contractor shall provide Works Test Certificates where so "]
[null,"required by the Engineer."]
[]
[null,"3.   Testing"]
[]
[null,"The Engineer shall be at liberty to select test pieces from      "]
[null,"steelwork in the workshop or on the site and to have them      "]
[null,"tested. The expense of such tests are to be borne by the contractor"]
[null,"if the steelwork does not comply with the standards laid down "]
[null,"above."]
[]
[null,"4.   Hold down bolts"]
[]
[null,"Holding down bolts and other fixing devices which are to  be "]
[null,"embedded in concrete must be supplied to the principal  contractor "]
[null,"on request together with the necessary information, identification"]
[null,"and templates."]
[]
[null,"2mm Mild steel plate templates provided on a scale of one template"]
[null,"for every five groups of bolts, suitably marked to ensure easy"]
[null,"identification are to be supplied to the principal contractor."]
[]
[null,"Any costs incurred by subsequent repositioning of bolts, etc. "]
[null,"resulting from the contractor having failed to furnish adequate "]
[null,"information, identification and templates will be for the contractor's "]
[null,"account."]
[]
[]
[]
[]
["BILL No. 12"]
[null,"Bill No. 12 STRUCTURAL WORK carried to collection"]
[]
["CONTRACT NUMBER: ",null,{"$f":"C1","v":"CONSTRUCTION OF A NEW LAPA AND THE REFURBISHMENT OF GATE HOUSE AND ABLUTIONS, EXTERNAL AREAS AND THE INSPECTION AND WORKS TO EXISTING AND NEW SERVICES AT THE MOKOPANE BIODIVERSITY CONSERVATION CENTRE "},{"$nulls":15},"Bill"]
[{"$f":"A2","v":"G540/2024"},{"$nulls":17},{"$f":"S2","v":12}]
["ITEM","PAYMENT","DESCRIPTION",{"$nulls":13},"RATE"]
["NO","REFERS",{"$nulls":10},"UNIT",null,"QUANTITY",{"$nulls":3},"AMOUNT"]
[null,"TO"]
[]
[null,"5.   Welding"]
[]
[null,"Welding shall be in accordance with SABS 044 \"Welding: "]
[null,"Parts I, II and III\", E70XX"]
[]
[null,"Welding shall be carried out in a manner which will prevent any "]
[null,"distortion of the weld or the parent section."]
[]
[null,"All welds shall have adequate root fusion and shall be free from "]
[null,"cracks, porosity or other irregularities and any undercutting shall "]
[null,"be made good by the deposition of additional runs of weld metal."]
[]
[null,"Any completed welds showing cracks, cavities or other efects shall "]
[null,"be cut out and made good at the contractor's  own expense."]
[]
[null,"Mild steel electrodes shall comply with SABS 455 \"Covered "]
[null,"Electrodes for Manual Arc Welding of Mild Steel and Medium "]
[null,"High Tensile Steel\"."]
[]
[null,"6.   Bolts"]
[]
[null,"Bolts shall have well-formed heads forged from the solid. Nuts shall "]
[null,"closely fit the bolts so that they can only just be turned by hand and"]
[null,"at least one clear thread shall project beyond the nut when fully "]
[null,"tightened. All bolts shall have one washer under the nuts and shall "]
[null,"be so tightened that the threaded portion does not bear on the "]
[null,"members connected.  "]
[]
[null,"Where bolt heads or nuts bear upon bevelled  surfaces they shall be "]
[null,"provided with tapered washers of 2,3 mm mean thickness to provide "]
[null,"a seating square with the axis of the bolt."]
[]
[null,"7.   Friction grip bolts"]
[]
[null,"Connections specifying high strength friction grip bolts are to be in"]
[null,"strict accordance with SABS 094 \"Bolted Friction Grip Joints in ."]
[null,"Structural Steelwork\" and the bolts used are to be in accordance "]
[null,"with BS 3139 Part 1 : 1959 \"General Grade Bolts, High Strength "]
[null,"Friction Grip Bolts for Structural Engineering\""]
[]
[null,"Notwithstanding the above, the following must be rigidly adhered to :"]
[]
[null,"a) Two-case hardened washers, one flat or bevelled under the head "]
[null,"and the other flat or bevelled under the nut shall be used with each"]
[null,"bolt."]
[]
[null,"b) Contact surfaces shall not be painted and shall be thoroughly "]
[null,"cleaned free of dirt, oil, loose scale, burrs and other defects which "]
[null,"are liable to reduce friction resistnace between surfaces."]
[]
[null,"c) At all times the correct torques shall be applied to the "]
[null,"different sizes of bolts."]
[]
[null,"8.   Erection"]
[]
[null,"The steelwork generally is to be fabricated in the contractor's works "]
[null,"having due regard to transport and erection facilities.  He must "]
[null,"supply all erection tackle, temporary erection bracing, erect and "]
[null,"plumb all steelwork and supply all steel wedges and tacks as "]
[null,"required.  "]
[]
[null,"Items may be detailed for delivery \"piece small\" or the contractor may "]
[null,"prefabricate if he is satisfied that suitable  arrangements for transport "]
[null,"can be made."]
[]
[null,"Connections are to be designed for the forces indicated on  the "]
[null,"drawings or to the maximum capacity of the members."]
[]
[]
[]
[]
[]
[{"$f":"A78","v":"BILL No. 12"}]
[null,{"$f":"B79","v":"Bill No. 12 STRUCTURAL WORK carried to collection"}]
[]
["CONTRACT NUMBER: ",null,{"$f":"C81","v":"CONSTRUCTION OF A NEW LAPA AND THE REFURBISHMENT OF GATE HOUSE AND ABLUTIONS, EXTERNAL AREAS AND THE INSPECTION AND WORKS TO EXISTING AND NEW SERVICES AT THE MOKOPANE BIODIVERSITY CONSERVATION CENTRE "},{"$nulls":15},"Bill"]
[{"$f":"A82","v":"G540/2024"},{"$nulls":17},{"$f":"S82","v":12}]
["ITEM","PAYMENT","DESCRIPTION",{"$nulls":13},"RATE"]
["NO","REFERS",{"$nulls":10},"UNIT",null,"QUANTITY",{"$nulls":3},"AMOUNT"]
[null,"TO"]
[]
[null,"9.   Cleaning and painting"]
[]
[null,"All structural steel is to be thoroughly degreased to remove all"]
[null,"grease or oil and then wire-brushed, scraped or sand-papered to"]
[null,"remove all rust, mill-scale or surface  contaminations and is to be "]
[null,"immediately given one coatzinc chromate, allowed to dry overnight "]
[null,"and given one  coat of universal undercoat prior to delivery to site.  "]
[null,"All damaged paintwork is to be made good on site after erection is "]
[null,"complete.  (also refer to 12 below)  "]
[]
[null,"All structural steel pricing is  deemed to  include for paint work."]
[]
[null,"10.  Testing of welders"]
[]
[null,"Tenderers must include in their rates for the testing of any welder "]
[null,"used on the work who has not been tested within a period of six "]
[null,"months immediately preceding his employment on this contract."]
[]
[null,"11.  Further notes"]
[]
[null,"Also refer to the structural steelwork notes indicated on the       "]
[null,"Engineer's relevant structural drawings."]
[]
[null,"12.  Painting/corrosion protection options"]
[]
[null,"Painted Steelwork\"° All steelwork below surface to be painted with "]
[null,"two layers of bitumen paint\"° All steelwork surfaces to be painted "]
[null,"and must be free of mill shale, corrosion, grease or dust\"° All "]
[null,"steelwork to be cleaned with wire brush in accordance with  "]
[null,"SABS 1200HC prior to coating\"° All structural steel shall be be "]
[null,"hot-dip galvanised to SANS 121/ISO 1461 "]
[null,"(Heavy Duty Application) \"° All steelwork exposed surfaces to be "]
[null,"coated with two layers of alkyd enamel paint as final coat "]
[null,"(dark charcoal colour to architect specification)"]
[]
[null,"STEEL COLUMNS, BEAMS, POSTS, ETC. (PAINTED)"]
[]
[null,"Galvanised welded beams/columns in single lengths with flat "]
[null,"section bearer and connection plates bolted to columns and "]
[null,"all necessary fittings, etc."]
[]
[1,"150 x 75 x 20 x 2.5mm Cold formed lipped channels",{"$nulls":10},"t",null,2]
[]
[2,"152 x 152 x 23kg/m H-Section beams",{"$nulls":10},"t",null,0.3]
[]
[3,"203 x 133 x 25kg/m I-section beams",{"$nulls":10},"t",null,4.4]
[]
[4,"254 x 146 x 31kg/m I-section columns",{"$nulls":10},"t",null,1.1]
[]
[5,"70 x 70 x 6mm Thick angle",{"$nulls":10},"t",null,0.4]
[]
[null,"SUNDRIES"]
[]
[null,"BOLTS, FASTENERS, ETC"]
[]
[6,"High strength M20 HD grade 8.8 bolts",{"$nulls":10},"No",null,48]
{"$rows_empty":11}
[{"$f":"A159","v":"BILL No. 12"}]
[null,{"$f":"B160","v":"Bill No. 12 STRUCTURAL WORK carried to collection"}]
[]
["CONTRACT NUMBER: ",null,{"$f":"C1","v":"CONSTRUCTION OF A NEW LAPA AND THE REFURBISHMENT OF GATE HOUSE AND ABLUTIONS, EXTERNAL AREAS AND THE INSPECTION AND WORKS TO EXISTING AND NEW SERVICES AT THE MOKOPANE BIODIVERSITY CONSERVATION CENTRE "},{"$nulls":15},"Bill"]
[{"$f":"A2","v":"G540/2024"},{"$nulls":17},{"$f":"S163","v":12}]
["ITEM","PAYMENT","DESCRIPTION",{"$nulls":13},"RATE"]
["NO","REFERS",{"$nulls":10},"UNIT",null,"QUANTITY",{"$nulls":3},"AMOUNT"]
[null,"TO"]
[]
[null,{"$f":"B9","v":"STRUCTURAL WORK"}]
[]
[null,"COLLECTION"]
[]
[null,"Total Brought Forward from Page No.",{"$nulls":10},157]
[]
[{"$nulls":12},{"$f":"M248+1","v":158}]
[]
[{"$nulls":12},{"$f":"M250+1","v":159}]
{"$rows_empty":59}
[{"$f":"A235","v":"BILL No. 12"}]
[null,"Bill No. 12 STRUCTURAL WORK carried to Summary"]

{"sheet":"Bill 13-Plastering","index":12,"n_rows":77,"n_cols":19,"rows_kept":77,"merged":[[0,0,0,1],[0,2,1,17],[0,18,0,19],[1,0,1,1],[1,18,1,19],[2,1,4,11],[2,16,4,17],[3,12,3,13],[3,14,3,15],[3,18,3,19],[21,12,21,13],[21,14,21,15],[21,16,21,17],[21,18,21,19],[23,12,23,13],[23,14,23,15],[23,16,23,17],[23,18,23,19],[33,12,33,13],[33,14,33,15],[33,16,33,17],[33,18,33,19],[35,12,35,13],[35,14,35,15],[35,16,35,17],[35,18,35,19],[39,23,39,24],[44,12,44,13],[44,14,44,15],[44,16,44,17],[44,18,44,19],[46,12,46,13],[46,14,46,15],[46,16,46,17],[46,18,46,19],[51,12,51,13],[51,14,51,15],[51,16,51,17],[51,18,51,19],[59,12,59,13],[59,14,59,15],[59,16,59,17],[59,18,59,19],[66,12,66,13],[66,14,66,15],[66,16,66,17],[66,18,66,19],[67,23,67,24],[75,0,77,0],[75,23,75,24],[76,18,76,19],[76,23,76,24],[77,23,77,24]]}
["CONTRACT NUMBER: ",null,{"$f":"'Bill 1-P&G'!C1","v":"CONSTRUCTION OF A NEW LAPA AND THE REFURBISHMENT OF GATE HOUSE AND ABLUTIONS, EXTERNAL AREAS AND THE INSPECTION AND WORKS TO EXISTING AND NEW SERVICES AT THE MOKOPANE BIODIVERSITY CONSERVATION CENTRE "},{"$nulls":15},"Bill"]
[{"$f":"'Bill 1-P&G'!A2","v":"G540/2024"},{"$nulls":17},13]
["Item","DESCRIPTION",{"$nulls":14},"RATE"]
["No.",{"$nulls":11},"UNIT",null,"QUANTITY",{"$nulls":3},"AMOUNT"]
[]
[]
[null,"BILL NO. 13"]
[]
[null,"PLASTERING"]
[]
[null,"All floors/screeds to be laid according to SABS 0155 - 1980 "]
[null,"Accuracy in Buildings and SABS 0155-1980."]
[]
[null,"SCREEDS"]
[]
[null,"Cement screed with min 25MPa strength to comply with "]
[null,"SANS 10109. Thickness based on desired finish level and"]
[null,"on the  surface variations of the concrete sub-base"]
[null,"ensuring the minimum specified thickness of toppings."]
[null,"To be finished with wood float"]
[]
[1,"Approximately 35mm thick on floors and landings",{"$nulls":10},"m2",null,141]
[]
[2,"25mm Thick on ramps",{"$nulls":10},"m2",null,5]
[]
[null,"EXTERNAL PLASTER"]
[]
[null,"15mm Thick wood floated sand/cement plaster, Class II mix. "]
[null,"Surface to be dry, sound and clean and cured for a minimum"]
[null,"of 14 days, with a moisture content measured with a Doser "]
[null,"Hygrometer (or equivalent), of BD 2 scale - 8% or less all as "]
[null,"per Architects detail, specification and approval"]
[]
[3,"On external walls and columns",{"$nulls":10},"m2",null,103]
[]
[4,"Behind stone wall finish",{"$nulls":10},"m2",null,105]
[]
[null,"INTERNAL PLASTER"]
[]
[null,"15mm Thick wood floated sand/cement plaster on Class II "]
[null,"mix, surface to be dry, sound and clean and cured for a "]
[null,"minimum of 14 days, with a moisture content measured with "]
[null,"a Doser  hygrometer (or equivalent), of BD 2 scale-8% or less"]
[]
[5,"On internal walls",{"$nulls":10},"m2",null,240]
[]
[6,"On narrow widths",{"$nulls":10},"m2",null,4]
[]
[null,"15mm Thick cement plaster on brickwork to receive tiling as"]
[null,"per Architects detail, specification and approval"]
[]
[7,"On walls to receive tiling",{"$nulls":10},"m2",null,5]
[]
[null,"POLISH, SEALERS, ETC"]
[]
[null,"Prepare and apply a.b.e Construction Chemicals abecote WD "]
[null,"337 solvent-free water dispersed epoxy coating, all in "]
[null,"accordance with the manufacturer's instructions"]
[]
[8,"On screed floors",{"$nulls":10},"m2",null,146]
[]
[null,"GRANOLITHIC FINISH ON CONCRETE"]
[]
[null,"35mm Thick grano finish tinted with Powafix or similar and"]
[null,"approved yellow oxide tinting powder"]
[]
[9,"On surface beds and ramps",{"$nulls":10},"m2",null,146]
{"$rows_empty":8}
["BILL No. 13"]
[null,"Bill No. 13 PLASTERING carried to summary"]

{"sheet":"Bill 14- Tile","index":13,"n_rows":79,"n_cols":19,"rows_kept":79,"merged":[[0,0,0,1],[0,2,1,17],[0,18,0,19],[1,0,1,1],[1,18,1,19],[2,1,4,11],[2,16,4,17],[3,12,3,13],[3,14,3,15],[3,18,3,19],[45,12,45,13],[45,14,45,15],[45,16,45,17],[45,18,45,19],[45,23,45,24],[49,12,49,13],[49,14,49,15],[49,16,49,17],[49,18,49,19],[52,23,52,24],[68,23,68,24],[70,23,70,24],[76,23,76,24],[77,0,79,0],[77,23,77,24],[78,18,78,19],[78,23,78,24],[79,23,79,24]]}
["CONTRACT NUMBER: ",null,{"$f":"'Bill 1-P&G'!C1","v":"CONSTRUCTION OF A NEW LAPA AND THE REFURBISHMENT OF GATE HOUSE AND ABLUTIONS, EXTERNAL AREAS AND THE INSPECTION AND WORKS TO EXISTING AND NEW SERVICES AT THE MOKOPANE BIODIVERSITY CONSERVATION CENTRE "},{"$nulls":15},"Bill"]
[{"$f":"'Bill 1-P&G'!A2","v":"G540/2024"},{"$nulls":17},14]
["Item","DESCRIPTION",{"$nulls":14},"RATE"]
["No.",{"$nulls":11},"UNIT",null,"QUANTITY",{"$nulls":3},"AMOUNT"]
[]
[]
[null,"BILL NO. 14"]
[]
[null,"TILING"]
[]
[null,"Patterns"]
[]
[null,"Unless otherwise described, tiles shall be laid with continuous joints "]
[null,"in both directions"]
[]
[null,"Fixing"]
[]
[null,"Unless described as \"fixed with adhesive to plaster "]
[null,"(plaster elsewhere)\" descriptions of tiling on brick or concrete walls, "]
[null,"columns, etc shall be deemed to include 1:4 cement plaster backing "]
[null,"and descriptions of tiling on concrete floors etc shall be deemed to "]
[null,"include 1:3 plaster bedding"]
[]
[null,"Tiling described as \"fixed with adhesive on power floated concrete\""]
[null," shall be deemed to include for approved tiling key-coat"]
[]
[null,"Ceramic, porcelain, marble and granite tiles are to be fixed and "]
[null,"grouted with suitable adhesives and grouts as recommended by "]
[null,"the manufacturer of the tiles"]
[]
[null,"Sealant"]
[]
[null,"Rates to include for white silicone sealant to be applied between all "]
[null,"sanitary fittings and tile finishes"]
[]
[null,"WALL TILING"]
[]
[null,"300 x 300 x 5mm thick Glazed ceramic wall tiles (PC amount "]
[null,"R 250.00 / m2, excluding VAT, but including delivery) fixed to"]
[null,"wall plaster with Pro Grip adhesive mixed with approved"]
[null,"bonding liquid in lieu of water 3mm joints continuous in one"]
[null,"direction and half length staggered in the other direction and"]
[null,"grouted with  approved anti bacterial & chemical resistant"]
[null,"epoxy tile grout."]
[]
[1,"On walls",{"$nulls":10},"m2",null,5]
[]
[null,"Sundries: Genesis or similar and approved"]
[]
[2,"Brushed aluminium straight edge trim size approximately 10/12mm ",{"$nulls":10},"m",null,7]
[null,"wide x thickness of tile to exposed wall tile edges, corners, etc. as "]
[null,"per Architects detail and specification"]
{"$rows_empty":25}
["BILL No. 14"]
[null,"Bill No. 14 TILING carried to summary"]

{"sheet":"Bill 15-Plumbing","index":14,"n_rows":236,"n_cols":19,"rows_kept":236,"merged":[[0,0,0,1],[0,2,1,17],[0,18,0,19],[1,0,1,1],[1,18,1,19],[2,1,4,11],[2,16,4,17],[3,12,3,13],[3,14,3,15],[3,18,3,19],[24,16,24,17],[27,12,27,13],[27,14,27,15],[27,16,27,17],[27,18,27,19],[29,12,29,13],[29,14,29,15],[29,16,29,17],[29,18,29,19],[31,12,31,13],[31,14,31,15],[31,16,31,17],[31,18,31,19],[33,12,33,13],[33,14,33,15],[33,16,33,17],[33,18,33,19],[40,12,40,13],[40,14,40,15],[40,16,40,17],[40,18,40,19],[42,12,42,13],[42,14,42,15],[42,16,42,17],[42,18,42,19],[44,12,44,13],[44,14,44,15],[44,16,44,17],[44,18,44,19],[48,12,48,13],[48,14,48,15],[48,16,48,17],[48,18,48,19],[56,23,56,24],[58,12,58,13],[58,14,58,15],[58,16,58,17],[58,18,58,19],[65,12,65,13],[65,14,65,15],[65,16,65,17],[65,18,65,19],[68,12,68,13],[68,14,68,15],[68,16,68,17],[68,18,68,19],[71,12,71,13],[71,14,71,15],[71,16,71,17],[71,18,71,19],[77,0,79,0],[77,23,77,24],[78,18,78,19],[78,23,78,24],[79,23,79,24],[80,0,80,1],[80,2,81,17],[80,18,80,19],[80,23,80,24],[81,0,81,1],[81,18,81,19],[81,23,81,24],[82,2,84,11],[82,16,84,17],[82,23,82,24],[83,12,83,13],[83,14,83,15],[83,18,83,19],[83,23,83,24],[84,23,84,24],[86,12,86,13],[86,14,86,15],[86,16,86,17],[86,18,86,19],[111,12,111,13],[111,14,111,15],[111,16,111,17],[111,18,111,19],[113,12,113,13],[113,14,113,15],[113,16,113,17],[113,18,113,19],[117,12,117,13],[117,14,117,15],[117,16,117,17],[117,18,117,19],[131,23,131,24],[132,23,132,24],[133,12,133,13],[133,14,133,15],[133,16,133,17],[133,18,133,19],[133,23,133,24],[134,23,134,24],[136,23,136,24],[137,23,137,24],[141,12,141,13],[141,14,141,15],[141,16,141,17],[141,18,141,19],[141,23,141,24],[142,23,142,24],[144,23,144,24],[157,0,159,0],[157,23,157,24],[158,18,158,19],[158,23,158,24],[159,23,159,24],[160,0,160,1],[160,2,161,17],[160,18,160,19],[161,0,161,1],[161,18,161,19],[162,2,164,11],[162,16,164,17],[163,12,163,13],[163,14,163,15],[163,18,163,19],[166,18,166,19],[168,18,168,19],[169,18,169,19],[170,12,170,13],[170,18,170,19],[172,12,172,13],[172,18,172,19],[234,0,236,0],[235,18,235,19]]}
["CONTRACT NUMBER: ",null,{"$f":"'Bill 1-P&G'!C1","v":"CONSTRUCTION OF A NEW LAPA AND THE REFURBISHMENT OF GATE HOUSE AND ABLUTIONS, EXTERNAL AREAS AND THE INSPECTION AND WORKS TO EXISTING AND NEW SERVICES AT THE MOKOPANE BIODIVERSITY CONSERVATION CENTRE "},{"$nulls":15},"Bill"]
[{"$f":"'Bill 1-P&G'!A2","v":"G540/2024"},{"$nulls":17},15]
["Item","DESCRIPTION",{"$nulls":14},"RATE"]
["No.",{"$nulls":11},"UNIT",null,"QUANTITY",{"$nulls":3},"AMOUNT"]
[]
[]
[null,"BILL NO. 15"]
[]
[null,"PLUMBING & DRAINAGE"]
[]
[null,"SUPPLEMENTARY PREAMBLES"]
[]
[null,"Sealing of edges"]
[]
[null,"Outer edges of sinks, basins, baths, urinals, etc are to be sealed "]
[null,"against adjacent surfaces with approved silicone"]
[]
[null,"ROOF GUTTERS, RAINWATER PIPES, ETC"]
[]
[null,"Aluminium powder coated seamless gutter, overall size "]
[null,"100 x 100 x 0,6mm thick coated internally and externally "]
[null,"including cut and mitred angles covered with a mitre strip "]
[null,"externally, stop ends crimped and all sealed on the inside"]
[null,"with silicone sealer, secured to fascia with 20 x 2,5mm"]
[null,"internal  hanger brackets at 600mm centres using pop"]
[null,"rivets, etc."]
[]
[1,"100 x 100 x 0,6mm Thick seamless gutter",{"$nulls":10},"m",null,56]
[]
[2,"Extra over gutter for corners",{"$nulls":10},"No",null,6]
[]
[3,"Extra over gutter for stop ends",{"$nulls":10},"No",null,7]
[]
[4,"Extra over gutter for outlets",{"$nulls":10},"No",null,7]
[]
[null,"100mm Diameter thick aluminium powder coated downpipe"]
[null," fixed to wall with straps at 1500mm centres using nail plugs, "]
[null,"with  downpipes riveted and silicone sealed to gutter outlets, "]
[null,"including all necessary bends, elbows, shoes etc."]
[]
[5,"100mm Diameter thick aluminium downpipe",{"$nulls":10},"m",null,16]
[]
[6,"Extra over downpipe for shoe",{"$nulls":10},"No",null,5]
[]
[7,"Extra over for 300mm offset projection",{"$nulls":10},"No",null,5]
[]
[null,"SANITARY FITTINGS"]
[]
[8,"Franke Projectline PLN 621 polished stainless steel double end ",{"$nulls":10},"No",null,1]
[null,"bowl  inset sink, overall size approximately 1160 x 460mm with two "]
[null,"140mm deep bowls, including 38mm waste fittings, with Marley or "]
[null,"similar and approved double drain black rubber deap seal P-trap "]
[null,"with a T-Junction and elbow, neatly penetrated through any shelving "]
[null,"and  concealed below counter, to be installed completer onto"]
[null," counter top  as specified by Architects detail and specification"]
[]
[null,"TAPS, VALVES, ETC"]
[]
[9,"Cobra Watertech (Code 166/041/1CA) or similar and approved ",{"$nulls":10},"No",null,1]
[null,"Carina wall mounted sink mixer tap with swivel outlet supplied "]
[null,"complete with concealed connections and flange cover plates"]
[null,"including under counter Cobra Watertech (Code 628CA-20) or "]
[null,"similar and approved Carina under wall stop taps for hot and cold "]
[null,"water"]
[]
[10,"Cobra watertech (Code 232-10) or similar and approved angle ",{"$nulls":10},"No",null,1]
[null,"regulating valve with sliding flange in chrome finish"]
[]
[11,"Cobra Watertech or similar and approved braided flexible inlet ",{"$nulls":10},"No",null,1]
[null,"tubing, blue and red"]
[]
[12,"Cobra Watertech (Code 311) or similar and approved unslotted sink ",{"$nulls":10},"No",null,1]
[null,"waste complete with plug, flange, shank, male outlet, connection "]
[null,"and backnut in chrome finish"]
[]
[]
[]
["BILL No. 15"]
[null,"Bill No. 15 PLUMBING & DRAINAGE carried to collection"]
[]
["CONTRACT NUMBER: ",null,{"$f":"C1","v":"CONSTRUCTION OF A NEW LAPA AND THE REFURBISHMENT OF GATE HOUSE AND ABLUTIONS, EXTERNAL AREAS AND THE INSPECTION AND WORKS TO EXISTING AND NEW SERVICES AT THE MOKOPANE BIODIVERSITY CONSERVATION CENTRE "},{"$nulls":15},"Bill"]
[{"$f":"A2","v":"G540/2024"},{"$nulls":17},{"$f":"S2","v":15}]
["ITEM","PAYMENT","DESCRIPTION",{"$nulls":13},"RATE"]
["NO","REFERS",{"$nulls":10},"UNIT",null,"QUANTITY",{"$nulls":3},"AMOUNT"]
[null,"TO"]
[]
[13,"Precast concrete gulley size approximately 445 x 430 x 165mm with ",{"$nulls":10},"No",null,1]
[null,"125mm diameter hole with PVC grid cover per gully position"]
[null,"including underground  110mm PVC gulley P-trap exceeding "]
[null,"500mm and not exceeding 750mm deep"]
[]
[null,"PLUMBING"]
[]
[null,"Sanitary plumbing & water supply (measured per point)"]
[]
[null,"Provide all necessary in class II copper piping, branches,"]
[null,"pipe  fittings, valves as required for cold water supply from"]
[null,"main  water supply point at perimeter of building to the"]
[null," following  sanitary fittings, complete"]
[]
[null,"Provide all necessary in class II copper piping, brances, pipe"]
[null,"fittings, valve all insulated with an R-value of \"1\" and as "]
[null,"required for hot water supply from central geyser/hot water "]
[null,"supply to the following sanitary fittings, complete"]
[]
[null,"Provide 50/75mm PVC waste piping to the following sanitary "]
[null,"fittings to be discharged into 110mm HDPE sub surface soil "]
[null,"piping on the same level (elsewhere) or current stack system "]
[null,"where shown, including any necessary fittings, trenches "]
[null,"complete"]
[]
[14,"Sink (hot and cold water and waste)",{"$nulls":10},"No",null,1]
[]
[15,"Geyser/Hot water supply",{"$nulls":10},"No",null,1]
[]
[null,"ELECTRIC WATER HEATERS"]
[]
[16,"Kwikot or similar and approved 50 Litre Superline 400 Dual electric ",{"$nulls":10},"No",null,1]
[null,"water heater (Code: DSG-50-5) complying with SABS 151-2002, "]
[null,"overall size 535 x 543mm high fitted with isolator switch, operating at "]
[null,"400kPa temperature and pressure safety relief valve including "]
[null,"20mm female draincock with inlet compression. Geyser to be "]
[null,"installed horizontally in roof space with 600 x 600mm wide"]
[null," polyethylene drip tray with union  and back nut connected to 20mm "]
[null,"PVC overflow pipe taken out at  eaves (Code: GSTP-1200) and "]
[null,"22mm pipe work including  two 22mm vacuum breakers "]
[null,"(Code: KHN4.200CX) installed on hot and cold water supply. "]
[null,"Installation to include a Kwikot Multi control and expansion  relief "]
[null,"valve, all in accordance with SANS 10254,  connected to single  "]
[null,"phase electrical power supply."]
[]
[null,"TESTING"]
[]
[17,"Testing water pipe system (per building)",{"$nulls":10},"No",null,1]
[]
[null,"BUDGETARY ALLOWANCES"]
[]
[null,"The following Budgetary Allowances are for work to be"]
[null," executed by the Main Contractor or specialist suppliers and"]
[null," priced at Bill  rates or rates to be agreed."]
[]
[18,"Provide the sum of R15 000.00 (Fifteen Thousand) for additional ",{"$nulls":10},"Item",{"$nulls":5},{"v":15000,"d":"R15,000.00"}]
[null,"general work sill to be designed and will/may be carried out by the "]
[null,"contractor"]
{"$rows_empty":13}
[{"$f":"A78","v":"BILL No. 15"}]
[null,"Bill No. 15 Plumbing carried to collection"]
[]
["CONTRACT NUMBER: ",null,{"$f":"C1","v":"CONSTRUCTION OF A NEW LAPA AND THE REFURBISHMENT OF GATE HOUSE AND ABLUTIONS, EXTERNAL AREAS AND THE INSPECTION AND WORKS TO EXISTING AND NEW SERVICES AT THE MOKOPANE BIODIVERSITY CONSERVATION CENTRE "},{"$nulls":15},"Bill"]
[{"$f":"A82","v":"G540/2024"},{"$nulls":17},{"$f":"S82","v":15}]
["ITEM","PAYMENT","DESCRIPTION",{"$nulls":13},"RATE"]
["NO","REFERS",{"$nulls":10},"UNIT",null,"QUANTITY",{"$nulls":3},"AMOUNT"]
[null,"TO"]
[]
[null,{"$f":"B9","v":"PLUMBING & DRAINAGE"}]
[]
[null,"COLLECTION"]
[]
[null,"Total Brought Forward from Page No.",{"$nulls":10},163]
[]
[{"$nulls":12},{"$f":"M171+1","v":164}]
{"$rows_empty":61}
[{"$f":"A158","v":"BILL No. 15"}]
[null,"Bill No. 15 PLUMBING & DRAINAGE carried to Summary"]

{"sheet":"Bill 16-Painting","index":15,"n_rows":233,"n_cols":19,"rows_kept":233,"merged":[[0,0,0,1],[0,2,1,17],[0,18,0,19],[1,0,1,1],[1,18,1,19],[2,1,4,11],[2,16,4,17],[3,12,3,13],[3,14,3,15],[3,18,3,19],[65,23,65,24],[70,12,70,13],[70,14,70,15],[70,16,70,17],[70,18,70,19],[72,12,72,13],[72,14,72,15],[72,16,72,17],[72,18,72,19],[76,0,78,0],[76,23,76,24],[77,18,77,19],[77,23,77,24],[78,23,78,24],[79,0,79,1],[79,2,80,17],[79,18,79,19],[79,23,79,24],[80,0,80,1],[80,18,80,19],[80,23,80,24],[81,2,83,11],[81,16,83,17],[81,23,81,24],[82,12,82,13],[82,14,82,15],[82,18,82,19],[82,23,82,24],[83,23,83,24],[91,12,91,13],[91,14,91,15],[91,16,91,17],[91,18,91,19],[100,12,100,13],[100,14,100,15],[100,16,100,17],[100,18,100,19],[102,12,102,13],[102,14,102,15],[102,16,102,17],[102,18,102,19],[103,23,103,24],[104,12,104,13],[104,14,104,15],[104,16,104,17],[104,18,104,19],[104,23,104,24],[105,23,105,24],[106,23,106,24],[108,23,108,24],[110,23,110,24],[112,12,112,13],[112,14,112,15],[112,16,112,17],[112,18,112,19],[113,23,113,24],[114,12,114,13],[114,14,114,15],[114,16,114,17],[114,18,114,19],[117,12,117,13],[117,14,117,15],[117,16,117,17],[117,18,117,19],[118,23,118,24],[120,23,120,24],[124,12,124,13],[124,14,124,15],[124,16,124,17],[124,18,124,19],[126,12,126,13],[126,14,126,15],[126,16,126,17],[126,18,126,19],[126,23,126,24],[128,12,128,13],[128,14,128,15],[128,16,128,17],[128,18,128,19],[128,23,128,24],[129,23,129,24],[130,23,130,24],[131,23,131,24],[132,23,132,24],[154,0,156,0],[154,23,154,24],[155,18,155,19],[155,23,155,24],[156,23,156,24],[157,0,157,1],[157,2,158,17],[157,18,157,19],[158,0,158,1],[158,18,158,19],[159,2,161,11],[159,16,161,17],[160,12,160,13],[160,14,160,15],[160,18,160,19],[163,18,163,19],[164,12,164,13],[164,18,164,19],[166,12,166,13],[166,18,166,19],[167,12,167,13],[167,18,167,19],[169,12,169,13],[169,18,169,19],[231,0,233,0],[232,18,232,19]]}
["CONTRACT NUMBER: ",null,{"$f":"'Bill 1-P&G'!C1","v":"CONSTRUCTION OF A NEW LAPA AND THE REFURBISHMENT OF GATE HOUSE AND ABLUTIONS, EXTERNAL AREAS AND THE INSPECTION AND WORKS TO EXISTING AND NEW SERVICES AT THE MOKOPANE BIODIVERSITY CONSERVATION CENTRE "},{"$nulls":15},"Bill"]
[{"$f":"'Bill 1-P&G'!A2","v":"G540/2024"},{"$nulls":17},16]
["Item","DESCRIPTION",{"$nulls":14},"RATE"]
["No.",{"$nulls":11},"UNIT",null,"QUANTITY",{"$nulls":3},"AMOUNT"]
[]
[]
[null,"BILL NO. 16"]
[]
[null,"PAINTWORK"]
[]
[null,"SUPPLEMENTARY PREAMBLES"]
[]
[null,"All surfaces to be thoroughly prepared according to "]
[null,"manufacturers' specifications."]
[]
[null,"The quality of all preparation work and individual coats shall be to the"]
[null,"satisfaction of the Architect (or his appointed representative) before "]
[null,"any successive paintwork is undertaken."]
[]
[null,"All paint to new and existing surfaces are to be painted with "]
[null,"Plascon,  Dulux or similar approved (by Architect)."]
[]
[null,"Plastered surfaces, etc."]
[]
[null,"Plastered surfaces shall be thoroughly inspected and, if necessary, "]
[null,"washed down and brushed in order to remove any traces of "]
[null,"efflorescence and allowed to dry completely before any paint finish"]
[null,"is  applied. Before any paint is applied, holes, cracks and "]
[null,"irregularities in  plaster and other surfaces shall be filled with a "]
[null,"suitable filler and  finished smooth. Unfinished concrete surfaces"]
[null,"shall have all  projections rubbed off and shall be thoroughly cleaned "]
[null,"with a  spirits-of-salts solution (1 part concentrated spirits-of-salts to "]
[null,"4 parts water)."]
[]
[null,"Previously painted plastered surfaces"]
[]
[null,"Surfaces shall be thoroughly washed down and allowed to dry "]
[null,"completely before any paint is applied. Blistered or peeling paint "]
[null,"shall be completely removed and cracks shall be opened, filled "]
[null,"with a suitable filler and finished smooth."]
[]
[null,"Previously painted plasterboard surfaces"]
[]
[null,"Surfaces shall be thoroughly cleaned before any paint is applied. "]
[null,"Blistered or peeling paint shall be completely removed and cracks "]
[null,"shall be opened, filled with a suitable filler and finished smooth. "]
[null,"Steel H-strips and nails to be reprimed with calcium plumbate "]
[null,"primer."]
[]
[null,"Previously painted metal surfaces"]
[]
[null,"Surfaces shall be thoroughly rubbed and cleaned down.  Blistered or "]
[null,"peeling paint shall be completely removed down to bare metal."]
[]
[null,"Previously painted wood surfaces"]
[]
[null,"Surfaces shall be thoroughly cleaned down. Blistered or peeling "]
[null,"paint shall be completely removed and cracks and crevices shall be"]
[null,"primed, filled with suitable filler and finished smooth. Existing wood"]
[null," surfaces to be stripped, neutralised, sanded and treated."]
[]
[null,"PAINTWORK ETC TO PREVIOUSLY PAINTED/NEW WORK"]
[]
[null,"ON SKIMMED PLASTER"]
[]
[null,"Prepare, apply one coat suitable plaster primer to entire surface, "]
[null,"one coat Plascon acrylic polvin paint and finish with two coats of"]
[null,"Plascon super acrylic polvin Matt paint in compliance with SANS"]
[null,"specifications (or similar and approved)"]
[]
[1,"On internal plastered walls",{"$nulls":10},"m2",null,240]
[]
[2,"On narrow widths",{"$nulls":10},"m2",null,4]
[]
[]
[]
["BILL No. 16"]
[null,"Bill No. 16 PAINTWORK carried to collection"]
[]
["CONTRACT NUMBER: ",null,{"$f":"C1","v":"CONSTRUCTION OF A NEW LAPA AND THE REFURBISHMENT OF GATE HOUSE AND ABLUTIONS, EXTERNAL AREAS AND THE INSPECTION AND WORKS TO EXISTING AND NEW SERVICES AT THE MOKOPANE BIODIVERSITY CONSERVATION CENTRE "},{"$nulls":15},"Bill"]
[{"$f":"A2","v":"G540/2024"},{"$nulls":17},{"$f":"S2","v":16}]
["ITEM","PAYMENT","DESCRIPTION",{"$nulls":13},"RATE"]
["NO","REFERS",{"$nulls":10},"UNIT",null,"QUANTITY",{"$nulls":3},"AMOUNT"]
[null,"TO"]
[]
[null,"Prepare, apply one coat suitable plaster primer to entire "]
[null,"one coat Plascon acrylic polvin paint or similar and approved"]
[null,"and finish with two coats of Plascon super acrylic polvin"]
[null,"Matt paint in compliance with SANS specifications"]
[null,"or similar and approved"]
[]
[3,"On external brick plastered walls and columns",{"$nulls":10},"m2",null,103]
[]
[null,"ON METAL"]
[]
[null,"Prepare one coat Plascon mild or similar and approved  steel"]
[null,"red oxide primer, one coat  merit unversal undercoat and two"]
[null,"coats gloss enamel paint undercoat, and two coats Plascon"]
[null,"gloss enamel paint"]
[]
[4,"On new steel windows",{"$nulls":10},"m2",null,8]
[]
[5,"On burglar bars measured net",{"$nulls":10},"m2",null,8]
[]
[6,"On new steel doors and frames",{"$nulls":10},"m2",null,2]
[]
[null,"ON WOOD"]
[]
[null,"Prepare one coat Plascon wood primer,  Pink undercoat, on"]
[null,"White coat merit universal undercoat,"]
[null,"(or similar and approved)  "]
[]
[7,"On timber doors",{"$nulls":10},"m2",null,7]
[]
[null,"Prepare three coats Plascon FPR Woodcare preservative"]
[null,"Woodcare preservative (or similar and approved)"]
[]
[8,"On existing and new timber roof structures measured net",{"$nulls":10},"m2",null,177]
[]
[null,"Prepare one coat Plasconwood primer, Pink undercoat, one"]
[null,"coat merit universal undercoat, White undercoat, and"]
[null,"two coats Plascon gloss enamel paint "]
[null,"(or similar and approved)"]
[]
[9,"Skirtings not exceeding 300mm girth",{"$nulls":10},"m2",null,32]
[]
[null,"Prepare, two coats gloss enamel paint"]
[]
[10,"Fascias and barge boards not exceeding 300mm girth",{"$nulls":10},"m2",null,160]
{"$rows_empty":25}
[{"$f":"A77","v":"BILL No. 16"}]
[null,"Bill No. 16 PAINTWORK carried to collection"]
[]
["CONTRACT NUMBER: ",null,{"$f":"C1","v":"CONSTRUCTION OF A NEW LAPA AND THE REFURBISHMENT OF GATE HOUSE AND ABLUTIONS, EXTERNAL AREAS AND THE INSPECTION AND WORKS TO EXISTING AND NEW SERVICES AT THE MOKOPANE BIODIVERSITY CONSERVATION CENTRE "},{"$nulls":15},"Bill"]
[{"$f":"A2","v":"G540/2024"},{"$nulls":17},{"$f":"S2","v":16}]
["ITEM","PAYMENT","DESCRIPTION",{"$nulls":13},"RATE"]
["NO","REFERS",{"$nulls":10},"UNIT",null,"QUANTITY",{"$nulls":3},"AMOUNT"]
[null,"TO"]
[]
[null,{"$f":"B9","v":"PAINTWORK"}]
[]
[null,"COLLECTION"]
[]
[null,"Total Brought Forward from Page No.",{"$nulls":10},166]
[]
[{"$nulls":12},{"$f":"M168+1","v":167}]
{"$rows_empty":61}
[{"$f":"A155","v":"BILL No. 16"}]
[null,"Bill No. 16 PAINTWORK carried to Summary"]

{"sheet":"Bill 17-Site Works","index":16,"n_rows":305,"n_cols":19,"rows_kept":305,"merged":[[0,0,0,1],[0,2,1,17],[0,18,0,19],[1,0,1,1],[1,18,1,19],[2,1,4,11],[2,16,4,17],[3,12,3,13],[3,14,3,15],[3,18,3,19],[63,23,63,24],[66,23,66,24],[69,23,69,24],[70,23,70,24],[73,0,75,0],[73,23,73,24],[74,18,74,19],[74,23,74,24],[75,23,75,24],[76,0,76,1],[76,2,77,17],[76,18,76,19],[76,23,76,24],[77,0,77,1],[77,18,77,19],[77,23,77,24],[78,2,80,11],[78,16,80,17],[78,23,78,24],[79,12,79,13],[79,14,79,15],[79,18,79,19],[79,23,79,24],[80,23,80,24],[120,23,120,24],[123,23,123,24],[125,23,125,24],[126,23,126,24],[127,23,127,24],[128,23,128,24],[129,23,129,24],[136,23,136,24],[137,23,137,24],[144,23,144,24],[147,23,147,24],[153,23,153,24],[155,0,157,0],[155,23,155,24],[156,18,156,19],[156,23,156,24],[157,23,157,24],[158,0,158,1],[158,2,159,17],[158,18,158,19],[159,0,159,1],[159,18,159,19],[160,2,162,11],[160,16,162,17],[161,12,161,13],[161,14,161,15],[161,18,161,19],[168,12,168,13],[168,14,168,15],[168,16,168,17],[168,18,168,19],[171,12,171,13],[171,14,171,15],[171,16,171,17],[171,18,171,19],[179,12,179,13],[179,14,179,15],[179,16,179,17],[179,18,179,19],[181,12,181,13],[181,14,181,15],[181,16,181,17],[181,18,181,19],[183,12,183,13],[183,14,183,15],[183,16,183,17],[183,18,183,19],[185,12,185,13],[185,14,185,15],[185,16,185,17],[185,18,185,19],[192,12,192,13],[192,14,192,15],[192,16,192,17],[192,18,192,19],[199,12,199,13],[199,14,199,15],[199,16,199,17],[199,18,199,19],[204,12,204,13],[204,14,204,15],[204,16,204,17],[204,18,204,19],[209,12,209,13],[209,14,209,15],[209,16,209,17],[209,18,209,19],[213,12,213,13],[213,14,213,15],[213,16,213,17],[213,18,213,19],[225,12,225,13],[225,14,225,15],[225,16,225,17],[225,18,225,19],[229,0,231,0],[230,18,230,19],[232,0,232,1],[232,2,233,17],[232,18,232,19],[233,0,233,1],[233,18,233,19],[234,2,236,11],[234,12,236,13],[235,18,235,19],[242,12,242,13],[242,18,242,19],[244,12,244,13],[244,16,244,17],[244,18,244,19],[246,12,246,13],[246,18,246,19],[247,16,247,17],[247,18,247,19],[248,12,248,13],[250,12,250,13],[303,0,305,0],[304,18,304,19]]}
["CONTRACT NUMBER: ",null,{"$f":"'Bill 1-P&G'!C1","v":"CONSTRUCTION OF A NEW LAPA AND THE REFURBISHMENT OF GATE HOUSE AND ABLUTIONS, EXTERNAL AREAS AND THE INSPECTION AND WORKS TO EXISTING AND NEW SERVICES AT THE MOKOPANE BIODIVERSITY CONSERVATION CENTRE "},{"$nulls":15},"Bill"]
[{"$f":"'Bill 1-P&G'!A2","v":"G540/2024"},{"$nulls":17},17]
["Item","DESCRIPTION",{"$nulls":14},"RATE"]
["No.",{"$nulls":11},"UNIT",null,"QUANTITY",{"$nulls":3},"AMOUNT"]
[]
[]
[null,"BILL NO. 17"]
[]
[null,"SITE WORKS AND DEMOLITIONS"]
[]
[null,"SUPPLEMENTARY PREAMBLES"]
[]
[null,"REMOVAL OF EXISTING WORK"]
[]
[null,"SPECIAL PREAMBLES"]
[]
[null,"REMOVE"]
[]
[null,"The term \"remove\" shall mean breaking out as required to remove"]
[null,"the item described, disposal of all rubble and old materials, and "]
[null,"making good all work disturbed to match existing.  "]
[]
[null,"Remove walls or partitions shall mean breaking down complete "]
[null,"to structure of walls,  etc. and  trimming up edges and disposal "]
[null,"of rubble and all old  materials from  site (old materials as"]
[null,"elsewhere described). "]
[]
[null,"Prices shall include for protecting  adjacent surfaces repairing "]
[null,"such  damage should it occur."]
[]
[null,"OLD MATERIAL BECOMES THE PROPERTY OF THE"]
[null,"CONTRACTOR"]
[]
[null,"Old material from the alterations except where described for re-use"]
[null,"or handing over, will become the property of the Contractor for which "]
[null,"Credit must be allowed."]
[]
[null,"OLD MATERIAL MUST BE CARTED AWAY"]
[]
[null,"Old material from the alterations except where described for re-use"]
[null,"or  handing over, as well as all debris must regularly be carted away"]
[null,"from  site and not be accumulated on site."]
[]
[null,"OLD MATERIAL MAY NOT BE RE-USED"]
[]
[null,"No old material may be re-used for new work except where it is "]
[null,"specifically described as set aside for re-use."]
[]
[null,"DISPOSAL OF DEBRIS, ETC"]
[]
[null,"The Contractor shall be responsible for the removal from the site of "]
[null,"all  materials, debris and rubbish resulting from the"]
[null,"alterations/demolitions."]
[]
[null,"GENERAL"]
[]
[null,"Damage To Persons And Property"]
[]
[null,"All demolitions, pulling down, alterations etc., are to be carried out "]
[null,"carefully and in the safest possible manner.  The Contractor is to "]
[null,"ascertain that all alterations are structurally practicable and safe and "]
[null,"he will be held solely responsible for any damage to property or work "]
[null,"adjoining the pulling down and must make good at his own expense."]
[]
[null,"Programming Of The Works"]
[]
[null,"The programming of demolitions and alterations will have to be "]
[null,"co-ordinated with the Principal Agent."]
[]
[]
[]
[]
[]
["BILL No. 17"]
[null,"Bill No. 17 SITE WORKS AND DEMOLITIONS carried to collection"]
[]
["CONTRACT NUMBER: ",null,{"$f":"C1","v":"CONSTRUCTION OF A NEW LAPA AND THE REFURBISHMENT OF GATE HOUSE AND ABLUTIONS, EXTERNAL AREAS AND THE INSPECTION AND WORKS TO EXISTING AND NEW SERVICES AT THE MOKOPANE BIODIVERSITY CONSERVATION CENTRE "},{"$nulls":15},"Bill"]
[{"$f":"A2","v":"G540/2024"},{"$nulls":17},{"$f":"S2","v":17}]
["ITEM","PAYMENT","DESCRIPTION",{"$nulls":13},"RATE"]
["NO","REFERS",{"$nulls":10},"UNIT",null,"QUANTITY",{"$nulls":3},"AMOUNT"]
[null,"TO"]
[]
[null,"Care Of Utility Services"]
[]
[null,"Special care is to be exercised not to interfere with any drains, "]
[null,"electrical supply, data, or telephone cables and fittings to same.  "]
[null,"Notice is to be given to the Principal Agent when any"]
[null,"disconnections, removal of wires etc. are necessary and the "]
[null,"Contractor is to afford every facility to the workmen carrying out  "]
[null,"this work.  "]
[]
[null,"Permission must  be obtained from the Principal Agent before "]
[null,"any services are cut  off at any time."]
[]
[null,"Temporary Shoring Etc."]
[]
[null,"Prices are to include for providing, fixing and maintaining in position "]
[null,"generally as required all temporary shoring, needling, strutting etc., "]
[null,"necessary for the proper execution of the alterations in this Contract "]
[null,"and for removing same."]
[]
[null,"Supervision"]
[]
[null,"The demolition work is to be executed in a workmanlike, practical "]
[null,"and safe manner under the continual supervision of a competent "]
[null,"foremen."]
[]
[null,"Nature of ground"]
[]
[null,"A soils investigation has been carried out on site by the engineer "]
[null,"and the report is available upon request. Descriptions of "]
[null,"excavations  shall  be deemed to include all ground conditions "]
[null,"classifiable as \"earth\"  described in the above report and where "]
[null,"conditions of a more difficult  character are indicated these are s"]
[null,"eparately measured "]
[]
[null,"Carting away of excavated material"]
[]
[null,"Descriptions of carting away of excavated material shall be "]
[null,"deemed  to  include loading excavated material onto trucks "]
[null,"directly from the excavations or, alternatively, from stock piles "]
[null,"situated on the building  site"]
[]
[null,"Subterranean water"]
[]
[null,"The tenderer must acquaint himself of the presence and depth of "]
[null,"subterranean water and allow therefore in his prices."]
[]
[null,"Carting away of excavated material"]
[]
[null,"Descriptions of carting away of excavated material shall be deemed"]
[null," to  include loading excavated material onto trucks directly from the "]
[null,"excavations or, alternatively, from stock piles situated on the building "]
[null,"site"]
[]
[null,"Filling and layer work materials"]
[]
[null,"References such as \"G1\", \"G2\", etc and \"C1\", \"C2\", etc in "]
[null,"descriptions of filling and layer work materials refer to corresponding "]
[null,"references in the document \"Guidelines for Road Construction "]
[null,"Materials. TRH 14:1985\" compiled by the Committee of State Road "]
[null,"Authorities  and the properties set out therein for each kind shall be "]
[null,"applicable to the respective materials described hereinafter"]
[]
[]
[null,"Testing"]
[]
[null,"Descriptions & prices for earth filling, compaction, etc. are deemed"]
[null,"to include for all necessary density and other testing required in "]
[null,"accordance with the SABS 1200 series and Engineer's "]
[null,"specifications"]
[]
[]
[]
[]
["BILL No. 17"]
[null,{"$f":"B75","v":"Bill No. 17 SITE WORKS AND DEMOLITIONS carried to collection"}]
[]
["CONTRACT NUMBER: ",null,{"$f":"C77","v":"CONSTRUCTION OF A NEW LAPA AND THE REFURBISHMENT OF GATE HOUSE AND ABLUTIONS, EXTERNAL AREAS AND THE INSPECTION AND WORKS TO EXISTING AND NEW SERVICES AT THE MOKOPANE BIODIVERSITY CONSERVATION CENTRE "},{"$nulls":15},"Bill"]
[{"$f":"A78","v":"G540/2024"},{"$nulls":17},{"$f":"S78","v":17}]
["ITEM","PAYMENT","DESCRIPTION",{"$nulls":13},"RATE"]
["NO","REFERS",{"$nulls":10},"UNIT",null,"QUANTITY",{"$nulls":3},"AMOUNT"]
[null,"TO"]
[]
[null,"SITE CLEARANCE ETC"]
[]
[null,"Site clearance"]
[]
[1,"Digging up and removing rubbish, debris, vegetation, hedges, ",{"$nulls":10},"m²",null,310]
[null,"shrubs and trees not exceeding 200mm girth, bush, etc"]
[]
[2,"Stripping average 150mm thick layer of top soil and stockpile on ",{"$nulls":10},"m²",null,310]
[null,"site"]
[]
[null,"REMOVAL OF TREES ETC"]
[]
[null,"Cutting down and removing, grubbing up roots and "]
[null,"filling in holes"]
[]
[3,"Tree exceeding 200mm and not exceeding 500mm girth",{"$nulls":10},"No",null,3]
[]
[4,"Tree exceeding 500mm and not exceeding 1000mm girth",{"$nulls":10},"No",null,3]
[]
[5,"Tree exceeding 1000mm and not exceeding 1500mm girth",{"$nulls":10},"No",null,3]
[]
[6,"Tree exceeding 1500mm and not exceeding 2000mm girth",{"$nulls":10},"No",null,5]
[]
[null,"BULK EXCAVATION, FILLING, ETC"]
[]
[null,"G5 Earth filling supplied by the contractor compacted to"]
[null,"98% MDD"]
[]
[7,"Over site to form platforms",{"$nulls":10},"m³",null,121]
[]
[null,"G5 Earth filling to create stormwater berm with overall size "]
[null,"500mm wide top section, 3500mm wide bottom section and "]
[null,"1:3 slope supplied by the contractor compacted to 95% MDD"]
[null,"as per engineers design and specifications"]
[]
[8,"Over site to form stormwater berm",{"$nulls":10},"m³",null,88]
[]
[null,"G6 Earth filling supplied by the contractor compacted to"]
[null," 95% MDD, to Engineers approval"]
[]
[9,"Over site to form platforms",{"$nulls":10},"m³",null,47]
[]
[null,"G7 Earth filling supplied by the contractor compacted to"]
[null," 95% , to Engineers approval"]
[]
[10,"Over site to form platforms",{"$nulls":10},"m³",null,56]
[]
[null,"Compaction of surfaces"]
[]
[11,"Compaction of ground surface under floors etc including scarifying",{"$nulls":10},"m³",null,464]
[null," for a depth of 150mm, breaking down oversize material, adding "]
[null,"suitable material where necessary and compacting to 98% MDD"]
[]
[null,"BUDGETARY ALLOWANCES"]
[]
[null,"The following Budgetary Allowances are for work to be "]
[null,"executed by the Main Contractor or specialist suppliers and "]
[null,"priced at Bill rates or rates to be agreed and to be used as"]
[null," directed by the Principal Agent and to be deducted in whole "]
[null,"or in part if not required"]
[]
[12,"Provide the sum of  R50 000.00 (Fifty Thousand Rands) for work ",{"$nulls":10},"Item",{"$nulls":5},{"v":50000,"d":"R50,000.00"}]
[null,"related to unknown circumstances of the site condition"]
[]
[]
[{"$f":"A156","v":"BILL No. 17"}]
[null,{"$f":"B157","v":"Bill No. 17 SITE WORKS AND DEMOLITIONS carried to collection"}]
[]
["CONTRACT NUMBER: ",null,{"$f":"C1","v":"CONSTRUCTION OF A NEW LAPA AND THE REFURBISHMENT OF GATE HOUSE AND ABLUTIONS, EXTERNAL AREAS AND THE INSPECTION AND WORKS TO EXISTING AND NEW SERVICES AT THE MOKOPANE BIODIVERSITY CONSERVATION CENTRE "},{"$nulls":15},"Bill"]
[{"$f":"A2","v":"G540/2024"},{"$nulls":17},{"$f":"S2","v":17}]
["ITEM","PAYMENT",{"$nulls":10},"Page No."]
["NO","REFERS",{"$nulls":16},"AMOUNT"]
[null,"TO"]
[]
[null,{"$f":"B9","v":"SITE WORKS AND DEMOLITIONS"}]
[]
[null,"COLLECTION"]
[]
[null,"Total Brought Forward from Page No.",{"$nulls":10},169]
[]
[{"$nulls":12},{"$f":"M243+1","v":170}]
[]
[{"$nulls":12},{"$f":"M245+1","v":171}]
{"$rows_empty":56}
[{"$f":"B7","v":"BILL NO. 17"}]
[null,"Bill No. 17 SITE WORKS AND DEMOLITIONS carried to Summary"]

{"sheet":"Bill 18- Road","index":17,"n_rows":319,"n_cols":19,"rows_kept":319,"merged":[[0,0,0,1],[0,2,1,17],[0,18,0,19],[1,0,1,1],[1,18,1,19],[2,1,4,11],[2,16,4,17],[3,12,3,13],[3,14,3,15],[3,18,3,19],[65,12,65,13],[65,14,65,15],[65,16,65,17],[65,18,65,19],[70,12,70,13],[70,14,70,15],[70,16,70,17],[70,18,70,19],[77,12,77,13],[77,14,77,15],[77,16,77,17],[77,18,77,19],[79,0,81,0],[79,23,79,24],[80,18,80,19],[80,23,80,24],[81,23,81,24],[82,0,82,1],[82,2,83,17],[82,18,82,19],[82,23,82,24],[83,0,83,1],[83,18,83,19],[83,23,83,24],[84,2,86,11],[84,16,86,17],[84,23,84,24],[85,12,85,13],[85,14,85,15],[85,18,85,19],[85,23,85,24],[86,23,86,24],[93,12,93,13],[93,14,93,15],[93,16,93,17],[93,18,93,19],[98,12,98,13],[98,14,98,15],[98,16,98,17],[98,18,98,19],[103,12,103,13],[103,14,103,15],[103,16,103,17],[103,18,103,19],[109,23,109,24],[117,12,117,13],[117,14,117,15],[117,16,117,17],[117,18,117,19],[136,12,136,13],[136,14,136,15],[136,16,136,17],[136,18,136,19],[138,12,138,13],[138,14,138,15],[138,16,138,17],[138,18,138,19],[146,23,146,24],[151,12,151,13],[151,14,151,15],[151,16,151,17],[151,18,151,19],[152,12,152,13],[152,14,152,15],[152,16,152,17],[152,18,152,19],[153,12,153,13],[153,14,153,15],[153,16,153,17],[153,18,153,19],[162,0,164,0],[163,18,163,19],[165,0,165,1],[165,2,166,17],[165,18,165,19],[166,0,166,1],[166,18,166,19],[167,2,169,11],[167,16,169,17],[167,23,167,24],[168,12,168,13],[168,14,168,15],[168,18,168,19],[168,23,168,24],[169,23,169,24],[170,23,170,24],[179,12,179,13],[179,14,179,15],[179,16,179,17],[179,18,179,19],[185,12,185,13],[185,14,185,15],[185,16,185,17],[185,18,185,19],[187,12,187,13],[187,14,187,15],[187,16,187,17],[187,18,187,19],[190,12,190,13],[190,14,190,15],[190,16,190,17],[190,18,190,19],[193,12,193,13],[193,14,193,15],[193,16,193,17],[193,18,193,19],[205,12,205,13],[205,14,205,15],[205,16,205,17],[205,18,205,19],[208,12,208,13],[208,14,208,15],[208,16,208,17],[208,18,208,19],[212,12,212,13],[212,14,212,15],[212,16,212,17],[212,18,212,19],[212,20,212,21],[215,12,215,13],[215,14,215,15],[215,16,215,17],[215,18,215,19],[215,20,215,21],[240,0,242,0],[241,18,241,19],[243,0,243,1],[243,2,244,17],[243,18,243,19],[244,0,244,1],[244,18,244,19],[245,2,247,11],[245,12,247,13],[246,18,246,19],[253,12,253,13],[253,18,253,19],[255,12,255,13],[255,18,255,19],[257,12,257,13],[257,18,257,19],[259,12,259,13],[259,18,259,19],[260,12,260,13],[260,18,260,19],[317,0,319,0],[318,18,318,19]]}
["CONTRACT NUMBER: ",null,{"$f":"'[1]Bill 1-P&G'!C1","v":"CONSTRUCTION OF A NEW LAPA AND THE REFURBISHMENT OF GATE HOUSE AND ABLUTIONS, EXTERNAL AREAS AND THE INSPECTION AND WORKS TO EXISTING AND NEW SERVICES AT THE MOKOPANE BIODIVERSITY CONSERVATION CENTRE "},{"$nulls":15},"Bill"]
[{"$f":"'[1]Bill 1-P&G'!A2","v":"G540/2024"},{"$nulls":17},18]
["Item","DESCRIPTION",{"$nulls":14},"RATE"]
["No.",{"$nulls":11},"UNIT",null,"QUANTITY",{"$nulls":3},"AMOUNT"]
[]
[]
[null,"BILL NO. 18"]
[]
[null,"ROADWORKS, PAVING "]
[]
[null,"SUPPLEMENTARY PREAMBLES"]
[]
[null,"Nature of ground"]
[]
[null,"A soils investigation has been carried out on site by the engineer"]
[null,"and  the report is available upon request. Descriptions of"]
[null,"excavations shall  be deemed to include all ground conditions"]
[null,"classifiable as \"earth\"  described in the above report and where "]
[null,"conditions of a more difficult character are indicated these are "]
[null,"separately measured."]
[]
[null,"Carting away of excavated material"]
[]
[null,"Descriptions of carting away of excavated material shall be "]
[null,"deemed to include loading excavated material onto trucks directly"]
[null,"from the  excavations or, alternatively, from stock piles situated "]
[null,"on the building  site and disposing of same from site."]
[]
[null,"Subterranean water"]
[]
[null,"The tenderer must acquaint himself of the presence and depth of"]
[null," subterranean water and allow therefore in his prices."]
[]
[null,"Carting away of excavated material"]
[]
[null,"Descriptions of carting away of excavated material shall be deemed"]
[null,"to include loading excavated material onto trucks directly from the "]
[null,"excavations or, alternatively, from stock piles situated on the "]
[null,"building  site."]
[]
[null,"Filling and layer work materials"]
[]
[null,"References such as \"G1\", \"G2\", etc and \"C1\", \"C2\", etc in "]
[null,"descriptions of filling and layer work materials refer to "]
[null,"corresponding  references in the document \"Guidelines for Road "]
[null,"Construction  Materials.  TRH 14 : 1985\" compiled by the "]
[null,"Committee of State  Road  Authorities and the properties set out"]
[null,"therein for each kind  shall be applicable to the respective "]
[null,"materials described hereinafter"]
[]
[null,"Testing"]
[]
[null,"Descriptions & prices for earth filling, compaction, etc. are deemed "]
[null,"to include for all necessary density and other testing required in "]
[null,"accordance with the SABS 1200D and Engineer's specifications"]
[]
[null,"General"]
[]
[null,"Where kerb-stones, blocks, etc are laid in ground descriptions shall "]
[null,"be deemed to include necessary excavation, filling in and ramming"]
[]
[null,"EXCAVATION, FILLING, ETC.  OTHER THAN BULK"]
[]
[null,"Excavation in compacted earth not exceeding 2m deep"]
[]
[1,"Reduce levels",{"$nulls":10},"m³",null,856]
[]
[null,"Extra over all excavations for carting away"]
[]
[2,"Surplus material from excavations and/or stock piles on site to a "]
[null,"dumping site to be located by the contractor",{"$nulls":10},"m³",null,856]
{"$rows_empty":8}
["BILL No. 18"]
[null,"Bill No. 18 ROADWORKS, PAVING carried to collection"]
[]
["CONTRACT NUMBER: ",null,{"$f":"C1","v":"CONSTRUCTION OF A NEW LAPA AND THE REFURBISHMENT OF GATE HOUSE AND ABLUTIONS, EXTERNAL AREAS AND THE INSPECTION AND WORKS TO EXISTING AND NEW SERVICES AT THE MOKOPANE BIODIVERSITY CONSERVATION CENTRE "},{"$nulls":15},"Bill"]
[{"$f":"A2","v":"G540/2024"},{"$nulls":17},{"$f":"S2","v":18}]
["ITEM","PAYMENT","DESCRIPTION",{"$nulls":13},"RATE"]
["NO","REFERS",{"$nulls":10},"UNIT",null,"QUANTITY",{"$nulls":3},"AMOUNT"]
[null,"TO"]
[]
[null,"Compaction of surfaces"]
[]
[3,"Compaction of ground surface under floors, etc. including scarifying"]
[null,"for a depth of 150mm, breaking down oversize material, adding "]
[null,"suitable material where necessary and compacting to "]
[null,"90% MDD density",{"$nulls":10},"m²",null,1878]
[]
[null,"G5 Earth filling supplied by the contractor and compacted to"]
[null,"95% MDD density"]
[]
[4,"Under floors, steps, ramps, pavings, etc",{"$nulls":10},"m³",null,282]
[]
[null,"G6 Earth filling supplied by the contractor and compacted to"]
[null,"93% MDD"]
[]
[5,"Under floors, steps, ramps, pavings, etc",{"$nulls":10},"m³",null,564]
[]
[null,"WEED KILLERS, INSECTICIDES, ETC"]
[]
[null,"Weedkiller (active ingredients metalaclor 102,8 g/l, terbitilasien "]
[null,"248,6 g/l and atrasien 248,6 g/l) mixed in the proportion of 100 ml"]
[null,"weedkiller to 100 l water and applied at a rate of 10 l/m×½"]
[]
[null,"Soil insecticide in accordance with SANS 5859"]
[]
[null,"Approved brand of anti-termite soil poison and weedkiller"]
[null,"to be  applied by a Registered Company and guaranteed for "]
[null,"ten years"]
[]
[6,"Under paving",{"$nulls":10},"m²",null,1878]
[]
[null,"PAVING, KERBING AND CHANNELLING"]
[]
[null,"Rates for paving must include all cutting including circular cutting"]
[]
[null,"SEGMENTED PAVING"]
[]
[null,"200 x 150 x 60mm Thick Bosun Ethnic cement paver or"]
[null,"similar  and approved interlocking paving brick, laid in"]
[null,"herringbone  pattern in accordance with SANS 1200 MJ and"]
[null,"CMA Concrete  Block Paving Manuals, with a minimum"]
[null,"longitudinal fall of 1%  on a transverse fall of at least 2% "]
[null,"on 20mm compacted sand bed  with fine jointing sand"]
[null,"swept and vibrated into joints, all laid on  subbase"]
[null,"conforming to SANS 1200 D Degree of Accuracy "]
[null,"(sub-base elsewhere measured) 1. Paving to binspected "]
[null,"and  re-sanded after three months."]
[]
[7,"Paving to walkways, roads, parking areas etc.",{"$nulls":10},"m²",null,1805]
[]
[8,"300mm Wide header course paving to make up paving borders",{"$nulls":10},"m",null,245]
[]
[null,"KERBS"]
[]
[null,"Figure 7 Barrier concrete kerb, including in-situ concrete "]
[null,"(class 25MPa/19mm stone) haunching behind kerbing at"]
[null,"joints,  with pointing on all exposed sides, including all"]
[null,"necessary  excavation, backfilling, carting away, continuous"]
[null,"concrete  haunching on curves, concrete haunching in blobs"]
[null,"on  straights, etc. Jointed & pointed in joint sealant with"]
[null,"10mm soft board and polyurethane sealant with approved"]
[null,"primer"]
[]
[9,"Laid flat",{"$nulls":10},"m",null,161]
[]
[10,"Laid flat circular on plan, exceeding 4m radius",{"$nulls":10},"m",null,7]
{"$rows_empty":8}
[{"$f":"A80","v":"BILL No. 18"}]
[null,{"$f":"B81","v":"Bill No. 18 ROADWORKS, PAVING carried to collection"}]
[]
["CONTRACT NUMBER: ",null,{"$f":"C83","v":"CONSTRUCTION OF A NEW LAPA AND THE REFURBISHMENT OF GATE HOUSE AND ABLUTIONS, EXTERNAL AREAS AND THE INSPECTION AND WORKS TO EXISTING AND NEW SERVICES AT THE MOKOPANE BIODIVERSITY CONSERVATION CENTRE "},{"$nulls":15},"Bill"]
[{"$f":"A84","v":"G540/2024"},{"$nulls":17},{"$f":"S84","v":18}]
["ITEM","PAYMENT","DESCRIPTION",{"$nulls":13},"RATE"]
["NO","REFERS",{"$nulls":10},"UNIT",null,"QUANTITY",{"$nulls":3},"AMOUNT"]
[null,"TO"]
[]
[null,"Figure 10 Precast concrete kerb, including in-situ concrete "]
[null,"(class 25MPa/19mm stone) haunching behind kerbing at"]
[null,"joints,  with pointing on all exposed sides, including all"]
[null,"necessary  excavation backfilling, carting away, continuous"]
[null,"concrete  haunching on curves, concrete haunching in blobs"]
[null,"on straights,  etc. Jointed & pointed in joint sealant with 10mm"]
[null,"soft board and  polyurethane sealant with approved"]
[]
[11,"Laid flat",{"$nulls":10},"m",null,533]
[]
[null,"Prepare and paint with SANS approved road marking paint"]
[null,"in  white / yellow / red sheen road marking paint on"]
[null,"concrete paving / kerbs"]
[]
[12,"Line 100mm wide, broken or continuous",{"$nulls":10},"m",null,620]
[]
[13,"White numeral or letter approximately 510mm x 1260mm ",{"$nulls":10},"No",null,51]
[null,"(measured at extremes)"]
[]
[14,"White traffic arrow approximately 1000mm x 4000mm",{"$nulls":10},"No",null,12]
[null,"(measured at extremes)"]
[]
[15,"Paraplegic Sign approximately 1300mm x 1400mm",{"$nulls":10},"No",null,3]
[null,"(measured at extremes)"]
[]
[]
[null,"BUDGETARY ALLOWANCES"]
[]
[null,"The following Budgetary Allowances are for work to be"]
[null,"executed by  the Main Contractor or specialist suppliers and"]
[null,"priced at Bill rates or rates to be agreed and to be used as"]
[null,"directed by the Principal Agent and to be deducted in whole "]
[null,"or in part if not required"]
[]
[16,"Provide the sum of R15 000.00 (Fifteen Thousand Rands) for ",{"$nulls":10},"Item",{"$nulls":5},{"v":15000,"d":"R15,000.00"}]
[null,"permanent road signage"]
[]
[17,"Provide the sum of R50 000.00 (Fifty Thousand Rands) for ",{"$nulls":10},"Item",{"$nulls":5},{"v":50000,"d":"R50,000.00"}]
[null,"additional general work sill to be designed and will/may be "]
[null,"carried out by the contractor"]
[]
[18,"Cement for roadbed stabilisation",{"$nulls":10},"ton",null,30]
[null,"(4% of 150mm layer ≈ 20kg/m²)"]
[]
[19,"In-situ stabilisation of roadbed using 4% cement, ",{"$nulls":10},"m3",null,200]
[null,"150mm thick, incl. mixing & compaction"]
{"$rows_empty":23}
[{"$f":"A163","v":"BILL No. 18"}]
[null,{"$f":"B164","v":"Bill No. 18 ROADWORKS, PAVING carried to collection"}]
[]
["CONTRACT NUMBER: ",null,{"$f":"C1","v":"CONSTRUCTION OF A NEW LAPA AND THE REFURBISHMENT OF GATE HOUSE AND ABLUTIONS, EXTERNAL AREAS AND THE INSPECTION AND WORKS TO EXISTING AND NEW SERVICES AT THE MOKOPANE BIODIVERSITY CONSERVATION CENTRE "},{"$nulls":15},"Bill"]
[{"$f":"A2","v":"G540/2024"},{"$nulls":17},{"$f":"S2","v":18}]
["ITEM","PAYMENT",{"$nulls":10},"Page No."]
["NO","REFERS",{"$nulls":16},"AMOUNT"]
[null,"TO"]
[]
[null,{"$f":"B9","v":"ROADWORKS, PAVING "}]
[]
[null,"COLLECTION"]
[]
[null,"Total Brought Forward from Page No.",{"$nulls":10},173]
[]
[{"$nulls":12},{"$f":"M254+1","v":174}]
[]
[{"$nulls":12},{"$f":"M256+1","v":175}]
{"$rows_empty":59}
[{"$f":"A241","v":"BILL No. 18"}]
[null,"Bill No. 18 ROADWORKS, PAVING carried to Summary"]

{"sheet":"Bill 19- Fence ","index":18,"n_rows":237,"n_cols":19,"rows_kept":237,"merged":[[0,0,0,1],[0,2,1,17],[0,18,0,19],[1,0,1,1],[1,18,1,19],[2,1,4,11],[2,16,4,17],[3,12,3,13],[3,14,3,15],[3,18,3,19],[18,12,18,13],[18,14,18,15],[18,16,18,17],[18,18,18,19],[28,12,28,13],[28,14,28,15],[28,16,28,17],[28,18,28,19],[31,12,31,13],[31,14,31,15],[31,16,31,17],[31,18,31,19],[37,12,37,13],[37,14,37,15],[37,16,37,17],[37,18,37,19],[51,12,51,13],[51,14,51,15],[51,16,51,17],[51,18,51,19],[51,23,51,24],[56,12,56,13],[56,14,56,15],[56,16,56,17],[56,18,56,19],[56,23,56,24],[59,12,59,13],[59,14,59,15],[59,16,59,17],[59,18,59,19],[63,12,63,13],[63,14,63,15],[63,16,63,17],[63,18,63,19],[77,0,79,0],[77,23,77,24],[78,18,78,19],[78,23,78,24],[79,23,79,24],[80,0,80,1],[80,2,81,17],[80,18,80,19],[80,23,80,24],[81,0,81,1],[81,18,81,19],[81,23,81,24],[82,2,84,11],[82,16,84,17],[82,23,82,24],[83,12,83,13],[83,14,83,15],[83,18,83,19],[83,23,83,24],[84,23,84,24],[86,12,86,13],[86,14,86,15],[86,16,86,17],[86,18,86,19],[97,12,97,13],[97,14,97,15],[97,16,97,17],[97,18,97,19],[108,12,108,13],[108,14,108,15],[108,16,108,17],[108,18,108,19],[113,23,113,24],[114,23,114,24],[115,23,115,24],[116,23,116,24],[118,23,118,24],[119,23,119,24],[120,23,120,24],[121,23,121,24],[122,23,122,24],[124,23,124,24],[130,23,130,24],[132,23,132,24],[139,23,139,24],[141,23,141,24],[142,23,142,24],[143,23,143,24],[145,23,145,24],[146,23,146,24],[157,0,159,0],[157,23,157,24],[158,18,158,19],[158,23,158,24],[159,23,159,24],[160,0,160,1],[160,2,161,17],[160,18,160,19],[161,0,161,1],[161,18,161,19],[162,2,164,11],[162,12,164,13],[163,18,163,19],[170,12,170,13],[170,18,170,19],[172,12,172,13],[172,18,172,19],[174,12,174,13],[174,18,174,19],[176,12,176,13],[176,18,176,19],[235,0,237,0],[236,18,236,19]]}
["CONTRACT NUMBER: ",null,{"$f":"'[1]Bill 1-P&G'!C1","v":"CONSTRUCTION OF A NEW LAPA AND THE REFURBISHMENT OF GATE HOUSE AND ABLUTIONS, EXTERNAL AREAS AND THE INSPECTION AND WORKS TO EXISTING AND NEW SERVICES AT THE MOKOPANE BIODIVERSITY CONSERVATION CENTRE "},{"$nulls":15},"Bill"]
[{"$f":"'[1]Bill 1-P&G'!A2","v":"G540/2024"},{"$nulls":17},19]
["Item","DESCRIPTION",{"$nulls":14},"RATE"]
["No.",{"$nulls":11},"UNIT",null,"QUANTITY",{"$nulls":3},"AMOUNT"]
[]
[]
[null,"BILL NO. 19"]
[]
[null,"FENCING AND GATES"]
[]
[null,"METAL FENCING"]
[]
[null,"High density anti-climbing and anti-cut pressed mesh panel fencing"]
[]
[null,"Fencing to be installed on a sloping site, Contractor to"]
[null,"allow for  additional vertical supporting members at"]
[null,"smaller intervals  along a sloping site"]
[]
[1,"High density anti-climbing and anti-cut pressed mesh panel fencing ",{"$nulls":10},"m",null,56]
[null,"2,4m high, formed of 3mm diameter horizontal and 3mm diameter "]
[null,"vertical high tensile wires powder coated charcoal with aperture size "]
[null,"76mm x 25mm and reinforcing V-section ribs, bolted with vandal "]
[null,"resistant bolts and clamping plates to 76mm x 76mm x 2mm mild "]
[null,"steel posts 3,0m high including Locking Recess Mechanism at "]
[null,"3,382m centres with sealed end caps and 30 x 3mm x 250mm long "]
[null,"angle section base anchors with posts bedded in 15MPa "]
[null,"concrete bases size 400 x 400 x 600mm deep."]
[]
[2,"Mesh Extension 600mm high fixed to underside of fencing including",{"$nulls":10},"m",null,56]
[null,"excavations and bedding"]
[]
[3,"Extra over fence for spike topping to match fence",{"$nulls":10},"m",null,56]
[]
[null,"GATES"]
[]
[null,"Vehicle Sliding Gate to match fencing"]
[]
[4,"9900mm Wide x 2600mm high mild steel sliding gate with ",{"$nulls":10},"No",null,1]
[null,"120 x 60mm rectangular tubing frame.Frame to have three vertical "]
[null,"120 x 60mm  rectangular tubing supports spaced equally inside"]
[null,"frame. Frame  infill panels to be 4mm diameter vertical and 3mm "]
[null,"diameter  horizontal mesh with opening of 76 x 12mm.The mesh "]
[null,"panel shall be  reinforced with 4 x 50mm deep V-information"]
[null,"horizontal recessed  bands. All to be galvanised then powder "]
[null,"coated colour: dark charcoal  to match window frame as per"]
[null,"Architects detail. Including galvanised  pad bolts and mortice locks "]
[null,"two per gate. Gate to be supported by  three steel roller brackets"]
[null,"positioned underneath each vertical  support member, each "]
[null,"with 2 x 80mm dia steel rollers.  All as per  Architect's details and"]
[null,"specifications"]
[]
[5,"Extra over above for gate rail to be 19mm diameter steel bar welded to",{"$nulls":10},"No",null,1]
[null,"a 100x50mm IPE steel sections anchored into a 300mm deep "]
[null,"concrete bedding using a 40x40mm steel angle welded to the IPE "]
[null,"section at 300mm c/c. All as per Architect's detail and specifications"]
[]
[6,"100mm High toughened steel shark-tooth spike rail to be fixed to the ",{"$nulls":10},"m",null,11]
[null,"top of the gate using anti-vandal bolts.Spike finish to match fencing."]
[]
[7,"Supply and install gate motor and remotes to Engineers approval",{"$nulls":10},"No",null,1]
[]
[null,"Pedestrian Gates to match fencing"]
[]
[8,"2.6m high x 1.5m wide mild steel pedestrian gate with 100 x 50mm ",{"$nulls":10},"No",null,1]
[null,"rectangular tubing frame. Frame infill panel to be 4mm diameter "]
[null,"vertical and 3mm diameter horizontal mesh with openings of "]
[null,"76 x 12mm. The  mesh panel shall be reinforced with 4 x 50mm "]
[null,"deep V-formation horizontal recessed bands. All to be galvanised"]
[null,"then powder  coated colour: dark charcoal to match sliding gate  "]
[null,"All as per Architect's details and specifications. Including galvanised "]
[null,"pad bolts and mortice locks two per gate"]
[]
[]
[]
[]
[]
[]
["BILL No. 19"]
[null,"Bill No. 19 FENCING AND GATES carried to collection"]
[]
["CONTRACT NUMBER: ",null,{"$f":"C1","v":"CONSTRUCTION OF A NEW LAPA AND THE REFURBISHMENT OF GATE HOUSE AND ABLUTIONS, EXTERNAL AREAS AND THE INSPECTION AND WORKS TO EXISTING AND NEW SERVICES AT THE MOKOPANE BIODIVERSITY CONSERVATION CENTRE "},{"$nulls":15},"Bill"]
[{"$f":"A2","v":"G540/2024"},{"$nulls":17},{"$f":"S2","v":19}]
["ITEM","PAYMENT","DESCRIPTION",{"$nulls":13},"RATE"]
["NO","REFERS",{"$nulls":10},"UNIT",null,"QUANTITY",{"$nulls":3},"AMOUNT"]
[null,"TO"]
[]
[9,"2.1m high x 3m wide mild steel double swing pedestrian gate with ",{"$nulls":10},"No",null,1]
[null,"100 x 50mm rectangular tubing frame. Frame infill panel to be 4mm "]
[null,"diameter vertical and 3mm diameter horizontal mesh with openings "]
[null,"of 76 x 12mm. The mesh panel shall be reinforced with 4 x 50mm "]
[null,"deep V-formation horizontal recessed bands. All to be galvanised "]
[null,"then powder coated colour: dark charcoal to match sliding gate  All "]
[null,"as per  Architect's details and specifications. Including galvanised"]
[null," pad bolts and mortice locks two per gate"]
[]
[10,"100mm High toughened steel shark-tooth spike rail to be fixed to the "]
[null,"top of the mesh panel using anti-vandal bolts.Spike finish to be "]
[null,"hot dipped galvanised",{"$nulls":10},"m",null,5]
{"$rows_empty":59}
[{"$f":"A78","v":"BILL No. 19"}]
[null,{"$f":"B79","v":"Bill No. 19 FENCING AND GATES carried to collection"}]
[]
["CONTRACT NUMBER: ",null,{"$f":"C1","v":"CONSTRUCTION OF A NEW LAPA AND THE REFURBISHMENT OF GATE HOUSE AND ABLUTIONS, EXTERNAL AREAS AND THE INSPECTION AND WORKS TO EXISTING AND NEW SERVICES AT THE MOKOPANE BIODIVERSITY CONSERVATION CENTRE "},{"$nulls":15},"Bill"]
[{"$f":"A2","v":"G540/2024"},{"$nulls":17},{"$f":"S2","v":19}]
["ITEM","PAYMENT",{"$nulls":10},"Page No."]
["NO","REFERS",{"$nulls":16},"AMOUNT"]
[null,"TO"]
[]
[null,{"$f":"B9","v":"FENCING AND GATES"}]
[]
[null,"COLLECTION"]
[]
[null,"Total Brought Forward from Page No.",{"$nulls":10},177]
[]
[{"$nulls":12},{"$f":"M171+1","v":178}]
{"$rows_empty":62}
[{"$f":"A158","v":"BILL No. 19"}]
[null,"Bill No. 19 FENCING AND GATES carried to Summary"]

{"sheet":"Bill 20- Water ","index":19,"n_rows":311,"n_cols":19,"rows_kept":311,"merged":[[0,0,0,1],[0,2,1,17],[0,18,0,19],[1,0,1,1],[1,18,1,19],[2,1,4,11],[2,16,4,17],[3,12,3,13],[3,14,3,15],[3,18,3,19],[73,12,73,13],[73,14,73,15],[73,16,73,17],[73,18,73,19],[80,0,82,0],[80,23,80,24],[81,18,81,19],[81,23,81,24],[82,23,82,24],[83,0,83,1],[83,2,84,17],[83,18,83,19],[83,23,83,24],[84,0,84,1],[84,18,84,19],[84,23,84,24],[85,2,87,11],[85,16,87,17],[85,23,85,24],[86,12,86,13],[86,14,86,15],[86,18,86,19],[86,23,86,24],[87,23,87,24],[91,12,91,13],[91,14,91,15],[91,16,91,17],[91,18,91,19],[92,12,92,13],[92,14,92,15],[92,16,92,17],[92,18,92,19],[93,12,93,13],[93,14,93,15],[93,16,93,17],[93,18,93,19],[95,12,95,13],[95,14,95,15],[95,16,95,17],[95,18,95,19],[97,12,97,13],[97,14,97,15],[97,16,97,17],[97,18,97,19],[101,12,101,13],[101,14,101,15],[101,16,101,17],[101,18,101,19],[104,12,104,13],[104,14,104,15],[104,16,104,17],[104,18,104,19],[110,12,110,13],[110,14,110,15],[110,16,110,17],[110,18,110,19],[116,23,116,24],[119,12,119,13],[119,14,119,15],[119,16,119,17],[119,18,119,19],[120,12,120,13],[124,12,124,13],[124,14,124,15],[124,16,124,17],[124,18,124,19],[129,12,129,13],[129,14,129,15],[129,16,129,17],[129,18,129,19],[138,12,138,13],[138,14,138,15],[138,16,138,17],[138,18,138,19],[139,23,139,24],[151,12,151,13],[151,14,151,15],[151,16,151,17],[151,18,151,19],[154,12,154,13],[154,14,154,15],[154,16,154,17],[154,18,154,19],[156,23,156,24],[157,23,157,24],[158,23,158,24],[161,0,163,0],[162,18,162,19],[164,0,164,1],[164,2,165,17],[164,18,164,19],[165,0,165,1],[165,18,165,19],[166,2,168,11],[166,16,168,17],[167,12,167,13],[167,14,167,15],[167,18,167,19],[172,12,172,13],[172,14,172,15],[172,16,172,17],[172,18,172,19],[186,12,186,13],[186,14,186,15],[186,16,186,17],[186,18,186,19],[189,12,189,13],[189,14,189,15],[189,16,189,17],[189,18,189,19],[235,0,237,0],[236,18,236,19],[238,0,238,1],[238,2,239,17],[238,18,238,19],[239,0,239,1],[239,18,239,19],[240,2,242,11],[240,12,242,13],[241,18,241,19],[248,12,248,13],[248,18,248,19],[250,12,250,13],[250,18,250,19],[252,12,252,13],[252,18,252,19],[254,12,254,13],[254,18,254,19],[256,12,256,13],[256,18,256,19],[309,0,311,0],[310,18,310,19]]}
["CONTRACT NUMBER: ",null,{"$f":"'[1]Bill 1-P&G'!C1","v":"CONSTRUCTION OF A NEW LAPA AND THE REFURBISHMENT OF GATE HOUSE AND ABLUTIONS, EXTERNAL AREAS AND THE INSPECTION AND WORKS TO EXISTING AND NEW SERVICES AT THE MOKOPANE BIODIVERSITY CONSERVATION CENTRE "},{"$nulls":15},"Bill"]
[{"$f":"'[1]Bill 1-P&G'!A2","v":"G540/2024"},{"$nulls":17},20]
["Item","DESCRIPTION",{"$nulls":14},"RATE"]
["No.",{"$nulls":11},"UNIT",null,"QUANTITY",{"$nulls":3},"AMOUNT"]
[]
[]
[null,"BILL NO. 20"]
[]
[null,"WATER RETICULATION"]
[]
[null,"SUPPLEMENTARY PREAMBLES"]
[]
[null,"uPVC pipes and fittings"]
[]
[null,"Exposed concrete surfaces"]
[]
[null,"Exposed surfaces of concrete storm water channels, cover slabs,"]
[null," inspection eye marker slabs, gulley tops, cleaning eye tops, catch "]
[null,"pits, inspection chambers, etc. shall be finished smooth with plaster."]
[]
[null,"Laying, backfilling, bedding, etc. of pipes"]
[]
[null,"Pipes shall be laid and bedded and trenches shall be carefully "]
[null,"backfilled in accordance with manufacturers' instructions."]
[]
[null,"Where no manufacturer's instructions exist pipes shall be laid in "]
[null,"accordance with Clauses 5.1 and 5.2 of each of the following:  "]
[]
[null,"SABS 1200 L:   Medium pressure pipelines "]
[null,"LD:  Sewers "]
[null,"LE:  Storm water drainage"]
[]
[null,"Pipe trenches, etc shall be backfilled in accordance with Clauses "]
[null,"3, 5.5, 5.6, 5.7 and 7 of SABS 1200 DB:  Earthworks"]
[null,"(Pipe trenches) "]
[]
[null,"Pipes shall be bedded in accordance with  Clauses  3.1 to 3.4.1, 5.1 "]
[null,"to 5.3 and 7 of SABS 1200 LB:  Bedding (Pipes)  "]
[]
[null,"Unless otherwise  described bedding of rigid  pipes shall be "]
[null,"ClassB bedding."]
[]
[null,"Bedding must be selected granular material"]
[null," (specify SABS 1200 LB  class B material) minimum 100mm think "]
[null,"on top and bottom of pipe compacted to 90% MDD. "]
[null,"Selected fill blanket according to  SABS 1200LB; selected fill "]
[null,"material shall be material that has a PI  not exceeding 6 and that is "]
[null,"free from vegetation and from lumps or  stone of diameter"]
[null," exceeding  30mm. In 150mm layers compacted to  "]
[null,"90% MDD. Fill blanket is above the bedding and 200mm "]
[null,"thickness.  In 150mm layers compacted to 90% MDD. "]
[]
[null,"General"]
[]
[null,"Descriptions of pipes laid in and including trenches and of "]
[null,"inspection  chambers, catchpits, etc shall be deemed to include "]
[null,"excavation,  bedding,  selected backfilling material, risk of collapse, "]
[null,"working space,  compaction  to a minimum of "]
[null,"95% Mod AASHTO density in layers of  150mm and  disposal of "]
[null,"surplus material on site "]
[]
[null,"As-built drawings"]
[]
[null,"Where required, the contractor shall prepare an updated set of "]
[null,"as-built drawings.  At completion of the contract the contractor shall "]
[null,"hand these drawings to the principal agent for reproducing onto the "]
[null,"originals for handing over to the employer (provision for allowance of "]
[null,"as-built drawings elsewhere)"]
[]
[null,"WATER RETICULATION"]
[]
[null,"HDPE Pipes"]
[]
[1,"32mm HDPE class 16 water pipes (pipes complete with couplings, ",{"$nulls":10},"m",null,41]
[null,"spigots, sockets, fittings, adapters, etc,)  laid in trenches exceeding "]
[null,"1m not exceeding 1.5m deep including all sockets, fittings,"]
[null,"adapters,  excavation, bedding, backfilling and compaction and "]
[null,"disposal of  surplus material"]
[]
[]
["BILL No. 20"]
[null,"Bill No. 20 WATER RETICULATION carried to collection"]
[]
["CONTRACT NUMBER: ",null,{"$f":"C1","v":"CONSTRUCTION OF A NEW LAPA AND THE REFURBISHMENT OF GATE HOUSE AND ABLUTIONS, EXTERNAL AREAS AND THE INSPECTION AND WORKS TO EXISTING AND NEW SERVICES AT THE MOKOPANE BIODIVERSITY CONSERVATION CENTRE "},{"$nulls":15},"Bill"]
[{"$f":"A2","v":"G540/2024"},{"$nulls":17},{"$f":"S2","v":20}]
["ITEM","PAYMENT","DESCRIPTION",{"$nulls":13},"RATE"]
["NO","REFERS",{"$nulls":10},"UNIT",null,"QUANTITY",{"$nulls":3},"AMOUNT"]
[null,"TO"]
[]
[null,"Extra over HDPE Class 12 pipes for fittings"]
[]
[2,"32mm 45 degree bend",{"$nulls":10},"No",null,8]
[]
[3,"32mm 90 degree bend",{"$nulls":10},"No",null,4]
[]
[4,"32mm Tees",{"$nulls":10},"No",null,7]
[]
[5,"32mm Stop end",{"$nulls":10},"No",null,4]
[]
[null,"Sundries"]
[]
[6,"30 MPa/19mm Unreinforced concrete in thrust blocks in trenches ",{"$nulls":10},"m3",null,3]
[null,"at bends, tees, etc including extra excavation, formwork, etc"]
[]
[7,"Pipeline markers complete including SAPMA affiliation, pipe ",{"$nulls":10},"No",null,3]
[null,"OD & OD tolerance, wall thickness, nominal pressure, pipe class, "]
[null,"etc. as per Engineers detail and specification"]
[]
[null,"Water Meter"]
[]
[8,"Supply and install bulk water meters (PC amount R 15 000.00, ",{"$nulls":10},"No",null,1]
[null,"excluding VAT, but including delivery)   (Johannesburg Water "]
[null,"Approved) installed in valve chamber, chamber elsewhere "]
[null,"measured,  complete with all necessary fittings, bends, tees,"]
[null," flanges, couplings,  finishes, etc. as per Engineers detail and "]
[null,"specifications"]
[]
[null,"Connecting to Existing Pipelines"]
[]
[9,"Connecting new HDPE 40mm diameter to existing water pipes ",{"$nulls":10},"No",null,1]
[null,"including all necessary fittings"]
[]
[null,"Connecting to new water supply points"]
[]
[10,"Connecting new HDPE 25/32mm diameter to water pipes leading",{"$nulls":10},"No",null,2]
[null,"into building including all necessary fittings"]
[]
[null,"Excavate and Build Valve Chamber"]
[]
[11,"Excavate in compacted earth for building Valve Chamber, size ",{"$nulls":10},"No",null,1]
[null,"approximately 1235mm x 1235mm not exceeding 1000mm deep "]
[null,"externally constructed with 230mm brick wall sides built in"]
[null,"engineering  bricks with 150mm thick 25Mpa in-situ concrete base "]
[null,"and cover slab, fitted with 610mm x 305mm x 150mm cast iron "]
[null,"hydrant box with lid with slotted hole for lifting key. Excavation to"]
[null,"include all backfilling, compaction, working space, formwork, "]
[null,"reinforcing, etc. all as per  Engineers details and specifications"]
[]
[12,"Extra over excavation in earth for pipe trenches, chambers, etc for ",{"$nulls":10},"m³",null,3]
[null,"excavation in soft rock"]
[]
[null,"Gate/Isolation Valves in Chambers"]
[]
[null,"Resilient seal gate valves. Specifications to SABS 664"]
[null,null,"Resilient  seal  gate valve fitted to  flange adaptors"]
[null,1,"Clockwise closing "]
[null,2,"Non  rising  spindle"]
[null,3,"Anti-clockwise closing"]
[null,4,"A removable coupling must be  provided at  one"]
[null,null,"side of the valve at least 500mm from the shaft."]
[]
[13,"50mm Gate/Isolation Valve in chamber (chamber elsewhere ",{"$nulls":10},"No",null,1]
[null,"measured) to water main as per Engineers detail and specification"]
[]
[14,"50mm Non-Return Valve in chamber (chamber elsewhere measured) ",{"$nulls":10},"No",null,1]
[null,"to water main, complete including all couplings, flanges, etc. as per"]
[null,"Engineers detail and specification"]
[]
[]
[]
[]
[{"$f":"A81","v":"BILL No. 20"}]
[null,{"$f":"B82","v":"Bill No. 20 WATER RETICULATION carried to collection"}]
[]
["CONTRACT NUMBER: ",null,{"$f":"C84","v":"CONSTRUCTION OF A NEW LAPA AND THE REFURBISHMENT OF GATE HOUSE AND ABLUTIONS, EXTERNAL AREAS AND THE INSPECTION AND WORKS TO EXISTING AND NEW SERVICES AT THE MOKOPANE BIODIVERSITY CONSERVATION CENTRE "},{"$nulls":15},"Bill"]
[{"$f":"A85","v":"G540/2024"},{"$nulls":17},{"$f":"S85","v":20}]
["ITEM","PAYMENT","DESCRIPTION",{"$nulls":13},"RATE"]
["NO","REFERS",{"$nulls":10},"UNIT",null,"QUANTITY",{"$nulls":3},"AMOUNT"]
[null,"TO"]
[]
[null,"Testing"]
[]
[15,"Provide all necessary testing apparatus, water, materials, etc. and ",{"$nulls":10},"Item",null,1]
[null,"allow for testing and chlorination of water reticulation system to the"]
[null,"satisfaction of the Representative. All defective work shall be taken "]
[null,"out and replaced at the Contractor's expense and the whole"]
[null,"re-tested until found perfect"]
[]
[null,"BUDGETARY ALLOWANCES"]
[]
[null,"The following Budgetary Allowances are for work to be "]
[null,"executed by the  Main Contractor or specialist suppliers and"]
[null,"priced at Bill rates or rates to be agreed and to be used as"]
[null,"directed by the Principal  Agent and to be deducted in whole"]
[null,"or in part if not required"]
[]
[16,"Provide the sum of  R25 000.00 (Twenty Five Thousand Rands) ",{"$nulls":10},"Item",{"$nulls":5},{"v":25000,"d":"R25,000.00"}]
[null,"for municipal connection fees"]
[]
[17,"Provide the sum of  R35 000.00 (Thirty Five Thousand Rands) for ",{"$nulls":10},"Item",{"$nulls":5},{"v":35000,"d":"R35,000.00"}]
[null,"additional general work still to be designed and will/may be carried "]
[null,"out by the contractor"]
{"$rows_empty":43}
[{"$f":"A162","v":"BILL No. 20"}]
[null,{"$f":"B163","v":"Bill No. 20 WATER RETICULATION carried to collection"}]
[]
["CONTRACT NUMBER: ",null,{"$f":"C1","v":"CONSTRUCTION OF A NEW LAPA AND THE REFURBISHMENT OF GATE HOUSE AND ABLUTIONS, EXTERNAL AREAS AND THE INSPECTION AND WORKS TO EXISTING AND NEW SERVICES AT THE MOKOPANE BIODIVERSITY CONSERVATION CENTRE "},{"$nulls":15},"Bill"]
[{"$f":"A2","v":"G540/2024"},{"$nulls":17},{"$f":"S2","v":20}]
["ITEM","PAYMENT",{"$nulls":10},"Page No."]
["NO","REFERS",{"$nulls":16},"AMOUNT"]
[null,"TO"]
[]
[null,{"$f":"B9","v":"WATER RETICULATION"}]
[]
[null,"COLLECTION"]
[]
[null,"Total Brought Forward from Page No.",{"$nulls":10},180]
[]
[{"$nulls":12},{"$f":"M249+1","v":181}]
[]
[{"$nulls":12},{"$f":"M251+1","v":182}]
{"$rows_empty":56}
[{"$f":"A81","v":"BILL No. 20"}]
[null,"Bill No. 20 WATER RETICULATION carried to Summary"]

{"sheet":"Bill 21- Sewer ","index":20,"n_rows":317,"n_cols":19,"rows_kept":317,"merged":[[0,0,0,1],[0,2,1,17],[0,18,0,19],[1,0,1,1],[1,18,1,19],[2,1,4,11],[2,16,4,17],[3,12,3,13],[3,14,3,15],[3,18,3,19],[81,0,83,0],[81,23,81,24],[82,18,82,19],[82,23,82,24],[83,23,83,24],[84,0,84,1],[84,2,85,17],[84,18,84,19],[84,23,84,24],[85,0,85,1],[85,18,85,19],[85,23,85,24],[86,2,88,11],[86,16,88,17],[86,23,86,24],[87,12,87,13],[87,14,87,15],[87,18,87,19],[87,23,87,24],[88,23,88,24],[102,12,102,13],[102,14,102,15],[102,16,102,17],[102,18,102,19],[108,12,108,13],[108,14,108,15],[108,16,108,17],[108,18,108,19],[112,12,112,13],[112,14,112,15],[112,16,112,17],[112,18,112,19],[115,23,115,24],[118,12,118,13],[118,14,118,15],[118,16,118,17],[118,18,118,19],[120,12,120,13],[120,14,120,15],[120,16,120,17],[120,18,120,19],[122,12,122,13],[122,14,122,15],[122,16,122,17],[122,18,122,19],[126,12,126,13],[126,14,126,15],[126,16,126,17],[126,18,126,19],[139,12,139,13],[139,14,139,15],[139,16,139,17],[139,18,139,19],[139,23,139,24],[141,12,141,13],[141,14,141,15],[141,16,141,17],[141,18,141,19],[143,12,143,13],[143,14,143,15],[143,16,143,17],[143,18,143,19],[145,12,145,13],[145,14,145,15],[145,16,145,17],[145,18,145,19],[150,12,150,13],[150,14,150,15],[150,16,150,17],[150,18,150,19],[156,12,156,13],[156,14,156,15],[156,16,156,17],[156,18,156,19],[167,0,169,0],[167,23,167,24],[168,18,168,19],[168,23,168,24],[169,23,169,24],[170,0,170,1],[170,2,171,17],[170,18,170,19],[171,0,171,1],[171,18,171,19],[172,2,174,11],[172,16,174,17],[173,12,173,13],[173,14,173,15],[173,18,173,19],[178,12,178,13],[178,14,178,15],[178,16,178,17],[178,18,178,19],[180,12,180,13],[180,14,180,15],[180,16,180,17],[180,18,180,19],[193,12,193,13],[193,14,193,15],[193,16,193,17],[193,18,193,19],[196,12,196,13],[196,14,196,15],[196,16,196,17],[196,18,196,19],[199,12,199,13],[199,14,199,15],[199,16,199,17],[199,18,199,19],[241,0,243,0],[242,18,242,19],[244,0,244,1],[244,2,245,17],[244,18,244,19],[245,0,245,1],[245,18,245,19],[246,2,248,11],[246,12,248,13],[247,18,247,19],[254,12,254,13],[254,18,254,19],[256,12,256,13],[256,18,256,19],[258,12,258,13],[258,18,258,19],[260,12,260,13],[260,18,260,19],[262,12,262,13],[262,18,262,19],[315,0,317,0],[316,18,316,19]]}
["CONTRACT NUMBER: ",null,{"$f":"'[1]Bill 1-P&G'!C1","v":"CONSTRUCTION OF A NEW LAPA AND THE REFURBISHMENT OF GATE HOUSE AND ABLUTIONS, EXTERNAL AREAS AND THE INSPECTION AND WORKS TO EXISTING AND NEW SERVICES AT THE MOKOPANE BIODIVERSITY CONSERVATION CENTRE "},{"$nulls":15},"Bill"]
[{"$f":"'[1]Bill 1-P&G'!A2","v":"G540/2024"},{"$nulls":17},21]
["Item","DESCRIPTION",{"$nulls":14},"RATE"]
["No.",{"$nulls":11},"UNIT",null,"QUANTITY",{"$nulls":3},"AMOUNT"]
[]
[]
[null,"BILL NO. 21"]
[]
[null,"SEWER RETICULATION"]
[]
[null,"SUPPLEMENTARY PREAMBLES"]
[]
[null,"uPVC pipes and fittings"]
[]
[null,"Soil, waste pipes of 63mm diameter and greater shall have sockets "]
[null,"and spigots with push-in type integral rubber ring joints.  Bends shall"]
[null,"be PVC-U fittings all with similar push-in type joints"]
[]
[null,"Exposed concrete surfaces"]
[]
[null,"Exposed surfaces of concrete storm water channels, cover slabs,"]
[null,"inspection eye marker slabs, gulley tops, cleaning eye tops, catch"]
[null,"pits, inspection chambers, etc. shall be finished smooth with plaster."]
[]
[null,"Nature of ground"]
[]
[null,"A soils investigation has been carried out on site by the engineer"]
[null,"and  the report is available upon request. Descriptions of "]
[null,"excavations shall  be deemed to include all ground conditions "]
[null,"classifiable as \"earth\"  described in the above report and where "]
[null,"conditions of a more difficult character are indicated these are "]
[null,"separately measured"]
[]
[null,"Subterranean water"]
[]
[null,"The tenderer must acquaint himself of the presence and depth of "]
[null,"subterranean water and allow therefore in his prices."]
[]
[null,"Laying, backfilling, bedding, etc. of pipes"]
[]
[null,"Pipes shall be laid and bedded and trenches shall be carefully "]
[null,"backfilled in accordance with manufacturers' instructions."]
[]
[null,"Where no manufacturer's instructions exist pipes shall be laid in "]
[null,"accordance with Clauses 5.1 and 5.2 of each of the following:  "]
[]
[null,"SABS 1200 L:   Medium pressure pipelines "]
[null,"LD:  Sewers "]
[null,"LE:   Storm water drainage"]
[]
[null,"Pipe trenches, etc shall be backfilled in accordance with Clauses "]
[null,"3, 5.5, 5.6, 5.7 and 7 of SABS 1200 DB:  Earthworks "]
[null,"(Pipe trenches)  Pipes shall be bedded in accordance with "]
[null,"Clauses 3.1 to 3.4.1, 5.1  to 5.3 and 7 of SABS 1200 LB:  Bedding "]
[null,"(Pipes) Unless otherwise described bedding of rigid pipes shall be "]
[null,"Class B bedding."]
[]
[null,"Bedding must be selected granular material "]
[null,"(specify SABS 1200 LB class B material) minimum 100mm think "]
[null,"on  top and bottom of pipe compacted to 90% MDD. Selected "]
[null,"fill blanket according to SABS 1200LB; selected fill material "]
[null,"shall be material that has a PI not exceeding 6 and that is free"]
[null,"from vegetation and from lumps or stone of diameter exceeding "]
[null,"30mm. In 150mm layers compacted to 90% MDD.Fill blanket is "]
[null,"above the bedding and 200mm thickness.  In 150mm layers"]
[null,"compacted to 90% MDD."]
[]
[null,"General"]
[]
[null,"Descriptions of pipes laid in and including trenches and of "]
[null,"inspection  chambers, catchpits, etc shall be deemed to include "]
[null,"excavation,  bedding, selected backfilling material, risk of collapse, "]
[null,"working space, compaction to a minimum of 95% MDD "]
[null,"density in layers of 150mm and disposal of surplus material on site"]
{"$rows_empty":7}
["BILL No. 21"]
[null,"Bill No. 21 SEWER RETICULATION carried to collection"]
[]
["CONTRACT NUMBER: ",null,{"$f":"C1","v":"CONSTRUCTION OF A NEW LAPA AND THE REFURBISHMENT OF GATE HOUSE AND ABLUTIONS, EXTERNAL AREAS AND THE INSPECTION AND WORKS TO EXISTING AND NEW SERVICES AT THE MOKOPANE BIODIVERSITY CONSERVATION CENTRE "},{"$nulls":15},"Bill"]
[{"$f":"A2","v":"G540/2024"},{"$nulls":17},{"$f":"S2","v":21}]
["ITEM","PAYMENT","DESCRIPTION",{"$nulls":13},"RATE"]
["NO","REFERS",{"$nulls":10},"UNIT",null,"QUANTITY",{"$nulls":3},"AMOUNT"]
[null,"TO"]
[]
[null,"As-built drawings"]
[]
[null,"Where required, the contractor shall prepare an updated set of "]
[null,"drawings.  At completion of the contract the contractor shall hand"]
[null," these  as-built  drawings to the principal agent for reproducing onto "]
[null,"the originals for  handing over to the employer (provision for "]
[null,"allowance of as-built  drawings elsewhere)"]
[]
[null,"SOIL DRAINAGE"]
[]
[null,"uPVC Class 34 pipes with socketed joints"]
[]
[1,"110mm uPVC Class 34 sewer drainage pipes (pipes complete with ",{"$nulls":10},"m",null,77]
[null,"couplings, spigots, sockets, fittings, adapters, etc,)  laid in trenches "]
[null,"not exceeding 1000m deep including all sockets, fittings, adapters, "]
[null,"dpc,  excavation, bedding, stone filling, backfilling and compaction"]
[null,"and  disposal of surplus material"]
[]
[2,"Ditto,but exceeding 1000mm not exceeding 2000mm deep including ",{"$nulls":10},"m",null,39]
[null,"all sockets, fittings, adapters, excavation, bedding, backfilling and "]
[null,"compaction and disposal of surplus material"]
[]
[3,"Ditto, but exceeding 2000mm not exceeding 3000mm deep",{"$nulls":10},"m",null,39]
[null,"including  all sockets, fittings, adapters, excavation, bedding, "]
[null,"backfilling and  compaction and disposal of surplus material"]
[]
[null,"Extra over uPVC Class 34 pipes for fittings in trenches"]
[]
[4,"110mm Bend",{"$nulls":10},"No",null,31]
[]
[5,"110mm Junction",{"$nulls":10},"No",null,6]
[]
[6,"110 x 75m Reducing junction",{"$nulls":10},"No",null,5]
[]
[null,"Excavate and Build Manholes"]
[]
[7,"Excavate in compacted earth for and build pre-cast concrete",{"$nulls":10},"No",null,1]
[null," manhole  with 560mm diameter Class B125 Polyester Resin or "]
[null,"Type 4 concrete  manhole cover and frame. Manhole with 1000mm "]
[null,"internal diameter  shaft with 75mm reinforced concrete wall spacer "]
[null,"rings internally, 1110 x 1110mm x minimum 150mm thick cast in-situ"]
[null,"concrete slab  25MPa with reinforcement, HDPE steps 300c/c "]
[null,"vertical and horizontal,  20mm Dolomitic steel floated benching to"]
[null," top of concrete base,  25MPa concrete haunching 100mm wide, "]
[null,"including leaving or forming opening in precast concrete wall for "]
[null,"150mm diameter outlets including  all excavations, backfilling, "]
[null,"compaction, working space, de-watering,  risk of collapse, "]
[null,"formwork, formwork, reinforcing, etc. not exceeding 1500 mm deep."]
[]
[8,"Ditto, but exceeding 1500mm and not exceeding 2000mm deep",{"$nulls":10},"No",null,1]
[]
[9,"Ditto, but exceeding 2000mm and not exceeding 2500mm deep",{"$nulls":10},"No",null,1]
[]
[10,"Ditto, but exceeding 2500mm and not exceeding 3000mm deep",{"$nulls":10},"No",null,1]
[]
[11,"Extra over excavation in earth for pipe trenches, chambers, etc",{"$nulls":10},"m³",null,1]
[null," for excavation in soft rock"]
[]
[null,"Municipal Connection"]
[]
[12,"Excavate, carefully create opening in existing sewer manhole",{"$nulls":10},"No",null,1]
[null,"exceeding 3000mm not exceeding 4000mm deep, connect new "]
[null,"sewer pipe with fittings and make good"]
[]
[null,"Septic Tank Connection"]
[]
[13,"Carefully open up existing septic tank, connect new sewer pipe with ",{"$nulls":10},"No",null,1]
[null,"fittings and make good"]
{"$rows_empty":9}
[{"$f":"A82","v":"BILL No. 21"}]
[null,{"$f":"B83","v":"Bill No. 21 SEWER RETICULATION carried to collection"}]
[]
["CONTRACT NUMBER: ",null,{"$f":"C85","v":"CONSTRUCTION OF A NEW LAPA AND THE REFURBISHMENT OF GATE HOUSE AND ABLUTIONS, EXTERNAL AREAS AND THE INSPECTION AND WORKS TO EXISTING AND NEW SERVICES AT THE MOKOPANE BIODIVERSITY CONSERVATION CENTRE "},{"$nulls":15},"Bill"]
[{"$f":"A86","v":"G540/2024"},{"$nulls":17},{"$f":"S86","v":21}]
["ITEM","PAYMENT","DESCRIPTION",{"$nulls":13},"RATE"]
["NO","REFERS",{"$nulls":10},"UNIT",null,"QUANTITY",{"$nulls":3},"AMOUNT"]
[null,"TO"]
[]
[null,"Sundries"]
[]
[14,"Unreinforced concrete encasement of pipes (25MPa)",{"$nulls":10},"m³",null,6]
[]
[15,"Provide all necessary testing apparatus, water, materials, etc. and ",{"$nulls":10},"Item",null,1]
[null,"allow for testing of drainage system to the satisfaction of the "]
[null,"Representative. All defective work shall be taken out and replaced at "]
[null,"the Contractor's expense and the whole re-tested until found perfect"]
[]
[null,"BUDGETARY ALLOWANCES"]
[]
[null,"The following Budgetary Allowances are for work to be"]
[null," executed by  Main Contractor or specialist suppliers and"]
[null,"priced at Bill rates or the rates to be agreed and to be used"]
[null,"as directed by the Principal Agent and to be deducted in"]
[null,"whole or in part if not required"]
[]
[16,"Provide the sum of R25 000.00 (Twenty Five Thousand Rand) for ",{"$nulls":10},"Item",{"$nulls":5},{"v":25000,"d":"R25,000.00"}]
[null,"decommissioning of existing septic tank and sewer line"]
[]
[17,"Provide the sum of  R50 000.00 (Fifty Thousand Rands) for ",{"$nulls":10},"Item",{"$nulls":5},{"v":50000,"d":"R50,000.00"}]
[null,"municipal connection fees"]
[]
[18,"Provide the sum of  R75 000.00 (Seventy Five Thousand Rands) for ",{"$nulls":10},"Item",{"$nulls":5},{"v":75000,"d":"R75,000.00"}]
[null,"additional general work still to be designed and will/may be carried"]
[null,"out by the contractor"]
{"$rows_empty":39}
[{"$f":"A168","v":"BILL No. 21"}]
[null,{"$f":"B169","v":"Bill No. 21 SEWER RETICULATION carried to collection"}]
[]
["CONTRACT NUMBER: ",null,{"$f":"C1","v":"CONSTRUCTION OF A NEW LAPA AND THE REFURBISHMENT OF GATE HOUSE AND ABLUTIONS, EXTERNAL AREAS AND THE INSPECTION AND WORKS TO EXISTING AND NEW SERVICES AT THE MOKOPANE BIODIVERSITY CONSERVATION CENTRE "},{"$nulls":15},"Bill"]
[{"$f":"A2","v":"G540/2024"},{"$nulls":17},21]
["ITEM","PAYMENT",{"$nulls":10},"Page No."]
["NO","REFERS",{"$nulls":16},"AMOUNT"]
[null,"TO"]
[]
[null,{"$f":"B9","v":"SEWER RETICULATION"}]
[]
[null,"COLLECTION"]
[]
[null,"Total Brought Forward from Page No.",{"$nulls":10},184]
[]
[{"$nulls":12},{"$f":"M255+1","v":185}]
[]
[{"$nulls":12},{"$f":"M257+1","v":186}]
{"$rows_empty":56}
[{"$f":"A82","v":"BILL No. 21"}]
[null,"Bill No. 21 SEWER RETICULATION carried to Summary"]

{"sheet":"Bill 22- Stormwater","index":21,"n_rows":390,"n_cols":19,"rows_kept":390,"merged":[[0,0,0,1],[0,2,1,17],[0,18,0,19],[1,0,1,1],[1,18,1,19],[2,1,4,11],[2,16,4,17],[3,12,3,13],[3,14,3,15],[3,18,3,19],[80,0,82,0],[80,23,80,24],[81,18,81,19],[81,23,81,24],[82,23,82,24],[83,0,83,1],[83,2,84,17],[83,18,83,19],[83,23,83,24],[84,0,84,1],[84,18,84,19],[84,23,84,24],[85,2,87,11],[85,16,87,17],[85,23,85,24],[86,12,86,13],[86,14,86,15],[86,18,86,19],[86,23,86,24],[87,23,87,24],[108,23,108,24],[109,12,109,13],[109,14,109,15],[109,16,109,17],[109,18,109,19],[109,23,109,24],[121,12,121,13],[121,14,121,15],[121,16,121,17],[121,18,121,19],[121,23,121,24],[131,12,131,13],[131,14,131,15],[131,16,131,17],[131,18,131,19],[132,23,132,24],[133,12,133,13],[133,14,133,15],[133,16,133,17],[133,18,133,19],[140,12,140,13],[140,14,140,15],[140,16,140,17],[140,18,140,19],[142,23,142,24],[143,23,143,24],[144,12,144,13],[144,14,144,15],[144,16,144,17],[144,18,144,19],[144,23,144,24],[146,23,146,24],[152,12,152,13],[152,14,152,15],[152,16,152,17],[152,18,152,19],[154,12,154,13],[154,14,154,15],[154,16,154,17],[154,18,154,19],[161,12,161,13],[161,14,161,15],[161,16,161,17],[161,18,161,19],[162,0,164,0],[162,23,162,24],[163,18,163,19],[163,23,163,24],[164,23,164,24],[165,0,165,1],[165,2,166,17],[165,18,165,19],[166,0,166,1],[166,18,166,19],[167,2,169,11],[167,16,169,17],[168,12,168,13],[168,14,168,15],[168,18,168,19],[173,12,173,13],[173,14,173,15],[173,16,173,17],[173,18,173,19],[175,12,175,13],[175,14,175,15],[175,16,175,17],[175,18,175,19],[177,12,177,13],[177,14,177,15],[177,16,177,17],[177,18,177,19],[179,12,179,13],[179,14,179,15],[179,16,179,17],[179,18,179,19],[181,12,181,13],[181,14,181,15],[181,16,181,17],[181,18,181,19],[184,12,184,13],[184,14,184,15],[184,16,184,17],[184,18,184,19],[187,12,187,13],[187,14,187,15],[187,16,187,17],[187,18,187,19],[196,12,196,13],[196,14,196,15],[196,16,196,17],[196,18,196,19],[198,12,198,13],[198,14,198,15],[198,16,198,17],[198,18,198,19],[200,12,200,13],[200,14,200,15],[200,16,200,17],[200,18,200,19],[202,12,202,13],[202,14,202,15],[202,16,202,17],[202,18,202,19],[204,12,204,13],[204,14,204,15],[204,16,204,17],[204,18,204,19],[206,12,206,13],[206,14,206,15],[206,16,206,17],[206,18,206,19],[208,12,208,13],[208,14,208,15],[208,16,208,17],[208,18,208,19],[210,12,210,13],[210,14,210,15],[210,16,210,17],[210,18,210,19],[214,12,214,13],[214,14,214,15],[214,16,214,17],[214,18,214,19],[228,12,228,13],[228,14,228,15],[228,16,228,17],[228,18,228,19],[240,0,242,0],[241,18,241,19],[243,0,243,1],[243,2,244,17],[243,18,243,19],[244,0,244,1],[244,18,244,19],[245,2,247,11],[245,16,247,17],[246,12,246,13],[246,14,246,15],[246,18,246,19],[251,12,251,13],[251,14,251,15],[251,16,251,17],[251,18,251,19],[267,12,267,13],[267,14,267,15],[267,16,267,17],[267,18,267,19],[277,12,277,13],[277,14,277,15],[277,16,277,17],[277,18,277,19],[278,12,278,13],[278,14,278,15],[278,16,278,17],[278,18,278,19],[280,12,280,13],[280,14,280,15],[280,16,280,17],[280,18,280,19],[281,12,281,13],[281,14,281,15],[281,16,281,17],[281,18,281,19],[308,12,308,13],[308,14,308,15],[308,16,308,17],[308,18,308,19],[312,12,312,13],[312,14,312,15],[312,16,312,17],[312,18,312,19],[314,0,316,0],[315,18,315,19],[317,0,317,1],[317,2,318,17],[317,18,317,19],[318,0,318,1],[318,18,318,19],[319,2,321,11],[319,12,321,13],[320,18,320,19],[327,12,327,13],[327,18,327,19],[329,12,329,13],[329,18,329,19],[331,12,331,13],[331,18,331,19],[333,12,333,13],[333,18,333,19],[335,12,335,13],[335,18,335,19],[388,0,390,0],[389,18,389,19]]}
["CONTRACT NUMBER: ",null,{"$f":"'[1]Bill 1-P&G'!C1","v":"CONSTRUCTION OF A NEW LAPA AND THE REFURBISHMENT OF GATE HOUSE AND ABLUTIONS, EXTERNAL AREAS AND THE INSPECTION AND WORKS TO EXISTING AND NEW SERVICES AT THE MOKOPANE BIODIVERSITY CONSERVATION CENTRE "},{"$nulls":15},"Bill"]
[{"$f":"'[1]Bill 1-P&G'!A2","v":"G540/2024"},{"$nulls":17},22]
["Item","DESCRIPTION",{"$nulls":14},"RATE"]
["No.",{"$nulls":11},"UNIT",null,"QUANTITY",{"$nulls":3},"AMOUNT"]
[]
[]
[null,"BILL NO. 22"]
[]
[null,"STORMWATER DRAINAGE, SUB-SOIL DRAINAGE"]
[]
[null,"SUPPLEMENTARY PREAMBLES"]
[]
[null,"Concrete pipes: interlocking joints"]
[]
[null,"Pipes shall be jointed with interlocking joints with rubber collars or "]
[null,"socket and spigot joints with rubber rings."]
[]
[null,"uPVC pipes and fittings"]
[]
[null,"Soil, waste pipes of 63mm diameter and greater shall have"]
[null,"sockets and spigots with push-in type integral rubber ring joints.  "]
[null,"Bends shall be PVC-U fittings all with similar push-in type joints"]
[]
[null,"Exposed concrete surfaces"]
[]
[null,"Exposed surfaces of concrete storm water channels, cover slabs,"]
[null," inspection eye marker slabs, gulley tops, cleaning eye tops, catch "]
[null,"pits, inspection chambers, etc. shall be finished smooth with plaster."]
[]
[null,"Nature of ground"]
[]
[null,"A soils investigation has been carried out on site by the engineer "]
[null,"and the report is available upon request. Descriptions of"]
[null,"excavations shall be deemed to include all ground conditions "]
[null,"classifiable as  earth described in the above report and where"]
[null,"conditions of a more difficult character are indicated these are "]
[null,"separately measured"]
[]
[null,"Subterranean water"]
[]
[null,"The tenderer must acquaint himself of the presence and depth of s"]
[null,"ubterranean water and allow therefore in his prices."]
[]
[null,"Laying, backfilling, bedding, etc. of pipes"]
[]
[null,"Pipes shall be laid and bedded and trenches shall be carefully "]
[null,"backfilled in accordance with manufacturers' instructions."]
[]
[null,"Where no manufacturer's instructions exist pipes shall be laid in"]
[null," accordance with Clauses 5.1 and 5.2 of each of the following:  "]
[]
[null,"SABS 1200 L:   Medium pressure pipelines "]
[null,"LD:  Sewers "]
[null,"LE:  Storm water drainage"]
[]
[null,"Pipe trenches, etc shall be backfilled in accordance with Clauses"]
[null," 3, 5.5, 5.6, 5.7 and 7 of SABS 1200 DB:  Earthworks "]
[null,"(Pipe trenches) "]
[]
[null,"Pipes shall be bedded in accordance with Clauses 3.1 to 3.4.1, 5.1 "]
[null,"to 5.3 and 7 of SABS 1200 LB:  Bedding (Pipes) "]
[]
[null,"Unless otherwise described bedding of rigid pipes shall be "]
[null,"Class B bedding."]
[]
[null,"Selected granular bedding and cradle material in 150mm layers"]
[null,"100 mm below pipe and 200mm above the pipe, compacted to"]
[null," 90% MDD.  "]
[]
[null,"Selected backfill blanket is above the  bedding in 150mm layers "]
[null,"compacted to 90% MDD. "]
[]
[null,"Approved backfill 150mm layers compacted to 90% MDD."]
{"$rows_empty":7}
["BILL No. 22"]
[null,"Bill No. 14 STORMWATER DRAINAGE, SUB-SOIL DRAINAGE carried to collection"]
[]
["CONTRACT NUMBER: ",null,{"$f":"C1","v":"CONSTRUCTION OF A NEW LAPA AND THE REFURBISHMENT OF GATE HOUSE AND ABLUTIONS, EXTERNAL AREAS AND THE INSPECTION AND WORKS TO EXISTING AND NEW SERVICES AT THE MOKOPANE BIODIVERSITY CONSERVATION CENTRE "},{"$nulls":15},"Bill"]
[{"$f":"A2","v":"G540/2024"},{"$nulls":17},{"$f":"S2","v":22}]
["ITEM","PAYMENT","DESCRIPTION",{"$nulls":13},"RATE"]
["NO","REFERS",{"$nulls":10},"UNIT",null,"QUANTITY",{"$nulls":3},"AMOUNT"]
[null,"TO"]
[]
[null,"General"]
[]
[null,"Descriptions of pipes laid in and including trenches and of "]
[null,"inspection chambers, catchpits, etc shall be deemed to include "]
[null,"excavation, bedding, selected backfilling material, risk of collapse, "]
[null,"working space, compaction to a minimum of 95% MDD"]
[null,"density in layers of 150mm and disposal of surplus material on site"]
[]
[null,"As-built drawings"]
[]
[null,"Where required, the contractor shall prepare an updated set of "]
[null,"as-built drawings. At completion of the contract the contractor "]
[null,"shall hand these drawings to the principal agent for reproducing "]
[null,"onto the originals for handing over to the employer (provision for "]
[null,"allowance of as-built drawings elsewhere)"]
[]
[null,"STORM WATER DRAINAGE"]
[]
[null,"Concrete Stormwater Channel"]
[]
[1,"25Mpa/19mm V shaped concrete drainage channel 100mm thick ",{"$nulls":10},"m",null,18]
[null,"with overall canal size 600mm wide x 50mm deep finished smooth "]
[null,"on all exposed surfaces to a uniform dense finish with closed cell "]
[null,"expanded polyethylene filler and polyurethane sealant expansion "]
[null,"joints at 2m centres, 150mm bottom layer to be ripped and "]
[null,"re-compacted to 93% MDD, 150mm top layer "]
[null,"of G5 imported material to 95% MDD"]
[null,"including all necessary excavation, backfilling, carting away, "]
[null,"cutting into paving, formwork, reinforcement, dowels, etc.."]
[null,"Channels including slopes, overall shape etc. as per engineers"]
[null,"drawings"]
[]
[2,"25Mpa/19mm Trapezium shaped concrete drainage channel ",{"$nulls":10},"m",null,80]
[null,"125mm thick with overall canal size 600mm wide x 250mm deep "]
[null,"finished smooth on all exposed surfaces with a steel float to a "]
[null,"uniform dense finish with closed cell expanded polyethylene filler "]
[null,"and polyurethane sealant expansion joints at 1.8m centres, "]
[null,"150mm bottom layer to be ripped and re-compacted to 93% MDD,"]
[null,"150mm top layer of G5 imported material to 93% MDD including"]
[null,"all necessary excavation, backfilling, carting away, cutting into"]
[null,"paving, formwork, reinforcement dowels, etc.. Channels including"]
[null,"slopes,  overall shape etc. as per engineers drawings"]
[]
[3,"25Mpa/19mm U shaped concrete drainage channel 200mm thick "]
[null,"with overall canal size 600mm wide x 300mm deep finished ",{"$nulls":10},"m",null,24]
[null,"smooth on all exposed surfaces with a steel float to a uniform "]
[null,"dense finish with closed cell expanded polyethylene filler and"]
[null,"polyurethane sealant expansion joints at 1.8m centres, 150mm "]
[null,"bottom layer to be ripped and re-compacted to 93% MDD,"]
[null,"150mm top layer of G5 imported material to 93% MDD including"]
[null,"all necessary excavation, backfilling, carting away, cutting into "]
[null,"paving, formwork, reinforcing, dowels, etc."]
[]
[null,"Stone pitched Stormwater Channel"]
[]
[4,"19mm Compacted stone V shaped drainage channel 200mm thick ",{"$nulls":10},"m",null,126]
[null,"with 1:3 slope, 150mm bottom layer to be ripped and "]
[null,"re-compacted to 93% MDD, 150mm top layer "]
[null,"of G5 imported material to 95% MDD including all necessary "]
[null,"excavation, backfilling, carting away,  cutting into paving, mortar etc."]
[null,"Channels including slopes, overall  shape etc. as per engineers"]
[null,"drawings"]
[]
[5,"Bidim A4 or similar and approved geofabric filter blanket of 2,1mm ",{"$nulls":10},"m²",null,151]
[null,"thickness under 2kPa  with 150mm side and 300mm end laps"]
[null,"including stitching over  compacted surface underneath compacted stone "]
[null,"(stone measured elsewhere)"]
[]
[]
[]
[]
[]
[]
[{"$f":"A81","v":"BILL No. 22"}]
[null,{"$f":"B82","v":"Bill No. 14 STORMWATER DRAINAGE, SUB-SOIL DRAINAGE carried to collection"}]
[]
["CONTRACT NUMBER: ",null,{"$f":"C84","v":"CONSTRUCTION OF A NEW LAPA AND THE REFURBISHMENT OF GATE HOUSE AND ABLUTIONS, EXTERNAL AREAS AND THE INSPECTION AND WORKS TO EXISTING AND NEW SERVICES AT THE MOKOPANE BIODIVERSITY CONSERVATION CENTRE "},{"$nulls":15},"Bill"]
[{"$f":"A85","v":"G540/2024"},{"$nulls":17},{"$f":"S85","v":22}]
["ITEM","PAYMENT","DESCRIPTION",{"$nulls":13},"RATE"]
["NO","REFERS",{"$nulls":10},"UNIT",null,"QUANTITY",{"$nulls":3},"AMOUNT"]
[null,"TO"]
[]
[null,"Sundries"]
[]
[6,"Extra over channel for 90 degree angle",{"$nulls":10},"No",null,24]
[]
[7,"Extra over channel for forming of 20MPA concrete silt trap size ",{"$nulls":10},"No",null,1]
[null,"300 x 200mm high in channel including class B grate, all "]
[null,"necessary formwork, reinforcing etc."]
[]
[8,"Extra over channel for closed end",{"$nulls":10},"No",null,6]
[]
[9,"Extra over channel for open end into catchpit (catchpit elsewhere ",{"$nulls":10},"No",null,6]
[null,"measured)"]
[]
[10,"Extra over channel for Rectagrid RS40 or similar and approved ",{"$nulls":10},"No",null,10]
[null,"grating size 640 x 2560mm with closed ends and 60 x 4,5mm "]
[null,"bearer bars, laid on loose on and including 25 x 5 x 5mm thick "]
[null,"mild steel angle iron with 100mm anchors embedded in concrete"]
[]
[null,"Rocla or similar and approved Concrete Pipes"]
[]
[null,"Supply, handle, lay, joint, precast concrete pipe  complete with "]
[null,"spigots & socket with rubber ring seal, etc, and bed pipes on class "]
[null,"A/B rigid pipe bedding compacted to 90% MDD, etc. all"]
[null,"as per Engineers detail and specifications"]
[]
[11,"375mm Diameter class 75D pre-cast concrete pipe laid in ",{"$nulls":10},"m",null,6]
[null,"trenches not exceeding 1m deep, including excavation, bedding, "]
[null,"backfilling and compaction and disposal of surplus material"]
[]
[12,"Ditto exceeding 1m but not exceeding 2m deep",{"$nulls":10},"m",null,4]
[]
[13,"Ditto exceeding 2m but not exceeding 3m deep",{"$nulls":10},"m",null,4]
[]
[14,"450mm Diameter class 100D pre-cast concrete pipe laid in ",{"$nulls":10},"m",null,35]
[null,"trenches not exceeding 1m deep, including excavation, bedding, "]
[null,"backfilling and compaction and disposal of surplus material"]
[]
[15,"Ditto exceeding 1m but not exceeding 2m deep",{"$nulls":10},"m",null,22]
[]
[16,"Ditto exceeding 2m but not exceeding 3m deep",{"$nulls":10},"m",null,31]
[]
[null,"Excavate and Build Manholes, Kerb Inlets, etc."]
[]
[17,"Excavate in compacted earth for building up manhole/kerb inlet,",{"$nulls":10},"No",null,1]
[null,"size approximately 1600 x 1750 not exceeding 1m deep internally "]
[null,"with 220mm brick wall sides in engineering bricks built on and"]
[null,"including 175mm thick, 25Mpa in-situ concrete base with ref. 888"]
[null,"mesh reinforcement, on 1:5 cement mortar, benching to bottom in"]
[null,"187.5mm thick 15Mpa concrete finished off smooth with a steel"]
[null,"trowel and fitted with & including 25Mpa reinforced concrete roof "]
[null,"slab and 600mm diameter heavy duty type 2A manhole cover and"]
[null,"frame, frame cast into concrete surround with step irons to SABS "]
[null,"1247 fixed to brickwork at 300c/c including leaving or forming "]
[null,"opening in brickwork for 2No. 375mm diameter outlets including "]
[null,"all excavations, backfilling, formwork, de-watering, risk of collapse"]
[null,", reinforcing, etc. all as per engineers detail and specification"]
[]
[18,"Ditto exceeding 2m but not exceeding 3m deep",{"$nulls":10},"No",null,1]
{"$rows_empty":11}
[{"$f":"A163","v":"BILL No. 22"}]
[null,{"$f":"B164","v":"Bill No. 14 STORMWATER DRAINAGE, SUB-SOIL DRAINAGE carried to collection"}]
[]
["CONTRACT NUMBER: ",null,{"$f":"C166","v":"CONSTRUCTION OF A NEW LAPA AND THE REFURBISHMENT OF GATE HOUSE AND ABLUTIONS, EXTERNAL AREAS AND THE INSPECTION AND WORKS TO EXISTING AND NEW SERVICES AT THE MOKOPANE BIODIVERSITY CONSERVATION CENTRE "},{"$nulls":15},"Bill"]
[{"$f":"A167","v":"G540/2024"},{"$nulls":17},{"$f":"S167","v":22}]
["ITEM","PAYMENT","DESCRIPTION",{"$nulls":13},"RATE"]
["NO","REFERS",{"$nulls":10},"UNIT",null,"QUANTITY",{"$nulls":3},"AMOUNT"]
[null,"TO"]
[]
[null,"Excavate and Build Catchpits and grid inlets"]
[]
[19,"Excavate in compacted earth for building up grid inlet, size",{"$nulls":10},"No",null,1]
[null,"approximately 1800 x 1800mm not exceeding 1m deep internally "]
[null,"with 230mm brick wall sides in engineering bricks built on and "]
[null,"including 150mm thick, 25Mpa in-situ concrete base with "]
[null,"ref. 245 mesh reinforcement, on 1:5 cement mortar, benching to"]
[null,"bottom in 15Mpa concrete finished off smooth with a steel trowel "]
[null,"and fitted with & including 25Mpa reinforced (mesh ref. 395) "]
[null,"concrete dished cover slab approximately 1800 x 1600mm "]
[null,"finished with steel trowel, including 520 x 790mm heavy duty "]
[null,"grating and frame, frame cast into 1:10 sloping reinforced "]
[null,"concrete surround with step irons to SABS 1247 fixed to brickwork "]
[null,"at 300c/c including leaving or forming opening in brickwork for"]
[null,"2No. 375/450mm diameter outlets including all excavations, "]
[null,"backfilling, de-watering, risk of collapse, formwork, reinforcing, etc. "]
[null,"all as per engineers detail and specification"]
[]
[20,"Ditto exceeding 1m but not exceeding 2m deep",{"$nulls":10},"No",null,1]
[]
[null,"BUDGETARY ALLOWANCES"]
[]
[null,"The following Budgetary Allowances are for work to be executed "]
[null,"by the Main Contractor or specialist suppliers and priced at Bill "]
[null,"rates or rates to be agreed and to be used as directed by the"]
[null,"Principal Agent and to be deducted in whole or in part if not "]
[null,"required"]
[]
[21,"Provide the sum of  R50 000.00 (Fifty Thousand Rands) ",{"$nulls":10},"Item",{"$nulls":5},{"v":50000,"d":"R50,000.00"}]
[null,"for municipal connection fees"]
[]
[22,"Provide the sum of  R50 000.00 (Fifty Thousand Rands) for ",{"$nulls":10},"Item",{"$nulls":5},{"v":50000,"d":"R50,000.00"}]
[null,"additional general work still to be designed and will/may be carried "]
[null,"out by the contractor"]
{"$rows_empty":31}
[{"$f":"A241","v":"BILL No. 22"}]
[null,{"$f":"B242","v":"Bill No. 14 STORMWATER DRAINAGE, SUB-SOIL DRAINAGE carried to collection"}]
[]
["CONTRACT NUMBER: ",null,{"$f":"C244","v":"CONSTRUCTION OF A NEW LAPA AND THE REFURBISHMENT OF GATE HOUSE AND ABLUTIONS, EXTERNAL AREAS AND THE INSPECTION AND WORKS TO EXISTING AND NEW SERVICES AT THE MOKOPANE BIODIVERSITY CONSERVATION CENTRE "},{"$nulls":15},"Bill"]
[{"$f":"A245","v":"G540/2024"},{"$nulls":17},{"$f":"S245","v":22}]
["ITEM","PAYMENT",{"$nulls":10},"Page No."]
["NO","REFERS",{"$nulls":16},"AMOUNT"]
[null,"TO"]
[]
[null,{"$f":"B9","v":"STORMWATER DRAINAGE, SUB-SOIL DRAINAGE"}]
[]
[null,"COLLECTION"]
[]
[null,"Total Brought Forward from Page No.",{"$nulls":10},188]
[]
[{"$nulls":12},{"$f":"M328+1","v":189}]
[]
[{"$nulls":12},{"$f":"M330+1","v":190}]
[]
[{"$nulls":12},{"$f":"M332+1","v":191}]
{"$rows_empty":54}
[{"$f":"A315","v":"BILL No. 22"}]
[null,"Bill No. 22 STORMWATER DRAINAGE, SUB-SOIL DRAINAGE carried to Summary"]

{"sheet":"Bill 23- Furniture ","index":22,"n_rows":82,"n_cols":19,"rows_kept":82,"merged":[[0,0,0,1],[0,2,1,17],[0,18,0,19],[1,0,1,1],[1,18,1,19],[2,1,4,11],[2,16,4,17],[3,12,3,13],[3,14,3,15],[3,18,3,19],[14,12,14,13],[14,14,14,15],[14,16,14,17],[14,18,14,19],[19,12,19,13],[19,14,19,15],[19,16,19,17],[19,18,19,19],[24,12,24,13],[24,14,24,15],[24,16,24,17],[24,18,24,19],[55,23,55,24],[62,23,62,24],[70,23,70,24],[71,23,71,24],[80,0,82,0],[80,23,80,24],[81,18,81,19],[81,23,81,24],[82,23,82,24]]}
["CONTRACT NUMBER: ",null,{"$f":"'[1]Bill 1-P&G'!C1","v":"CONSTRUCTION OF A NEW LAPA AND THE REFURBISHMENT OF GATE HOUSE AND ABLUTIONS, EXTERNAL AREAS AND THE INSPECTION AND WORKS TO EXISTING AND NEW SERVICES AT THE MOKOPANE BIODIVERSITY CONSERVATION CENTRE "},{"$nulls":15},"Bill"]
[{"$f":"'[1]Bill 1-P&G'!A2","v":"G540/2024"},{"$nulls":17},23]
["Item","DESCRIPTION",{"$nulls":14},"RATE"]
["No.",{"$nulls":11},"UNIT",null,"QUANTITY",{"$nulls":3},"AMOUNT"]
[]
[]
[null,"BILL NO. 23"]
[]
[null,"STREET FURNITURE"]
[]
[null,"Supply and install furniture"]
[]
[null,"Recycled Plastic Benches"]
[]
[1,"3 Seater 1500mm x 700mm width (RP95) Gloria Bench ",{"$nulls":10},"No",null,10]
[null,"or similar and approved"]
[]
[null,"Monkey Proof Recycled Plastic bins"]
[]
[2,"540 x 540 x 850mm self standing Monkey proof Eco bin with",{"$nulls":10},"No",null,8]
[null,"rotating lid or similar and approved"]
[]
[null,"Timber Bollards"]
[]
[3,"Tanalith (CCA) or similar and approved treated H4 timber bollard ",{"$nulls":10},"No",null,12]
[null,"timber bollard 170mm in diameter, 1000mm high fixed into "]
[null,"350 x 350 x 350mm base including all excavations, concrete, "]
[null,"carting away, reinforcing  connections holding down bolts, "]
[null,"screws, plates etc. all in accordance with manufacturers, "]
[null,"architect's and engineers  Specifications"]
{"$rows_empty":50}
["BILL No. 23"]
[null,"Bill No. 23 STREET FURNITURE carried to Summary"]

{"sheet":"Bill 24- Electrical","index":23,"n_rows":475,"n_cols":19,"rows_kept":475,"merged":[[0,0,0,1],[0,2,1,17],[0,18,0,19],[1,0,1,1],[1,18,1,19],[2,1,4,11],[2,16,4,17],[3,12,3,13],[3,14,3,15],[3,18,3,19],[17,12,17,13],[17,14,17,15],[17,16,17,17],[17,18,17,19],[23,12,23,13],[23,14,23,15],[23,16,23,17],[23,18,23,19],[27,12,27,13],[27,14,27,15],[27,16,27,17],[27,18,27,19],[31,12,31,13],[31,14,31,15],[31,16,31,17],[31,18,31,19],[35,12,35,13],[35,14,35,15],[35,16,35,17],[35,18,35,19],[39,12,39,13],[39,14,39,15],[39,16,39,17],[39,18,39,19],[45,12,45,13],[45,14,45,15],[45,16,45,17],[45,18,45,19],[48,12,48,13],[48,14,48,15],[48,16,48,17],[48,18,48,19],[58,12,58,13],[58,14,58,15],[58,16,58,17],[58,18,58,19],[60,12,60,13],[60,14,60,15],[60,16,60,17],[60,18,60,19],[62,12,62,13],[62,14,62,15],[62,16,62,17],[62,18,62,19],[67,12,67,13],[67,14,67,15],[67,16,67,17],[67,18,67,19],[79,0,81,0],[80,18,80,19],[82,0,82,1],[82,2,83,17],[82,18,82,19],[83,0,83,1],[83,18,83,19],[84,2,86,11],[84,16,86,17],[85,12,85,13],[85,14,85,15],[85,18,85,19],[94,12,94,13],[94,14,94,15],[94,16,94,17],[94,18,94,19],[102,12,102,13],[102,14,102,15],[102,16,102,17],[102,18,102,19],[106,12,106,13],[106,14,106,15],[106,16,106,17],[106,18,106,19],[113,12,113,13],[113,14,113,15],[113,16,113,17],[113,18,113,19],[119,12,119,13],[119,14,119,15],[119,16,119,17],[119,18,119,19],[123,12,123,13],[123,14,123,15],[123,16,123,17],[123,18,123,19],[130,12,130,13],[130,14,130,15],[130,16,130,17],[130,18,130,19],[138,12,138,13],[138,14,138,15],[138,16,138,17],[138,18,138,19],[145,12,145,13],[145,14,145,15],[145,16,145,17],[145,18,145,19],[145,23,145,24],[146,23,146,24],[147,23,147,24],[149,12,149,13],[149,14,149,15],[149,16,149,17],[149,18,149,19],[161,12,161,13],[161,14,161,15],[161,16,161,17],[161,18,161,19],[163,0,165,0],[164,18,164,19],[166,0,166,1],[166,2,167,17],[166,18,166,19],[167,0,167,1],[167,18,167,19],[168,2,170,11],[168,16,170,17],[169,12,169,13],[169,14,169,15],[169,18,169,19],[174,12,174,13],[174,14,174,15],[174,16,174,17],[174,18,174,19],[188,12,188,13],[188,14,188,15],[188,16,188,17],[188,18,188,19],[192,12,192,13],[192,14,192,15],[192,16,192,17],[192,18,192,19],[202,12,202,13],[202,14,202,15],[202,16,202,17],[202,18,202,19],[206,1,209,11],[211,12,211,13],[211,14,211,15],[211,16,211,17],[211,18,211,19],[215,12,215,13],[215,14,215,15],[215,16,215,17],[215,18,215,19],[219,12,219,13],[219,14,219,15],[219,16,219,17],[219,18,219,19],[225,12,225,13],[225,14,225,15],[225,16,225,17],[225,18,225,19],[231,12,231,13],[231,14,231,15],[231,16,231,17],[231,18,231,19],[237,12,237,13],[237,14,237,15],[237,16,237,17],[237,18,237,19],[241,12,241,13],[241,14,241,15],[241,16,241,17],[241,18,241,19],[248,0,250,0],[249,18,249,19],[251,0,251,1],[251,2,252,17],[251,18,251,19],[252,0,252,1],[252,18,252,19],[253,2,255,11],[253,16,255,17],[254,12,254,13],[254,14,254,15],[254,18,254,19],[257,12,257,13],[257,14,257,15],[257,16,257,17],[257,18,257,19],[265,12,265,13],[265,14,265,15],[265,16,265,17],[265,18,265,19],[269,12,269,13],[269,14,269,15],[269,16,269,17],[269,18,269,19],[274,12,274,13],[274,14,274,15],[274,16,274,17],[274,18,274,19],[282,12,282,13],[282,14,282,15],[282,16,282,17],[282,18,282,19],[288,12,288,13],[288,14,288,15],[288,16,288,17],[288,18,288,19],[294,12,294,13],[294,14,294,15],[294,16,294,17],[294,18,294,19],[299,12,299,13],[299,14,299,15],[299,16,299,17],[299,18,299,19],[306,12,306,13],[306,14,306,15],[306,16,306,17],[306,18,306,19],[309,12,309,13],[309,14,309,15],[309,16,309,17],[309,18,309,19],[317,12,317,13],[317,14,317,15],[317,16,317,17],[317,18,317,19],[318,12,318,13],[318,14,318,15],[318,16,318,17],[318,18,318,19],[322,0,324,0],[323,18,323,19],[325,0,325,1],[325,2,326,17],[325,18,325,19],[326,0,326,1],[326,18,326,19],[327,2,329,11],[327,16,329,17],[328,12,328,13],[328,14,328,15],[328,18,328,19],[335,12,335,13],[335,14,335,15],[335,16,335,17],[335,18,335,19],[336,12,336,13],[336,14,336,15],[336,16,336,17],[336,18,336,19],[343,12,343,13],[343,14,343,15],[343,16,343,17],[343,18,343,19],[347,12,347,13],[347,14,347,15],[347,16,347,17],[347,18,347,19],[353,12,353,13],[353,14,353,15],[353,16,353,17],[353,18,353,19],[361,12,361,13],[361,14,361,15],[361,16,361,17],[361,18,361,19],[363,12,363,13],[363,14,363,15],[363,16,363,17],[363,18,363,19],[370,12,370,13],[370,14,370,15],[370,16,370,17],[370,18,370,19],[397,0,399,0],[398,18,398,19],[400,0,400,1],[400,2,401,17],[400,18,400,19],[401,0,401,1],[401,18,401,19],[402,2,404,11],[402,12,404,13],[403,18,403,19],[407,12,407,13],[407,18,407,19],[410,12,410,13],[410,18,410,19],[412,12,412,13],[412,18,412,19],[414,12,414,13],[414,18,414,19],[416,12,416,13],[416,18,416,19],[417,12,417,13],[418,12,418,13],[418,18,418,19],[473,0,475,0],[474,18,474,19]]}
["CONTRACT NUMBER: ",null,{"$f":"'Bill 1-P&G'!C1:R2","v":"CONSTRUCTION OF A NEW LAPA AND THE REFURBISHMENT OF GATE HOUSE AND ABLUTIONS, EXTERNAL AREAS AND THE INSPECTION AND WORKS TO EXISTING AND NEW SERVICES AT THE MOKOPANE BIODIVERSITY CONSERVATION CENTRE "},{"$nulls":15},"Bill"]
[{"$f":"'Bill 1-P&G'!A2:B2","v":"G540/2024"},{"$nulls":17},24]
["Item","DESCRIPTION",{"$nulls":14},"RATE"]
["No.",{"$nulls":11},"UNIT",null,"QUANTITY",{"$nulls":3},"AMOUNT"]
[]
[]
[null,"BILL NO. 24"]
[]
[null,"ELECTRICAL"]
[]
[null,"LOW VOLTAGE CABLES"]
[]
[null,"Supply and install PVC insulated PVC bedded  SWA PVC "]
[null,"sheathed 600/1000 V cables manufactured to SANS 1507-3 "]
[null,"including BCEW strapped to cable."]
[]
[1,"16mm² Cu x 3 core cable (From new main distribution kiosk to "]
[null,"new Lapa distribution board)",{"$nulls":10},"m",null,100]
[]
[null,"Supply and install termination kits PVC insulated PVC"]
[null,"bedded  SWA PVC sheathed 600/1000 V cables, including"]
[null,"glands, shrouds, lugs and bi-metal lugs for Al cables."]
[]
[2,"16mm² Cu x 3 core cable (No.2 gland)",{"$nulls":10},"No.",null,2]
[]
[null,"CABLE ROUTE MARKER TAPE"]
[]
[3,"Supply and install cable route marker tape",{"$nulls":10},"m",null,100]
[]
[null,"EXCAVATIONS & ROAD CROSSINGS "]
[]
[4,"Excavate and back fill cable trench, including bedding material ",{"$nulls":10},"m3",null,30]
[null,"sifted on site from excavated material.(0,5m wide x 0,6m deep). "]
[null,"Reinstate paving and ground to original condition."]
[]
[5,"Supply and install black Ø110mm nextube sleeve pipes for road ",{"$nulls":10},"m",null,20]
[null,"crossings including all bends and couplings required for the "]
[null,"installation."]
[]
[6,"Supply and install distribution kiosk as specified on drawing ",{"$nulls":10},"No.",null,1]
[null,"34398-02-392-05-01. Including all labels, padlocks, "]
[null,"disconnecting of existing cables, removing existing distribution "]
[null,"kiosk and place in designated place on site. Install new kiosk "]
[null,"and reconnect all existing cables."]
[]
[7,"Supply and install earth mat for distribution kiosks. ",{"$nulls":10},"No.",null,3]
[null,"16mm² BCEW + 1.8m earthing electrodes)"]
[]
[8,"Test, identify and label cables installed in new Entrance Main ",{"$nulls":10},"No.",null,1]
[null,"Distribution Kiosk and issue COC."]
[]
[null,"EXTERNAL LUMINAIRES"]
[]
[null,"Supply and install the following luminaires suspended 4.6m"]
[null,"above the entrance and exist road of the gate house with "]
[null,"2.5mm² PVC insulated conductors and 2.5mm² PVC"]
[null,"insulated earth wire. Avg supply length of 20m."]
[]
[9,"Beka EcoBay or similar and approved 146W with clear glass 4011 optic ",{"$nulls":10},"No.",null,4]
[null,"and aluminium finish - 4000K IP66 rated or similar. Including all "]
[null,"accessories to  be suspended."]
[]
[10,"Supply and install Beka Focus 26W 4000K LED IP66 signage ",{"$nulls":10},"No.",null,2]
[null,"luminaire including earthspike for mounting or similar. Complete "]
[null,"with all accessories to complete installation excluding the cable. "]
[null,"Cable measured elsewhere."]
[]
[11,"Supply and install vandal proof steel cage around Beka Focus",{"$nulls":10},"No.",null,1]
[null,"luminaires, with lockable gate. Including padlock and "]
[null,"accessories to complete the installation."]
{"$rows_empty":9}
["BILL No. 24"]
[null,"Bill No. 24 ELECTRICAL carried to collection"]
[]
["CONTRACT NUMBER: ",null,{"$f":"C1","v":"CONSTRUCTION OF A NEW LAPA AND THE REFURBISHMENT OF GATE HOUSE AND ABLUTIONS, EXTERNAL AREAS AND THE INSPECTION AND WORKS TO EXISTING AND NEW SERVICES AT THE MOKOPANE BIODIVERSITY CONSERVATION CENTRE "},{"$nulls":15},"Bill"]
[{"$f":"A2","v":"G540/2024"},{"$nulls":17},{"$f":"S2","v":24}]
["ITEM","PAYMENT","DESCRIPTION",{"$nulls":13},"RATE"]
["NO","REFERS",{"$nulls":10},"UNIT",null,"QUANTITY",{"$nulls":3},"AMOUNT"]
[null,"TO"]
[]
[null,"LOW VOLTAGE CABLES"]
[]
[null,"Supply and install PVC insulated PVC bedded  SWA PVC "]
[null,"sheathed 600/1000 V cables manufactured to SANS 1507-3"]
[null,"including BCEW strapped to cable."]
[]
[12,"2.5mm² Cu x 3 core cable (From existing gate house ",{"$nulls":10},"m",null,40]
[null,"distribution board to Beka Focus signage luminaires). "]
[null,"Complete with pratley boxes. "]
[]
[null,"Supply and install termination kits PVC insulated PVC"]
[null,"bedded SWA PVC sheathed 600/1000 V cables, including"]
[null,"glands,  shrouds, lugs and bi-metal lugs for Al cables."]
[]
[13,"2.5mm² Cu x 3 core cable (No.0 gland)",{"$nulls":10},"No.",null,2]
[]
[null,"LUMINAIRES SWITCHING"]
[]
[14,"Supply and install 20amp 3kA circuit breaker inside existing ",{"$nulls":10},"No.",null,3]
[null,"Gate House DB with 2 x 2.5mm² PVC insulated conductors "]
[null,"and 2.5mm² PVC insulated earth wire. Supply length of 20m to "]
[null,"photocells (day/night switch)"]
[]
[null,"CIRCUIT BREAKER"]
[]
[15,"Supply and install 16 amp photocell (daylight switch) on outside ",{"$nulls":10},"No.",null,1]
[null,"wall with 2 x 2.5mm2 PVC insulated conductors and 2.5mm2 "]
[null,"PVC insulated earth wire. Supply length of 20m."]
[]
[null,"TESTING"]
[]
[16,"Testing and commisioning of installation and \nissue of COC",{"$nulls":10},"No.",null,1]
[]
[null,"ELECTRICAL CONDUIT"]
[]
[17,"Supply and install Ø25mm Galvanised Steel conduit, including ",{"$nulls":10},"m",null,120]
[null,"all couplings, loop/inspection boxes, plugs, fixing saddles "]
[null,"(hospital saddles) and screws, cutting bending, fixing, cleaning "]
[null,"for wiring  purposes cast in concrete, in brickwork or on surface. "]
[null,"To Include all chasing into brickwork, making good of the walls "]
[null,"and draw wire."]
[]
[18,"Supply and install Ø25mm PVC conduit, including all couplings, ",{"$nulls":10},"m",null,40]
[null,"loop/inspection boxes, plugs, fixing saddles and screws, "]
[null,"cutting bending, fixing, cleaning for wiring purposes cast in "]
[null,"concrete, in brickwork or on surface. To Include all chasing into "]
[null,"brickwork and making good of the walls."]
[]
[null,"EXISITNG ELECTRICAL INSTALLATION"]
[]
[19,"Disconnect and remove exisitng lighting installation and store in ",{"$nulls":10},"Sum",null,1]
[null,"designated space provided on site. Inspect and test socket "]
[null,"outlets and geyser isolator installation. (Existing installation "]
[null,"consist of 6luminaires  and 2 handdryers)"]
[]
[null,"DISTRIBUTION BOARD"]
[]
[20,"Provisional sum for distribution board \nrefurbishment. ",{"$nulls":10},"No.",null,1]
[]
[null,"GEYSER SUPPLY"]
[]
[21,"Supply and install Crabtree Classic Range or similar and approved",{"$nulls":10},"No.",null,1]
[null,"30A  double  pole isolator switch in surface mounted 4 x 4 box next to "]
[null,"geyser  including yoke and cover plate with 2 x 4mm² PVC "]
[null,"insulated  conductors and 4mm² PVC insulated earth wire. Supply "]
[null,"length of 6m to geyser. (Colour of switch: White)"]
{"$rows_empty":9}
[{"$f":"A80","v":"BILL No. 24"}]
[null,{"$f":"B81","v":"Bill No. 24 ELECTRICAL carried to collection"}]
[]
["CONTRACT NUMBER: ",null,{"$f":"C83","v":"CONSTRUCTION OF A NEW LAPA AND THE REFURBISHMENT OF GATE HOUSE AND ABLUTIONS, EXTERNAL AREAS AND THE INSPECTION AND WORKS TO EXISTING AND NEW SERVICES AT THE MOKOPANE BIODIVERSITY CONSERVATION CENTRE "},{"$nulls":15},"Bill"]
[{"$f":"A84","v":"G540/2024"},{"$nulls":17},{"$f":"S84","v":24}]
["ITEM","PAYMENT","DESCRIPTION",{"$nulls":13},"RATE"]
["NO","REFERS",{"$nulls":10},"UNIT",null,"QUANTITY",{"$nulls":3},"AMOUNT"]
[null,"TO"]
[]
[null,"HAND DRYER SUPPLY"]
[]
[22,"Supply and install Crabtree Classic Range or similar and approved ",{"$nulls":10},"No.",null,3]
[null,"30A  double pole isolator switch in flush mounted 4 x 4 box, 300mm "]
[null,"from ceiling  above the hand dryer, including yoke and cover plate "]
[null,"with  2 x 4mm² PVC insulated conductors and 4mm² PVC insulated "]
[null,"earth wire. Supply length of 15m to each hand dryer."]
[null,"(Colour of switch: White)"]
[]
[null,"EXTERNAL LUMINARIES"]
[]
[null,"Supply and install the following luminaires suspended 4.6m "]
[null,"above the entrance and exist road of the gate house with "]
[null,"2.5mm² PVC insulated conductors and 2.5mm² PVC insulated "]
[null,"earth wire. Avg supply length of 10m."]
[]
[23,"Lascon C10 / 24W LED tridonic / 6080LM / photo engrave ",{"$nulls":10},"No.",null,7]
[null,"lense - 4000K IP65 rated or similar and approved. Including all "]
[null,"accessories to be suspended"]
[]
[24,"Lascon C10 / 24W LED tridonic / 6080LM / photo engrave ",{"$nulls":10},"No.",null,3]
[null,"lense - 4000K IP65 rated or similar approved.Including all "]
[null,"accessories to  be fitted under roof steel beam."]
[]
[null,"LOW VOLTAGE CABLES"]
[]
[null,"Supply and install PVC insulated PVC bedded  SWA PVC "]
[null,"sheathed 600/1000 V cables manufactured to SANS 1507-3 "]
[null,"including BCEW strapped to cable."]
[]
[25," 2.5mm² Cu x 3 core cable (From existing gate house distribution",{"$nulls":10},"No.",null,45]
[null,"board to Beka Focus signage luminaires). Complete with pratley "]
[null,"boxes. "]
[]
[26,"Supply and install termination kits PVC insulated PVC bedded  SWA PVC sheathed 600/1000 V cables, including glands, shrouds, lugs and bi-metal lugs for Al cables."]
[]
[]
[]
[]
[null," 2.5mm² Cu x 3 core cable (No.0 gland)",{"$nulls":10},"No.",null,2]
[]
[null,"CABLE ROUTE MARKER TAPE"]
[]
[27,"Supply and install cable route marker tap",{"$nulls":10},"m",null,40]
[]
[null,"EXCAVATIONS & ROAD CROSSINGS "]
[]
[28,"Excavate and back fill cable trench, including bedding material ",{"$nulls":10},"m3",null,15]
[null,"sifted on site from excavated material.(0,5m wide x 0,6m deep). "]
[null,"Reinstate paving and ground to original condition."]
[]
[null,"LUMINAIRES SWITCHING"]
[]
[29,"Supply and install Crabtree Classic Range or similar and approved ",{"$nulls":10},"No.",null,3]
[null,"one lever one way 20A light switch in surface mounted 2 x 4 box, "]
[null,"1200mm from AFFL, including yoke and cover plate with "]
[null,"2 x 2.5mm² PVC  insulatedconductors and 2.5mm² PVC insulated "]
[null,"earth wire. Supply length of 10m to each light switch."]
[]
[30,"Supply and install 16amp photocell (day/night switch) on outside",{"$nulls":10},"No.",null,2]
[null,"wall with 2 x 2.5mm² PVC insulated conductors and 2.5mm² "]
[null,"PVC insulated earth wire. Supply length of 20m."]
[]
[null,"TESTING "]
[]
[31,"Testing and commisioning of installation and \nissue of COC",{"$nulls":10},"No.",null,1]
[]
[null,"ELECTRICAL CONDUIT"]
[]
[32,"Supply and install Ø25mm Galvanised Steel conduit, including ",{"$nulls":10},"m",null,80]
[null,"all couplings, loop/inspection boxes, plugs, fixing saddles"]
[null,"(hospital saddles) and screws, cutting bending, fixing, cleaning "]
[null,"for wiring purposes cast in concrete, in brickwork or on surface."]
[null,"To Include all chasing into brickwork, making good of the walls "]
[null,"and draw wire."]
[]
[{"$f":"A164","v":"BILL No. 24"}]
[null,{"$f":"B165","v":"Bill No. 24 ELECTRICAL carried to collection"}]
[]
["CONTRACT NUMBER: ",null,{"$f":"C167","v":"CONSTRUCTION OF A NEW LAPA AND THE REFURBISHMENT OF GATE HOUSE AND ABLUTIONS, EXTERNAL AREAS AND THE INSPECTION AND WORKS TO EXISTING AND NEW SERVICES AT THE MOKOPANE BIODIVERSITY CONSERVATION CENTRE "},{"$nulls":15},"Bill"]
[{"$f":"A168","v":"G540/2024"},{"$nulls":17},{"$f":"S168","v":24}]
["ITEM","PAYMENT","DESCRIPTION",{"$nulls":13},"RATE"]
["NO","REFERS",{"$nulls":10},"UNIT",null,"QUANTITY",{"$nulls":3},"AMOUNT"]
[null,"TO"]
[]
[33,"Supply and install Ø25mm PVC conduit, including all couplings,",{"$nulls":10},"m",null,25]
[null,"loop/inspection boxes, plugs, fixing saddles and screws, cutting "]
[null,"bending, fixing, cleaning for wiring purposes cast in concrete, "]
[null,"in brickwork or on surface. To Include all chasing into brickwork "]
[null,"and making good of the Walls."]
[]
[null,"SLEEVES"]
[]
[34,"Supply and install Ø50mm nextube sleeve pipe \nwith slow bend",{"$nulls":10},"m",null,10]
[]
[null,"DISTRIBUTION BOARD"]
[]
[35,"Supply and install flush mounted distribution board as specified ",{"$nulls":10},"No.",null,1]
[null,"on drawing. Including all lables and padlock. "]
[]
[null,"GEYSER SUPPLY"]
[]
[36,"Supply and install Crabtree Classic Range or similar and approved ",{"$nulls":10},"No.",null,1]
[null,"30A  double pole isolator switch in surface mounted 4 x 4 box next to"]
[null,"geyser including yoke and cover plate with 2 x 4mm² PVC insulated "]
[null,"conductors  and 4mm² PVC insulated earth wire. Supply length "]
[null,"of  10m to geyser. (Colour of switch: White)"]
[]
[null,"SMAL POWER OUTLETS"]
[]
[37,"Supply and install Crabtree Classic Range or similar and approved ",{"$nulls":10},"No.",null,5]
[null,"16A  single socket  outlet switched in surface mounted 4 x 4 wall box "]
[null,"yoke and cover plate with 2 x 2.5mm² PVC insulated conductors "]
[null,"and 2.5mm² PVC insulated earth wire. Supply length of 20m to "]
[null,"socket. (Colour of switch: White)"]
[]
[38,"Supply and install Crabtree Classic Range 16A double socket ",{"$nulls":10},"No.",null,7]
[null,"or similar and approved outlet switched in flush mounted 4 x 4 wall "]
[null,"box  yoke and cover plate with 2 x 2.5mm² PVC insulated conductors "]
[null,"and 2.5mm² PVC insulated earth wire. Supply length of 20m to "]
[null,"socket.  (Colour of switch: White)"]
[]
[39,"Supply and install two channel powerskirting similar to Cabstrut ",{"$nulls":10},"m",null,25]
[null,"Platinum Double Compartment PVC Powerskirting (EP202) "]
[null,"or similar and approved,  including all elbows, tees, end caps "]
[null,"and fixtures."]
[]
[40,"Supply and install the following power skirting outlets, including ",{"$nulls":10},"No.",null,8]
[null,"all coverplates and fixtures."]
[]
[null,"16A normal switched socket outlet with 2 x 2.5mm² PVC"]
[null," insulated conductors and 2.5mm² PVC insulated earth wire. "]
[null,"Supply length of 10m to socket. (Colour of switch: White)"]
[]
[41,"16A dedicated switched socket outlet with 2 x 2.5mm² PVC ",{"$nulls":10},"No.",null,8]
[null,"Supply length of 10m to socket. (Colour of switch: Red)"]
[]
[42,"CAT 6 datat outlet. (Colour of switch: White)",{"$nulls":10},"No.",null,8]
[]
[null,"INTERNAL LUMINAIRES"]
[]
[null,"Supply and install the following luminaires including a 6A "]
[null,"unswitched socket outlet in round PVC box, yoke and cover "]
[null,"plate with 2.5mm² PVC insulated conductors and 2.5mm² PVC "]
[null,"insulated earth wire. Avg supply length of 15m"]
[]
[43,"Beka LED Panel 600 x 1200 48W - recessed or similar and approved",{"$nulls":10},"No.",null,6]
[]
[]
[]
[{"$f":"A249","v":"BILL No. 24"}]
[null,{"$f":"B250","v":"Bill No. 24 ELECTRICAL carried to collection"}]
[]
["CONTRACT NUMBER: ",null,{"$f":"C252","v":"CONSTRUCTION OF A NEW LAPA AND THE REFURBISHMENT OF GATE HOUSE AND ABLUTIONS, EXTERNAL AREAS AND THE INSPECTION AND WORKS TO EXISTING AND NEW SERVICES AT THE MOKOPANE BIODIVERSITY CONSERVATION CENTRE "},{"$nulls":15},"Bill"]
[{"$f":"A253","v":"G540/2024"},{"$nulls":17},{"$f":"S253","v":24}]
["ITEM","PAYMENT","DESCRIPTION",{"$nulls":13},"RATE"]
["NO","REFERS",{"$nulls":10},"UNIT",null,"QUANTITY",{"$nulls":3},"AMOUNT"]
[null,"TO"]
[]
[null,"Supply and install the following luminaires onto timber pole "]
[null,"structure with 2.5mm² PVC insulated conductors and 2.5mm² "]
[null,"PVC insulated earth wire. Avg supply length of 15m"]
[]
[44,"Lascon C10 / 24W LED tridonic / 6080LM / photo engrave ",{"$nulls":10},"No.",null,8]
[null,"lense - 4000K IP65 rated or similar and approved."]
[]
[null,"Supply and install the following wall luminaires including a "]
[null,"flush mounted 65mm round PVC  box with cover plate,"]
[null,"2.5mm² PVC insulated conductors and 2.5mm² PVC insulated"]
[null," earth wire. Avg supply length of 15m"]
[]
[45,"BEKA SERIES 30 NW 17W or similar and approved",{"$nulls":10},"No.",null,8]
[]
[null,"LUMINAIRES SWITCHING"]
[]
[46,"Supply and install Crabtree Classic Range or similar and approved  ",{"$nulls":10},"No.",null,2]
[null,"three lever one way  20A light switch in flush mounted 2 x 4 box, "]
[null,"1200mm from AFFL,  including yoke and cover plate with"]
[null," 2 x 2.5mm² PVC insulated  conductors and 2.5mm² PVC insulated "]
[null,"earth wire. Supply length  of 10m to each light switch."]
[]
[47,"Supply and install Crabtree Classic Range or similar and approved ",{"$nulls":10},"No.",null,2]
[null,"one lever two way  20A light switch in flush mounted 2 x 4 box, "]
[null,"1200mm from AFFL,  including yoke and cover plate with "]
[null,"2 x 2.5mm² PVC insulated  conductors and 2.5mm² PVC insulated "]
[null,"earth wire. Supply length  of 10m to each light switch."]
[]
[null,"TESTING "]
[]
[48,"Testing and commisioning of installation and \nissue of COC",{"$nulls":10},"No.",null,1]
[]
[49,"Supply and install Ø25mm Galvanised Steel conduit, including ",{"$nulls":10},"m",null,100]
[null,"all couplings, loop/inspection boxes, plugs, fixing saddles "]
[null,"(hospital saddles) and screws, cutting bending, fixing, cleaning "]
[null,"forwiring purposes cast in concrete, in brickwork or on surface. "]
[null,"To Include all chasing into brickwork, making good of the walls "]
[null,"and draw wire."]
[]
[50,"Supply and install Ø25mm PVC conduit, including all couplings, ",{"$nulls":10},"m",null,50]
[null,"loop/inspection boxes, plugs, fixing saddles and screws, cutting "]
[null,"bending, fixing, cleaning for wiring purposes cast in concrete, "]
[null,"in brickwork or on surface. To Include all chasing into brickwork, "]
[null,"making good of the walls and draw wire."]
{"$rows_empty":22}
[{"$f":"A80","v":"BILL No. 24"}]
[null,"Bill No. 24 ELECTRICAL carried to Collection"]
[]
["CONTRACT NUMBER: ",null,{"$f":"C326","v":"CONSTRUCTION OF A NEW LAPA AND THE REFURBISHMENT OF GATE HOUSE AND ABLUTIONS, EXTERNAL AREAS AND THE INSPECTION AND WORKS TO EXISTING AND NEW SERVICES AT THE MOKOPANE BIODIVERSITY CONSERVATION CENTRE "},{"$nulls":15},"Bill"]
[{"$f":"A327","v":"G540/2024"},{"$nulls":17},{"$f":"S253","v":24}]
["ITEM","PAYMENT",{"$nulls":10},"Page No."]
["NO","REFERS",{"$nulls":16},"AMOUNT"]
[null,"TO"]
[]
[null,{"$f":"B9","v":"ELECTRICAL"}]
[]
[null,"COLLECTION"]
[]
[null,"Total Brought Forward from Page No.",{"$nulls":10},194]
[]
[{"$nulls":12},{"$f":"M411+1","v":195}]
[]
[{"$nulls":12},{"$f":"M413+1","v":196}]
[]
[{"$nulls":12},{"$f":"M415+1","v":197}]
[]
[{"$nulls":12},{"$f":"M417+1","v":198}]
{"$rows_empty":54}
[{"$f":"A398","v":"BILL No. 24"}]
[null,"Bill No. 24 ELECTRICAL carried to Summary"]

{"sheet":"Bill 25- Mechanical","index":24,"n_rows":299,"n_cols":19,"rows_kept":299,"merged":[[0,0,0,1],[0,2,1,17],[0,18,0,19],[1,0,1,1],[1,18,1,19],[2,1,4,11],[2,16,4,17],[3,12,3,13],[3,14,3,15],[3,18,3,19],[21,12,21,13],[21,14,21,15],[21,16,21,17],[21,18,21,19],[27,12,27,13],[27,14,27,15],[27,16,27,17],[27,18,27,19],[31,23,31,24],[32,12,32,13],[32,14,32,15],[32,16,32,17],[32,18,32,19],[32,23,32,24],[34,12,34,13],[34,14,34,15],[34,23,34,24],[35,23,35,24],[36,23,36,24],[38,23,38,24],[39,23,39,24],[40,12,40,13],[40,14,40,15],[40,16,40,17],[40,18,40,19],[40,23,40,24],[41,23,41,24],[43,23,43,24],[44,23,44,24],[45,23,45,24],[46,23,46,24],[47,23,47,24],[48,23,48,24],[49,23,49,24],[50,12,50,13],[50,14,50,15],[50,16,50,17],[50,18,50,19],[51,23,51,24],[72,0,74,0],[72,23,72,24],[73,18,73,19],[73,23,73,24],[74,23,74,24],[75,0,75,1],[75,2,76,17],[75,18,75,19],[75,23,75,24],[76,0,76,1],[76,18,76,19],[76,23,76,24],[77,2,79,11],[77,16,79,17],[77,23,77,24],[78,12,78,13],[78,14,78,15],[78,18,78,19],[78,23,78,24],[79,23,79,24],[106,23,106,24],[107,23,107,24],[108,23,108,24],[109,23,109,24],[110,23,110,24],[111,23,111,24],[112,23,112,24],[113,23,113,24],[114,23,114,24],[116,23,116,24],[117,23,117,24],[118,12,118,13],[118,14,118,15],[118,16,118,17],[118,18,118,19],[118,23,118,24],[119,23,119,24],[120,12,120,13],[120,14,120,15],[120,16,120,17],[120,18,120,19],[120,23,120,24],[122,23,122,24],[123,23,123,24],[124,23,124,24],[125,23,125,24],[126,23,126,24],[127,23,127,24],[128,23,128,24],[130,23,130,24],[131,23,131,24],[134,23,134,24],[135,23,135,24],[136,23,136,24],[138,23,138,24],[140,12,140,13],[140,14,140,15],[140,16,140,17],[140,18,140,19],[142,23,142,24],[143,12,143,13],[143,14,143,15],[143,16,143,17],[143,18,143,19],[145,12,145,13],[145,14,145,15],[147,0,149,0],[147,23,147,24],[148,18,148,19],[148,23,148,24],[149,23,149,24],[150,0,150,1],[150,2,151,17],[150,18,150,19],[151,0,151,1],[151,18,151,19],[152,2,154,11],[152,16,154,17],[153,12,153,13],[153,14,153,15],[153,18,153,19],[161,12,161,13],[161,14,161,15],[161,16,161,17],[161,18,161,19],[180,12,180,13],[180,14,180,15],[181,12,181,13],[181,14,181,15],[182,12,182,13],[182,14,182,15],[185,12,185,13],[185,14,185,15],[185,16,185,17],[185,18,185,19],[196,12,196,13],[196,14,196,15],[196,16,196,17],[196,18,196,19],[219,12,219,13],[219,14,219,15],[219,16,219,17],[219,18,219,19],[223,0,225,0],[224,18,224,19],[226,0,226,1],[226,2,227,17],[226,18,226,19],[227,0,227,1],[227,18,227,19],[228,2,230,11],[228,12,230,13],[229,18,229,19],[236,12,236,13],[236,18,236,19],[238,12,238,13],[238,18,238,19],[240,12,240,13],[240,18,240,19],[242,12,242,13],[242,18,242,19],[244,12,244,13],[244,18,244,19],[297,0,299,0],[298,18,298,19]]}
["CONTRACT NUMBER: ",null,{"$f":"'Bill 1-P&G'!C1:R2","v":"CONSTRUCTION OF A NEW LAPA AND THE REFURBISHMENT OF GATE HOUSE AND ABLUTIONS, EXTERNAL AREAS AND THE INSPECTION AND WORKS TO EXISTING AND NEW SERVICES AT THE MOKOPANE BIODIVERSITY CONSERVATION CENTRE "},{"$nulls":15},"Bill"]
[{"$f":"'Bill 1-P&G'!A2:B2","v":"G540/2024"},{"$nulls":17},25]
["Item","DESCRIPTION",{"$nulls":14},"RATE"]
["No.",{"$nulls":11},"UNIT",null,"QUANTITY",{"$nulls":3},"AMOUNT"]
[]
[]
[null,"BILL NO. 25"]
[]
[null,"MECHANICAL"]
[]
[null,"FIRE PROTECTION EQUIPMENT"]
[]
[null,"Supply, deliver, installation, testing, commissioning and handing "]
[null,"over in working order and maintenance during guarantee period."]
[]
[null,"FIRE FIGHTING EQUIPMENT"]
[]
[null,"FIRE HYDRANTS"]
[]
[null,"Suction Hydrant"]
[]
[1,"Right Angle Tamperproof Hydrant with 100mm",{"$nulls":10},"No.",null,3]
[null,"Storz Outlet and 100mm Female BSP Inlet. "]
[null,"(Installation  downstream of water meter connection)."]
[]
[null,"Isolation Valve"]
[]
[2,"100mm FxF (Female x Female) ",{"$nulls":10},"No.",null,3]
[null,"Full Bore BSP Brass Ball Valve "]
[]
[null,"Backflow Preventer"]
[]
[3,"Cast Iron Wafer Check Valve with Ductile ",{"$nulls":10},"No.",null,2]
[null,"Iron or 316 Stainless Steel Double Doors and EPDM Seal. "]
[null,"This valve assembly downstream of the suction hydrant to be "]
[null,"encased in a 600mm x 480mm medium grade cast iron manhole "]
[null,"with frame for  for access for maintenance."]
[]
[null,"Twin Fire Brigade Booster Connection"]
[]
[4,"100mm Two-Port Booster with 65mm ",{"$nulls":10},"No.",null,2]
[null,"Brass Booster Connectors, Pressure Gauge with 100mm "]
[null,"T/16 Inlet encased in a steel cover with front open. "]
[null,"Pressure gauge Dial to read up to 2500kPa. "]
[null,"(Installed downstream of Item Above)."]
[]
[null,"Note: Hand wheel type hydrants are strictly not acceptable."]
[]
[null,"STATUTORY SIGNAGE"]
[]
[5,"ABS signage in accordance with SANS 1186 for external ",{"$nulls":10},"No.",null,8]
[null,"raised external fire hydrants incorporating the pictographs in "]
[null,"the standard 290mm x 290mm module size fixed on a purpose  "]
[null,"made triangular steel support such that the sign is visible "]
[null,"from the two sides the viewing two sides along the road. "]
[null,"The mounting height to be ±2000mm above finished "]
[null,"ground level. "]
{"$rows_empty":15}
["BILL 25"]
[null,"Bill 25 MECHANICAL carried to collection"]
[]
["CONTRACT NUMBER: ",null,{"$f":"C1","v":"CONSTRUCTION OF A NEW LAPA AND THE REFURBISHMENT OF GATE HOUSE AND ABLUTIONS, EXTERNAL AREAS AND THE INSPECTION AND WORKS TO EXISTING AND NEW SERVICES AT THE MOKOPANE BIODIVERSITY CONSERVATION CENTRE "},{"$nulls":15},"Bill"]
[{"$f":"A2","v":"G540/2024"},{"$nulls":17},{"$f":"S2","v":25}]
["ITEM","PAYMENT","DESCRIPTION",{"$nulls":13},"RATE"]
["NO","REFERS",{"$nulls":10},"UNIT",null,"QUANTITY",{"$nulls":3},"AMOUNT"]
[null,"TO"]
[]
[null,"PIPING RETICULATION"]
[]
[null,"All rates supplied in this bill of quantities shall be deemed to"]
[null," include scaffolding to any height and fixing piping up to roof height."]
[]
[null,"All piping rates supplied shall include couplings, bends, tees, "]
[null,"sockets, pipe supports, anchors, along the running length."]
[]
[null,"All pipes suspended from concrete slabs, roof, ceiling, etc, shall "]
[null,"to include in the rates all necessary hanger be deemed brackets, "]
[null,"threaded rods (irrespective of the suspension length), nuts,"]
[null,"washers, anchors and drilling of holes in the concrete slab. "]
[]
[null,"All pipes are generally to be concealed inside recesses, ceiling "]
[null,"voids except where it is necessary to feed an appliance and fixed "]
[null,"with standard type pipe supports and brackets spaced at intervals "]
[null,"strictly as per manufacturer's recommendations."]
[]
[null,"ABOVE GROUND PIPING"]
[]
[null,"Galvanised Steel Pipework including Fittings"]
[]
[null,"All above-ground firewater pipes shall be Medium Grade "]
[null,"Galvanised Steel to SANS 62-1:2013 for nominal sizes "]
[null,"from 25mm up to and including 150mm."]
[]
[null,"All pipes and fittings shall be installed strictly in accordance "]
[null,"with the manufacturer's specifications, and recommendations."]
[]
[null,"Pipes shall be colour coded in accordance with the"]
[null,"requirements of SANS 10140 "]
[null,"Identification Colour Markings - Part 3: 2017 Contents of "]
[null,"Pipelines or similar approved in close liaison with with the"]
[null,"Fire Engineer."]
[]
[null,"Medium Grade Steel Pipes"]
[]
[6,"100mm diameter pipes",{"$nulls":10},"m",null,350]
[]
[7,"80mm diameter pipes",{"$nulls":10},"m",null,100]
[]
[null,"EXTERNAL FIRE PIPING RETICULATION -BELOW GROUND"]
[null,"(BY OTHERS)"]
[]
[null,"High Pressure HDPE Type IV PE 80 Class 16 pipes to "]
[null,"SANS 4427:2008 used in conjunction with electro fusion and "]
[null,"buttweld fittings or compression fittings or Victaulic Takstubs "]
[null,"suitable for below-ground applications for the conveyance of "]
[null,"potable water in reticulation systems in which continuous "]
[null,"temperatures in excess of 25˚C are not encountered."]
[]
[null,"All rates supplied in this bill of quantities shall be deemed to "]
[null,"include scaffolding to any height and fixing piping up to roof "]
[null,"height."]
[]
[null,"All piping rates supplied shall include couplings, bends, tees, "]
[null,"sockets, pipe supports, anchors, along the running length and "]
[null,"backfilling and compaction."]
[]
[8,"Ø110mm High pressure pipe laid in ground not exceeding ",{"$nulls":10},"m",null,350]
[null,"1000mm deep."]
[]
[9,"Ø75mm High pressure pipe laid in ground not exceeding ",{"$nulls":10},"m",null,100]
[null,"1000mm deep."]
[]
[]
[{"$f":"A$73","v":"BILL 25"}]
[null,{"$f":"B74","v":"Bill 25 MECHANICAL carried to collection"}]
[]
["CONTRACT NUMBER: ",null,{"$f":"C76","v":"CONSTRUCTION OF A NEW LAPA AND THE REFURBISHMENT OF GATE HOUSE AND ABLUTIONS, EXTERNAL AREAS AND THE INSPECTION AND WORKS TO EXISTING AND NEW SERVICES AT THE MOKOPANE BIODIVERSITY CONSERVATION CENTRE "},{"$nulls":15},"Bill"]
[{"$f":"A77","v":"G540/2024"},{"$nulls":17},{"$f":"S77","v":25}]
["ITEM","PAYMENT","DESCRIPTION",{"$nulls":13},"RATE"]
["NO","REFERS",{"$nulls":10},"UNIT",null,"QUANTITY",{"$nulls":3},"AMOUNT"]
[null,"TO"]
[]
[null,"GROUND LEVEL FIRE WATER STORAGE AND PRESSURE "]
[null,"BOOSTER PUMP SYSTEM"]
[]
[null,"FIRE + DOMESTIC WATER TANK"]
[]
[10,"Supply and install  sectional steel water tank constructed ",{"$nulls":10},"Sum",null,1]
[null,"from  square shaped standard panel size 1.22m L x 1.22m W. "]
[null,"Tank configuration to be such that the tank is subdivided into "]
[null,"two equal sections with a divider  ±200mm below the roof of"]
[null,"the tank. "]
[null,"Tank Full Structure = 200 000 Litres"]
[null,"Note: Tank shop drawing to be issued to the Fire Engineer "]
[null,"for approval prior to placement of order."]
[null,"All tank valves and accessories to be included in the price not "]
[null,"necessarily limited to the following:"]
[null,"- 2-off 600mm x 600mm access manholes on the roof of the "]
[null,"tank"]
[null,"- 2-off Ø200 air vents"]
[null,"- 2-off catladders"]
[null,"- 2 x 80mm mechanical ball float valves"]
[null,"- 2 x Ø600mm Vortex Inhibitors"]
[null,"- 1 x Ø100mm balancing valve (normally open)"]
[null,"- 2 x Ø80mm drain valves (normally closed)."]
[null,"- 2 x 150mm tank delivery OS & Y isolating valve "]
[null,"- Earthworks"]
[null,"- Concrete works"]
[]
[null,"FIRE BOOSTER PUMPS"]
[]
[11,"Supply and install pressure switch operated packaged ",{"$nulls":10},"Item ",null,1]
[null,"electrical & diesel "]
[null,"Duty and Standby + jockey pump set complete"]
[null,"with  all standard isolating valves, strainers, non-return valves, "]
[null,"pressure gauges etc."]
[null,"-Fire pump duty = 1200 Litres per minute @ 300kPa"]
[null,"-Pump performance curves to be submitted to Fire Engineer"]
[null," for approval."]
[]
[null,"PUMP ROOM ,PIPING AND ACCESSORIES"]
[]
[12,"Supply and install all pump room interconnecting pipework ",{"$nulls":10},"Sum",null,1]
[null,"complete with fittings to include all valves, flexible "]
[null,"connections accessories not limited to the following:"]
[null,"- 4-off non-return valves one on each pump delivery pump"]
[null,"- 4-off isolating valves one on each pump delivery pump"]
[null,"- 4-off site glasses with flow indicators one on each pump "]
[null,"cooling return to tank"]
[null,"- 4-off pump suction compound pressure gauge one on each pump"]
[null,"- 4-off pump delivery pressure gauge one on each pump "]
[null,"- 1-off non-return valve on the jockey pump delivery"]
[null,"- 1-off isolating valve downstream of the jockey pump "]
[null,"non-return valve above"]
[null,"- 1-off pump Auto-start Arrangement"]
[null,"- 1-off Pump Room Electrical Distribution Board"]
[null,"- 2-off Duty Electrical Motor Driven Pump Controller Panel"]
[null,"- 1-off Electrical Jockey Pump Controller Panel"]
[null,"- 4-off isolating valves one on the upstream and the other "]
[null,"downstream of the direct reading flow meter"]
[null,"- 4-off pressure gauges on either side of the of the direct "]
[null,"reading \"Gerand\" or similar approved flow meter"]
[null,"- 2 x 125mm direct readinfg flow meter on pump Proving "]
[null,"Test Arrangement to tank"]
[]
[]
[]
[]
[]
[{"$f":"A$73","v":"BILL 25"}]
[null,{"$f":"B149","v":"Bill 25 MECHANICAL carried to collection"}]
[]
["CONTRACT NUMBER: ",null,{"$f":"C76","v":"CONSTRUCTION OF A NEW LAPA AND THE REFURBISHMENT OF GATE HOUSE AND ABLUTIONS, EXTERNAL AREAS AND THE INSPECTION AND WORKS TO EXISTING AND NEW SERVICES AT THE MOKOPANE BIODIVERSITY CONSERVATION CENTRE "},{"$nulls":15},"Bill"]
[{"$f":"A2","v":"G540/2024"},{"$nulls":17},{"$f":"S2","v":25}]
["ITEM","PAYMENT",{"$nulls":10},"Page No."]
["NO","REFERS",{"$nulls":16},"AMOUNT"]
[null,"TO"]
[]
[null,{"$f":"B9","v":"MECHANICAL"}]
[]
[null,"COLLECTION"]
[]
[null,"Total Brought Forward from Page No.",{"$nulls":10},200]
[]
[{"$nulls":12},{"$f":"M237+1","v":201}]
[]
[{"$nulls":12},{"$f":"M239+1","v":202}]
{"$rows_empty":56}
[{"$f":"A$73","v":"BILL 25"}]
[null,"Bill 25 MECHANICAL carried to summary"]

{"sheet":"Bill 26- Provisional","index":25,"n_rows":241,"n_cols":19,"rows_kept":241,"merged":[[0,0,0,1],[0,2,1,17],[0,18,0,19],[1,0,1,1],[1,18,1,19],[2,1,4,11],[2,16,4,17],[3,12,3,13],[3,14,3,15],[3,18,3,19],[43,12,43,13],[43,14,43,15],[43,16,43,17],[43,18,43,19],[52,12,52,13],[52,14,52,15],[52,16,52,17],[52,18,52,19],[61,12,61,13],[61,14,61,15],[61,16,61,17],[61,18,61,19],[70,12,70,13],[70,14,70,15],[70,16,70,17],[70,18,70,19],[78,0,80,0],[78,23,78,24],[79,18,79,19],[79,23,79,24],[80,23,80,24],[81,0,81,1],[81,2,82,17],[81,18,81,19],[81,23,81,24],[82,0,82,1],[82,18,82,19],[82,23,82,24],[83,2,85,11],[83,16,85,17],[83,23,83,24],[84,12,84,13],[84,14,84,15],[84,18,84,19],[84,23,84,24],[85,23,85,24],[89,12,89,13],[89,14,89,15],[89,16,89,17],[89,18,89,19],[98,12,98,13],[98,14,98,15],[98,16,98,17],[98,18,98,19],[107,12,107,13],[107,14,107,15],[107,16,107,17],[107,18,107,19],[110,23,110,24],[111,23,111,24],[117,12,117,13],[117,14,117,15],[117,16,117,17],[117,18,117,19],[124,12,124,13],[124,14,124,15],[124,16,124,17],[124,18,124,19],[129,12,129,13],[129,14,129,15],[129,16,129,17],[129,18,129,19],[132,12,132,13],[132,14,132,15],[132,16,132,17],[132,18,132,19],[133,14,133,15],[133,16,133,17],[133,18,133,19],[136,12,136,13],[136,14,136,15],[136,16,136,17],[136,18,136,19],[137,14,137,15],[154,23,154,24],[161,23,161,24],[162,0,164,0],[162,23,162,24],[163,18,163,19],[163,23,163,24],[164,23,164,24],[165,0,165,1],[165,2,166,17],[165,18,165,19],[166,0,166,1],[166,18,166,19],[167,2,169,11],[167,12,169,13],[168,18,168,19],[174,12,174,13],[174,18,174,19],[176,12,176,13],[176,18,176,19],[239,0,241,0],[240,18,240,19]]}
["CONTRACT NUMBER: ",null,{"$f":"'Bill 1-P&G'!C1","v":"CONSTRUCTION OF A NEW LAPA AND THE REFURBISHMENT OF GATE HOUSE AND ABLUTIONS, EXTERNAL AREAS AND THE INSPECTION AND WORKS TO EXISTING AND NEW SERVICES AT THE MOKOPANE BIODIVERSITY CONSERVATION CENTRE "},{"$nulls":15},"Bill"]
[{"$f":"'Bill 1-P&G'!A2","v":"G540/2024"},{"$nulls":17},26]
["Item","DESCRIPTION",{"$nulls":14},"RATE"]
["No.",{"$nulls":11},"UNIT",null,"QUANTITY",{"$nulls":3},"AMOUNT"]
[]
[]
[null,"BILL NO. 26"]
[]
[null,"PROVISIONAL SUMS"]
[]
[null,"The following Provisional Sums are all NET amounts and are for "]
[null,"work to be executed complete by Nominated/Selected "]
[null,"Sub-Contractors or by the Contractor himself.  "]
[]
[null,"Provisional Sums  may be omitted or reduced at the Employers's "]
[null,"sole discretion  and the contractor shall not be entitled to claim for"]
[null,"any loss by  way of reductions or omissions of any discount, or "]
[null,"percentage  relating to Provisional Sums or P.C. amounts or any "]
[null,"loss of  profit related thereto."]
[]
[null,"The Employer shall also have the right to send onto the works "]
[null,"and install any furniture, finishings or fitments, machinery, "]
[null,"equipment, etc., and to supply and execute any other special "]
[null,"works not contained in this contract during this contract, and the "]
[null,"Contractor shall not be entitled to any percentage or discount "]
[null,"thereon."]
[]
[null,"The Profit and Attendance on the following items will only be paid "]
[null,"to the Contractor should a Nominated/Selected Sub-contractor "]
[null,"conduct the work.  If the allowance is directed for work to be done "]
[null,"by the Contractor the Attendance amounts will not be paid to the "]
[null,"Contractor.  "]
[]
[null,"Refer to Clause C20 for the Adjustment of Attendance."]
[]
[null,"N.B. Any builder's work that the Contractor may be called upon to "]
[null,"do so in connection with any such special works or services will be "]
[null,"measured and valued at schedule rates as executed."]
[]
[null,"SPECIALIST SUB-CONTRACTORS TO THE MAIN CONTRACTOR"]
[]
[null,"COMMUNITY LIAISON OFFICER"]
[]
[1,"Provide the sum of R68 000.00 (Sixty Eight Thousand Rands) for",{"$nulls":10},"Item",{"$nulls":3},{"v":68000,"d":"R68,000.00"},null,{"v":68000,"d":"R68,000.00"}]
[null,"the appointment of a Community Liaison Officer"]
[]
[2,"Allow for profit on above"]
[]
[3,"Allow for attendance on above"]
[]
[null,"TRAINING OF LOCAL LABOUR"]
[]
[4,"Provide the sum of R130 000.00 (One Hundred and Thirty ",{"$nulls":10},"Item",{"$nulls":3},{"v":130000,"d":"R130,000.00"},null,{"v":130000,"d":"R130,000.00"}]
[null,"Thousand Rands) for the Training of Local Labour"]
[]
[5,"Allow for profit on above"]
[]
[6,"Allow for attendance on above"]
[]
[null,"SMME MENTOR"]
[]
[7,"Provide the sum of R200 000.00 (Two Hundred Thousand Rands)",{"$nulls":10},"Item",{"$nulls":3},{"v":200000,"d":"R200,000.00"},null,{"v":200000,"d":"R200,000.00"}]
[null,"for  SMME mentor"]
[]
[8,"Allow for profit on above"]
[]
[9,"Allow for attendance on above"]
[]
[null,"SECURITY GATES"]
[]
[10,"Provide the sum of R50 000.00 (Fifty Thousand Rand) for security ",{"$nulls":10},"Item",{"$nulls":3},{"v":50000,"d":"R50,000.00"},null,{"v":50000,"d":"R50,000.00"}]
[null,"gates including installation executed complete"]
[]
[11,"Allow for profit on above"]
[]
[12,"Allow for attendance on above"]
[]
[]
["BILL No. 26"]
[null,"Bill No. 26 PROVISIONAL SUMS carried to collection"]
[]
["CONTRACT NUMBER: ",null,{"$f":"C1","v":"CONSTRUCTION OF A NEW LAPA AND THE REFURBISHMENT OF GATE HOUSE AND ABLUTIONS, EXTERNAL AREAS AND THE INSPECTION AND WORKS TO EXISTING AND NEW SERVICES AT THE MOKOPANE BIODIVERSITY CONSERVATION CENTRE "},{"$nulls":15},"Bill"]
[{"$f":"A2","v":"G540/2024"},{"$nulls":17},{"$f":"S2","v":26}]
["ITEM","PAYMENT","DESCRIPTION",{"$nulls":13},"RATE"]
["NO","REFERS",{"$nulls":10},"UNIT",null,"QUANTITY",{"$nulls":3},"AMOUNT"]
[null,"TO"]
[]
[null,"FANS TO LAPA"]
[]
[13,"Provide the sum of R25 000.00 (Twenty Five Thousand Rand) ",{"$nulls":10},"Item",{"$nulls":3},{"v":25000,"d":"R25,000.00"},null,{"v":25000,"d":"R25,000.00"}]
[null,"for the supply and installation of fans to Lapa executed complete"]
[]
[14,"Allow for profit on above"]
[]
[15,"Allow for attendance on above"]
[]
[null,"ENTRANCE SIGNAGE"]
[]
[16,"Provide the sum of R25 000.00 (Twenty Five Thousand Rand) for",{"$nulls":10},"Item",{"$nulls":3},{"v":25000,"d":"R25,000.00"},null,{"v":25000,"d":"R25,000.00"}]
[null,"the supply and installation of entrance signage executed complete"]
[]
[17,"Allow for profit on above"]
[]
[18,"Allow for attendance on above"]
[]
[null,"ROOF STRUCTURE"]
[]
[19,"Provide the sum of R200 000.00 (Two Hundred Thousand Rand)",{"$nulls":10},"Item",{"$nulls":3},{"v":200000,"d":"R200,000.00"},null,{"v":200000,"d":"R200,000.00"}]
[null,"for the design, fabrication and installation of roof structures "]
[null,"executed complete"]
[]
[20,"Allow for profit on above"]
[]
[21,"Allow for attendance on above"]
[]
[null,"ELECTRICAL WORKS"]
[]
[22,"Provide the sum of R60 000.00 (Fifty Thousand Rand)",{"$nulls":10},"Sum",{"$nulls":3},{"v":60000,"d":"R60,000.00"},null,{"v":60000,"d":"R60,000.00"}]
[null,"Relocation of existing water services on site, including cutting, "]
[null,"capping, re-routing of pipework, fittings, valves, testing, and"]
[null,"reinstatement"]
[]
[null,"WATER SERVICES"]
[]
[23,"Provide the sum of R50 000.00 (Fifty Thousand Rand)",{"$nulls":10},"Sum",{"$nulls":3},{"v":50000,"d":"R50,000.00"},null,{"v":50000,"d":"R50,000.00"}]
[null,"for the relocation of existing electrical services on site, "]
[null,"including  disconnection, cable trenching, cable laying, jointing,  "]
[null,"reconnection, and reinstatement"]
[]
[24,"Provide the sum of R20 000.00 (Twenty Thousand Rand) ",{"$nulls":10},"Sum",{"$nulls":3},{"v":20000,"d":"R20,000.00"},null,{"v":20000,"d":"R20,000.00"}]
[null,"For concrete encasing"]
[]
[25,"Provide the sum of R50 000.00 (Fifty Thousand) for breaking",{"$nulls":10},"Sum",{"$nulls":3},{"v":50000,"d":"R50,000.00"},null,{"v":50000,"d":"R50,000.00"}]
[null,"down/demolishing and removing existing sewer line"]
[null,"lot as directed by Principal Agent"]
[]
[26,"Provide the sum of R30 000.00 (Thirty Thousand) for sewer connection",{"$nulls":10},"Sum",{"$nulls":3},{"v":30000,"d":"R30,000.00"},null,{"v":30000,"d":"R30,000.00"}]
[null,"as directed by Principal Agent"]
{"$rows_empty":24}
[{"$f":"A79","v":"BILL No. 26"}]
[null,{"$f":"B80","v":"Bill No. 26 PROVISIONAL SUMS carried to collection"}]
[]
["CONTRACT NUMBER: ",null,{"$f":"C1","v":"CONSTRUCTION OF A NEW LAPA AND THE REFURBISHMENT OF GATE HOUSE AND ABLUTIONS, EXTERNAL AREAS AND THE INSPECTION AND WORKS TO EXISTING AND NEW SERVICES AT THE MOKOPANE BIODIVERSITY CONSERVATION CENTRE "},{"$nulls":15},"Bill"]
[{"$f":"A2","v":"G540/2024"},{"$nulls":17},{"$f":"S2","v":26}]
["ITEM","PAYMENT",{"$nulls":10},"Page No."]
["NO","REFERS",{"$nulls":16},"AMOUNT"]
[null,"TO"]
[]
[null,{"$f":"B9","v":"PROVISIONAL SUMS"}]
[]
[null,"COLLECTION"]
[{"$nulls":12},204]
[null,"Total Brought Forward from Page No."]
[{"$nulls":12},{"$f":"M175+1","v":205}]
{"$rows_empty":62}
[{"$f":"A79","v":"BILL No. 26"}]
[null,"Bill No. 26 PROVISIONAL SUMS carried to Summary"]

{"sheet":"BOQ - Summary","index":26,"n_rows":71,"n_cols":23,"rows_kept":71,"merged":[[0,0,0,1],[0,2,1,17],[0,18,1,19],[0,20,1,20],[1,0,1,1],[2,2,4,17],[2,18,4,19],[6,18,6,19],[8,18,8,19],[10,18,10,19],[12,18,12,19],[14,18,14,19],[16,18,16,19],[18,18,18,19],[20,18,20,19],[22,18,22,19],[24,18,24,19],[26,18,26,19],[28,18,28,19],[30,18,30,19],[32,18,32,19],[34,18,34,19],[36,18,36,19],[38,18,38,19],[40,18,40,19],[42,18,42,19],[44,18,44,19],[46,18,46,19],[48,18,48,19],[50,18,50,19],[52,18,52,19],[54,18,54,19],[56,18,56,19],[58,1,60,2],[59,18,59,19],[61,1,63,7],[62,18,62,19],[64,1,66,1],[65,18,65,19],[67,1,69,4],[68,18,68,19],[70,1,72,9],[71,18,71,19],[75,18,75,19],[76,18,76,19],[77,18,77,19],[78,0,78,3],[78,5,78,17],[78,18,78,19],[79,18,79,19],[80,18,80,19],[81,18,81,19],[82,18,82,19],[83,18,83,19],[84,18,84,19],[85,18,85,19],[86,18,86,19]]}
["CONTRACT NUMBER: ",null,{"$f":"'Bill 1-P&G'!C1:R2","v":"CONSTRUCTION OF A NEW LAPA AND THE REFURBISHMENT OF GATE HOUSE AND ABLUTIONS, EXTERNAL AREAS AND THE INSPECTION AND WORKS TO EXISTING AND NEW SERVICES AT THE MOKOPANE BIODIVERSITY CONSERVATION CENTRE "},{"$nulls":15},"SUMMARY"]
[{"$f":"'Bill 26- Provisional'!A2","v":"G540/2024"}]
["Item",null,"DESCRIPTION",{"$nulls":15},"AMOUNT"]
["No."]
[]
[{"$nulls":21},{"$f":"SUM(S9:T57)","v":{"v":0,"d":"R0.00"}}]
[{"$f":"'Bill 1-P&G'!B7","v":"BILL NO. 1"},null,null,{"$f":"'Bill 1-P&G'!B9","v":"PRELIMINARIES AND GENERAL"},{"$nulls":18}," "]
[]
[{"$f":"'Bill 2-Alterations'!B7","v":"BILL NO. 2"},null,null,{"$f":"'Bill 2-Alterations'!B9","v":"ALTERATION & REMOVAL WORKS"}]
[]
[{"$f":"'Bill 3-Earthworks'!B7","v":"BILL NO. 3"},null,null,{"$f":"'Bill 3-Earthworks'!B9","v":"EARTHWORKS"}]
[]
[{"$f":"'Bill 4-Concrete'!B7","v":"BILL NO. 4"},null,null,{"$f":"'Bill 4-Concrete'!B9","v":"CONCRETE, FORMWORK AND REINFORCEMENT"}]
[]
[{"$f":"'Bill 5-Masonry'!B7","v":"BILL NO. 5"},null,null,{"$f":"'Bill 5-Masonry'!B9","v":"MASONRY"}]
[]
[{"$f":"'Bill 6-Waterproofing'!B7","v":"BILL No. 6"},null,null,{"$f":"'Bill 6-Waterproofing'!B9","v":"WATERPROOFING"}]
[]
[{"$f":"'Bill 7-Roof'!B7","v":"BILL NO. 7"},null,null,{"$f":"'Bill 7-Roof'!B9","v":"ROOF COVERINGS"}]
[]
[{"$f":"'Bill 8-Capentry'!B7","v":"BILL NO. 8"},null,null,{"$f":"'Bill 8-Capentry'!B9","v":"CARPENTRY & JOINERY"}]
[]
[{"$f":"'Bill 9-Ceilings'!B7","v":"BILL NO. 9"},null,null,{"$f":"'Bill 9-Ceilings'!B9","v":"CEILINGS"}]
[]
[{"$f":"'Bill 10-Iron Mongery'!B7","v":"BILL NO. 10"},null,null,{"$f":"'Bill 10-Iron Mongery'!B9","v":"IRONMONGERY"}]
[]
[{"$f":"'Bill 11-Metal'!B7","v":"BILL NO. 11"},null,null,{"$f":"'Bill 11-Metal'!B9","v":"METALWORK"}]
[]
[{"$f":"'Bill 12-Structural'!B7","v":"BILL NO. 12"},null,null,{"$f":"'Bill 12-Structural'!B9","v":"STRUCTURAL WORK"}]
[]
[{"$f":"'Bill 13-Plastering'!B7","v":"BILL NO. 13"},null,null,{"$f":"'Bill 13-Plastering'!B9","v":"PLASTERING"}]
[]
[{"$f":"'Bill 14- Tile'!B7","v":"BILL NO. 14"},null,null,{"$f":"'Bill 14- Tile'!B9","v":"TILING"}]
[]
[{"$f":"'Bill 15-Plumbing'!B7","v":"BILL NO. 15"},null,null,{"$f":"'Bill 15-Plumbing'!B9","v":"PLUMBING & DRAINAGE"}]
[]
[{"$f":"'Bill 16-Painting'!B7","v":"BILL NO. 16"},null,null,{"$f":"'Bill 16-Painting'!B9","v":"PAINTWORK"}]
[]
[{"$f":"'Bill 17-Site Works'!B7","v":"BILL NO. 17"},null,null,{"$f":"'Bill 17-Site Works'!B9","v":"SITE WORKS AND DEMOLITIONS"}]
[]
[{"$f":"'Bill 18- Road'!B7","v":"BILL NO. 18"},null,null,{"$f":"'Bill 18- Road'!B9","v":"ROADWORKS, PAVING "}]
[]
[{"$f":"'Bill 19- Fence '!B7","v":"BILL NO. 19"},null,null,{"$f":"'Bill 19- Fence '!B9","v":"FENCING AND GATES"}]
[]
[{"$f":"'Bill 20- Water '!B7","v":"BILL NO. 20"},null,null,{"$f":"'Bill 20- Water '!B9","v":"WATER RETICULATION"}]
[]
[{"$f":"'Bill 21- Sewer '!B7","v":"BILL NO. 21"},null,null,{"$f":"'Bill 21- Sewer '!B9","v":"SEWER RETICULATION"}]
[]
[{"$f":"'Bill 22- Stormwater'!B7","v":"BILL NO. 22"},null,null,{"$f":"'Bill 22- Stormwater'!B9","v":"STORMWATER DRAINAGE, SUB-SOIL DRAINAGE"}]
[]
[{"$f":"'Bill 23- Furniture '!B7","v":"BILL NO. 23"},null,null,{"$f":"'Bill 23- Furniture '!B9","v":"STREET FURNITURE"}]
[]
[{"$f":"'Bill 24- Electrical'!B7","v":"BILL NO. 24"},null,null,{"$f":"'Bill 24- Electrical'!B9","v":"ELECTRICAL"}]
[]
[{"$f":"'Bill 25- Mechanical'!B7","v":"BILL NO. 25"},null,null,{"$f":"'Bill 25- Mechanical'!B9","v":"MECHANICAL"}]
[]
[{"$f":"'Bill 26- Provisional'!B7","v":"BILL NO. 26"},null,null,{"$f":"'Bill 26- Provisional'!B9","v":"PROVISIONAL SUMS"}]
[]
[null,"SUBTOTAL"]
[]
[]
[null,"ADD 10% CONTIGENCY"]
[]
[]
[null,"TOTAL"]
[]
[]
[null,"ADD 15% VAT"]
[]
[]
[null,"TOTAL PROJECT CONSTRUCTION COSTS"]